Workbook

Sheet Resource Options
B2: Long Description | C2: Tab | D2: Storage (MWh) | E2: Plant Size (MW) (59F)
B3: 7F.04 CT Frame Greenfield | C3: Fuel Gen | E3: 180.495
B4: Reciprocating Engine (ICE) Machine | C4: Fuel Gen | E4: 185.438
B5: NG CCCT (1x1 w/DF) | C5: Fuel Gen | E5: 311.536
B6: Small Modular Reactor (share) | C6: Other PPA | E6: 100
B7: NW Wind On System (Share) | C7: Wind PPA | E7: 100
B8: NW Wind Off System | C8: Wind PPA | E8: 100
B9: Wind Montana | C9: Wind PPA | E9: 100
B10: Off Shore Wind (Share) | C10: Wind PPA | E10: 100
B11: New Residential Solar | C11: Solar PPA | E11: =7/1.15/1000 -> 0.006086956522
B12: New Residential Solar + Storage | C12: Solar PPA | D12: 0.005 | E12: =E11 -> 0.006086956522
B13: Existing Residential Solar | C13: Solar PPA | E13: =7/1.15/1000 -> 0.006086956522
B14: Existing Residential Solar + Storage | C14: Solar PPA | D14: 0.005 | E14: =E13 -> 0.006086956522
B15: Commercial Solar | C15: Solar PPA | E15: 1
B16: Commercial Solar + Storage | C16: Solar PPA | D16: 1 | E16: =E15 -> 1
B17: Solar Photovoltaic Fixed Array (5 MW AC) | C17: Solar PPA | E17: 5
B18: Solar Photovoltaic Fixed Array (5 MW AC) + Storage | C18: Solar PPA | D18: 5 | E18: =E17 -> 5
B19: Solar Photovoltaic w/Single Axis Tracking (100 MW AC) | C19: Solar PPA | E19: 100
B20: Southern NW Solar Photovoltaic w/ Single Axis Tracking (100 MW AC) | C20: Solar PPA | E20: 100
B21: 100 MW/400 MWh Lithium-ion w/Solar | C21: Solar PPA | D21: 100 | E21: =E19 -> 100
B22: 100 MW/200 MWh Lithium-ion w/Solar | C22: Solar PPA | D22: 100 | E22: =E19 -> 100
B23: 50 MW/200 MWh Lithium-ion w/Solar | C23: Solar PPA | D23: 50 | E23: =E19 -> 100
B24: Distribution Scale 4hr Lithium-Ion | C24: Ownership Storage | D24: =E24*4 -> 20 | E24: 5
B25: Distribution Scale 8hr Lithium-Ion | C25: Ownership Storage | D25: =E25*8 -> 40 | E25: 5
B26: 4hr Lithium-Ion | C26: Ownership Storage | D26: =E26*4 -> 100 | E26: 25
B27: 8hr Lithium-Ion | C27: Ownership Storage | D27: =E27*8 -> 200 | E27: 25
B28: 16hr Lithium-Ion | C28: Ownership Storage | D28: =E28*16 -> 400 | E28: 25
B29: 4 hr Vanadium Flow Battery | C29: Ownership Storage | D29: =E29*4 -> 100 | E29: 25
B30: 4 hr Zinc Bromide Flow Battery | C30: Ownership Storage | D30: =E30*4 -> 100 | E30: 25
B31: 100hr Iron Oxide | C31: Ownership Storage | D31: 100 | E31: 100
B32: Geothermal (Off System) | C32: Other PPA | E32: 20
B33: Hydrogen Fuel Cell with 40 hrs Storage | C33: Fuel Gen | E33: 25
B34: 7F.04 CT Frame Greenfield + ammonia + storage | C34: Fuel Gen | E34: 74
B35: Liquid Air | C35: Ownership Storage | D35: 400 | E35: 25
B36: Pumped Hydro (8.5 hr/ 400 MW share) | C36: Ownership Storage | D36: =E36*8.5 -> 3400 | E36: 400
B37: Pumped Hydro (16 hr/ 100 MW) | C37: Ownership Storage | D37: =E37*16 -> 1600 | E37: 100
B38: Pumped Hyrdo (24 hr/ 100 MW) | C38: Ownership Storage | D38: =E38*24 -> 2400 | E38: 100
B39: Wood Biomass | C39: Upgrades | E39: 57.6
B40: Rathdrum CT 2055 Uprates two unit operation | C40: Upgrades | E40: 5
B41: Rathdrum CT: Inlet Evaporation 2 unit operation | C41: Upgrades | E41: 10
B42: Kettle Falls Turbine Generator Upgrade | C42: Upgrades

Sheet DATA (Real)
B1: Base Year USD | C1: Source | D1: Data Point | E1: Resource | F1: 2020 | G1: 2021 | H1: 2022 | I1: 2023 | J1: 2024 | K1: 2025 | L1: 2026 | M1: 2027 | N1: 2028 | O1: 2029 | P1: 2030 | Q1: 2031 | R1: 2032 | S1: 2033 | T1: 2034 | U1: 2035 | V1: 2036 | W1: 2037 | X1: 2038 | Y1: 2039 | Z1: 2040 | AA1: 2041 | AB1: 2042 | AC1: 2043 | AD1: 2044 | AE1: 2045 | AF1: 2046 | AG1: 2047 | AH1: 2048 | AI1: 2049 | AJ1: 2050 | AK1: 2051 | AL1: 2052 | AM1: 2053 | AN1: 2054 | AO1: 2055 | AP1: 2056 | AQ1: 2057 | AR1: 2058 | AS1: 2059 | AT1: 2060 | AU1: 2061 | AV1: 2062 | AW1: 2063 | AX1: 2064 | AY1: 2065 | AZ1: 2066 | BA1: 2067 | BB1: 2068 | BC1: 2069 | BD1: 2070 | BE1: 2071 | BF1: 2072 | BG1: 2073 | BH1: 2074 | BI1: 2075 | BJ1: 2076 | BK1: 2077 | BL1: 2078 | BM1: 2079 | BN1: 2080 | BO1: 2081 | BP1: 2082 | BQ1: 2083 | BR1: 2084 | BS1: 2085 | BT1: 2086 | BU1: 2087 | BV1: 2088 | BW1: 2089 | BX1: 2090
D3: Net Capacity Factor (%)
C4: Internal | D4: Net Capacity Factor (%) | E4: Wood Biomass | F4: 0.5 | G4: 0.5 | H4: 0.5 | I4: 0.5 | J4: 0.5 | K4: 0.5 | L4: 0.5 | M4: 0.5 | N4: 0.5 | O4: 0.5 | P4: 0.5 | Q4: 0.5 | R4: 0.5 | S4: 0.5 | T4: 0.5 | U4: 0.5 | V4: 0.5 | W4: 0.5 | X4: 0.5 | Y4: 0.5 | Z4: 0.5 | AA4: 0.5 | AB4: 0.5 | AC4: 0.5 | AD4: 0.5 | AE4: 0.5 | AF4: 0.5 | AG4: 0.5 | AH4: 0.5 | AI4: 0.5 | AJ4: 0.5 | AK4: 0.5 | AL4: 0.5 | AM4: 0.5 | AN4: 0.5 | AO4: 0.5 | AP4: 0.5 | AQ4: 0.5 | AR4: 0.5 | AS4: 0.5 | AT4: 0.5 | AU4: 0.5 | AV4: 0.5 | AW4: 0.5 | AX4: 0.5 | AY4: 0.5 | AZ4: 0.5 | BA4: 0.5 | BB4: 0.5 | BC4: 0.5 | BD4: 0.5 | BE4: 0.5 | BF4: 0.5 | BG4: 0.5 | BH4: 0.5 | BI4: 0.5 | BJ4: 0.5 | BK4: 0.5 | BL4: 0.5 | BM4: 0.5 | BN4: 0.5 | BO4: 0.5 | BP4: 0.5 | BQ4: 0.5 | BR4: 0.5 | BS4: 0.5 | BT4: 0.5 | BU4: 0.5 | BV4: 0.5 | BW4: 0.5 | BX4: 0.5
C5: Internal | D5: Net Capacity Factor (%) | E5: Rathdrum CT 2055 Uprates two unit operation | F5: 0.9132420091 | G5: 0.9132420091 | H5: 0.9132420091 | I5: 0.9132420091 | J5: 0.9132420091 | K5: 0.9132420091 | L5: 0.9132420091 | M5: 0.9132420091 | N5: 0.9132420091 | O5: 0.9132420091 | P5: 0.9132420091 | Q5: 0.9132420091 | R5: 0.9132420091 | S5: 0.9132420091 | T5: 0.9132420091 | U5: 0.9132420091 | V5: 0.9132420091 | W5: 0.9132420091 | X5: 0.9132420091 | Y5: 0.9132420091 | Z5: 0.9132420091 | AA5: 0.9132420091 | AB5: 0.9132420091 | AC5: 0.9132420091 | AD5: 0.9132420091 | AE5: 0.9132420091 | AF5: 0.9132420091 | AG5: 0.9132420091 | AH5: 0.9132420091 | AI5: 0.9132420091 | AJ5: 0.9132420091 | AK5: 0.9132420091 | AL5: 0.9132420091 | AM5: 0.9132420091 | AN5: 0.9132420091 | AO5: 0.9132420091 | AP5: 0.9132420091 | AQ5: 0.9132420091 | AR5: 0.9132420091 | AS5: 0.9132420091 | AT5: 0.9132420091 | AU5: 0.9132420091 | AV5: 0.9132420091 | AW5: 0.9132420091 | AX5: 0.9132420091 | AY5: 0.9132420091 | AZ5: 0.9132420091 | BA5: 0.9132420091 | BB5: 0.9132420091 | BC5: 0.9132420091 | BD5: 0.9132420091 | BE5: 0.9132420091 | BF5: 0.9132420091 | BG5: 0.9132420091 | BH5: 0.9132420091 | BI5: 0.9132420091 | BJ5: 0.9132420091 | BK5: 0.9132420091 | BL5: 0.9132420091 | BM5: 0.9132420091 | BN5: 0.9132420091 | BO5: 0.9132420091 | BP5: 0.9132420091 | BQ5: 0.9132420091 | BR5: 0.9132420091 | BS5: 0.9132420091 | BT5: 0.9132420091 | BU5: 0.9132420091 | BV5: 0.9132420091 | BW5: 0.9132420091 | BX5: 0.9132420091
C6: Internal | D6: Net Capacity Factor (%) | E6: Rathdrum CT: Inlet Evaporation 2 unit operation | F6: =F5 -> 0.9132420091 | G6: =G5 -> 0.9132420091 | H6: 0.9132420091 | I6: 0.9132420091 | J6: 0.9132420091 | K6: 0.9132420091 | L6: 0.9132420091 | M6: 0.9132420091 | N6: 0.9132420091 | O6: 0.9132420091 | P6: 0.9132420091 | Q6: 0.9132420091 | R6: 0.9132420091 | S6: 0.9132420091 | T6: 0.9132420091 | U6: 0.9132420091 | V6: 0.9132420091 | W6: 0.9132420091 | X6: 0.9132420091 | Y6: 0.9132420091 | Z6: 0.9132420091 | AA6: 0.9132420091 | AB6: 0.9132420091 | AC6: 0.9132420091 | AD6: 0.9132420091 | AE6: 0.9132420091 | AF6: 0.9132420091 | AG6: 0.9132420091 | AH6: 0.9132420091 | AI6: 0.9132420091 | AJ6: 0.9132420091 | AK6: 0.9132420091 | AL6: 0.9132420091 | AM6: 0.9132420091 | AN6: 0.9132420091 | AO6: 0.9132420091 | AP6: 0.9132420091 | AQ6: 0.9132420091 | AR6: 0.9132420091 | AS6: 0.9132420091 | AT6: 0.9132420091 | AU6: 0.9132420091 | AV6: 0.9132420091 | AW6: 0.9132420091 | AX6: 0.9132420091 | AY6: 0.9132420091 | AZ6: 0.9132420091 | BA6: 0.9132420091 | BB6: 0.9132420091 | BC6: 0.9132420091 | BD6: 0.9132420091 | BE6: 0.9132420091 | BF6: 0.9132420091 | BG6: 0.9132420091 | BH6: 0.9132420091 | BI6: 0.9132420091 | BJ6: 0.9132420091 | BK6: 0.9132420091 | BL6: 0.9132420091 | BM6: 0.9132420091 | BN6: 0.9132420091 | BO6: 0.9132420091 | BP6: 0.9132420091 | BQ6: 0.9132420091 | BR6: 0.9132420091 | BS6: =BS5 -> 0.9132420091 | BT6: 0.9132420091 | BU6: 0.9132420091 | BV6: 0.9132420091 | BW6: 0.9132420091 | BX6: 0.9132420091
C7: Internal | D7: Net Capacity Factor (%) | E7: Kettle Falls Turbine Generator Upgrade
C8: Internal/NREL Residential PV - Class 8 | D8: Net Capacity Factor (%) | E8: New Residential Solar | F8: 0.1367137964 | G8: 0.1369249893 | H8: 0.1371361821 | I8: 0.137347375 | J8: 0.1375585679 | K8: 0.1377697608 | L8: 0.1379809537 | M8: 0.1381921466 | N8: 0.1384033395 | O8: 0.1386145324 | P8: 0.1388257253 | Q8: 0.1390049772 | R8: 0.1391842291 | S8: 0.139363481 | T8: 0.1395427329 | U8: 0.1397219848 | V8: 0.1399012367 | W8: 0.1400804886 | X8: 0.1402597405 | Y8: 0.1404389924 | Z8: 0.1406182443 | AA8: 0.1407974962 | AB8: 0.1409767481 | AC8: 0.141156 | AD8: 0.1413352519 | AE8: 0.1415145038 | AF8: 0.1416937557 | AG8: 0.1418730076 | AH8: 0.1420522595 | AI8: 0.1422315114 | AJ8: 0.1424107633 | AK8: =AJ8*1.002 -> 0.1426955848 | AL8: =AK8*1.002 -> 0.142980976 | AM8: =AL8*1.002 -> 0.1432669379 | AN8: =AM8*1.002 -> 0.1435534718 | AO8: =AN8*1.002 -> 0.1438405788 | AP8: =AO8*1.002 -> 0.1441282599 | AQ8: =AP8*1.002 -> 0.1444165164 | AR8: =AQ8*1.002 -> 0.1447053495 | AS8: =AR8*1.002 -> 0.1449947602 | AT8: =AS8*1.002 -> 0.1452847497 | AU8: =AT8*1.002 -> 0.1455753192 | AV8: =AU8*1.002 -> 0.1458664698 | AW8: =AV8*1.002 -> 0.1461582028 | AX8: =AW8*1.002 -> 0.1464505192 | AY8: =AX8*1.002 -> 0.1467434202 | AZ8: =AY8*1.002 -> 0.147036907 | BA8: =AZ8*1.002 -> 0.1473309809 | BB8: =BA8*1.002 -> 0.1476256428 | BC8: =BB8*1.002 -> 0.1479208941 | BD8: =BC8*1.002 -> 0.1482167359 | BE8: =BD8*1.002 -> 0.1485131694 | BF8: =BE8*1.002 -> 0.1488101957 | BG8: =BF8*1.002 -> 0.1491078161 | BH8: =BG8*1.002 -> 0.1494060317 | BI8: =BH8*1.002 -> 0.1497048438 | BJ8: =BI8*1.002 -> 0.1500042535 | BK8: =BJ8*1.002 -> 0.150304262 | BL8: =BK8*1.002 -> 0.1506048705 | BM8: =BL8*1.002 -> 0.1509060802 | BN8: =BM8*1.002 -> 0.1512078924 | BO8: =BN8*1.002 -> 0.1515103082 | BP8: =BO8*1.002 -> 0.1518133288 | BQ8: =BP8*1.002 -> 0.1521169555 | BR8: =BQ8*1.002 -> 0.1524211894 | BS8: =BR8*1.002 -> 0.1527260318 | BT8: =BS8*1.002 -> 0.1530314838 | BU8: =BT8*1.002 -> 0.1533375468 | BV8: =BU8*1.002 -> 0.1536442219 | BW8: =BV8*1.002 -> 0.1539515103 | BX8: =BW8*1.002 -> 0.1542594133
C9: Internal/NREL Residential PV - Class 8 | D9: Net Capacity Factor (%) | E9: New Residential Solar + Storage (Solar Only) | F9: =F8 -> 0.1367137964 | G9: =G8 -> 0.1369249893 | H9: 0.1371361821 | I9: 0.137347375 | J9: 0.1375585679 | K9: 0.1377697608 | L9: 0.1379809537 | M9: 0.1381921466 | N9: 0.1384033395 | O9: 0.1386145324 | P9: 0.1388257253 | Q9: 0.1390049772 | R9: 0.1391842291 | S9: 0.139363481 | T9: 0.1395427329 | U9: 0.1397219848 | V9: 0.1399012367 | W9: 0.1400804886 | X9: 0.1402597405 | Y9: 0.1404389924 | Z9: 0.1406182443 | AA9: 0.1407974962 | AB9: 0.1409767481 | AC9: 0.141156 | AD9: 0.1413352519 | AE9: 0.1415145038 | AF9: 0.1416937557 | AG9: 0.1418730076 | AH9: 0.1420522595 | AI9: 0.1422315114 | AJ9: 0.1424107633 | AK9: 0.1426955848 | AL9: 0.142980976 | AM9: 0.1432669379 | AN9: 0.1435534718 | AO9: 0.1438405788 | AP9: 0.1441282599 | AQ9: 0.1444165164 | AR9: 0.1447053495 | AS9: 0.1449947602 | AT9: 0.1452847497 | AU9: 0.1455753192 | AV9: 0.1458664698 | AW9: 0.1461582028 | AX9: 0.1464505192 | AY9: 0.1467434202 | AZ9: 0.147036907 | BA9: 0.1473309809 | BB9: 0.1476256428 | BC9: 0.1479208941 | BD9: 0.1482167359 | BE9: 0.1485131694 | BF9: 0.1488101957 | BG9: 0.1491078161 | BH9: 0.1494060317 | BI9: 0.1497048438 | BJ9: 0.1500042535 | BK9: 0.150304262 | BL9: 0.1506048705 | BM9: 0.1509060802 | BN9: 0.1512078924 | BO9: 0.1515103082 | BP9: 0.1518133288 | BQ9: 0.1521169555 | BR9: 0.1524211894 | BS9: =BS8 -> 0.1527260318 | BT9: 0.1530314838 | BU9: 0.1533375468 | BV9: 0.1536442219 | BW9: 0.1539515103 | BX9: 0.1542594133
C10: Internal/NREL Residential PV - Class 8 | D10: Net Capacity Factor (%) | E10: Existing Residential Solar | F10: =F8 -> 0.1367137964 | G10: =G8 -> 0.1369249893 | H10: 0.1371361821 | I10: 0.137347375 | J10: 0.1375585679 | K10: 0.1377697608 | L10: 0.1379809537 | M10: 0.1381921466 | N10: 0.1384033395 | O10: 0.1386145324 | P10: 0.1388257253 | Q10: 0.1390049772 | R10: 0.1391842291 | S10: 0.139363481 | T10: 0.1395427329 | U10: 0.1397219848 | V10: 0.1399012367 | W10: 0.1400804886 | X10: 0.1402597405 | Y10: 0.1404389924 | Z10: 0.1406182443 | AA10: 0.1407974962 | AB10: 0.1409767481 | AC10: 0.141156 | AD10: 0.1413352519 | AE10: 0.1415145038 | AF10: 0.1416937557 | AG10: 0.1418730076 | AH10: 0.1420522595 | AI10: 0.1422315114 | AJ10: 0.1424107633 | AK10: 0.1426955848 | AL10: 0.142980976 | AM10: 0.1432669379 | AN10: 0.1435534718 | AO10: 0.1438405788 | AP10: 0.1441282599 | AQ10: 0.1444165164 | AR10: 0.1447053495 | AS10: 0.1449947602 | AT10: 0.1452847497 | AU10: 0.1455753192 | AV10: 0.1458664698 | AW10: 0.1461582028 | AX10: 0.1464505192 | AY10: 0.1467434202 | AZ10: 0.147036907 | BA10: 0.1473309809 | BB10: 0.1476256428 | BC10: 0.1479208941 | BD10: 0.1482167359 | BE10: 0.1485131694 | BF10: 0.1488101957 | BG10: 0.1491078161 | BH10: 0.1494060317 | BI10: 0.1497048438 | BJ10: 0.1500042535 | BK10: 0.150304262 | BL10: 0.1506048705 | BM10: 0.1509060802 | BN10: 0.1512078924 | BO10: 0.1515103082 | BP10: 0.1518133288 | BQ10: 0.1521169555 | BR10: 0.1524211894 | BS10: =BS8 -> 0.1527260318 | BT10: 0.1530314838 | BU10: 0.1533375468 | BV10: 0.1536442219 | BW10: 0.1539515103 | BX10: 0.1542594133
C11: Internal/NREL Residential PV - Class 8 | D11: Net Capacity Factor (%) | E11: Existing Residential Solar + Storage (Solar Only) | F11: =F8 -> 0.1367137964 | G11: =G8 -> 0.1369249893 | H11: 0.1371361821 | I11: 0.137347375 | J11: 0.1375585679 | K11: 0.1377697608 | L11: 0.1379809537 | M11: 0.1381921466 | N11: 0.1384033395 | O11: 0.1386145324 | P11: 0.1388257253 | Q11: 0.1390049772 | R11: 0.1391842291 | S11: 0.139363481 | T11: 0.1395427329 | U11: 0.1397219848 | V11: 0.1399012367 | W11: 0.1400804886 | X11: 0.1402597405 | Y11: 0.1404389924 | Z11: 0.1406182443 | AA11: 0.1407974962 | AB11: 0.1409767481 | AC11: 0.141156 | AD11: 0.1413352519 | AE11: 0.1415145038 | AF11: 0.1416937557 | AG11: 0.1418730076 | AH11: 0.1420522595 | AI11: 0.1422315114 | AJ11: 0.1424107633 | AK11: 0.1426955848 | AL11: 0.142980976 | AM11: 0.1432669379 | AN11: 0.1435534718 | AO11: 0.1438405788 | AP11: 0.1441282599 | AQ11: 0.1444165164 | AR11: 0.1447053495 | AS11: 0.1449947602 | AT11: 0.1452847497 | AU11: 0.1455753192 | AV11: 0.1458664698 | AW11: 0.1461582028 | AX11: 0.1464505192 | AY11: 0.1467434202 | AZ11: 0.147036907 | BA11: 0.1473309809 | BB11: 0.1476256428 | BC11: 0.1479208941 | BD11: 0.1482167359 | BE11: 0.1485131694 | BF11: 0.1488101957 | BG11: 0.1491078161 | BH11: 0.1494060317 | BI11: 0.1497048438 | BJ11: 0.1500042535 | BK11: 0.150304262 | BL11: 0.1506048705 | BM11: 0.1509060802 | BN11: 0.1512078924 | BO11: 0.1515103082 | BP11: 0.1518133288 | BQ11: 0.1521169555 | BR11: 0.1524211894 | BS11: =BS8 -> 0.1527260318 | BT11: 0.1530314838 | BU11: 0.1533375468 | BV11: 0.1536442219 | BW11: 0.1539515103 | BX11: 0.1542594133
C12: Internal/NREL Commercial PV - Class 8 | D12: Net Capacity Factor (%) | E12: Commercial Solar | F12: 0.1386193385 | G12: 0.1400994544 | H12: 0.1415795702 | I12: 0.143059686 | J12: 0.1445398019 | K12: 0.1460199177 | L12: 0.1475000336 | M12: 0.1489801494 | N12: 0.1504602652 | O12: 0.1519403811 | P12: 0.1534204969 | Q12: 0.1539762809 | R12: 0.154532065 | S12: 0.155087849 | T12: 0.155643633 | U12: 0.156199417 | V12: 0.1567552011 | W12: 0.1573109851 | X12: 0.1578667691 | Y12: 0.1584225531 | Z12: 0.1589783372 | AA12: 0.1595341212 | AB12: 0.1600899052 | AC12: 0.1606456893 | AD12: 0.1612014733 | AE12: 0.1617572573 | AF12: 0.1623130413 | AG12: 0.1628688254 | AH12: 0.1634246094 | AI12: 0.1639803934 | AJ12: 0.1645361774 | AK12: =AJ12*1.002 -> 0.1648652498 | AL12: 0.1651949803 | AM12: 0.1655253702 | AN12: 0.165856421 | AO12: 0.1661881338 | AP12: 0.1665205101 | AQ12: 0.1668535511 | AR12: 0.1671872582 | AS12: 0.1675216327 | AT12: 0.167856676 | AU12: 0.1681923894 | AV12: 0.1685287741 | AW12: 0.1688658317 | AX12: 0.1692035633 | AY12: 0.1695419705 | AZ12: 0.1698810544 | BA12: 0.1702208165 | BB12: 0.1705612582 | BC12: 0.1709023807 | BD12: 0.1712441854 | BE12: 0.1715866738 | BF12: 0.1719298471 | BG12: 0.1722737068 | BH12: 0.1726182543 | BI12: 0.1729634908 | BJ12: 0.1733094177 | BK12: 0.1736560366 | BL12: 0.1740033487 | BM12: 0.1743513554 | BN12: 0.1747000581 | BO12: 0.1750494582 | BP12: 0.1753995571 | BQ12: 0.1757503562 | BR12: 0.1761018569 | BS12: 0.1764540606 | BT12: 0.1768069688 | BU12: 0.1771605827 | BV12: 0.1775149039 | BW12: 0.1778699337 | BX12: 0.1782256735
C13: Internal/NREL Commercial PV - Class 8 | D13: Net Capacity Factor (%) | E13: Commercial Solar + Storage | F13: =F12 -> 0.1386193385 | G13: =G12 -> 0.1400994544 | H13: =H12 -> 0.1415795702 | I13: 0.143059686 | J13: 0.1445398019 | K13: 0.1460199177 | L13: 0.1475000336 | M13: 0.1489801494 | N13: 0.1504602652 | O13: 0.1519403811 | P13: 0.1534204969 | Q13: 0.1539762809 | R13: 0.154532065 | S13: 0.155087849 | T13: 0.155643633 | U13: 0.156199417 | V13: 0.1567552011 | W13: 0.1573109851 | X13: 0.1578667691 | Y13: 0.1584225531 | Z13: 0.1589783372 | AA13: 0.1595341212 | AB13: 0.1600899052 | AC13: 0.1606456893 | AD13: 0.1612014733 | AE13: 0.1617572573 | AF13: 0.1623130413 | AG13: 0.1628688254 | AH13: 0.1634246094 | AI13: 0.1639803934 | AJ13: 0.1645361774 | AK13: 0.1648652498 | AL13: 0.1651949803 | AM13: 0.1655253702 | AN13: 0.165856421 | AO13: 0.1661881338 | AP13: 0.1665205101 | AQ13: 0.1668535511 | AR13: 0.1671872582 | AS13: 0.1675216327 | AT13: 0.167856676 | AU13: 0.1681923894 | AV13: 0.1685287741 | AW13: 0.1688658317 | AX13: 0.1692035633 | AY13: 0.1695419705 | AZ13: 0.1698810544 | BA13: 0.1702208165 | BB13: 0.1705612582 | BC13: 0.1709023807 | BD13: 0.1712441854 | BE13: 0.1715866738 | BF13: 0.1719298471 | BG13: 0.1722737068 | BH13: 0.1726182543 | BI13: 0.1729634908 | BJ13: 0.1733094177 | BK13: 0.1736560366 | BL13: 0.1740033487 | BM13: 0.1743513554 | BN13: 0.1747000581 | BO13: 0.1750494582 | BP13: 0.1753995571 | BQ13: 0.1757503562 | BR13: 0.1761018569 | BS13: =BS12 -> 0.1764540606 | BT13: 0.1768069688 | BU13: 0.1771605827 | BV13: 0.1775149039 | BW13: 0.1778699337 | BX13: 0.1782256735
C14: Internal/NREL Utility PV - Class 4 | D14: Net Capacity Factor (%) | E14: Solar Photovoltaic Fixed Array (5 MW AC) | F14: 0.2608403997 | G14: 0.2636255378 | H14: 0.266410676 | I14: 0.2691958141 | J14: 0.2719809522 | K14: 0.2747660904 | L14: 0.2775512285 | M14: 0.2803363667 | N14: 0.2831215048 | O14: 0.285906643 | P14: 0.2886917811 | Q14: 0.2897376015 | R14: 0.2907834218 | S14: 0.2918292422 | T14: 0.2928750626 | U14: 0.2939208829 | V14: 0.2949667033 | W14: 0.2960125237 | X14: 0.297058344 | Y14: 0.2981041644 | Z14: 0.2991499848 | AA14: 0.3001958051 | AB14: 0.3012416255 | AC14: 0.3022874459 | AD14: 0.3033332662 | AE14: 0.3043790866 | AF14: 0.305424907 | AG14: 0.3064707273 | AH14: 0.3075165477 | AI14: 0.3085623681 | AJ14: 0.3096081884 | AK14: =AK16 -> 0.3089042843 | AL14: 0.3095220928 | AM14: 0.310141137 | AN14: 0.3107614193 | AO14: 0.3113829421 | AP14: 0.312005708 | AQ14: 0.3126297194 | AR14: 0.3132549789 | AS14: 0.3138814888 | AT14: 0.3145092518 | AU14: 0.3151382703 | AV14: 0.3157685468 | AW14: 0.3164000839 | AX14: 0.3170328841 | AY14: 0.3176669499 | AZ14: 0.3183022838 | BA14: 0.3189388883 | BB14: 0.3195767661 | BC14: 0.3202159197 | BD14: 0.3208563515 | BE14: 0.3214980642 | BF14: 0.3221410603 | BG14: 0.3227853424 | BH14: 0.3234309131 | BI14: 0.324077775 | BJ14: 0.3247259305 | BK14: 0.3253753824 | BL14: 0.3260261331 | BM14: 0.3266781854 | BN14: 0.3273315418 | BO14: 0.3279862048 | BP14: 0.3286421773 | BQ14: 0.3292994616 | BR14: 0.3299580605 | BS14: =BS16 -> 0.3306179767 | BT14: 0.3312792126 | BU14: 0.331941771 | BV14: 0.3326056546 | BW14: 0.3332708659 | BX14: 0.3339374076
C15: Internal/NREL Utility PV - Class 4 | D15: Net Capacity Factor (%) | E15: Solar Photovoltaic Fixed Array (5 MW AC) + Storage (Solar Only) | F15: =F14 -> 0.2608403997 | G15: =G14 -> 0.2636255378 | H15: =H14 -> 0.266410676 | I15: 0.2691958141 | J15: 0.2719809522 | K15: 0.2747660904 | L15: 0.2775512285 | M15: 0.2803363667 | N15: 0.2831215048 | O15: 0.285906643 | P15: 0.2886917811 | Q15: 0.2897376015 | R15: 0.2907834218 | S15: 0.2918292422 | T15: 0.2928750626 | U15: 0.2939208829 | V15: 0.2949667033 | W15: 0.2960125237 | X15: 0.297058344 | Y15: 0.2981041644 | Z15: 0.2991499848 | AA15: 0.3001958051 | AB15: 0.3012416255 | AC15: 0.3022874459 | AD15: 0.3033332662 | AE15: 0.3043790866 | AF15: 0.305424907 | AG15: 0.3064707273 | AH15: 0.3075165477 | AI15: 0.3085623681 | AJ15: 0.3096081884 | AK15: 0.3089042843 | AL15: 0.3095220928 | AM15: 0.310141137 | AN15: 0.3107614193 | AO15: 0.3113829421 | AP15: 0.312005708 | AQ15: 0.3126297194 | AR15: 0.3132549789 | AS15: 0.3138814888 | AT15: 0.3145092518 | AU15: 0.3151382703 | AV15: 0.3157685468 | AW15: 0.3164000839 | AX15: 0.3170328841 | AY15: 0.3176669499 | AZ15: 0.3183022838 | BA15: 0.3189388883 | BB15: 0.3195767661 | BC15: 0.3202159197 | BD15: 0.3208563515 | BE15: 0.3214980642 | BF15: 0.3221410603 | BG15: 0.3227853424 | BH15: 0.3234309131 | BI15: 0.324077775 | BJ15: 0.3247259305 | BK15: 0.3253753824 | BL15: 0.3260261331 | BM15: 0.3266781854 | BN15: 0.3273315418 | BO15: 0.3279862048 | BP15: 0.3286421773 | BQ15: 0.3292994616 | BR15: 0.3299580605 | BS15: =BS14 -> 0.3306179767 | BT15: 0.3312792126 | BU15: 0.331941771 | BV15: 0.3326056546 | BW15: 0.3332708659 | BX15: 0.3339374076
C16: Internal/NREL Utility PV - Class 4 | D16: Net Capacity Factor (%) | E16: Solar Photovoltaic w/Single Axis Tracking (100 MW AC) | F16: 0.2608403997 | G16: 0.2636255378 | H16: 0.266410676 | I16: 0.2691958141 | J16: 0.2719809522 | K16: 0.2747660904 | L16: 0.2775512285 | M16: =L16*1.0164 -> 0.2821030687 | N16: 0.286729559 | O16: 0.2914319238 | P16: 0.2962114073 | Q16: =P16*1.002 -> 0.2968038301 | R16: =Q16*1.002 -> 0.2973974378 | S16: 0.2979922327 | T16: 0.2985882171 | U16: 0.2991853936 | V16: 0.2997837644 | W16: 0.3003833319 | X16: 0.3009840986 | Y16: 0.3015860667 | Z16: 0.3021892389 | AA16: 0.3027936174 | AB16: 0.3033992046 | AC16: 0.304006003 | AD16: 0.304614015 | AE16: 0.305223243 | AF16: 0.3058336895 | AG16: 0.3064453569 | AH16: 0.3070582476 | AI16: 0.3076723641 | AJ16: 0.3082877088 | AK16: 0.3089042843 | AL16: 0.3095220928 | AM16: 0.310141137 | AN16: 0.3107614193 | AO16: 0.3113829421 | AP16: 0.312005708 | AQ16: 0.3126297194 | AR16: 0.3132549789 | AS16: 0.3138814888 | AT16: 0.3145092518 | AU16: 0.3151382703 | AV16: 0.3157685468 | AW16: 0.3164000839 | AX16: 0.3170328841 | AY16: 0.3176669499 | AZ16: 0.3183022838 | BA16: 0.3189388883 | BB16: 0.3195767661 | BC16: 0.3202159197 | BD16: 0.3208563515 | BE16: 0.3214980642 | BF16: 0.3221410603 | BG16: 0.3227853424 | BH16: 0.3234309131 | BI16: 0.324077775 | BJ16: 0.3247259305 | BK16: 0.3253753824 | BL16: 0.3260261331 | BM16: 0.3266781854 | BN16: 0.3273315418 | BO16: 0.3279862048 | BP16: 0.3286421773 | BQ16: 0.3292994616 | BR16: 0.3299580605 | BS16: 0.3306179767 | BT16: 0.3312792126 | BU16: 0.331941771 | BV16: 0.3326056546 | BW16: 0.3332708659 | BX16: 0.3339374076
C17: Internal/NREL Utility PV - Class 5 | D17: Net Capacity Factor (%) | E17: Southern NW Solar Photovoltaic w/ Single Axis Tracking (100 MW AC) | F17: 0.2436854049 | G17: 0.2462873696 | H17: 0.2488893343 | I17: 0.251491299 | J17: 0.2540932637 | K17: 0.2566952284 | L17: 0.2592971932 | M17: 0.2635496671 | N17: 0.2678718817 | O17: 0.2722649805 | P17: 0.2767301262 | Q17: =P17*1.002 -> 0.2772835865 | R17: 0.2778381536 | S17: 0.2783938299 | T17: 0.2789506176 | U17: 0.2795085188 | V17: 0.2800675359 | W17: 0.2806276709 | X17: 0.2811889263 | Y17: 0.2817513041 | Z17: 0.2823148068 | AA17: 0.2828794364 | AB17: 0.2834451952 | AC17: 0.2840120856 | AD17: 0.2845801098 | AE17: 0.28514927 | AF17: 0.2857195686 | AG17: 0.2862910077 | AH17: 0.2868635897 | AI17: 0.2874373169 | AJ17: 0.2880121915 | AK17: 0.2885882159 | AL17: 0.2891653923 | AM17: 0.2897437231 | AN17: 0.2903232106 | AO17: 0.290903857 | AP17: 0.2914856647 | AQ17: 0.292068636 | AR17: 0.2926527733 | AS17: 0.2932380789 | AT17: 0.293824555 | AU17: 0.2944122041 | AV17: 0.2950010285 | AW17: 0.2955910306 | AX17: 0.2961822126 | AY17: 0.2967745771 | AZ17: 0.2973681262 | BA17: 0.2979628625 | BB17: 0.2985587882 | BC17: 0.2991559058 | BD17: 0.2997542176 | BE17: 0.300353726 | BF17: 0.3009544335 | BG17: 0.3015563423 | BH17: 0.302159455 | BI17: 0.3027637739 | BJ17: 0.3033693015 | BK17: 0.3039760401 | BL17: 0.3045839922 | BM17: 0.3051931602 | BN17: 0.3058035465 | BO17: 0.3064151536 | BP17: 0.3070279839 | BQ17: 0.3076420398 | BR17: 0.3082573239 | BS17: 0.3088738386 | BT17: 0.3094915863 | BU17: 0.3101105694 | BV17: 0.3107307906 | BW17: 0.3113522521 | BX17: 0.3119749566
C18: Internal/NREL Utility PV - Class 4 | D18: Net Capacity Factor (%) | E18: 100 MW/400 MWh Lithium-ion w/Solar (Solar Only) | F18: =F16 -> 0.2608403997 | G18: =G16 -> 0.2636255378 | H18: 0.266410676 | I18: 0.2691958141 | J18: 0.2719809522 | K18: 0.2747660904 | L18: 0.2775512285 | M18: 0.2821030687 | N18: 0.286729559 | O18: 0.2914319238 | P18: 0.2962114073 | Q18: 0.2968038301 | R18: 0.2973974378 | S18: 0.2979922327 | T18: 0.2985882171 | U18: 0.2991853936 | V18: 0.2997837644 | W18: 0.3003833319 | X18: 0.3009840986 | Y18: 0.3015860667 | Z18: 0.3021892389 | AA18: 0.3027936174 | AB18: 0.3033992046 | AC18: 0.304006003 | AD18: 0.304614015 | AE18: 0.305223243 | AF18: 0.3058336895 | AG18: 0.3064453569 | AH18: 0.3070582476 | AI18: 0.3076723641 | AJ18: 0.3082877088 | AK18: 0.3089042843 | AL18: 0.3095220928 | AM18: 0.310141137 | AN18: 0.3107614193 | AO18: 0.3113829421 | AP18: 0.312005708 | AQ18: 0.3126297194 | AR18: 0.3132549789 | AS18: 0.3138814888 | AT18: 0.3145092518 | AU18: 0.3151382703 | AV18: 0.3157685468 | AW18: 0.3164000839 | AX18: 0.3170328841 | AY18: 0.3176669499 | AZ18: 0.3183022838 | BA18: 0.3189388883 | BB18: 0.3195767661 | BC18: 0.3202159197 | BD18: 0.3208563515 | BE18: 0.3214980642 | BF18: 0.3221410603 | BG18: 0.3227853424 | BH18: 0.3234309131 | BI18: 0.324077775 | BJ18: 0.3247259305 | BK18: 0.3253753824 | BL18: 0.3260261331 | BM18: 0.3266781854 | BN18: 0.3273315418 | BO18: 0.3279862048 | BP18: 0.3286421773 | BQ18: 0.3292994616 | BR18: 0.3299580605 | BS18: =BS16 -> 0.3306179767 | BT18: 0.3312792126 | BU18: 0.331941771 | BV18: 0.3326056546 | BW18: 0.3332708659 | BX18: 0.3339374076
C19: Internal/NREL Utility PV - Class 4 | D19: Net Capacity Factor (%) | E19: 100 MW/200 MWh Lithium-ion w/Solar (Solar Only) | F19: =F16 -> 0.2608403997 | G19: =G16 -> 0.2636255378 | H19: 0.266410676 | I19: 0.2691958141 | J19: 0.2719809522 | K19: 0.2747660904 | L19: 0.2775512285 | M19: 0.2821030687 | N19: 0.286729559 | O19: 0.2914319238 | P19: 0.2962114073 | Q19: 0.2968038301 | R19: 0.2973974378 | S19: 0.2979922327 | T19: 0.2985882171 | U19: 0.2991853936 | V19: 0.2997837644 | W19: 0.3003833319 | X19: 0.3009840986 | Y19: 0.3015860667 | Z19: 0.3021892389 | AA19: 0.3027936174 | AB19: 0.3033992046 | AC19: 0.304006003 | AD19: 0.304614015 | AE19: 0.305223243 | AF19: 0.3058336895 | AG19: 0.3064453569 | AH19: 0.3070582476 | AI19: 0.3076723641 | AJ19: 0.3082877088 | AK19: 0.3089042843 | AL19: 0.3095220928 | AM19: 0.310141137 | AN19: 0.3107614193 | AO19: 0.3113829421 | AP19: 0.312005708 | AQ19: 0.3126297194 | AR19: 0.3132549789 | AS19: 0.3138814888 | AT19: 0.3145092518 | AU19: 0.3151382703 | AV19: 0.3157685468 | AW19: 0.3164000839 | AX19: 0.3170328841 | AY19: 0.3176669499 | AZ19: 0.3183022838 | BA19: 0.3189388883 | BB19: 0.3195767661 | BC19: 0.3202159197 | BD19: 0.3208563515 | BE19: 0.3214980642 | BF19: 0.3221410603 | BG19: 0.3227853424 | BH19: 0.3234309131 | BI19: 0.324077775 | BJ19: 0.3247259305 | BK19: 0.3253753824 | BL19: 0.3260261331 | BM19: 0.3266781854 | BN19: 0.3273315418 | BO19: 0.3279862048 | BP19: 0.3286421773 | BQ19: 0.3292994616 | BR19: 0.3299580605 | BS19: =BS16 -> 0.3306179767 | BT19: 0.3312792126 | BU19: 0.331941771 | BV19: 0.3326056546 | BW19: 0.3332708659 | BX19: 0.3339374076
C20: Internal/NREL Utility PV - Class 4 | D20: Net Capacity Factor (%) | E20: 50 MW/200 MWh Lithium-ion w/Solar (Solar Only) | F20: =F16 -> 0.2608403997 | G20: =G16 -> 0.2636255378 | H20: 0.266410676 | I20: 0.2691958141 | J20: 0.2719809522 | K20: 0.2747660904 | L20: 0.2775512285 | M20: 0.2821030687 | N20: 0.286729559 | O20: 0.2914319238 | P20: 0.2962114073 | Q20: 0.2968038301 | R20: 0.2973974378 | S20: 0.2979922327 | T20: 0.2985882171 | U20: 0.2991853936 | V20: 0.2997837644 | W20: 0.3003833319 | X20: 0.3009840986 | Y20: 0.3015860667 | Z20: 0.3021892389 | AA20: 0.3027936174 | AB20: 0.3033992046 | AC20: 0.304006003 | AD20: 0.304614015 | AE20: 0.305223243 | AF20: 0.3058336895 | AG20: 0.3064453569 | AH20: 0.3070582476 | AI20: 0.3076723641 | AJ20: 0.3082877088 | AK20: 0.3089042843 | AL20: 0.3095220928 | AM20: 0.310141137 | AN20: 0.3107614193 | AO20: 0.3113829421 | AP20: 0.312005708 | AQ20: 0.3126297194 | AR20: 0.3132549789 | AS20: 0.3138814888 | AT20: 0.3145092518 | AU20: 0.3151382703 | AV20: 0.3157685468 | AW20: 0.3164000839 | AX20: 0.3170328841 | AY20: 0.3176669499 | AZ20: 0.3183022838 | BA20: 0.3189388883 | BB20: 0.3195767661 | BC20: 0.3202159197 | BD20: 0.3208563515 | BE20: 0.3214980642 | BF20: 0.3221410603 | BG20: 0.3227853424 | BH20: 0.3234309131 | BI20: 0.324077775 | BJ20: 0.3247259305 | BK20: 0.3253753824 | BL20: 0.3260261331 | BM20: 0.3266781854 | BN20: 0.3273315418 | BO20: 0.3279862048 | BP20: 0.3286421773 | BQ20: 0.3292994616 | BR20: 0.3299580605 | BS20: =BS16 -> 0.3306179767 | BT20: 0.3312792126 | BU20: 0.331941771 | BV20: 0.3326056546 | BW20: 0.3332708659 | BX20: 0.3339374076
C21: Internal/NREL Land-Based Wind - Class 8 | D21: Net Capacity Factor (%) | E21: NW Wind On System (Share) | F21: 0.322 | G21: =F21 -> 0.322 | H21: =G21 -> 0.322 | I21: 0.322 | J21: 0.322 | K21: 0.322 | L21: 0.322 | M21: =L21*1.0164 -> 0.3272808 | N21: =M21*1.0164 -> 0.3326482051 | O21: 0.3381036357 | P21: 0.3436485353 | Q21: =P21*1.001 -> 0.3439921838 | R21: =Q21*1.001 -> 0.344336176 | S21: 0.3446805122 | T21: 0.3450251927 | U21: 0.3453702179 | V21: 0.3457155881 | W21: 0.3460613037 | X21: 0.346407365 | Y21: 0.3467537724 | Z21: 0.3471005262 | AA21: 0.3474476267 | AB21: 0.3477950743 | AC21: 0.3481428694 | AD21: 0.3484910123 | AE21: 0.3488395033 | AF21: 0.3491883428 | AG21: 0.3495375311 | AH21: 0.3498870686 | AI21: 0.3502369557 | AJ21: 0.3505871927 | AK21: 0.3509377799 | AL21: 0.3512887176 | AM21: 0.3516400064 | AN21: 0.3519916464 | AO21: 0.352343638 | AP21: 0.3526959816 | AQ21: 0.3530486776 | AR21: 0.3534017263 | AS21: 0.353755128 | AT21: 0.3541088832 | AU21: 0.354462992 | AV21: 0.354817455 | AW21: 0.3551722725 | AX21: 0.3555274448 | AY21: 0.3558829722 | AZ21: 0.3562388552 | BA21: 0.356595094 | BB21: 0.3569516891 | BC21: 0.3573086408 | BD21: 0.3576659495 | BE21: 0.3580236154 | BF21: 0.358381639 | BG21: 0.3587400207 | BH21: 0.3590987607 | BI21: 0.3594578594 | BJ21: 0.3598173173 | BK21: 0.3601771346 | BL21: 0.3605373118 | BM21: 0.3608978491 | BN21: 0.3612587469 | BO21: 0.3616200057 | BP21: 0.3619816257 | BQ21: 0.3623436073 | BR21: 0.3627059509 | BS21: 0.3630686569 | BT21: 0.3634317255 | BU21: 0.3637951572 | BV21: 0.3641589524 | BW21: 0.3645231113 | BX21: 0.3648876345
C22: Internal/NREL Land-Based Wind - Class 8 | D22: Net Capacity Factor (%) | E22: NW Wind Off System | F22: =F21 -> 0.322 | G22: =G21 -> 0.322 | H22: =H21 -> 0.322 | I22: =I21 -> 0.322 | J22: =J21 -> 0.322 | K22: =K21 -> 0.322 | L22: =L21 -> 0.322 | M22: =M21 -> 0.3272808 | N22: =N21 -> 0.3326482051 | O22: =O21 -> 0.3381036357 | P22: =P21 -> 0.3436485353 | Q22: =Q21 -> 0.3439921838 | R22: =R21 -> 0.344336176 | S22: =S21 -> 0.3446805122 | T22: =T21 -> 0.3450251927 | U22: =U21 -> 0.3453702179 | V22: =V21 -> 0.3457155881 | W22: =W21 -> 0.3460613037 | X22: =X21 -> 0.346407365 | Y22: =Y21 -> 0.3467537724 | Z22: =Z21 -> 0.3471005262 | AA22: =AA21 -> 0.3474476267 | AB22: =AB21 -> 0.3477950743 | AC22: =AC21 -> 0.3481428694 | AD22: =AD21 -> 0.3484910123 | AE22: =AE21 -> 0.3488395033 | AF22: =AF21 -> 0.3491883428 | AG22: =AG21 -> 0.3495375311 | AH22: =AH21 -> 0.3498870686 | AI22: =AI21 -> 0.3502369557 | AJ22: =AJ21 -> 0.3505871927 | AK22: =AK21 -> 0.3509377799 | AL22: =AL21 -> 0.3512887176 | AM22: =AM21 -> 0.3516400064 | AN22: =AN21 -> 0.3519916464 | AO22: =AO21 -> 0.352343638 | AP22: =AP21 -> 0.3526959816 | AQ22: =AQ21 -> 0.3530486776 | AR22: =AR21 -> 0.3534017263 | AS22: =AS21 -> 0.353755128 | AT22: =AT21 -> 0.3541088832 | AU22: =AU21 -> 0.354462992 | AV22: =AV21 -> 0.354817455 | AW22: =AW21 -> 0.3551722725 | AX22: =AX21 -> 0.3555274448 | AY22: =AY21 -> 0.3558829722 | AZ22: =AZ21 -> 0.3562388552 | BA22: =BA21 -> 0.356595094 | BB22: =BB21 -> 0.3569516891 | BC22: =BC21 -> 0.3573086408 | BD22: =BD21 -> 0.3576659495 | BE22: =BE21 -> 0.3580236154 | BF22: =BF21 -> 0.358381639 | BG22: =BG21 -> 0.3587400207 | BH22: =BH21 -> 0.3590987607 | BI22: =BI21 -> 0.3594578594 | BJ22: =BJ21 -> 0.3598173173 | BK22: =BK21 -> 0.3601771346 | BL22: =BL21 -> 0.3605373118 | BM22: =BM21 -> 0.3608978491 | BN22: =BN21 -> 0.3612587469 | BO22: =BO21 -> 0.3616200057 | BP22: =BP21 -> 0.3619816257 | BQ22: =BQ21 -> 0.3623436073 | BR22: =BR21 -> 0.3627059509 | BS22: =BS21 -> 0.3630686569 | BT22: =BT21 -> 0.3634317255 | BU22: =BU21 -> 0.3637951572 | BV22: =BV21 -> 0.3641589524 | BW22: =BW21 -> 0.3645231113 | BX22: =BX21 -> 0.3648876345
C23: Internal | D23: Net Capacity Factor (%) | E23: Wind Montana | F23: 0.41 | G23: 0.41 | H23: 0.41 | I23: 0.41 | J23: 0.41 | K23: 0.41 | L23: 0.41 | M23: =L23*1.0164 -> 0.416724 | N23: =M23*1.0164 -> 0.4235582736 | O23: 0.4305046293 | P23: 0.4375649052 | Q23: =P23*1.001 -> 0.4380024701 | R23: =Q23*1.001 -> 0.4384404726 | S23: 0.4388789131 | T23: 0.439317792 | U23: 0.4397571098 | V23: 0.4401968669 | W23: 0.4406370637 | X23: 0.4410777008 | Y23: 0.4415187785 | Z23: 0.4419602973 | AA23: 0.4424022576 | AB23: 0.4428446598 | AC23: 0.4432875045 | AD23: 0.443730792 | AE23: 0.4441745228 | AF23: 0.4446186973 | AG23: 0.445063316 | AH23: 0.4455083793 | AI23: 0.4459538877 | AJ23: 0.4463998416 | AK23: 0.4468462414 | AL23: 0.4472930877 | AM23: 0.4477403808 | AN23: 0.4481881211 | AO23: 0.4486363093 | AP23: 0.4490849456 | AQ23: 0.4495340305 | AR23: 0.4499835646 | AS23: 0.4504335481 | AT23: 0.4508839817 | AU23: 0.4513348656 | AV23: 0.4517862005 | AW23: 0.4522379867 | AX23: 0.4526902247 | AY23: 0.4531429149 | AZ23: 0.4535960578 | BA23: 0.4540496539 | BB23: 0.4545037036 | BC23: 0.4549582073 | BD23: 0.4554131655 | BE23: 0.4558685786 | BF23: 0.4563244472 | BG23: 0.4567807717 | BH23: 0.4572375524 | BI23: 0.45769479 | BJ23: 0.4581524848 | BK23: 0.4586106373 | BL23: 0.4590692479 | BM23: 0.4595283171 | BN23: 0.4599878455 | BO23: 0.4604478333 | BP23: 0.4609082811 | BQ23: 0.4613691894 | BR23: 0.4618305586 | BS23: 0.4622923892 | BT23: 0.4627546816 | BU23: 0.4632174362 | BV23: 0.4636806537 | BW23: 0.4641443343 | BX23: 0.4646084787
C24: NREL Wind Speed Class 12 | D24: Net Capacity Factor (%) | E24: Off Shore Wind (Share) | F24: 0.4618726114 | G24: 0.4668178941 | H24: 0.4713267726 | I24: 0.4755596161 | J24: 0.4796019705 | K24: 0.4835048988 | L24: 0.4873013381 | M24: 0.4910137773 | N24: 0.494658257 | O24: 0.4982466208 | P24: 0.5017878631 | Q24: 0.5032889752 | R24: 0.5047554993 | S24: 0.5061919036 | T24: 0.5076018423 | U24: 0.5089883428 | V24: 0.510353941 | W24: 0.5117007821 | X24: 0.5130306972 | Y24: 0.5143452617 | Z24: 0.5156458409 | AA24: 0.5169336256 | AB24: 0.5182096605 | AC24: 0.5194748678 | AD24: 0.5207300648 | AE24: 0.5219759799 | AF24: 0.5232132645 | AG24: 0.524442504 | AH24: 0.5256642262 | AI24: 0.5268789083 | AJ24: 0.5280869837
C25: NREL Nuclear - Small Modular Reactor | D25: Net Capacity Factor (%) | E25: Small Modular Reactor (share) | F25: 0.937 | G25: 0.937 | H25: 0.937 | I25: 0.937 | J25: 0.937 | K25: 0.937 | L25: 0.937 | M25: 0.937 | N25: 0.937 | O25: 0.937 | P25: 0.937 | Q25: 0.937 | R25: 0.937 | S25: 0.937 | T25: 0.937 | U25: 0.937 | V25: 0.937 | W25: 0.937 | X25: 0.937 | Y25: 0.937 | Z25: 0.937 | AA25: 0.937 | AB25: 0.937 | AC25: 0.937 | AD25: 0.937 | AE25: 0.937 | AF25: 0.937 | AG25: 0.937 | AH25: 0.937 | AI25: 0.937 | AJ25: 0.937 | AK25: =AJ25 -> 0.937 | AL25: =AK25 -> 0.937 | AM25: 0.937 | AN25: 0.937 | AO25: 0.937 | AP25: 0.937 | AQ25: 0.937 | AR25: 0.937 | AS25: 0.937 | AT25: 0.937 | AU25: 0.937 | AV25: 0.937 | AW25: 0.937 | AX25: 0.937 | AY25: 0.937 | AZ25: 0.937 | BA25: 0.937 | BB25: 0.937 | BC25: 0.937 | BD25: 0.937 | BE25: 0.937 | BF25: 0.937 | BG25: 0.937 | BH25: 0.937 | BI25: 0.937 | BJ25: 0.937 | BK25: 0.937 | BL25: 0.937 | BM25: 0.937 | BN25: 0.937 | BO25: 0.937 | BP25: 0.937 | BQ25: 0.937 | BR25: 0.937 | BS25: 0.937 | BT25: 0.937 | BU25: 0.937 | BV25: 0.937 | BW25: 0.937 | BX25: 0.937
C26: NREL Geothermal - Hydro / Flash | D26: Net Capacity Factor (%) | E26: Geothermal (Off System) | F26: 0.9 | G26: 0.9 | H26: 0.9 | I26: 0.9 | J26: 0.9 | K26: 0.9 | L26: 0.9 | M26: 0.9 | N26: 0.9 | O26: 0.9 | P26: 0.9 | Q26: 0.9 | R26: 0.9 | S26: 0.9 | T26: 0.9 | U26: 0.9 | V26: 0.9 | W26: 0.9 | X26: 0.9 | Y26: 0.9 | Z26: 0.9 | AA26: 0.9 | AB26: 0.9 | AC26: 0.9 | AD26: 0.9 | AE26: 0.9 | AF26: 0.9 | AG26: 0.9 | AH26: 0.9 | AI26: 0.9 | AJ26: 0.9 | AK26: =AJ26 -> 0.9 | AL26: 0.9 | AM26: 0.9 | AN26: 0.9 | AO26: 0.9 | AP26: 0.9 | AQ26: 0.9 | AR26: 0.9 | AS26: 0.9 | AT26: 0.9 | AU26: 0.9 | AV26: 0.9 | AW26: 0.9 | AX26: 0.9 | AY26: 0.9 | AZ26: 0.9 | BA26: 0.9 | BB26: 0.9 | BC26: 0.9 | BD26: 0.9 | BE26: 0.9 | BF26: 0.9 | BG26: 0.9 | BH26: 0.9 | BI26: 0.9 | BJ26: 0.9 | BK26: 0.9 | BL26: 0.9 | BM26: 0.9 | BN26: 0.9 | BO26: 0.9 | BP26: 0.9 | BQ26: 0.9 | BR26: 0.9 | BS26: 0.9 | BT26: 0.9 | BU26: 0.9 | BV26: 0.9 | BW26: 0.9 | BX26: 0.9
D28: Heat Rate (MMBtu/MWh)
C29: NREL Nuclear - Small Modular Reactor | D29: Heat Rate (MMBtu/MWh) | E29: Small Modular Reactor (share) | F29: 10.443 | G29: 10.443 | H29: 10.443 | I29: 10.443 | J29: 10.443 | K29: 10.443 | L29: 10.443 | M29: 10.443 | N29: 10.443 | O29: 10.443 | P29: 10.443 | Q29: 10.443 | R29: 10.443 | S29: 10.443 | T29: 10.443 | U29: 10.443 | V29: 10.443 | W29: 10.443 | X29: 10.443 | Y29: 10.443 | Z29: 10.443 | AA29: 10.443 | AB29: 10.443 | AC29: 10.443 | AD29: 10.443 | AE29: 10.443 | AF29: 10.443 | AG29: 10.443 | AH29: 10.443 | AI29: 10.443 | AJ29: 10.443 | AK29: =AJ29 -> 10.443 | AL29: =AK29 -> 10.443 | AM29: 10.443 | AN29: 10.443 | AO29: 10.443 | AP29: 10.443 | AQ29: 10.443 | AR29: 10.443 | AS29: 10.443 | AT29: 10.443 | AU29: 10.443 | AV29: 10.443 | AW29: 10.443 | AX29: 10.443 | AY29: 10.443 | AZ29: 10.443 | BA29: 10.443 | BB29: 10.443 | BC29: 10.443 | BD29: 10.443 | BE29: 10.443 | BF29: 10.443 | BG29: 10.443 | BH29: 10.443 | BI29: 10.443 | BJ29: 10.443 | BK29: 10.443 | BL29: 10.443 | BM29: 10.443 | BN29: 10.443 | BO29: 10.443 | BP29: 10.443 | BQ29: 10.443 | BR29: 10.443 | BS29: 10.443 | BT29: 10.443 | BU29: 10.443 | BV29: 10.443 | BW29: 10.443 | BX29: 10.443
C30: Internal | D30: Heat Rate (MMBtu/MWh) | E30: Wood Biomass | F30: 13.524 | G30: =F30 -> 13.524 | H30: =G30 -> 13.524 | I30: 13.524 | J30: 13.524 | K30: 13.524 | L30: 13.524 | M30: 13.524 | N30: 13.524 | O30: 13.524 | P30: 13.524 | Q30: 13.524 | R30: 13.524 | S30: 13.524 | T30: 13.524 | U30: 13.524 | V30: 13.524 | W30: 13.524 | X30: 13.524 | Y30: 13.524 | Z30: 13.524 | AA30: 13.524 | AB30: 13.524 | AC30: 13.524 | AD30: 13.524 | AE30: 13.524 | AF30: 13.524 | AG30: 13.524 | AH30: 13.524 | AI30: 13.524 | AJ30: 13.524 | AK30: 13.524 | AL30: 13.524 | AM30: 13.524 | AN30: 13.524 | AO30: 13.524 | AP30: 13.524 | AQ30: 13.524 | AR30: 13.524 | AS30: 13.524 | AT30: 13.524 | AU30: 13.524 | AV30: 13.524 | AW30: 13.524 | AX30: 13.524 | AY30: 13.524 | AZ30: 13.524 | BA30: 13.524 | BB30: 13.524 | BC30: 13.524 | BD30: 13.524 | BE30: 13.524 | BF30: 13.524 | BG30: 13.524 | BH30: 13.524 | BI30: 13.524 | BJ30: 13.524 | BK30: 13.524 | BL30: 13.524 | BM30: 13.524 | BN30: 13.524 | BO30: 13.524 | BP30: 13.524 | BQ30: 13.524 | BR30: 13.524 | BS30: 13.524 | BT30: =BS30 -> 13.524 | BU30: 13.524 | BV30: 13.524 | BW30: 13.524 | BX30: 13.524
C31: Internal | D31: Heat Rate (MMBtu/MWh) | E31: Rathdrum CT 2055 Uprates two unit operation | F31: 11.2 | G31: =F31 -> 11.2 | H31: 11.2 | I31: 11.2 | J31: 11.2 | K31: 11.2 | L31: 11.2 | M31: 11.2 | N31: 11.2 | O31: 11.2 | P31: 11.2 | Q31: 11.2 | R31: 11.2 | S31: 11.2 | T31: 11.2 | U31: 11.2 | V31: 11.2 | W31: 11.2 | X31: 11.2 | Y31: 11.2 | Z31: 11.2 | AA31: 11.2 | AB31: 11.2 | AC31: 11.2 | AD31: 11.2 | AE31: 11.2 | AF31: 11.2 | AG31: 11.2 | AH31: 11.2 | AI31: 11.2 | AJ31: 11.2 | AK31: 11.2 | AL31: 11.2 | AM31: 11.2 | AN31: 11.2 | AO31: 11.2 | AP31: 11.2 | AQ31: 11.2 | AR31: 11.2 | AS31: 11.2 | AT31: 11.2 | AU31: 11.2 | AV31: 11.2 | AW31: 11.2 | AX31: 11.2 | AY31: 11.2 | AZ31: 11.2 | BA31: 11.2 | BB31: 11.2 | BC31: 11.2 | BD31: 11.2 | BE31: 11.2 | BF31: 11.2 | BG31: 11.2 | BH31: 11.2 | BI31: 11.2 | BJ31: 11.2 | BK31: 11.2 | BL31: 11.2 | BM31: 11.2 | BN31: 11.2 | BO31: 11.2 | BP31: 11.2 | BQ31: 11.2 | BR31: 11.2 | BS31: =BR31 -> 11.2 | BT31: 11.2 | BU31: 11.2 | BV31: 11.2 | BW31: 11.2 | BX31: 11.2
C32: Internal | D32: Heat Rate (MMBtu/MWh) | E32: Rathdrum CT: Inlet Evaporation 2 unit operation | F32: 11.32 | G32: =F32 -> 11.32 | H32: 11.32 | I32: 11.32 | J32: 11.32 | K32: 11.32 | L32: 11.32 | M32: 11.32 | N32: 11.32 | O32: 11.32 | P32: 11.32 | Q32: 11.32 | R32: 11.32 | S32: 11.32 | T32: 11.32 | U32: 11.32 | V32: 11.32 | W32: 11.32 | X32: 11.32 | Y32: 11.32 | Z32: 11.32 | AA32: 11.32 | AB32: 11.32 | AC32: 11.32 | AD32: 11.32 | AE32: 11.32 | AF32: 11.32 | AG32: 11.32 | AH32: 11.32 | AI32: 11.32 | AJ32: 11.32 | AK32: 11.32 | AL32: 11.32 | AM32: 11.32 | AN32: 11.32 | AO32: 11.32 | AP32: 11.32 | AQ32: 11.32 | AR32: 11.32 | AS32: 11.32 | AT32: 11.32 | AU32: 11.32 | AV32: 11.32 | AW32: 11.32 | AX32: 11.32 | AY32: 11.32 | AZ32: 11.32 | BA32: 11.32 | BB32: 11.32 | BC32: 11.32 | BD32: 11.32 | BE32: 11.32 | BF32: 11.32 | BG32: 11.32 | BH32: 11.32 | BI32: 11.32 | BJ32: 11.32 | BK32: 11.32 | BL32: 11.32 | BM32: 11.32 | BN32: 11.32 | BO32: 11.32 | BP32: 11.32 | BQ32: 11.32 | BR32: 11.32 | BS32: =BR32 -> 11.32 | BT32: 11.32 | BU32: 11.32 | BV32: 11.32 | BW32: 11.32 | BX32: 11.32
C33: Internal | D33: Heat Rate (MMBtu/MWh) | E33: Kettle Falls Turbine Generator Upgrade
C34: Internal | D34: Heat Rate (MMBtu/MWh) | E34: 7F.04 CT Frame Greenfield | F34: 10.04 | G34: =F34 -> 10.04 | H34: 10.04 | I34: 10.04 | J34: 10.04 | K34: 10.04 | L34: 10.04 | M34: 10.04 | N34: 10.04 | O34: 10.04 | P34: 10.04 | Q34: 10.04 | R34: 10.04 | S34: 10.04 | T34: 10.04 | U34: 10.04 | V34: 10.04 | W34: 10.04 | X34: 10.04 | Y34: 10.04 | Z34: 10.04 | AA34: 10.04 | AB34: 10.04 | AC34: 10.04 | AD34: 10.04 | AE34: 10.04 | AF34: 10.04 | AG34: 10.04 | AH34: 10.04 | AI34: 10.04 | AJ34: 10.04 | AK34: 10.04 | AL34: 10.04 | AM34: 10.04 | AN34: 10.04 | AO34: 10.04 | AP34: 10.04 | AQ34: 10.04 | AR34: 10.04 | AS34: 10.04 | AT34: 10.04 | AU34: 10.04 | AV34: 10.04 | AW34: 10.04 | AX34: 10.04 | AY34: 10.04 | AZ34: 10.04 | BA34: 10.04 | BB34: 10.04 | BC34: 10.04 | BD34: 10.04 | BE34: 10.04 | BF34: 10.04 | BG34: 10.04 | BH34: 10.04 | BI34: 10.04 | BJ34: 10.04 | BK34: 10.04 | BL34: 10.04 | BM34: 10.04 | BN34: 10.04 | BO34: 10.04 | BP34: 10.04 | BQ34: 10.04 | BR34: 10.04 | BS34: =BR34 -> 10.04 | BT34: 10.04 | BU34: 10.04 | BV34: 10.04 | BW34: 10.04 | BX34: 10.04
C35: Internal | D35: Heat Rate (MMBtu/MWh) | E35: Reciprocating Engine (ICE) Machine | F35: 8.19 | G35: =F35 -> 8.19 | H35: 8.19 | I35: 8.19 | J35: 8.19 | K35: 8.19 | L35: 8.19 | M35: 8.19 | N35: 8.19 | O35: 8.19 | P35: 8.19 | Q35: 8.19 | R35: 8.19 | S35: 8.19 | T35: 8.19 | U35: 8.19 | V35: 8.19 | W35: 8.19 | X35: 8.19 | Y35: 8.19 | Z35: 8.19 | AA35: 8.19 | AB35: 8.19 | AC35: 8.19 | AD35: 8.19 | AE35: 8.19 | AF35: 8.19 | AG35: 8.19 | AH35: 8.19 | AI35: 8.19 | AJ35: 8.19 | AK35: 8.19 | AL35: 8.19 | AM35: 8.19 | AN35: 8.19 | AO35: 8.19 | AP35: 8.19 | AQ35: 8.19 | AR35: 8.19 | AS35: 8.19 | AT35: 8.19 | AU35: 8.19 | AV35: 8.19 | AW35: 8.19 | AX35: 8.19 | AY35: 8.19 | AZ35: 8.19 | BA35: 8.19 | BB35: 8.19 | BC35: 8.19 | BD35: 8.19 | BE35: 8.19 | BF35: 8.19 | BG35: 8.19 | BH35: 8.19 | BI35: 8.19 | BJ35: 8.19 | BK35: 8.19 | BL35: 8.19 | BM35: 8.19 | BN35: 8.19 | BO35: 8.19 | BP35: 8.19 | BQ35: 8.19 | BR35: 8.19 | BS35: =BR35 -> 8.19 | BT35: 8.19 | BU35: 8.19 | BV35: 8.19 | BW35: 8.19 | BX35: 8.19
C36: Internal | D36: Heat Rate (MMBtu/MWh) | E36: NG CCCT (1x1 w/DF) | F36: 6.82 | G36: =F36 -> 6.82 | H36: 6.82 | I36: 6.82 | J36: 6.82 | K36: 6.82 | L36: 6.82 | M36: 6.82 | N36: 6.82 | O36: 6.82 | P36: 6.82 | Q36: 6.82 | R36: 6.82 | S36: 6.82 | T36: 6.82 | U36: 6.82 | V36: 6.82 | W36: 6.82 | X36: 6.82 | Y36: 6.82 | Z36: 6.82 | AA36: 6.82 | AB36: 6.82 | AC36: 6.82 | AD36: 6.82 | AE36: 6.82 | AF36: 6.82 | AG36: 6.82 | AH36: 6.82 | AI36: 6.82 | AJ36: 6.82 | AK36: 6.82 | AL36: 6.82 | AM36: 6.82 | AN36: 6.82 | AO36: 6.82 | AP36: 6.82 | AQ36: 6.82 | AR36: 6.82 | AS36: 6.82 | AT36: 6.82 | AU36: 6.82 | AV36: 6.82 | AW36: 6.82 | AX36: 6.82 | AY36: 6.82 | AZ36: 6.82 | BA36: 6.82 | BB36: 6.82 | BC36: 6.82 | BD36: 6.82 | BE36: 6.82 | BF36: 6.82 | BG36: 6.82 | BH36: 6.82 | BI36: 6.82 | BJ36: 6.82 | BK36: 6.82 | BL36: 6.82 | BM36: 6.82 | BN36: 6.82 | BO36: 6.82 | BP36: 6.82 | BQ36: 6.82 | BR36: 6.82 | BS36: =BR36 -> 6.82 | BT36: 6.82 | BU36: 6.82 | BV36: 6.82 | BW36: 6.82 | BX36: 6.82
C37: Internal | D37: Heat Rate (MMBtu/MWh) | E37: Hydrogen Fuel Cell with 40 hrs Storage | F37: 5.687 | G37: =F37 -> 5.687 | H37: 5.687 | I37: 5.687 | J37: 5.687 | K37: 5.687 | L37: 5.687 | M37: 5.687 | N37: 5.687 | O37: 5.687 | P37: 5.687 | Q37: 5.687 | R37: 5.687 | S37: 5.687 | T37: 5.687 | U37: 5.687 | V37: 5.687 | W37: 5.687 | X37: 5.687 | Y37: 5.687 | Z37: 5.687 | AA37: 5.687 | AB37: 5.687 | AC37: 5.687 | AD37: 5.687 | AE37: 5.687 | AF37: 5.687 | AG37: 5.687 | AH37: 5.687 | AI37: 5.687 | AJ37: 5.687 | AK37: 5.687 | AL37: 5.687 | AM37: 5.687 | AN37: 5.687 | AO37: 5.687 | AP37: 5.687 | AQ37: 5.687 | AR37: 5.687 | AS37: 5.687 | AT37: 5.687 | AU37: 5.687 | AV37: 5.687 | AW37: 5.687 | AX37: 5.687 | AY37: 5.687 | AZ37: 5.687 | BA37: 5.687 | BB37: 5.687 | BC37: 5.687 | BD37: 5.687 | BE37: 5.687 | BF37: 5.687 | BG37: 5.687 | BH37: 5.687 | BI37: 5.687 | BJ37: 5.687 | BK37: 5.687 | BL37: 5.687 | BM37: 5.687 | BN37: 5.687 | BO37: 5.687 | BP37: 5.687 | BQ37: 5.687 | BR37: 5.687 | BS37: =BR37 -> 5.687 | BT37: 5.687 | BU37: 5.687 | BV37: 5.687 | BW37: 5.687 | BX37: 5.687
C38: Internal | D38: Heat Rate (MMBtu/MWh) | E38: 7F.04 CT Frame Greenfield + amonia + storage | F38: =F34 -> 10.04 | G38: =G34 -> 10.04 | H38: 10.04 | I38: 10.04 | J38: 10.04 | K38: 10.04 | L38: 10.04 | M38: 10.04 | N38: 10.04 | O38: 10.04 | P38: 10.04 | Q38: 10.04 | R38: 10.04 | S38: 10.04 | T38: 10.04 | U38: 10.04 | V38: 10.04 | W38: 10.04 | X38: 10.04 | Y38: 10.04 | Z38: 10.04 | AA38: 10.04 | AB38: 10.04 | AC38: 10.04 | AD38: 10.04 | AE38: 10.04 | AF38: 10.04 | AG38: 10.04 | AH38: 10.04 | AI38: 10.04 | AJ38: 10.04 | AK38: 10.04 | AL38: 10.04 | AM38: 10.04 | AN38: 10.04 | AO38: 10.04 | AP38: 10.04 | AQ38: 10.04 | AR38: 10.04 | AS38: 10.04 | AT38: 10.04 | AU38: 10.04 | AV38: 10.04 | AW38: 10.04 | AX38: 10.04 | AY38: 10.04 | AZ38: 10.04 | BA38: 10.04 | BB38: 10.04 | BC38: 10.04 | BD38: 10.04 | BE38: 10.04 | BF38: 10.04 | BG38: 10.04 | BH38: 10.04 | BI38: 10.04 | BJ38: 10.04 | BK38: 10.04 | BL38: 10.04 | BM38: 10.04 | BN38: 10.04 | BO38: 10.04 | BP38: 10.04 | BQ38: 10.04 | BR38: 10.04 | BS38: =BS34 -> 10.04 | BT38: 10.04 | BU38: 10.04 | BV38: 10.04 | BW38: 10.04 | BX38: 10.04
D40: CAPEX ($/kW)
B41: 2020 | C41: NREL Utility-Scale Battery Storage - 4Hr/LAZARD’S LEVELIZED COST O F STORAGE ANALYSIS—VERSION 7 . 0 | D41: CAPEX ($/kW) | E41: Distribution Scale 4hr Lithium-Ion | F41: =F43*305/231 -> 2280.547644 | G41: =G43*305/231 -> 1948.114451 | H41: 1809.950306 | I41: 1657.969746 | J41: 1540.530222 | K41: 1457.631735 | L41: 1395.457869 | M41: 1340.192211 | N41: 1278.018346 | O41: 1229.660895 | P41: 1181.303444 | Q41: 1167.124349 | R41: 1152.358055 | S41: 1137.591762 | T41: 1122.825469 | U41: 1108.059176 | V41: 1093.292883 | W41: 1078.52659 | X41: 1063.760297 | Y41: 1048.994004 | Z41: 1034.227711 | AA41: 1019.461418 | AB41: 1004.695125 | AC41: 989.9288319 | AD41: 975.1625389 | AE41: 960.3962458 | AF41: 945.6299528 | AG41: 930.8636597 | AH41: 916.0973667 | AI41: 901.3310736 | AJ41: 886.5647806
B42: 2020 | C42: NREL Utility-Scale Battery Storage - 8Hr/LAZARD’S LEVELIZED COST O F STORAGE ANALYSIS—VERSION 7 . 0 | D42: CAPEX ($/kW) | E42: Distribution Scale 8hr Lithium-Ion | F42: =F44*305/231 -> 4231.78909 | G42: =G44*305/231 -> 3581.670684 | H42: =H44*305/231 -> 3299.671399 | I42: 3003.855699 | J42: 2752.854974 | K42: 2598.038916 | L42: 2463.947481 | M42: 2347.038191 | N42: 2223.220694 | O42: 2113.219612 | P42: 2013.492468 | Q42: 1989.167858 | R42: 1963.999203 | S42: 1938.830547 | T42: 1913.661891 | U42: 1888.493235 | V42: 1863.324579 | W42: 1838.155923 | X42: 1812.987267 | Y42: 1787.818612 | Z42: 1762.649956 | AA42: 1737.4813 | AB42: 1712.312644 | AC42: 1687.143988 | AD42: 1661.975332 | AE42: 1636.806676 | AF42: 1611.638021 | AG42: 1586.469365 | AH42: 1561.300709 | AI42: 1536.132053 | AJ42: 1510.706549
B43: 2020 | C43: NREL Utility-Scale Battery Storage - 4Hr | D43: CAPEX ($/kW) | E43: 4hr Lithium-Ion | F43: 1727.234445 | G43: 1475.457175 | H43: 1370.814822 | I43: 1255.708234 | J43: 1166.762234 | K43: 1103.976822 | L43: 1056.887763 | M43: 1015.030822 | N43: 967.9417635 | O43: 931.31694 | P43: 894.6921166 | Q43: 883.9531951 | R43: 872.7695436 | S43: 861.5858922 | T43: 850.4022407 | U43: 839.2185893 | V43: 828.0349378 | W43: 816.8512864 | X43: 805.6676349 | Y43: 794.4839834 | Z43: 783.300332 | AA43: 772.1166805 | AB43: 760.9330291 | AC43: 749.7493776 | AD43: 738.5657262 | AE43: 727.3820747 | AF43: 716.1984232 | AG43: 705.0147718 | AH43: 693.8311203 | AI43: 682.6474689 | AJ43: 671.4638174
B44: 2020 | C44: NREL Utility-Scale Battery Storage - 8Hr | D44: CAPEX ($/kW) | E44: 8hr Lithium-Ion | F44: 3205.059934 | G44: 2712.675174 | H44: 2499.095387 | I44: 2275.051365 | J44: 2084.949177 | K44: 1967.695048 | L44: 1866.137272 | M44: 1777.59286 | N44: 1683.816329 | O44: 1600.504034 | P44: 1524.972984 | Q44: 1506.550083 | R44: 1487.487921 | S44: 1468.425758 | T44: 1449.363596 | U44: 1430.301434 | V44: 1411.239271 | W44: 1392.177109 | X44: 1373.114947 | Y44: 1354.052785 | Z44: 1334.990622 | AA44: 1315.92846 | AB44: 1296.866298 | AC44: 1277.804135 | AD44: 1258.741973 | AE44: 1239.679811 | AF44: 1220.617648 | AG44: 1201.555486 | AH44: 1182.493324 | AI44: 1163.431162 | AJ44: 1144.174468
B45: 2020 | C45: NREL Utility-Scale Battery Storage - 16Hr | D45: CAPEX ($/kW) | E45: 16hr Lithium-Ion | F45: 6160.710913 | G45: 5187.111172 | H45: 4755.656518 | I45: 4313.737628 | J45: 3921.323062 | K45: 3695.1315 | L45: 3484.63629 | M45: 3302.716934 | N45: 3115.56546 | O45: 2938.878222 | P45: 2785.534719 | Q45: 2751.743859 | R45: 2716.924675 | S45: 2682.105491 | T45: 2647.286307 | U45: 2612.467123 | V45: 2577.647939 | W45: 2542.828755 | X45: 2508.009571 | Y45: 2473.190387 | Z45: 2438.371203 | AA45: 2403.552019 | AB45: 2368.732835 | AC45: 2333.913651 | AD45: 2299.094467 | AE45: 2264.275283 | AF45: 2229.456099 | AG45: 2194.636915 | AH45: 2159.817731 | AI45: 2124.998547 | AJ45: 2089.595769
B46: 2020 | C46: Internal | D46: CAPEX ($/kW) | E46: 4 hr Vanadium Flow Battery | F46: 1632.88 | G46: =F46*(1+G348) -> 1453.2632 | H46: 1293.404248 | I46: 1215.744024 | J46: 1143.496406 | K46: 1096.465014 | L46: 1052.238937 | M46: 1013.560793 | N46: 977.3232402 | O46: 944.3829676 | P46: 911.1822441 | Q46: 879.6134145 | R46: 849.8861427 | S46: 822.5267131 | T46: 797.761848 | U46: 776.2746584 | V46: 756.9325913 | W46: 739.4278357 | X46: 724.0000918 | Y46: 708.6105148 | Z46: 693.2703704 | AA46: 677.9906309 | AB46: 662.7819644 | AC46: 647.6547245 | AD46: 632.618941 | AE46: 617.6843109 | AF46: 602.8601913 | AG46: 588.155592 | AH46: 573.5791694 | AI46: 559.1392217 | AJ46: 545.5010377
B47: 2020 | C47: Internal | D47: CAPEX ($/kW) | E47: 4 hr Zinc Bromide Flow Battery | F47: 1837 | G47: =F47*(1+G349) -> 1579.82 | H47: 1358.6452 | I47: 1277.067696 | J47: 1201.175816 | K47: 1151.772102 | L47: 1105.315204 | M47: 1064.686085 | N47: 1026.620665 | O47: 992.0188432 | P47: 957.1434331 | Q47: 923.9822316 | R47: 892.7554785 | S47: 864.0160045 | T47: 838.0019683 | U47: 815.4309375 | V47: 795.113232 | W47: 776.7255143 | X47: 760.5195754 | Y47: 744.3537286 | Z47: 728.2398079 | AA47: 712.1893389 | AB47: 696.213528 | AC47: 680.3232509 | AD47: 664.5290434 | AE47: 648.8410916 | AF47: 633.2692246 | AG47: 617.8229066 | AH47: 602.5112307 | AI47: 587.3429138 | AJ47: 573.0168024
B48: 2022 | C48: Form Energy | D48: CAPEX ($/kW) | E48: 100hr Iron Oxide | H48: 2500 | I48: 2500 | J48: 2500 | K48: 2500 | L48: 2500 | M48: 2500 | N48: 2500 | O48: 2500 | P48: 2500 | Q48: 2500 | R48: 2500 | S48: 2500 | T48: 2500 | U48: 2500 | V48: 2500 | W48: 2500 | X48: 2500 | Y48: 2500 | Z48: 2500 | AA48: 2500 | AB48: 2500 | AC48: 2500 | AD48: 2500 | AE48: 2500 | AF48: 2500 | AG48: 2500 | AH48: 2500 | AI48: 2500 | AJ48: 2500
B49: 2022 | C49: Internal | D49: CAPEX ($/kW) | E49: Liquid Air | H49: 1610 | I49: 1610 | J49: 1610 | K49: 1610 | L49: 1610 | M49: 1610 | N49: 1610 | O49: 1610 | P49: 1610 | Q49: 1610 | R49: 1610 | S49: 1610 | T49: 1610 | U49: 1610 | V49: 1610 | W49: 1610 | X49: 1610 | Y49: 1610 | Z49: 1610 | AA49: 1610 | AB49: 1610 | AC49: 1610 | AD49: 1610 | AE49: 1610 | AF49: 1610 | AG49: 1610 | AH49: 1610 | AI49: 1610 | AJ49: 1610
B50: 2020 | C50: NREL Pumped Storage Hydropower - National Class 10 | D50: CAPEX ($/kW) | E50: Pumped Hydro (8.5 hr/ 400 MW share) | F50: 3754.52 | G50: 3754.52 | H50: 3754.52 | I50: 3754.52 | J50: 3754.52 | K50: 3754.52 | L50: 3754.52 | M50: 3754.52 | N50: 3754.52 | O50: 3754.52 | P50: 3754.52 | Q50: 3754.52 | R50: 3754.52 | S50: 3754.52 | T50: 3754.52 | U50: 3754.52 | V50: 3754.52 | W50: 3754.52 | X50: 3754.52 | Y50: 3754.52 | Z50: 3754.52 | AA50: 3754.52 | AB50: 3754.52 | AC50: 3754.52 | AD50: 3754.52 | AE50: 3754.52 | AF50: 3754.52 | AG50: 3754.52 | AH50: 3754.52 | AI50: 3754.52 | AJ50: 3754.52
B51: 2020 | C51: NREL Pumped Storage Hydropower - National Class 7 | D51: CAPEX ($/kW) | E51: Pumped Hydro (16 hr/ 100 MW) | F51: 3256.39 | G51: 3256.39 | H51: 3256.39 | I51: 3256.39 | J51: 3256.39 | K51: 3256.39 | L51: 3256.39 | M51: 3256.39 | N51: 3256.39 | O51: 3256.39 | P51: 3256.39 | Q51: 3256.39 | R51: 3256.39 | S51: 3256.39 | T51: 3256.39 | U51: 3256.39 | V51: 3256.39 | W51: 3256.39 | X51: 3256.39 | Y51: 3256.39 | Z51: 3256.39 | AA51: 3256.39 | AB51: 3256.39 | AC51: 3256.39 | AD51: 3256.39 | AE51: 3256.39 | AF51: 3256.39 | AG51: 3256.39 | AH51: 3256.39 | AI51: 3256.39 | AJ51: 3256.39
B52: 2020 | C52: NREL Pumped Storage Hydropower - National Class 5 | D52: CAPEX ($/kW) | E52: Pumped Hyrdo (24 hr/ 100 MW) | F52: 2923.32 | G52: 2923.32 | H52: 2923.32 | I52: 2923.32 | J52: 2923.32 | K52: 2923.32 | L52: 2923.32 | M52: 2923.32 | N52: 2923.32 | O52: 2923.32 | P52: 2923.32 | Q52: 2923.32 | R52: 2923.32 | S52: 2923.32 | T52: 2923.32 | U52: 2923.32 | V52: 2923.32 | W52: 2923.32 | X52: 2923.32 | Y52: 2923.32 | Z52: 2923.32 | AA52: 2923.32 | AB52: 2923.32 | AC52: 2923.32 | AD52: 2923.32 | AE52: 2923.32 | AF52: 2923.32 | AG52: 2923.32 | AH52: 2923.32 | AI52: 2923.32 | AJ52: 2923.32
B53: 2022 | C53: Internal | D53: CAPEX ($/kW) | E53: Wood Biomass | H53: 4756.059028 | I53: 4756.059028 | J53: 4756.059028 | K53: 4756.059028 | L53: 4756.059028 | M53: 4756.059028 | N53: 4756.059028 | O53: 4756.059028 | P53: 4756.059028 | Q53: 4756.059028 | R53: 4756.059028 | S53: 4756.059028 | T53: 4756.059028 | U53: 4756.059028 | V53: 4756.059028 | W53: 4756.059028 | X53: 4756.059028 | Y53: 4756.059028 | Z53: 4756.059028 | AA53: 4756.059028 | AB53: 4756.059028 | AC53: 4756.059028 | AD53: 4756.059028 | AE53: 4756.059028 | AF53: 4756.059028 | AG53: 4756.059028 | AH53: 4756.059028 | AI53: 4756.059028 | AJ53: 4756.059028
B54: 2022 | C54: Internal | D54: CAPEX ($/kW) | E54: Rathdrum CT 2055 Uprates two unit operation | H54: 829.15 | I54: 829.15 | J54: 829.15 | K54: 829.15 | L54: 829.15 | M54: 829.15 | N54: 829.15 | O54: 829.15 | P54: 829.15 | Q54: 829.15 | R54: 829.15 | S54: 829.15 | T54: 829.15 | U54: 829.15 | V54: 829.15 | W54: 829.15 | X54: 829.15 | Y54: 829.15 | Z54: 829.15 | AA54: 829.15 | AB54: 829.15 | AC54: 829.15 | AD54: 829.15 | AE54: 829.15 | AF54: 829.15 | AG54: 829.15 | AH54: 829.15 | AI54: 829.15 | AJ54: 829.15
B55: 2022 | C55: Internal | D55: CAPEX ($/kW) | E55: Rathdrum CT: Inlet Evaporation 2 unit operation | H55: 150 | I55: 150 | J55: 150 | K55: 150 | L55: 150 | M55: 150 | N55: 150 | O55: 150 | P55: 150 | Q55: 150 | R55: 150 | S55: 150 | T55: 150 | U55: 150 | V55: 150 | W55: 150 | X55: 150 | Y55: 150 | Z55: 150 | AA55: 150 | AB55: 150 | AC55: 150 | AD55: 150 | AE55: 150 | AF55: 150 | AG55: 150 | AH55: 150 | AI55: 150 | AJ55: 150
B56: 2022 | C56: Internal | D56: CAPEX ($/kW) | E56: Kettle Falls Turbine Generator Upgrade
B57: 2022 | C57: Internal | D57: CAPEX ($/kW) | E57: New Residential Solar | H57: =21840/(7/1.15) -> 3588 | I57: =21840/(7/1.15) -> 3588 | J57: 3588 | K57: 3588 | L57: 3588 | M57: 3588 | N57: 3588 | O57: 3588 | P57: 3588 | Q57: 3588 | R57: 3588 | S57: 3588 | T57: 3588 | U57: 3588 | V57: 3588 | W57: 3588 | X57: 3588 | Y57: 3588 | Z57: 3588 | AA57: 3588 | AB57: 3588 | AC57: 3588 | AD57: 3588 | AE57: 3588 | AF57: 3588 | AG57: 3588 | AH57: 3588 | AI57: 3588 | AJ57: 3588
B58: 2022 | C58: Internal | D58: CAPEX ($/kW) | E58: New Residential Solar + Storage (Solar Only) | F58: =F57 -> 0 | G58: =G57 -> 0 | H58: 3588 | I58: 3588 | J58: 3588 | K58: 3588 | L58: 3588 | M58: 3588 | N58: 3588 | O58: 3588 | P58: 3588 | Q58: 3588 | R58: 3588 | S58: 3588 | T58: 3588 | U58: 3588 | V58: 3588 | W58: 3588 | X58: 3588 | Y58: 3588 | Z58: 3588 | AA58: 3588 | AB58: 3588 | AC58: 3588 | AD58: 3588 | AE58: 3588 | AF58: 3588 | AG58: 3588 | AH58: 3588 | AI58: 3588 | AJ58: 3588
B59: 2022 | C59: Internal | D59: CAPEX ($/kW) | E59: New Residential Solar + Storage (Battery Only) | H59: =13000/(5/1.15) -> 2990 | I59: =13000/(5/1.15) -> 2990 | J59: 2990 | K59: 2990 | L59: 2990 | M59: 2990 | N59: 2990 | O59: 2990 | P59: 2990 | Q59: 2990 | R59: 2990 | S59: 2990 | T59: 2990 | U59: 2990 | V59: 2990 | W59: 2990 | X59: 2990 | Y59: 2990 | Z59: 2990 | AA59: 2990 | AB59: 2990 | AC59: 2990 | AD59: 2990 | AE59: 2990 | AF59: 2990 | AG59: 2990 | AH59: 2990 | AI59: 2990 | AJ59: 2990
B60: 2022 | C60: Internal | D60: CAPEX ($/kW) | E60: Existing Residential Solar | H60: =23800/(7/1.15) -> 3910 | I60: =23800/(7/1.15) -> 3910 | J60: 3910 | K60: 3910 | L60: 3910 | M60: 3910 | N60: 3910 | O60: 3910 | P60: 3910 | Q60: 3910 | R60: 3910 | S60: 3910 | T60: 3910 | U60: 3910 | V60: 3910 | W60: 3910 | X60: 3910 | Y60: 3910 | Z60: 3910 | AA60: 3910 | AB60: 3910 | AC60: 3910 | AD60: 3910 | AE60: 3910 | AF60: 3910 | AG60: 3910 | AH60: 3910 | AI60: 3910 | AJ60: 3910
B61: 2022 | C61: Internal | D61: CAPEX ($/kW) | E61: Existing Residential Solar + Storage (Solar Only) | F61: =F60 -> 0 | G61: =G60 -> 0 | H61: =H60 -> 3910 | I61: =I60 -> 3910 | J61: =J60 -> 3910 | K61: =K60 -> 3910 | L61: =L60 -> 3910 | M61: =M60 -> 3910 | N61: =N60 -> 3910 | O61: =O60 -> 3910 | P61: =P60 -> 3910 | Q61: =Q60 -> 3910 | R61: =R60 -> 3910 | S61: =S60 -> 3910 | T61: =T60 -> 3910 | U61: =U60 -> 3910 | V61: =V60 -> 3910 | W61: =W60 -> 3910 | X61: =X60 -> 3910 | Y61: =Y60 -> 3910 | Z61: =Z60 -> 3910 | AA61: =AA60 -> 3910 | AB61: =AB60 -> 3910 | AC61: =AC60 -> 3910 | AD61: =AD60 -> 3910 | AE61: =AE60 -> 3910 | AF61: =AF60 -> 3910 | AG61: =AG60 -> 3910 | AH61: =AH60 -> 3910 | AI61: =AI60 -> 3910 | AJ61: =AJ60 -> 3910
B62: 2022 | C62: Internal | D62: CAPEX ($/kW) | E62: Existing Residential Solar + Storage (Battery Only) | H62: =14000/(5/1.15) -> 3220 | I62: =14000/(5/1.15) -> 3220 | J62: 3220 | K62: 3220 | L62: 3220 | M62: 3220 | N62: 3220 | O62: 3220 | P62: 3220 | Q62: 3220 | R62: 3220 | S62: 3220 | T62: 3220 | U62: 3220 | V62: 3220 | W62: 3220 | X62: 3220 | Y62: 3220 | Z62: 3220 | AA62: 3220 | AB62: 3220 | AC62: 3220 | AD62: 3220 | AE62: 3220 | AF62: 3220 | AG62: 3220 | AH62: 3220 | AI62: 3220 | AJ62: 3220
B63: 2022 | C63: Internal | D63: CAPEX ($/kW) | E63: Commercial Solar | H63: =276960/(120/1.15) -> 2654.2 | I63: =276960/(120/1.15) -> 2654.2 | J63: 2654.2 | K63: 2654.2 | L63: 2654.2 | M63: 2654.2 | N63: 2654.2 | O63: 2654.2 | P63: 2654.2 | Q63: 2654.2 | R63: 2654.2 | S63: 2654.2 | T63: 2654.2 | U63: 2654.2 | V63: 2654.2 | W63: 2654.2 | X63: 2654.2 | Y63: 2654.2 | Z63: 2654.2 | AA63: 2654.2 | AB63: 2654.2 | AC63: 2654.2 | AD63: 2654.2 | AE63: 2654.2 | AF63: 2654.2 | AG63: 2654.2 | AH63: 2654.2 | AI63: 2654.2 | AJ63: 2654.2
B64: 2022 | C64: Internal | D64: CAPEX ($/kW) | E64: Commercial Solar + Storage (Solar Only) | F64: =F63 -> 0 | G64: =G63 -> 0 | H64: =H63 -> 2654.2 | I64: =I63 -> 2654.2 | J64: =J63 -> 2654.2 | K64: =K63 -> 2654.2 | L64: =L63 -> 2654.2 | M64: =M63 -> 2654.2 | N64: =N63 -> 2654.2 | O64: =O63 -> 2654.2 | P64: =P63 -> 2654.2 | Q64: =Q63 -> 2654.2 | R64: =R63 -> 2654.2 | S64: =S63 -> 2654.2 | T64: =T63 -> 2654.2 | U64: =U63 -> 2654.2 | V64: =V63 -> 2654.2 | W64: =W63 -> 2654.2 | X64: =X63 -> 2654.2 | Y64: =Y63 -> 2654.2 | Z64: =Z63 -> 2654.2 | AA64: =AA63 -> 2654.2 | AB64: =AB63 -> 2654.2 | AC64: =AC63 -> 2654.2 | AD64: =AD63 -> 2654.2 | AE64: =AE63 -> 2654.2 | AF64: =AF63 -> 2654.2 | AG64: =AG63 -> 2654.2 | AH64: =AH63 -> 2654.2 | AI64: =AI63 -> 2654.2 | AJ64: =AJ63 -> 2654.2
B65: 2022 | C65: Internal | D65: CAPEX ($/kW) | E65: Commercial Solar + Storage (Battery Only) | H65: =H62*0.8 -> 2576 | I65: =I62*0.8 -> 2576 | J65: 2576 | K65: 2576 | L65: 2576 | M65: 2576 | N65: 2576 | O65: 2576 | P65: 2576 | Q65: 2576 | R65: 2576 | S65: 2576 | T65: 2576 | U65: 2576 | V65: 2576 | W65: 2576 | X65: 2576 | Y65: 2576 | Z65: 2576 | AA65: 2576 | AB65: 2576 | AC65: 2576 | AD65: 2576 | AE65: 2576 | AF65: 2576 | AG65: 2576 | AH65: 2576 | AI65: 2576 | AJ65: 2576
B66: 2020 | C66: NREL Utility PV - Class 4/LAZARD’S LEVELIZED COST OF ENERGY ANALYSIS—VERSION 15.0 | D66: CAPEX ($/kW) | E66: Solar Photovoltaic Fixed Array (5 MW AC) | F66: =F69/((950+800)/2)*((1200+1450)/2) -> 1972.771524 | G66: =G69/((950+800)/2)*((1200+1450)/2) -> 1725.074286 | H66: 1656.953448 | I66: 1588.83261 | J66: 1520.711772 | K66: 1452.590934 | L66: 1384.470096 | M66: 1316.349258 | N66: 1248.22842 | O66: 1180.107582 | P66: 1111.986744 | Q66: 1102.07799 | R66: 1092.169237 | S66: 1082.260483 | T66: 1072.351729 | U66: 1062.442975 | V66: 1052.534221 | W66: 1042.625467 | X66: 1032.716713 | Y66: 1022.807959 | Z66: 1012.899205 | AA66: 1002.990451 | AB66: 993.0816972 | AC66: 983.1729433 | AD66: 973.2641893 | AE66: 963.3554354 | AF66: 953.4466815 | AG66: 943.5379275 | AH66: 933.6291736 | AI66: 923.7204197 | AJ66: 913.8116657
B67: 2020 | C67: NREL Utility PV - Class 4/LAZARD’S LEVELIZED COST OF ENERGY ANALYSIS—VERSION 15.0 | D67: CAPEX ($/kW) | E67: Solar Photovoltaic Fixed Array (5 MW AC) + Storage (Solar Only) | F67: =F66 -> 1972.771524 | G67: =G66 -> 1725.074286 | H67: 1656.953448 | I67: 1588.83261 | J67: 1520.711772 | K67: 1452.590934 | L67: 1384.470096 | M67: 1316.349258 | N67: 1248.22842 | O67: 1180.107582 | P67: 1111.986744 | Q67: 1102.07799 | R67: 1092.169237 | S67: 1082.260483 | T67: 1072.351729 | U67: 1062.442975 | V67: 1052.534221 | W67: 1042.625467 | X67: 1032.716713 | Y67: 1022.807959 | Z67: 1012.899205 | AA67: 1002.990451 | AB67: 993.0816972 | AC67: 983.1729433 | AD67: 973.2641893 | AE67: 963.3554354 | AF67: 953.4466815 | AG67: 943.5379275 | AH67: 933.6291736 | AI67: 923.7204197 | AJ67: 913.8116657
B68: 2020 | C68: NREL Utility-Scale Battery Storage - 4Hr/LAZARD’S LEVELIZED COST O F STORAGE ANALYSIS—VERSION 7 . 0 | D68: CAPEX ($/kW) | E68: Solar Photovoltaic Fixed Array (5 MW AC) + Storage (Battery Only) | F68: =F72*305/231 -> 2280.547644 | G68: =G72*305/231 -> 1948.114451 | H68: =H72*305/231 -> 1809.950306 | I68: 1657.969746 | J68: 1540.530222 | K68: 1457.631735 | L68: 1395.457869 | M68: 1340.192211 | N68: 1278.018346 | O68: 1229.660895 | P68: 1181.303444 | Q68: 1167.124349 | R68: 1152.358055 | S68: 1137.591762 | T68: 1122.825469 | U68: 1108.059176 | V68: 1093.292883 | W68: 1078.52659 | X68: 1063.760297 | Y68: 1048.994004 | Z68: 1034.227711 | AA68: 1019.461418 | AB68: 1004.695125 | AC68: 989.9288319 | AD68: 975.1625389 | AE68: 960.3962458 | AF68: 945.6299528 | AG68: 930.8636597 | AH68: 916.0973667 | AI68: 901.3310736 | AJ68: 886.5647806
B69: 2020 | C69: NREL Utility PV - Class 4 | D69: CAPEX ($/kW) | E69: Solar Photovoltaic w/Single Axis Tracking (100 MW AC) | F69: 1302.773648 | G69: 1139.2 | H69: 1094.214541 | I69: 1049.229082 | J69: 1004.243623 | K69: 959.258164 | L69: 914.272705 | M69: 869.287246 | N69: 824.301787 | O69: 779.316328 | P69: 734.3308689 | Q69: 727.7873522 | R69: 721.2438354 | S69: 714.7003187 | T69: 708.156802 | U69: 701.6132852 | V69: 695.0697685 | W69: 688.5262517 | X69: 681.982735 | Y69: 675.4392182 | Z69: 668.8957015 | AA69: 662.3521847 | AB69: 655.808668 | AC69: 649.2651512 | AD69: 642.7216345 | AE69: 636.1781177 | AF69: 629.634601 | AG69: 623.0910842 | AH69: 616.5475675 | AI69: 610.0040507 | AJ69: 603.460534
B70: 2020 | C70: NREL Utility PV - Class 5/Off System Adjustment | D70: CAPEX ($/kW) | E70: Southern NW Solar Photovoltaic w/ Single Axis Tracking (100 MW AC) | F70: 1452.773648 | G70: 1289.2 | H70: 1244.214541 | I70: 1199.229082 | J70: 1154.243623 | K70: 1109.258164 | L70: 1064.272705 | M70: 1019.287246 | N70: 974.301787 | O70: 929.316328 | P70: 884.3308689 | Q70: 877.7873522 | R70: 871.2438354 | S70: 864.7003187 | T70: 858.156802 | U70: 851.6132852 | V70: 845.0697685 | W70: 838.5262517 | X70: 831.982735 | Y70: 825.4392182 | Z70: 818.8957015 | AA70: 812.3521847 | AB70: 805.808668 | AC70: 799.2651512 | AD70: 792.7216345 | AE70: 786.1781177 | AF70: 779.634601 | AG70: 773.0910842 | AH70: 766.5475675 | AI70: 760.0040507 | AJ70: 753.460534
B71: 2020 | C71: NREL Utility PV - Class 4 | D71: CAPEX ($/kW) | E71: 100 MW/400 MWh Lithium-ion w/Solar (Solar Only) | F71: =F69 -> 1302.773648 | G71: =G69 -> 1139.2 | H71: 1094.214541 | I71: 1049.229082 | J71: 1004.243623 | K71: 959.258164 | L71: 914.272705 | M71: 869.287246 | N71: 824.301787 | O71: 779.316328 | P71: 734.3308689 | Q71: 727.7873522 | R71: 721.2438354 | S71: 714.7003187 | T71: 708.156802 | U71: 701.6132852 | V71: 695.0697685 | W71: 688.5262517 | X71: 681.982735 | Y71: 675.4392182 | Z71: 668.8957015 | AA71: 662.3521847 | AB71: 655.808668 | AC71: 649.2651512 | AD71: 642.7216345 | AE71: 636.1781177 | AF71: 629.634601 | AG71: 623.0910842 | AH71: 616.5475675 | AI71: 610.0040507 | AJ71: 603.460534
B72: 2020 | C72: NREL Utility-Scale Battery Storage - 4Hr | D72: CAPEX ($/kW) | E72: 100 MW/400 MWh Lithium-ion w/Solar (Battery Only) | F72: 1727.234445 | G72: 1475.457175 | H72: 1370.814822 | I72: 1255.708234 | J72: 1166.762234 | K72: 1103.976822 | L72: 1056.887763 | M72: 1015.030822 | N72: 967.9417635 | O72: 931.31694 | P72: 894.6921166 | Q72: 883.9531951 | R72: 872.7695436 | S72: 861.5858922 | T72: 850.4022407 | U72: 839.2185893 | V72: 828.0349378 | W72: 816.8512864 | X72: 805.6676349 | Y72: 794.4839834 | Z72: 783.300332 | AA72: 772.1166805 | AB72: 760.9330291 | AC72: 749.7493776 | AD72: 738.5657262 | AE72: 727.3820747 | AF72: 716.1984232 | AG72: 705.0147718 | AH72: 693.8311203 | AI72: 682.6474689 | AJ72: 671.4638174
B73: 2020 | C73: NREL Utility PV - Class 4 | D73: CAPEX ($/kW) | E73: 100 MW/200 MWh Lithium-ion w/Solar (Solar Only) | F73: =F69 -> 1302.773648 | G73: =G69 -> 1139.2 | H73: 1094.214541 | I73: 1049.229082 | J73: 1004.243623 | K73: 959.258164 | L73: 914.272705 | M73: 869.287246 | N73: 824.301787 | O73: 779.316328 | P73: 734.3308689 | Q73: 727.7873522 | R73: 721.2438354 | S73: 714.7003187 | T73: 708.156802 | U73: 701.6132852 | V73: 695.0697685 | W73: 688.5262517 | X73: 681.982735 | Y73: 675.4392182 | Z73: 668.8957015 | AA73: 662.3521847 | AB73: 655.808668 | AC73: 649.2651512 | AD73: 642.7216345 | AE73: 636.1781177 | AF73: 629.634601 | AG73: 623.0910842 | AH73: 616.5475675 | AI73: 610.0040507 | AJ73: 603.460534
B74: 2020 | C74: NREL Utility-Scale Battery Storage - 2Hr | D74: CAPEX ($/kW) | E74: 100 MW/200 MWh Lithium-ion w/Solar (Battery Only) | F74: 988.3217002 | G74: 856.8481751 | H74: 806.6745392 | I74: 746.036668 | J74: 707.6687625 | K74: 672.1177092 | L74: 652.263009 | M74: 633.7498037 | N74: 610.0044807 | O74: 596.7233931 | P74: 579.5516828 | Q74: 572.6547512 | R74: 565.4103552 | S74: 558.1659591 | T74: 550.9215631 | U74: 543.677167 | V74: 536.432771 | W74: 529.188375 | X74: 521.9439789 | Y74: 514.6995829 | Z74: 507.4551869 | AA74: 500.2107908 | AB74: 492.9663948 | AC74: 485.7219988 | AD74: 478.4776027 | AE74: 471.2332067 | AF74: 463.9888107 | AG74: 456.7444146 | AH74: 449.5000186 | AI74: 442.2556226 | AJ74: 435.1084921
B75: 2020 | C75: NREL Utility PV - Class 4 | D75: CAPEX ($/kW) | E75: 50 MW/200 MWh Lithium-ion w/Solar (Solar Only) | F75: =F69 -> 1302.773648 | G75: =G69 -> 1139.2 | H75: 1094.214541 | I75: 1049.229082 | J75: 1004.243623 | K75: 959.258164 | L75: 914.272705 | M75: 869.287246 | N75: 824.301787 | O75: 779.316328 | P75: 734.3308689 | Q75: 727.7873522 | R75: 721.2438354 | S75: 714.7003187 | T75: 708.156802 | U75: 701.6132852 | V75: 695.0697685 | W75: 688.5262517 | X75: 681.982735 | Y75: 675.4392182 | Z75: 668.8957015 | AA75: 662.3521847 | AB75: 655.808668 | AC75: 649.2651512 | AD75: 642.7216345 | AE75: 636.1781177 | AF75: 629.634601 | AG75: 623.0910842 | AH75: 616.5475675 | AI75: 610.0040507 | AJ75: 603.460534
B76: 2020 | C76: NREL Utility-Scale Battery Storage - 2Hr | D76: CAPEX ($/kW) | E76: 50 MW/200 MWh Lithium-ion w/Solar (Battery Only) | F76: =F74 -> 988.3217002 | G76: =G74 -> 856.8481751 | H76: 806.6745392 | I76: 746.036668 | J76: 707.6687625 | K76: 672.1177092 | L76: 652.263009 | M76: 633.7498037 | N76: 610.0044807 | O76: 596.7233931 | P76: 579.5516828 | Q76: 572.6547512 | R76: 565.4103552 | S76: 558.1659591 | T76: 550.9215631 | U76: 543.677167 | V76: 536.432771 | W76: 529.188375 | X76: 521.9439789 | Y76: 514.6995829 | Z76: 507.4551869 | AA76: 500.2107908 | AB76: 492.9663948 | AC76: 485.7219988 | AD76: 478.4776027 | AE76: 471.2332067 | AF76: 463.9888107 | AG76: 456.7444146 | AH76: 449.5000186 | AI76: 442.2556226 | AJ76: 435.1084921
B77: 2020 | C77: NREL Land-Based Wind - Class 8 | D77: CAPEX ($/kW) | E77: NW Wind On System (Share) | F77: 1405.165816 | G77: 1355.956178 | H77: 1306.746541 | I77: 1257.536904 | J77: 1208.327266 | K77: 1159.117629 | L77: 1109.907992 | M77: 1060.698354 | N77: 1011.488717 | O77: 962.2790797 | P77: 913.0694424 | Q77: 903.938748 | R77: 894.8080536 | S77: 885.6773592 | T77: 876.5466647 | U77: 867.4159703 | V77: 858.2852759 | W77: 849.1545815 | X77: 840.023887 | Y77: 830.8931926 | Z77: 821.7624982 | AA77: 812.6318038 | AB77: 803.5011093 | AC77: 794.3704149 | AD77: 785.2397205 | AE77: 776.1090261 | AF77: 766.9783316 | AG77: 757.8476372 | AH77: 748.7169428 | AI77: 739.5862484 | AJ77: 730.4555539
B78: 2020 | C78: NREL Land-Based Wind - Class 8/Off System Adjustment | D78: CAPEX ($/kW) | E78: NW Wind Off System | F78: =F77/1.025+150 -> 1520.893479 | G78: =G77/1.025+150 -> 1472.884076 | H78: 1424.874674 | I78: 1376.865272 | J78: 1328.85587 | K78: 1280.846467 | L78: 1232.837065 | M78: 1184.827663 | N78: 1136.818261 | O78: 1088.808858 | P78: 1040.799456 | Q78: 1031.891461 | R78: 1022.983467 | S78: 1014.075472 | T78: 1005.167478 | U78: 996.2594832 | V78: 987.3514887 | W78: 978.4434941 | X78: 969.5354995 | Y78: 960.627505 | Z78: 951.7195104 | AA78: 942.8115159 | AB78: 933.9035213 | AC78: 924.9955267 | AD78: 916.0875322 | AE78: 907.1795376 | AF78: 898.2715431 | AG78: 889.3635485 | AH78: 880.4555539 | AI78: 871.5475594 | AJ78: 862.6395648
B79: 2020 | C79: NREL Land-Based Wind - Class 3/Off System Adjustment | D79: CAPEX ($/kW) | E79: Wind Montana | F79: 1555.165816 | G79: 1505.956178 | H79: 1456.746541 | I79: 1407.536904 | J79: 1358.327266 | K79: 1309.117629 | L79: 1259.907992 | M79: 1210.698354 | N79: 1161.488717 | O79: 1112.27908 | P79: 1063.069442 | Q79: 1053.938748 | R79: 1044.808054 | S79: 1035.677359 | T79: 1026.546665 | U79: 1017.41597 | V79: 1008.285276 | W79: 999.1545815 | X79: 990.023887 | Y79: 980.8931926 | Z79: 971.7624982 | AA79: 962.6318038 | AB79: 953.5011093 | AC79: 944.3704149 | AD79: 935.2397205 | AE79: 926.1090261 | AF79: 916.9783316 | AG79: 907.8476372 | AH79: 898.7169428 | AI79: 889.5862484 | AJ79: 880.4555539
B80: 2020 | C80: NREL Wind Speed Class 12 | D80: CAPEX ($/kW) | E80: Off Shore Wind (Share) | F80: 5291.993501 | G80: 4848.814785 | H80: 4628.315146 | I80: 4471.868162 | J80: 4350.518454 | K80: 4251.368523 | L80: 4167.53845 | M80: 4094.921539 | N80: 4030.868883 | O80: 3973.57183 | P80: 3921.740341 | Q80: 3874.421899 | R80: 3830.893152 | S80: 3790.591827 | T80: 3753.072191 | U80: 3717.974915 | V80: 3685.006093 | W80: 3653.92226 | X80: 3624.519476 | Y80: 3596.625207 | Z80: 3570.092188 | AA80: 3544.793718 | AB80: 3520.620004 | AC80: 3497.475276 | AD80: 3475.275499 | AE80: 3453.946529 | AF80: 3433.422621 | AG80: 3413.645204 | AH80: 3394.561877 | AI80: 3376.125568 | AJ80: 3358.293838
B81: 2020 | C81: NREL Nuclear - Small Modular Reactor | D81: CAPEX ($/kW) | E81: Small Modular Reactor (share) | F81: 6809.420996 | G81: 6766.864904 | H81: 6724.308812 | I81: 6681.75272 | J81: 6639.189897 | K81: 6596.631911 | L81: 6554.075676 | M81: 6511.516028 | N81: 6468.958856 | O81: 6426.399466 | P81: 6383.839692 | Q81: 6341.278297 | R81: 6298.718736 | S81: 6256.162656 | T81: 6213.598457 | U81: 6171.040362 | V81: 6128.480794 | W81: 6085.924715 | X81: 6043.36492 | Y81: 6000.806132 | Z81: 5958.248832 | AA81: 5915.685248 | AB81: 5873.126214 | AC81: 5830.566955 | AD81: 5788.007669 | AE81: 5745.453725 | AF81: 5702.893845 | AG81: 5660.334837 | AH81: 5617.772706 | AI81: 5575.213725 | AJ81: 5532.654843
B82: 2020 | C82: NREL Geothermal - Hydro / Flash | D82: CAPEX ($/kW) | E82: Geothermal (Off System) | F82: 4559.278203 | G82: 4493.604086 | H82: 4427.929969 | I82: 4362.255852 | J82: 4296.581735 | K82: 4230.907618 | L82: 4165.233501 | M82: 4099.559384 | N82: 4033.885267 | O82: 3968.21115 | P82: 3902.537033 | Q82: 3883.024347 | R82: 3863.609226 | S82: 3844.291179 | T82: 3825.069724 | U82: 3805.944375 | V82: 3786.914653 | W82: 3767.98008 | X82: 3749.140179 | Y82: 3730.394479 | Z82: 3711.742506 | AA82: 3693.183794 | AB82: 3674.717875 | AC82: 3656.344285 | AD82: 3638.062564 | AE82: 3619.872251 | AF82: 3601.77289 | AG82: 3583.764025 | AH82: 3565.845205 | AI82: 3548.015979 | AJ82: 3530.275899
B83: 2022 | C83: Internal | D83: CAPEX ($/kW) | E83: 7F.04 CT Frame Greenfield | H83: 744.4582952 | I83: 744.4582952 | J83: 744.4582952 | K83: 744.4582952 | L83: 744.4582952 | M83: 744.4582952 | N83: 744.4582952 | O83: 744.4582952 | P83: 744.4582952 | Q83: 744.4582952 | R83: 744.4582952 | S83: 744.4582952 | T83: 744.4582952 | U83: 744.4582952 | V83: 744.4582952 | W83: 744.4582952 | X83: 744.4582952 | Y83: 744.4582952 | Z83: 744.4582952 | AA83: 744.4582952 | AB83: 744.4582952 | AC83: 744.4582952 | AD83: 744.4582952 | AE83: 744.4582952 | AF83: 744.4582952 | AG83: 744.4582952 | AH83: 744.4582952 | AI83: 744.4582952 | AJ83: 744.4582952
B84: 2022 | C84: Internal | D84: CAPEX ($/kW) | E84: Reciprocating Engine (ICE) Machine | H84: 1139.324195 | I84: 1139.324195 | J84: 1139.324195 | K84: 1139.324195 | L84: 1139.324195 | M84: 1139.324195 | N84: 1139.324195 | O84: 1139.324195 | P84: 1139.324195 | Q84: 1139.324195 | R84: 1139.324195 | S84: 1139.324195 | T84: 1139.324195 | U84: 1139.324195 | V84: 1139.324195 | W84: 1139.324195 | X84: 1139.324195 | Y84: 1139.324195 | Z84: 1139.324195 | AA84: 1139.324195 | AB84: 1139.324195 | AC84: 1139.324195 | AD84: 1139.324195 | AE84: 1139.324195 | AF84: 1139.324195 | AG84: 1139.324195 | AH84: 1139.324195 | AI84: 1139.324195 | AJ84: 1139.324195
B85: 2022 | C85: Internal | D85: CAPEX ($/kW) | E85: NG CCCT (1x1 w/DF) | H85: 1139.113939 | I85: 1139.113939 | J85: 1139.113939 | K85: 1139.113939 | L85: 1139.113939 | M85: 1139.113939 | N85: 1139.113939 | O85: 1139.113939 | P85: 1139.113939 | Q85: 1139.113939 | R85: 1139.113939 | S85: 1139.113939 | T85: 1139.113939 | U85: 1139.113939 | V85: 1139.113939 | W85: 1139.113939 | X85: 1139.113939 | Y85: 1139.113939 | Z85: 1139.113939 | AA85: 1139.113939 | AB85: 1139.113939 | AC85: 1139.113939 | AD85: 1139.113939 | AE85: 1139.113939 | AF85: 1139.113939 | AG85: 1139.113939 | AH85: 1139.113939 | AI85: 1139.113939 | AJ85: 1139.113939
B86: 2020 | C86: Internal | D86: CAPEX ($/kW) | E86: Hydrogen Fuel Cell with 40 hrs Storage | F86: 5356 | G86: =F86*(1+G350) -> 5356 | H86: 5356 | I86: 5356 | J86: 5356 | K86: 5356 | L86: 5356 | M86: 5356 | N86: 5356 | O86: 5356 | P86: 5356 | Q86: 5356 | R86: 5356 | S86: 5356 | T86: 5356 | U86: 5356 | V86: 5356 | W86: 5356 | X86: 5356 | Y86: 5356 | Z86: 5356 | AA86: 5356 | AB86: 5356 | AC86: 5356 | AD86: 5356 | AE86: 5356 | AF86: 5356 | AG86: 5356 | AH86: 5356 | AI86: 5356 | AJ86: 5356
B87: 2022 | C87: Internal | D87: CAPEX ($/kW) | E87: 7F.04 CT Frame Greenfield + amonia + storage | H87: =H83+20000000/('Resource Options'!E3*1000) -> 855.2646888 | I87: 855.2646888 | J87: 855.2646888 | K87: 855.2646888 | L87: 855.2646888 | M87: 855.2646888 | N87: 855.2646888 | O87: 855.2646888 | P87: 855.2646888 | Q87: 855.2646888 | R87: 855.2646888 | S87: 855.2646888 | T87: 855.2646888 | U87: 855.2646888 | V87: 855.2646888 | W87: 855.2646888 | X87: 855.2646888 | Y87: 855.2646888 | Z87: 855.2646888 | AA87: 855.2646888 | AB87: 855.2646888 | AC87: 855.2646888 | AD87: 855.2646888 | AE87: 855.2646888 | AF87: 855.2646888 | AG87: 855.2646888 | AH87: 855.2646888 | AI87: 855.2646888 | AJ87: 855.2646888
D89: Variable Operation and Maintenance Expenses ($/MWh)
B90: 2020 | C90: NREL Utility-Scale Battery Storage - 4Hr | D90: Variable Operation and Maintenance Expenses ($/MWh) | E90: Distribution Scale 4hr Lithium-Ion | F90: 0 | G90: 0 | H90: 0 | I90: 0 | J90: 0 | K90: 0 | L90: 0 | M90: 0 | N90: 0 | O90: 0 | P90: 0 | Q90: 0 | R90: 0 | S90: 0 | T90: 0 | U90: 0 | V90: 0 | W90: 0 | X90: 0 | Y90: 0 | Z90: 0 | AA90: 0 | AB90: 0 | AC90: 0 | AD90: 0 | AE90: 0 | AF90: 0 | AG90: 0 | AH90: 0 | AI90: 0 | AJ90: 0 | AK90: 0 | AL90: 0 | AM90: 0 | AN90: 0 | AO90: 0 | AP90: 0 | AQ90: 0 | AR90: 0 | AS90: 0 | AT90: 0 | AU90: 0 | AV90: 0 | AW90: 0 | AX90: 0 | AY90: 0 | AZ90: 0 | BA90: 0 | BB90: 0 | BC90: 0 | BD90: 0 | BE90: 0 | BF90: 0 | BG90: 0 | BH90: 0 | BI90: 0 | BJ90: 0 | BK90: 0 | BL90: 0 | BM90: 0 | BN90: 0 | BO90: 0 | BP90: 0 | BQ90: 0 | BR90: 0 | BS90: 0 | BT90: 0 | BU90: 0 | BV90: 0 | BW90: 0 | BX90: 0
B91: 2020 | C91: NREL Utility-Scale Battery Storage - 8Hr | D91: Variable Operation and Maintenance Expenses ($/MWh) | E91: Distribution Scale 8hr Lithium-Ion | F91: 0 | G91: 0 | H91: 0 | I91: 0 | J91: 0 | K91: 0 | L91: 0 | M91: 0 | N91: 0 | O91: 0 | P91: 0 | Q91: 0 | R91: 0 | S91: 0 | T91: 0 | U91: 0 | V91: 0 | W91: 0 | X91: 0 | Y91: 0 | Z91: 0 | AA91: 0 | AB91: 0 | AC91: 0 | AD91: 0 | AE91: 0 | AF91: 0 | AG91: 0 | AH91: 0 | AI91: 0 | AJ91: 0 | AK91: 0 | AL91: 0 | AM91: 0 | AN91: 0 | AO91: 0 | AP91: 0 | AQ91: 0 | AR91: 0 | AS91: 0 | AT91: 0 | AU91: 0 | AV91: 0 | AW91: 0 | AX91: 0 | AY91: 0 | AZ91: 0 | BA91: 0 | BB91: 0 | BC91: 0 | BD91: 0 | BE91: 0 | BF91: 0 | BG91: 0 | BH91: 0 | BI91: 0 | BJ91: 0 | BK91: 0 | BL91: 0 | BM91: 0 | BN91: 0 | BO91: 0 | BP91: 0 | BQ91: 0 | BR91: 0 | BS91: 0 | BT91: 0 | BU91: 0 | BV91: 0 | BW91: 0 | BX91: 0
B92: 2020 | C92: NREL Utility-Scale Battery Storage - 4Hr | D92: Variable Operation and Maintenance Expenses ($/MWh) | E92: 4hr Lithium-Ion | F92: 0 | G92: 0 | H92: 0 | I92: 0 | J92: 0 | K92: 0 | L92: 0 | M92: 0 | N92: 0 | O92: 0 | P92: 0 | Q92: 0 | R92: 0 | S92: 0 | T92: 0 | U92: 0 | V92: 0 | W92: 0 | X92: 0 | Y92: 0 | Z92: 0 | AA92: 0 | AB92: 0 | AC92: 0 | AD92: 0 | AE92: 0 | AF92: 0 | AG92: 0 | AH92: 0 | AI92: 0 | AJ92: 0 | AK92: 0 | AL92: 0 | AM92: 0 | AN92: 0 | AO92: 0 | AP92: 0 | AQ92: 0 | AR92: 0 | AS92: 0 | AT92: 0 | AU92: 0 | AV92: 0 | AW92: 0 | AX92: 0 | AY92: 0 | AZ92: 0 | BA92: 0 | BB92: 0 | BC92: 0 | BD92: 0 | BE92: 0 | BF92: 0 | BG92: 0 | BH92: 0 | BI92: 0 | BJ92: 0 | BK92: 0 | BL92: 0 | BM92: 0 | BN92: 0 | BO92: 0 | BP92: 0 | BQ92: 0 | BR92: 0 | BS92: 0 | BT92: 0 | BU92: 0 | BV92: 0 | BW92: 0 | BX92: 0
B93: 2020 | C93: NREL Utility-Scale Battery Storage - 8Hr | D93: Variable Operation and Maintenance Expenses ($/MWh) | E93: 8hr Lithium-Ion | F93: 0 | G93: 0 | H93: 0 | I93: 0 | J93: 0 | K93: 0 | L93: 0 | M93: 0 | N93: 0 | O93: 0 | P93: 0 | Q93: 0 | R93: 0 | S93: 0 | T93: 0 | U93: 0 | V93: 0 | W93: 0 | X93: 0 | Y93: 0 | Z93: 0 | AA93: 0 | AB93: 0 | AC93: 0 | AD93: 0 | AE93: 0 | AF93: 0 | AG93: 0 | AH93: 0 | AI93: 0 | AJ93: 0 | AK93: 0 | AL93: 0 | AM93: 0 | AN93: 0 | AO93: 0 | AP93: 0 | AQ93: 0 | AR93: 0 | AS93: 0 | AT93: 0 | AU93: 0 | AV93: 0 | AW93: 0 | AX93: 0 | AY93: 0 | AZ93: 0 | BA93: 0 | BB93: 0 | BC93: 0 | BD93: 0 | BE93: 0 | BF93: 0 | BG93: 0 | BH93: 0 | BI93: 0 | BJ93: 0 | BK93: 0 | BL93: 0 | BM93: 0 | BN93: 0 | BO93: 0 | BP93: 0 | BQ93: 0 | BR93: 0 | BS93: 0 | BT93: 0 | BU93: 0 | BV93: 0 | BW93: 0 | BX93: 0
B94: 2020 | C94: NREL Utility-Scale Battery Storage - 16Hr | D94: Variable Operation and Maintenance Expenses ($/MWh) | E94: 16hr Lithium-Ion | F94: 0 | G94: 0 | H94: 0 | I94: 0 | J94: 0 | K94: 0 | L94: 0 | M94: 0 | N94: 0 | O94: 0 | P94: 0 | Q94: 0 | R94: 0 | S94: 0 | T94: 0 | U94: 0 | V94: 0 | W94: 0 | X94: 0 | Y94: 0 | Z94: 0 | AA94: 0 | AB94: 0 | AC94: 0 | AD94: 0 | AE94: 0 | AF94: 0 | AG94: 0 | AH94: 0 | AI94: 0 | AJ94: 0 | AK94: 0 | AL94: 0 | AM94: 0 | AN94: 0 | AO94: 0 | AP94: 0 | AQ94: 0 | AR94: 0 | AS94: 0 | AT94: 0 | AU94: 0 | AV94: 0 | AW94: 0 | AX94: 0 | AY94: 0 | AZ94: 0 | BA94: 0 | BB94: 0 | BC94: 0 | BD94: 0 | BE94: 0 | BF94: 0 | BG94: 0 | BH94: 0 | BI94: 0 | BJ94: 0 | BK94: 0 | BL94: 0 | BM94: 0 | BN94: 0 | BO94: 0 | BP94: 0 | BQ94: 0 | BR94: 0 | BS94: 0 | BT94: 0 | BU94: 0 | BV94: 0 | BW94: 0 | BX94: 0
B95: 2020 | C95: Internal | D95: Variable Operation and Maintenance Expenses ($/MWh) | E95: 4 hr Vanadium Flow Battery | F95: 0 | G95: 0 | H95: 0 | I95: 0 | J95: 0 | K95: 0 | L95: 0 | M95: 0 | N95: 0 | O95: 0 | P95: 0 | Q95: 0 | R95: 0 | S95: 0 | T95: 0 | U95: 0 | V95: 0 | W95: 0 | X95: 0 | Y95: 0 | Z95: 0 | AA95: 0 | AB95: 0 | AC95: 0 | AD95: 0 | AE95: 0 | AF95: 0 | AG95: 0 | AH95: 0 | AI95: 0 | AJ95: 0 | AK95: 0 | AL95: 0 | AM95: 0 | AN95: 0 | AO95: 0 | AP95: 0 | AQ95: 0 | AR95: 0 | AS95: 0 | AT95: 0 | AU95: 0 | AV95: 0 | AW95: 0 | AX95: 0 | AY95: 0 | AZ95: 0 | BA95: 0 | BB95: 0 | BC95: 0 | BD95: 0 | BE95: 0 | BF95: 0 | BG95: 0 | BH95: 0 | BI95: 0 | BJ95: 0 | BK95: 0 | BL95: 0 | BM95: 0 | BN95: 0 | BO95: 0 | BP95: 0 | BQ95: 0 | BR95: 0 | BS95: 0 | BT95: 0 | BU95: 0 | BV95: 0 | BW95: 0 | BX95: 0
B96: 2020 | C96: Internal | D96: Variable Operation and Maintenance Expenses ($/MWh) | E96: 4 hr Zinc Bromide Flow Battery | F96: 0 | G96: 0 | H96: 0 | I96: 0 | J96: 0 | K96: 0 | L96: 0 | M96: 0 | N96: 0 | O96: 0 | P96: 0 | Q96: 0 | R96: 0 | S96: 0 | T96: 0 | U96: 0 | V96: 0 | W96: 0 | X96: 0 | Y96: 0 | Z96: 0 | AA96: 0 | AB96: 0 | AC96: 0 | AD96: 0 | AE96: 0 | AF96: 0 | AG96: 0 | AH96: 0 | AI96: 0 | AJ96: 0 | AK96: 0 | AL96: 0 | AM96: 0 | AN96: 0 | AO96: 0 | AP96: 0 | AQ96: 0 | AR96: 0 | AS96: 0 | AT96: 0 | AU96: 0 | AV96: 0 | AW96: 0 | AX96: 0 | AY96: 0 | AZ96: 0 | BA96: 0 | BB96: 0 | BC96: 0 | BD96: 0 | BE96: 0 | BF96: 0 | BG96: 0 | BH96: 0 | BI96: 0 | BJ96: 0 | BK96: 0 | BL96: 0 | BM96: 0 | BN96: 0 | BO96: 0 | BP96: 0 | BQ96: 0 | BR96: 0 | BS96: 0 | BT96: 0 | BU96: 0 | BV96: 0 | BW96: 0 | BX96: 0
B97: 2020 | C97: Form Energy | D97: Variable Operation and Maintenance Expenses ($/MWh) | E97: 100hr Iron Oxide | F97: 0 | G97: 0 | H97: 0 | I97: 0 | J97: 0 | K97: 0 | L97: 0 | M97: 0 | N97: 0 | O97: 0 | P97: 0 | Q97: 0 | R97: 0 | S97: 0 | T97: 0 | U97: 0 | V97: 0 | W97: 0 | X97: 0 | Y97: 0 | Z97: 0 | AA97: 0 | AB97: 0 | AC97: 0 | AD97: 0 | AE97: 0 | AF97: 0 | AG97: 0 | AH97: 0 | AI97: 0 | AJ97: 0 | AK97: 0 | AL97: 0 | AM97: 0 | AN97: 0 | AO97: 0 | AP97: 0 | AQ97: 0 | AR97: 0 | AS97: 0 | AT97: 0 | AU97: 0 | AV97: 0 | AW97: 0 | AX97: 0 | AY97: 0 | AZ97: 0 | BA97: 0 | BB97: 0 | BC97: 0 | BD97: 0 | BE97: 0 | BF97: 0 | BG97: 0 | BH97: 0 | BI97: 0 | BJ97: 0 | BK97: 0 | BL97: 0 | BM97: 0 | BN97: 0 | BO97: 0 | BP97: 0 | BQ97: 0 | BR97: 0 | BS97: 0 | BT97: 0 | BU97: 0 | BV97: 0 | BW97: 0 | BX97: 0
B98: 2022 | C98: Internal | D98: Variable Operation and Maintenance Expenses ($/MWh) | E98: Liquid Air | F98: 0 | G98: 0 | H98: 5.75 | I98: 5.75 | J98: 5.75 | K98: 5.75 | L98: 5.75 | M98: 5.75 | N98: 5.75 | O98: 5.75 | P98: 5.75 | Q98: 5.75 | R98: 5.75 | S98: 5.75 | T98: 5.75 | U98: 5.75 | V98: 5.75 | W98: 5.75 | X98: 5.75 | Y98: 5.75 | Z98: 5.75 | AA98: 5.75 | AB98: 5.75 | AC98: 5.75 | AD98: 5.75 | AE98: 5.75 | AF98: 5.75 | AG98: 5.75 | AH98: 5.75 | AI98: 5.75 | AJ98: 5.75 | AK98: 5.75 | AL98: 5.75 | AM98: 5.75 | AN98: 5.75 | AO98: 5.75 | AP98: 5.75 | AQ98: 5.75 | AR98: 5.75 | AS98: 5.75 | AT98: 5.75 | AU98: 5.75 | AV98: 5.75 | AW98: 5.75 | AX98: 5.75 | AY98: 5.75 | AZ98: 5.75 | BA98: 5.75 | BB98: 5.75 | BC98: 5.75 | BD98: 5.75 | BE98: 5.75 | BF98: 5.75 | BG98: 5.75 | BH98: 5.75 | BI98: 5.75 | BJ98: 5.75 | BK98: 5.75 | BL98: 5.75 | BM98: 5.75 | BN98: 5.75 | BO98: 5.75 | BP98: 5.75 | BQ98: 5.75 | BR98: 5.75 | BS98: 5.75 | BT98: 5.75 | BU98: 5.75 | BV98: 5.75 | BW98: 5.75 | BX98: 5.75
B99: 2020 | C99: NREL Pumped Storage Hydropower - National Class 10 | D99: Variable Operation and Maintenance Expenses ($/MWh) | E99: Pumped Hydro (8.5 hr/ 400 MW share) | F99: 0.5125 | G99: 0.5125 | H99: 0.5125 | I99: 0.5125 | J99: 0.5125 | K99: 0.5125 | L99: 0.5125 | M99: 0.5125 | N99: 0.5125 | O99: 0.5125 | P99: 0.5125 | Q99: 0.5125 | R99: 0.5125 | S99: 0.5125 | T99: 0.5125 | U99: 0.5125 | V99: 0.5125 | W99: 0.5125 | X99: 0.5125 | Y99: 0.5125 | Z99: 0.5125 | AA99: 0.5125 | AB99: 0.5125 | AC99: 0.5125 | AD99: 0.5125 | AE99: 0.5125 | AF99: 0.5125 | AG99: 0.5125 | AH99: 0.5125 | AI99: 0.5125 | AJ99: 0.5125 | AK99: 0.5125 | AL99: 0.5125 | AM99: 0.5125 | AN99: 0.5125 | AO99: 0.5125 | AP99: 0.5125 | AQ99: 0.5125 | AR99: 0.5125 | AS99: 0.5125 | AT99: 0.5125 | AU99: 0.5125 | AV99: 0.5125 | AW99: 0.5125 | AX99: 0.5125 | AY99: 0.5125 | AZ99: 0.5125 | BA99: 0.5125 | BB99: 0.5125 | BC99: 0.5125 | BD99: 0.5125 | BE99: 0.5125 | BF99: 0.5125 | BG99: 0.5125 | BH99: 0.5125 | BI99: 0.5125 | BJ99: 0.5125 | BK99: 0.5125 | BL99: 0.5125 | BM99: 0.5125 | BN99: 0.5125 | BO99: 0.5125 | BP99: 0.5125 | BQ99: 0.5125 | BR99: 0.5125 | BS99: 0.5125 | BT99: 0.5125 | BU99: 0.5125 | BV99: 0.5125 | BW99: 0.5125 | BX99: 0.5125
B100: 2020 | C100: NREL Pumped Storage Hydropower - National Class 7 | D100: Variable Operation and Maintenance Expenses ($/MWh) | E100: Pumped Hydro (16 hr/ 100 MW) | F100: 0.5125 | G100: 0.5125 | H100: 0.5125 | I100: 0.5125 | J100: 0.5125 | K100: 0.5125 | L100: 0.5125 | M100: 0.5125 | N100: 0.5125 | O100: 0.5125 | P100: 0.5125 | Q100: 0.5125 | R100: 0.5125 | S100: 0.5125 | T100: 0.5125 | U100: 0.5125 | V100: 0.5125 | W100: 0.5125 | X100: 0.5125 | Y100: 0.5125 | Z100: 0.5125 | AA100: 0.5125 | AB100: 0.5125 | AC100: 0.5125 | AD100: 0.5125 | AE100: 0.5125 | AF100: 0.5125 | AG100: 0.5125 | AH100: 0.5125 | AI100: 0.5125 | AJ100: 0.5125 | AK100: 0.5125 | AL100: 0.5125 | AM100: 0.5125 | AN100: 0.5125 | AO100: 0.5125 | AP100: 0.5125 | AQ100: 0.5125 | AR100: 0.5125 | AS100: 0.5125 | AT100: 0.5125 | AU100: 0.5125 | AV100: 0.5125 | AW100: 0.5125 | AX100: 0.5125 | AY100: 0.5125 | AZ100: 0.5125 | BA100: 0.5125 | BB100: 0.5125 | BC100: 0.5125 | BD100: 0.5125 | BE100: 0.5125 | BF100: 0.5125 | BG100: 0.5125 | BH100: 0.5125 | BI100: 0.5125 | BJ100: 0.5125 | BK100: 0.5125 | BL100: 0.5125 | BM100: 0.5125 | BN100: 0.5125 | BO100: 0.5125 | BP100: 0.5125 | BQ100: 0.5125 | BR100: 0.5125 | BS100: 0.5125 | BT100: 0.5125 | BU100: 0.5125 | BV100: 0.5125 | BW100: 0.5125 | BX100: 0.5125
B101: 2020 | C101: NREL Pumped Storage Hydropower - National Class 5 | D101: Variable Operation and Maintenance Expenses ($/MWh) | E101: Pumped Hyrdo (24 hr/ 100 MW) | F101: 0.5125 | G101: 0.5125 | H101: 0.5125 | I101: 0.5125 | J101: 0.5125 | K101: 0.5125 | L101: 0.5125 | M101: 0.5125 | N101: 0.5125 | O101: 0.5125 | P101: 0.5125 | Q101: 0.5125 | R101: 0.5125 | S101: 0.5125 | T101: 0.5125 | U101: 0.5125 | V101: 0.5125 | W101: 0.5125 | X101: 0.5125 | Y101: 0.5125 | Z101: 0.5125 | AA101: 0.5125 | AB101: 0.5125 | AC101: 0.5125 | AD101: 0.5125 | AE101: 0.5125 | AF101: 0.5125 | AG101: 0.5125 | AH101: 0.5125 | AI101: 0.5125 | AJ101: 0.5125 | AK101: 0.5125 | AL101: 0.5125 | AM101: 0.5125 | AN101: 0.5125 | AO101: 0.5125 | AP101: 0.5125 | AQ101: 0.5125 | AR101: 0.5125 | AS101: 0.5125 | AT101: 0.5125 | AU101: 0.5125 | AV101: 0.5125 | AW101: 0.5125 | AX101: 0.5125 | AY101: 0.5125 | AZ101: 0.5125 | BA101: 0.5125 | BB101: 0.5125 | BC101: 0.5125 | BD101: 0.5125 | BE101: 0.5125 | BF101: 0.5125 | BG101: 0.5125 | BH101: 0.5125 | BI101: 0.5125 | BJ101: 0.5125 | BK101: 0.5125 | BL101: 0.5125 | BM101: 0.5125 | BN101: 0.5125 | BO101: 0.5125 | BP101: 0.5125 | BQ101: 0.5125 | BR101: 0.5125 | BS101: 0.5125 | BT101: 0.5125 | BU101: 0.5125 | BV101: 0.5125 | BW101: 0.5125 | BX101: 0.5125
B102: 2022 | C102: Internal | D102: Variable Operation and Maintenance Expenses ($/MWh) | E102: Wood Biomass | H102: 3.5075 | I102: 3.5075 | J102: 3.5075 | K102: 3.5075 | L102: 3.5075 | M102: 3.5075 | N102: 3.5075 | O102: 3.5075 | P102: 3.5075 | Q102: 3.5075 | R102: 3.5075 | S102: 3.5075 | T102: 3.5075 | U102: 3.5075 | V102: 3.5075 | W102: 3.5075 | X102: 3.5075 | Y102: 3.5075 | Z102: 3.5075 | AA102: 3.5075 | AB102: 3.5075 | AC102: 3.5075 | AD102: 3.5075 | AE102: 3.5075 | AF102: 3.5075 | AG102: 3.5075 | AH102: 3.5075 | AI102: 3.5075 | AJ102: 3.5075 | AK102: 3.5075 | AL102: 3.5075 | AM102: 3.5075 | AN102: 3.5075 | AO102: 3.5075 | AP102: 3.5075 | AQ102: 3.5075 | AR102: 3.5075 | AS102: 3.5075 | AT102: 3.5075 | AU102: 3.5075 | AV102: 3.5075 | AW102: 3.5075 | AX102: 3.5075 | AY102: 3.5075 | AZ102: 3.5075 | BA102: 3.5075 | BB102: 3.5075 | BC102: 3.5075 | BD102: 3.5075 | BE102: 3.5075 | BF102: 3.5075 | BG102: 3.5075 | BH102: 3.5075 | BI102: 3.5075 | BJ102: 3.5075 | BK102: 3.5075 | BL102: 3.5075 | BM102: 3.5075 | BN102: 3.5075 | BO102: 3.5075 | BP102: 3.5075 | BQ102: 3.5075 | BR102: 3.5075 | BS102: 3.5075 | BT102: 3.5075 | BU102: 3.5075 | BV102: 3.5075 | BW102: 3.5075 | BX102: 3.5075
B103: 2022 | C103: Internal | D103: Variable Operation and Maintenance Expenses ($/MWh) | E103: Rathdrum CT 2055 Uprates two unit operation | H103: 4.6 | I103: 4.6 | J103: 4.6 | K103: 4.6 | L103: 4.6 | M103: 4.6 | N103: 4.6 | O103: 4.6 | P103: 4.6 | Q103: 4.6 | R103: 4.6 | S103: 4.6 | T103: 4.6 | U103: 4.6 | V103: 4.6 | W103: 4.6 | X103: 4.6 | Y103: 4.6 | Z103: 4.6 | AA103: 4.6 | AB103: 4.6 | AC103: 4.6 | AD103: 4.6 | AE103: 4.6 | AF103: 4.6 | AG103: 4.6 | AH103: 4.6 | AI103: 4.6 | AJ103: 4.6 | AK103: 4.6 | AL103: 4.6 | AM103: 4.6 | AN103: 4.6 | AO103: 4.6 | AP103: 4.6 | AQ103: 4.6 | AR103: 4.6 | AS103: 4.6 | AT103: 4.6 | AU103: 4.6 | AV103: 4.6 | AW103: 4.6 | AX103: 4.6 | AY103: 4.6 | AZ103: 4.6 | BA103: 4.6 | BB103: 4.6 | BC103: 4.6 | BD103: 4.6 | BE103: 4.6 | BF103: 4.6 | BG103: 4.6 | BH103: 4.6 | BI103: 4.6 | BJ103: 4.6 | BK103: 4.6 | BL103: 4.6 | BM103: 4.6 | BN103: 4.6 | BO103: 4.6 | BP103: 4.6 | BQ103: 4.6 | BR103: 4.6 | BS103: 4.6 | BT103: 4.6 | BU103: 4.6 | BV103: 4.6 | BW103: 4.6 | BX103: 4.6
B104: 2022 | C104: Internal | D104: Variable Operation and Maintenance Expenses ($/MWh) | E104: Rathdrum CT: Inlet Evaporation 2 unit operation | H104: 5.75 | I104: 5.75 | J104: 5.75 | K104: 5.75 | L104: 5.75 | M104: 5.75 | N104: 5.75 | O104: 5.75 | P104: 5.75 | Q104: 5.75 | R104: 5.75 | S104: 5.75 | T104: 5.75 | U104: 5.75 | V104: 5.75 | W104: 5.75 | X104: 5.75 | Y104: 5.75 | Z104: 5.75 | AA104: 5.75 | AB104: 5.75 | AC104: 5.75 | AD104: 5.75 | AE104: 5.75 | AF104: 5.75 | AG104: 5.75 | AH104: 5.75 | AI104: 5.75 | AJ104: 5.75 | AK104: 5.75 | AL104: 5.75 | AM104: 5.75 | AN104: 5.75 | AO104: 5.75 | AP104: 5.75 | AQ104: 5.75 | AR104: 5.75 | AS104: 5.75 | AT104: 5.75 | AU104: 5.75 | AV104: 5.75 | AW104: 5.75 | AX104: 5.75 | AY104: 5.75 | AZ104: 5.75 | BA104: 5.75 | BB104: 5.75 | BC104: 5.75 | BD104: 5.75 | BE104: 5.75 | BF104: 5.75 | BG104: 5.75 | BH104: 5.75 | BI104: 5.75 | BJ104: 5.75 | BK104: 5.75 | BL104: 5.75 | BM104: 5.75 | BN104: 5.75 | BO104: 5.75 | BP104: 5.75 | BQ104: 5.75 | BR104: 5.75 | BS104: 5.75 | BT104: 5.75 | BU104: 5.75 | BV104: 5.75 | BW104: 5.75 | BX104: 5.75
B105: 2022 | C105: Internal | D105: Variable Operation and Maintenance Expenses ($/MWh) | E105: Kettle Falls Turbine Generator Upgrade
B106: 2020 | C106: NREL Residential PV - Class 8 | D106: Variable Operation and Maintenance Expenses ($/MWh) | E106: New Residential Solar | F106: 0 | G106: 0 | H106: 0 | I106: 0 | J106: 0 | K106: 0 | L106: 0 | M106: 0 | N106: 0 | O106: 0 | P106: 0 | Q106: 0 | R106: 0 | S106: 0 | T106: 0 | U106: 0 | V106: 0 | W106: 0 | X106: 0 | Y106: 0 | Z106: 0 | AA106: 0 | AB106: 0 | AC106: 0 | AD106: 0 | AE106: 0 | AF106: 0 | AG106: 0 | AH106: 0 | AI106: 0 | AJ106: 0 | AK106: 0 | AL106: 0 | AM106: 0 | AN106: 0 | AO106: 0 | AP106: 0 | AQ106: 0 | AR106: 0 | AS106: 0 | AT106: 0 | AU106: 0 | AV106: 0 | AW106: 0 | AX106: 0 | AY106: 0 | AZ106: 0 | BA106: 0 | BB106: 0 | BC106: 0 | BD106: 0 | BE106: 0 | BF106: 0 | BG106: 0 | BH106: 0 | BI106: 0 | BJ106: 0 | BK106: 0 | BL106: 0 | BM106: 0 | BN106: 0 | BO106: 0 | BP106: 0 | BQ106: 0 | BR106: 0 | BS106: 0 | BT106: 0 | BU106: 0 | BV106: 0 | BW106: 0 | BX106: 0
B107: 2020 | C107: NREL Residential PV - Class 8 | D107: Variable Operation and Maintenance Expenses ($/MWh) | E107: New Residential Solar + Storage (Solar Only) | F107: =F106 -> 0 | G107: =G106 -> 0 | H107: 0 | I107: 0 | J107: 0 | K107: 0 | L107: 0 | M107: 0 | N107: 0 | O107: 0 | P107: 0 | Q107: 0 | R107: 0 | S107: 0 | T107: 0 | U107: 0 | V107: 0 | W107: 0 | X107: 0 | Y107: 0 | Z107: 0 | AA107: 0 | AB107: 0 | AC107: 0 | AD107: 0 | AE107: 0 | AF107: 0 | AG107: 0 | AH107: 0 | AI107: 0 | AJ107: 0 | AK107: 0 | AL107: 0 | AM107: 0 | AN107: 0 | AO107: 0 | AP107: 0 | AQ107: 0 | AR107: 0 | AS107: 0 | AT107: 0 | AU107: 0 | AV107: 0 | AW107: 0 | AX107: 0 | AY107: 0 | AZ107: 0 | BA107: 0 | BB107: 0 | BC107: 0 | BD107: 0 | BE107: 0 | BF107: 0 | BG107: 0 | BH107: 0 | BI107: 0 | BJ107: 0 | BK107: 0 | BL107: 0 | BM107: 0 | BN107: 0 | BO107: 0 | BP107: 0 | BQ107: 0 | BR107: 0 | BS107: =BS106 -> 0 | BT107: 0 | BU107: 0 | BV107: 0 | BW107: 0 | BX107: 0
B108: 2020 | C108: NREL Residential PV - Class 8 | D108: Variable Operation and Maintenance Expenses ($/MWh) | E108: Existing Residential Solar | F108: =F106 -> 0 | G108: =G106 -> 0 | H108: 0 | I108: 0 | J108: 0 | K108: 0 | L108: 0 | M108: 0 | N108: 0 | O108: 0 | P108: 0 | Q108: 0 | R108: 0 | S108: 0 | T108: 0 | U108: 0 | V108: 0 | W108: 0 | X108: 0 | Y108: 0 | Z108: 0 | AA108: 0 | AB108: 0 | AC108: 0 | AD108: 0 | AE108: 0 | AF108: 0 | AG108: 0 | AH108: 0 | AI108: 0 | AJ108: 0 | AK108: 0 | AL108: 0 | AM108: 0 | AN108: 0 | AO108: 0 | AP108: 0 | AQ108: 0 | AR108: 0 | AS108: 0 | AT108: 0 | AU108: 0 | AV108: 0 | AW108: 0 | AX108: 0 | AY108: 0 | AZ108: 0 | BA108: 0 | BB108: 0 | BC108: 0 | BD108: 0 | BE108: 0 | BF108: 0 | BG108: 0 | BH108: 0 | BI108: 0 | BJ108: 0 | BK108: 0 | BL108: 0 | BM108: 0 | BN108: 0 | BO108: 0 | BP108: 0 | BQ108: 0 | BR108: 0 | BS108: =BS106 -> 0 | BT108: 0 | BU108: 0 | BV108: 0 | BW108: 0 | BX108: 0
B109: 2020 | C109: NREL Residential PV - Class 8 | D109: Variable Operation and Maintenance Expenses ($/MWh) | E109: Existing Residential Solar + Storage (Solar Only) | F109: =F108 -> 0 | G109: 0 | H109: 0 | I109: 0 | J109: 0 | K109: 0 | L109: 0 | M109: 0 | N109: 0 | O109: 0 | P109: 0 | Q109: 0 | R109: 0 | S109: 0 | T109: 0 | U109: 0 | V109: 0 | W109: 0 | X109: 0 | Y109: 0 | Z109: 0 | AA109: 0 | AB109: 0 | AC109: 0 | AD109: 0 | AE109: 0 | AF109: 0 | AG109: 0 | AH109: 0 | AI109: 0 | AJ109: 0 | AK109: 0 | AL109: 0 | AM109: 0 | AN109: 0 | AO109: 0 | AP109: 0 | AQ109: 0 | AR109: 0 | AS109: 0 | AT109: 0 | AU109: 0 | AV109: 0 | AW109: 0 | AX109: 0 | AY109: 0 | AZ109: 0 | BA109: 0 | BB109: 0 | BC109: 0 | BD109: 0 | BE109: 0 | BF109: 0 | BG109: 0 | BH109: 0 | BI109: 0 | BJ109: 0 | BK109: 0 | BL109: 0 | BM109: 0 | BN109: 0 | BO109: 0 | BP109: 0 | BQ109: 0 | BR109: =BR108 -> 0 | BS109: 0 | BT109: 0 | BU109: 0 | BV109: 0 | BW109: 0 | BX109: 0
B110: 2020 | C110: NREL Commercial PV - Class 8 | D110: Variable Operation and Maintenance Expenses ($/MWh) | E110: Commercial Solar | F110: 0 | G110: 0 | H110: 0 | I110: 0 | J110: 0 | K110: 0 | L110: 0 | M110: 0 | N110: 0 | O110: 0 | P110: 0 | Q110: 0 | R110: 0 | S110: 0 | T110: 0 | U110: 0 | V110: 0 | W110: 0 | X110: 0 | Y110: 0 | Z110: 0 | AA110: 0 | AB110: 0 | AC110: 0 | AD110: 0 | AE110: 0 | AF110: 0 | AG110: 0 | AH110: 0 | AI110: 0 | AJ110: 0 | AK110: 0 | AL110: 0 | AM110: 0 | AN110: 0 | AO110: 0 | AP110: 0 | AQ110: 0 | AR110: 0 | AS110: 0 | AT110: 0 | AU110: 0 | AV110: 0 | AW110: 0 | AX110: 0 | AY110: 0 | AZ110: 0 | BA110: 0 | BB110: 0 | BC110: 0 | BD110: 0 | BE110: 0 | BF110: 0 | BG110: 0 | BH110: 0 | BI110: 0 | BJ110: 0 | BK110: 0 | BL110: 0 | BM110: 0 | BN110: 0 | BO110: 0 | BP110: 0 | BQ110: 0 | BR110: 0 | BS110: 0 | BT110: 0 | BU110: 0 | BV110: 0 | BW110: 0 | BX110: 0
B111: 2020 | C111: NREL Commercial PV - Class 8 | D111: Variable Operation and Maintenance Expenses ($/MWh) | E111: Commercial Solar + Storage (Solar Only) | F111: =F110 -> 0 | G111: =G110 -> 0 | H111: 0 | I111: 0 | J111: 0 | K111: 0 | L111: 0 | M111: 0 | N111: 0 | O111: 0 | P111: 0 | Q111: 0 | R111: 0 | S111: 0 | T111: 0 | U111: 0 | V111: 0 | W111: 0 | X111: 0 | Y111: 0 | Z111: 0 | AA111: 0 | AB111: 0 | AC111: 0 | AD111: 0 | AE111: 0 | AF111: 0 | AG111: 0 | AH111: 0 | AI111: 0 | AJ111: 0 | AK111: 0 | AL111: 0 | AM111: 0 | AN111: 0 | AO111: 0 | AP111: 0 | AQ111: 0 | AR111: 0 | AS111: 0 | AT111: 0 | AU111: 0 | AV111: 0 | AW111: 0 | AX111: 0 | AY111: 0 | AZ111: 0 | BA111: 0 | BB111: 0 | BC111: 0 | BD111: 0 | BE111: 0 | BF111: 0 | BG111: 0 | BH111: 0 | BI111: 0 | BJ111: 0 | BK111: 0 | BL111: 0 | BM111: 0 | BN111: 0 | BO111: 0 | BP111: 0 | BQ111: 0 | BR111: =BR110 -> 0 | BS111: 0 | BT111: 0 | BU111: 0 | BV111: 0 | BW111: 0 | BX111: 0
B112: 2020 | C112: NREL Utility PV - Class 4 | D112: Variable Operation and Maintenance Expenses ($/MWh) | E112: Solar Photovoltaic Fixed Array (5 MW AC) | F112: =F114 -> 0 | G112: =G114 -> 0 | H112: 0 | I112: 0 | J112: 0 | K112: 0 | L112: 0 | M112: 0 | N112: 0 | O112: 0 | P112: 0 | Q112: 0 | R112: 0 | S112: 0 | T112: 0 | U112: 0 | V112: 0 | W112: 0 | X112: 0 | Y112: 0 | Z112: 0 | AA112: 0 | AB112: 0 | AC112: 0 | AD112: 0 | AE112: 0 | AF112: 0 | AG112: 0 | AH112: 0 | AI112: 0 | AJ112: 0 | AK112: 0 | AL112: 0 | AM112: 0 | AN112: 0 | AO112: 0 | AP112: 0 | AQ112: 0 | AR112: 0 | AS112: 0 | AT112: 0 | AU112: 0 | AV112: 0 | AW112: 0 | AX112: 0 | AY112: 0 | AZ112: 0 | BA112: 0 | BB112: 0 | BC112: 0 | BD112: 0 | BE112: 0 | BF112: 0 | BG112: 0 | BH112: 0 | BI112: 0 | BJ112: 0 | BK112: 0 | BL112: 0 | BM112: 0 | BN112: 0 | BO112: 0 | BP112: 0 | BQ112: 0 | BR112: 0 | BS112: =BS114 -> 0 | BT112: 0 | BU112: 0 | BV112: 0 | BW112: 0 | BX112: 0
B113: 2020 | C113: NREL Utility PV - Class 4 | D113: Variable Operation and Maintenance Expenses ($/MWh) | E113: Solar Photovoltaic Fixed Array (5 MW AC) + Storage (Solar Only) | F113: =F112 -> 0 | G113: =G112 -> 0 | H113: 0 | I113: 0 | J113: 0 | K113: 0 | L113: 0 | M113: 0 | N113: 0 | O113: 0 | P113: 0 | Q113: 0 | R113: 0 | S113: 0 | T113: 0 | U113: 0 | V113: 0 | W113: 0 | X113: 0 | Y113: 0 | Z113: 0 | AA113: 0 | AB113: 0 | AC113: 0 | AD113: 0 | AE113: 0 | AF113: 0 | AG113: 0 | AH113: 0 | AI113: 0 | AJ113: 0 | AK113: 0 | AL113: 0 | AM113: 0 | AN113: 0 | AO113: 0 | AP113: 0 | AQ113: 0 | AR113: 0 | AS113: 0 | AT113: 0 | AU113: 0 | AV113: 0 | AW113: 0 | AX113: 0 | AY113: 0 | AZ113: 0 | BA113: 0 | BB113: 0 | BC113: 0 | BD113: 0 | BE113: 0 | BF113: 0 | BG113: 0 | BH113: 0 | BI113: 0 | BJ113: 0 | BK113: 0 | BL113: 0 | BM113: 0 | BN113: 0 | BO113: 0 | BP113: 0 | BQ113: 0 | BR113: 0 | BS113: =BS112 -> 0 | BT113: 0 | BU113: 0 | BV113: 0 | BW113: 0 | BX113: 0
B114: 2020 | C114: NREL Utility PV - Class 4 | D114: Variable Operation and Maintenance Expenses ($/MWh) | E114: Solar Photovoltaic w/Single Axis Tracking (100 MW AC) | F114: 0 | G114: 0 | H114: 0 | I114: 0 | J114: 0 | K114: 0 | L114: 0 | M114: 0 | N114: 0 | O114: 0 | P114: 0 | Q114: 0 | R114: 0 | S114: 0 | T114: 0 | U114: 0 | V114: 0 | W114: 0 | X114: 0 | Y114: 0 | Z114: 0 | AA114: 0 | AB114: 0 | AC114: 0 | AD114: 0 | AE114: 0 | AF114: 0 | AG114: 0 | AH114: 0 | AI114: 0 | AJ114: 0 | AK114: 0 | AL114: 0 | AM114: 0 | AN114: 0 | AO114: 0 | AP114: 0 | AQ114: 0 | AR114: 0 | AS114: 0 | AT114: 0 | AU114: 0 | AV114: 0 | AW114: 0 | AX114: 0 | AY114: 0 | AZ114: 0 | BA114: 0 | BB114: 0 | BC114: 0 | BD114: 0 | BE114: 0 | BF114: 0 | BG114: 0 | BH114: 0 | BI114: 0 | BJ114: 0 | BK114: 0 | BL114: 0 | BM114: 0 | BN114: 0 | BO114: 0 | BP114: 0 | BQ114: 0 | BR114: 0 | BS114: 0 | BT114: 0 | BU114: 0 | BV114: 0 | BW114: 0 | BX114: 0
B115: 2020 | C115: NREL Utility PV - Class 5 | D115: Variable Operation and Maintenance Expenses ($/MWh) | E115: Southern NW Solar Photovoltaic w/ Single Axis Tracking (100 MW AC) | F115: 0 | G115: 0 | H115: 0 | I115: 0 | J115: 0 | K115: 0 | L115: 0 | M115: 0 | N115: 0 | O115: 0 | P115: 0 | Q115: 0 | R115: 0 | S115: 0 | T115: 0 | U115: 0 | V115: 0 | W115: 0 | X115: 0 | Y115: 0 | Z115: 0 | AA115: 0 | AB115: 0 | AC115: 0 | AD115: 0 | AE115: 0 | AF115: 0 | AG115: 0 | AH115: 0 | AI115: 0 | AJ115: 0 | AK115: 0 | AL115: 0 | AM115: 0 | AN115: 0 | AO115: 0 | AP115: 0 | AQ115: 0 | AR115: 0 | AS115: 0 | AT115: 0 | AU115: 0 | AV115: 0 | AW115: 0 | AX115: 0 | AY115: 0 | AZ115: 0 | BA115: 0 | BB115: 0 | BC115: 0 | BD115: 0 | BE115: 0 | BF115: 0 | BG115: 0 | BH115: 0 | BI115: 0 | BJ115: 0 | BK115: 0 | BL115: 0 | BM115: 0 | BN115: 0 | BO115: 0 | BP115: 0 | BQ115: 0 | BR115: 0 | BS115: 0 | BT115: 0 | BU115: 0 | BV115: 0 | BW115: 0 | BX115: 0
B116: 2020 | C116: NREL Utility-Scale Battery Storage - 4Hr | D116: Variable Operation and Maintenance Expenses ($/MWh) | E116: 100 MW/400 MWh Lithium-ion w/Solar (Solar Only) | F116: 0 | G116: 0 | H116: 0 | I116: 0 | J116: 0 | K116: 0 | L116: 0 | M116: 0 | N116: 0 | O116: 0 | P116: 0 | Q116: 0 | R116: 0 | S116: 0 | T116: 0 | U116: 0 | V116: 0 | W116: 0 | X116: 0 | Y116: 0 | Z116: 0 | AA116: 0 | AB116: 0 | AC116: 0 | AD116: 0 | AE116: 0 | AF116: 0 | AG116: 0 | AH116: 0 | AI116: 0 | AJ116: 0 | AK116: 0 | AL116: 0 | AM116: 0 | AN116: 0 | AO116: 0 | AP116: 0 | AQ116: 0 | AR116: 0 | AS116: 0 | AT116: 0 | AU116: 0 | AV116: 0 | AW116: 0 | AX116: 0 | AY116: 0 | AZ116: 0 | BA116: 0 | BB116: 0 | BC116: 0 | BD116: 0 | BE116: 0 | BF116: 0 | BG116: 0 | BH116: 0 | BI116: 0 | BJ116: 0 | BK116: 0 | BL116: 0 | BM116: 0 | BN116: 0 | BO116: 0 | BP116: 0 | BQ116: 0 | BR116: 0 | BS116: 0 | BT116: 0 | BU116: 0 | BV116: 0 | BW116: 0 | BX116: 0
B117: 2020 | C117: NREL Utility-Scale Battery Storage - 2Hr | D117: Variable Operation and Maintenance Expenses ($/MWh) | E117: 100 MW/200 MWh Lithium-ion w/Solar (Solar Only) | F117: 0 | G117: 0 | H117: 0 | I117: 0 | J117: 0 | K117: 0 | L117: 0 | M117: 0 | N117: 0 | O117: 0 | P117: 0 | Q117: 0 | R117: 0 | S117: 0 | T117: 0 | U117: 0 | V117: 0 | W117: 0 | X117: 0 | Y117: 0 | Z117: 0 | AA117: 0 | AB117: 0 | AC117: 0 | AD117: 0 | AE117: 0 | AF117: 0 | AG117: 0 | AH117: 0 | AI117: 0 | AJ117: 0 | AK117: 0 | AL117: 0 | AM117: 0 | AN117: 0 | AO117: 0 | AP117: 0 | AQ117: 0 | AR117: 0 | AS117: 0 | AT117: 0 | AU117: 0 | AV117: 0 | AW117: 0 | AX117: 0 | AY117: 0 | AZ117: 0 | BA117: 0 | BB117: 0 | BC117: 0 | BD117: 0 | BE117: 0 | BF117: 0 | BG117: 0 | BH117: 0 | BI117: 0 | BJ117: 0 | BK117: 0 | BL117: 0 | BM117: 0 | BN117: 0 | BO117: 0 | BP117: 0 | BQ117: 0 | BR117: 0 | BS117: 0 | BT117: 0 | BU117: 0 | BV117: 0 | BW117: 0 | BX117: 0
B118: 2020 | C118: NREL Utility-Scale Battery Storage - 2Hr | D118: Variable Operation and Maintenance Expenses ($/MWh) | E118: 50 MW/200 MWh Lithium-ion w/Solar (Solar Only) | F118: 0 | G118: 0 | H118: 0 | I118: 0 | J118: 0 | K118: 0 | L118: 0 | M118: 0 | N118: 0 | O118: 0 | P118: 0 | Q118: 0 | R118: 0 | S118: 0 | T118: 0 | U118: 0 | V118: 0 | W118: 0 | X118: 0 | Y118: 0 | Z118: 0 | AA118: 0 | AB118: 0 | AC118: 0 | AD118: 0 | AE118: 0 | AF118: 0 | AG118: 0 | AH118: 0 | AI118: 0 | AJ118: 0 | AK118: 0 | AL118: 0 | AM118: 0 | AN118: 0 | AO118: 0 | AP118: 0 | AQ118: 0 | AR118: 0 | AS118: 0 | AT118: 0 | AU118: 0 | AV118: 0 | AW118: 0 | AX118: 0 | AY118: 0 | AZ118: 0 | BA118: 0 | BB118: 0 | BC118: 0 | BD118: 0 | BE118: 0 | BF118: 0 | BG118: 0 | BH118: 0 | BI118: 0 | BJ118: 0 | BK118: 0 | BL118: 0 | BM118: 0 | BN118: 0 | BO118: 0 | BP118: 0 | BQ118: 0 | BR118: 0 | BS118: 0 | BT118: 0 | BU118: 0 | BV118: 0 | BW118: 0 | BX118: 0
B119: 2020 | C119: NREL Land-Based Wind - Class 8 | D119: Variable Operation and Maintenance Expenses ($/MWh) | E119: NW Wind On System (Share) | F119: 0 | G119: 0 | H119: 0 | I119: 0 | J119: 0 | K119: 0 | L119: 0 | M119: 0 | N119: 0 | O119: 0 | P119: 0 | Q119: 0 | R119: 0 | S119: 0 | T119: 0 | U119: 0 | V119: 0 | W119: 0 | X119: 0 | Y119: 0 | Z119: 0 | AA119: 0 | AB119: 0 | AC119: 0 | AD119: 0 | AE119: 0 | AF119: 0 | AG119: 0 | AH119: 0 | AI119: 0 | AJ119: 0 | AK119: 0 | AL119: 0 | AM119: 0 | AN119: 0 | AO119: 0 | AP119: 0 | AQ119: 0 | AR119: 0 | AS119: 0 | AT119: 0 | AU119: 0 | AV119: 0 | AW119: 0 | AX119: 0 | AY119: 0 | AZ119: 0 | BA119: 0 | BB119: 0 | BC119: 0 | BD119: 0 | BE119: 0 | BF119: 0 | BG119: 0 | BH119: 0 | BI119: 0 | BJ119: 0 | BK119: 0 | BL119: 0 | BM119: 0 | BN119: 0 | BO119: 0 | BP119: 0 | BQ119: 0 | BR119: 0 | BS119: 0 | BT119: 0 | BU119: 0 | BV119: 0 | BW119: 0 | BX119: 0
B120: 2020 | C120: NREL Land-Based Wind - Class 8 | D120: Variable Operation and Maintenance Expenses ($/MWh) | E120: NW Wind Off System | F120: =F119 -> 0 | G120: =G119 -> 0 | H120: 0 | I120: 0 | J120: 0 | K120: 0 | L120: 0 | M120: 0 | N120: 0 | O120: 0 | P120: 0 | Q120: 0 | R120: 0 | S120: 0 | T120: 0 | U120: 0 | V120: 0 | W120: 0 | X120: 0 | Y120: 0 | Z120: 0 | AA120: 0 | AB120: 0 | AC120: 0 | AD120: 0 | AE120: 0 | AF120: 0 | AG120: 0 | AH120: 0 | AI120: 0 | AJ120: 0 | AK120: 0 | AL120: 0 | AM120: 0 | AN120: 0 | AO120: 0 | AP120: 0 | AQ120: 0 | AR120: 0 | AS120: 0 | AT120: 0 | AU120: 0 | AV120: 0 | AW120: 0 | AX120: 0 | AY120: 0 | AZ120: 0 | BA120: 0 | BB120: 0 | BC120: 0 | BD120: 0 | BE120: 0 | BF120: 0 | BG120: 0 | BH120: 0 | BI120: 0 | BJ120: 0 | BK120: 0 | BL120: 0 | BM120: 0 | BN120: 0 | BO120: 0 | BP120: 0 | BQ120: 0 | BR120: =BR119 -> 0 | BS120: 0 | BT120: 0 | BU120: 0 | BV120: 0 | BW120: 0 | BX120: 0
B121: 2020 | C121: NREL Land-Based Wind - Class 3 | D121: Variable Operation and Maintenance Expenses ($/MWh) | E121: Wind Montana | F121: 0 | G121: 0 | H121: 0 | I121: 0 | J121: 0 | K121: 0 | L121: 0 | M121: 0 | N121: 0 | O121: 0 | P121: 0 | Q121: 0 | R121: 0 | S121: 0 | T121: 0 | U121: 0 | V121: 0 | W121: 0 | X121: 0 | Y121: 0 | Z121: 0 | AA121: 0 | AB121: 0 | AC121: 0 | AD121: 0 | AE121: 0 | AF121: 0 | AG121: 0 | AH121: 0 | AI121: 0 | AJ121: 0 | AK121: 0 | AL121: 0 | AM121: 0 | AN121: 0 | AO121: 0 | AP121: 0 | AQ121: 0 | AR121: 0 | AS121: 0 | AT121: 0 | AU121: 0 | AV121: 0 | AW121: 0 | AX121: 0 | AY121: 0 | AZ121: 0 | BA121: 0 | BB121: 0 | BC121: 0 | BD121: 0 | BE121: 0 | BF121: 0 | BG121: 0 | BH121: 0 | BI121: 0 | BJ121: 0 | BK121: 0 | BL121: 0 | BM121: 0 | BN121: 0 | BO121: 0 | BP121: 0 | BQ121: 0 | BR121: 0 | BS121: 0 | BT121: 0 | BU121: 0 | BV121: 0 | BW121: 0 | BX121: 0
B122: 2020 | C122: NREL Wind Speed Class 12 | D122: Variable Operation and Maintenance Expenses ($/MWh) | E122: Off Shore Wind (Share) | F122: 0 | G122: 0 | H122: 0 | I122: 0 | J122: 0 | K122: 0 | L122: 0 | M122: 0 | N122: 0 | O122: 0 | P122: 0 | Q122: 0 | R122: 0 | S122: 0 | T122: 0 | U122: 0 | V122: 0 | W122: 0 | X122: 0 | Y122: 0 | Z122: 0 | AA122: 0 | AB122: 0 | AC122: 0 | AD122: 0 | AE122: 0 | AF122: 0 | AG122: 0 | AH122: 0 | AI122: 0 | AJ122: 0 | AK122: 0 | AL122: 0 | AM122: 0 | AN122: 0 | AO122: 0 | AP122: 0 | AQ122: 0 | AR122: 0 | AS122: 0 | AT122: 0 | AU122: 0 | AV122: 0 | AW122: 0 | AX122: 0 | AY122: 0 | AZ122: 0 | BA122: 0 | BB122: 0 | BC122: 0 | BD122: 0 | BE122: 0 | BF122: 0 | BG122: 0 | BH122: 0 | BI122: 0 | BJ122: 0 | BK122: 0 | BL122: 0 | BM122: 0 | BN122: 0 | BO122: 0 | BP122: 0 | BQ122: 0 | BR122: 0 | BS122: 0 | BT122: 0 | BU122: 0 | BV122: 0 | BW122: 0 | BX122: 0
B123: 2020 | C123: NREL Nuclear - Small Modular Reactor | D123: Variable Operation and Maintenance Expenses ($/MWh) | E123: Small Modular Reactor (share) | F123: 3.6 | G123: 3.6 | H123: 3.6 | I123: 3.6 | J123: 3.6 | K123: 3.6 | L123: 3.6 | M123: 3.6 | N123: 3.6 | O123: 3.6 | P123: 3.6 | Q123: 3.6 | R123: 3.6 | S123: 3.6 | T123: 3.6 | U123: 3.6 | V123: 3.6 | W123: 3.6 | X123: 3.6 | Y123: 3.6 | Z123: 3.6 | AA123: 3.6 | AB123: 3.6 | AC123: 3.6 | AD123: 3.6 | AE123: 3.6 | AF123: 3.6 | AG123: 3.6 | AH123: 3.6 | AI123: 3.6 | AJ123: 3.6 | AK123: 3.6 | AL123: 3.6 | AM123: 3.6 | AN123: 3.6 | AO123: 3.6 | AP123: 3.6 | AQ123: 3.6 | AR123: 3.6 | AS123: 3.6 | AT123: 3.6 | AU123: 3.6 | AV123: 3.6 | AW123: 3.6 | AX123: 3.6 | AY123: 3.6 | AZ123: 3.6 | BA123: 3.6 | BB123: 3.6 | BC123: 3.6 | BD123: 3.6 | BE123: 3.6 | BF123: 3.6 | BG123: 3.6 | BH123: 3.6 | BI123: 3.6 | BJ123: 3.6 | BK123: 3.6 | BL123: 3.6 | BM123: 3.6 | BN123: 3.6 | BO123: 3.6 | BP123: 3.6 | BQ123: 3.6 | BR123: 3.6 | BS123: 3.6 | BT123: 3.6 | BU123: 3.6 | BV123: 3.6 | BW123: 3.6 | BX123: 3.6
B124: 2020 | C124: NREL Geothermal - Hydro / Flash | D124: Variable Operation and Maintenance Expenses ($/MWh) | E124: Geothermal (Off System) | F124: 0 | G124: 0 | H124: 0 | I124: 0 | J124: 0 | K124: 0 | L124: 0 | M124: 0 | N124: 0 | O124: 0 | P124: 0 | Q124: 0 | R124: 0 | S124: 0 | T124: 0 | U124: 0 | V124: 0 | W124: 0 | X124: 0 | Y124: 0 | Z124: 0 | AA124: 0 | AB124: 0 | AC124: 0 | AD124: 0 | AE124: 0 | AF124: 0 | AG124: 0 | AH124: 0 | AI124: 0 | AJ124: 0 | AK124: 0 | AL124: 0 | AM124: 0 | AN124: 0 | AO124: 0 | AP124: 0 | AQ124: 0 | AR124: 0 | AS124: 0 | AT124: 0 | AU124: 0 | AV124: 0 | AW124: 0 | AX124: 0 | AY124: 0 | AZ124: 0 | BA124: 0 | BB124: 0 | BC124: 0 | BD124: 0 | BE124: 0 | BF124: 0 | BG124: 0 | BH124: 0 | BI124: 0 | BJ124: 0 | BK124: 0 | BL124: 0 | BM124: 0 | BN124: 0 | BO124: 0 | BP124: 0 | BQ124: 0 | BR124: 0 | BS124: 0 | BT124: 0 | BU124: 0 | BV124: 0 | BW124: 0 | BX124: 0
B125: 2022 | C125: Internal | D125: Variable Operation and Maintenance Expenses ($/MWh) | E125: 7F.04 CT Frame Greenfield | H125: 3 | I125: 3 | J125: 3 | K125: 3 | L125: 3 | M125: 3 | N125: 3 | O125: 3 | P125: 3 | Q125: 3 | R125: 3 | S125: 3 | T125: 3 | U125: 3 | V125: 3 | W125: 3 | X125: 3 | Y125: 3 | Z125: 3 | AA125: 3 | AB125: 3 | AC125: 3 | AD125: 3 | AE125: 3 | AF125: 3 | AG125: 3 | AH125: 3 | AI125: 3 | AJ125: 3 | AK125: 3 | AL125: 3 | AM125: 3 | AN125: 3 | AO125: 3 | AP125: 3 | AQ125: 3 | AR125: 3 | AS125: 3 | AT125: 3 | AU125: 3 | AV125: 3 | AW125: 3 | AX125: 3 | AY125: 3 | AZ125: 3 | BA125: 3 | BB125: 3 | BC125: 3 | BD125: 3 | BE125: 3 | BF125: 3 | BG125: 3 | BH125: 3 | BI125: 3 | BJ125: 3 | BK125: 3 | BL125: 3 | BM125: 3 | BN125: 3 | BO125: 3 | BP125: 3 | BQ125: 3 | BR125: 3 | BS125: 3 | BT125: 3 | BU125: 3 | BV125: 3 | BW125: 3 | BX125: 3
B126: 2022 | C126: Internal | D126: Variable Operation and Maintenance Expenses ($/MWh) | E126: Reciprocating Engine (ICE) Machine | H126: 5.75 | I126: 5.75 | J126: 5.75 | K126: 5.75 | L126: 5.75 | M126: 5.75 | N126: 5.75 | O126: 5.75 | P126: 5.75 | Q126: 5.75 | R126: 5.75 | S126: 5.75 | T126: 5.75 | U126: 5.75 | V126: 5.75 | W126: 5.75 | X126: 5.75 | Y126: 5.75 | Z126: 5.75 | AA126: 5.75 | AB126: 5.75 | AC126: 5.75 | AD126: 5.75 | AE126: 5.75 | AF126: 5.75 | AG126: 5.75 | AH126: 5.75 | AI126: 5.75 | AJ126: 5.75 | AK126: 5.75 | AL126: 5.75 | AM126: 5.75 | AN126: 5.75 | AO126: 5.75 | AP126: 5.75 | AQ126: 5.75 | AR126: 5.75 | AS126: 5.75 | AT126: 5.75 | AU126: 5.75 | AV126: 5.75 | AW126: 5.75 | AX126: 5.75 | AY126: 5.75 | AZ126: 5.75 | BA126: 5.75 | BB126: 5.75 | BC126: 5.75 | BD126: 5.75 | BE126: 5.75 | BF126: 5.75 | BG126: 5.75 | BH126: 5.75 | BI126: 5.75 | BJ126: 5.75 | BK126: 5.75 | BL126: 5.75 | BM126: 5.75 | BN126: 5.75 | BO126: 5.75 | BP126: 5.75 | BQ126: 5.75 | BR126: 5.75 | BS126: 5.75 | BT126: 5.75 | BU126: 5.75 | BV126: 5.75 | BW126: 5.75 | BX126: 5.75
B127: 2022 | C127: Internal | D127: Variable Operation and Maintenance Expenses ($/MWh) | E127: NG CCCT (1x1 w/DF) | H127: 4.6 | I127: 4.6 | J127: 4.6 | K127: 4.6 | L127: 4.6 | M127: 4.6 | N127: 4.6 | O127: 4.6 | P127: 4.6 | Q127: 4.6 | R127: 4.6 | S127: 4.6 | T127: 4.6 | U127: 4.6 | V127: 4.6 | W127: 4.6 | X127: 4.6 | Y127: 4.6 | Z127: 4.6 | AA127: 4.6 | AB127: 4.6 | AC127: 4.6 | AD127: 4.6 | AE127: 4.6 | AF127: 4.6 | AG127: 4.6 | AH127: 4.6 | AI127: 4.6 | AJ127: 4.6 | AK127: 4.6 | AL127: 4.6 | AM127: 4.6 | AN127: 4.6 | AO127: 4.6 | AP127: 4.6 | AQ127: 4.6 | AR127: 4.6 | AS127: 4.6 | AT127: 4.6 | AU127: 4.6 | AV127: 4.6 | AW127: 4.6 | AX127: 4.6 | AY127: 4.6 | AZ127: 4.6 | BA127: 4.6 | BB127: 4.6 | BC127: 4.6 | BD127: 4.6 | BE127: 4.6 | BF127: 4.6 | BG127: 4.6 | BH127: 4.6 | BI127: 4.6 | BJ127: 4.6 | BK127: 4.6 | BL127: 4.6 | BM127: 4.6 | BN127: 4.6 | BO127: 4.6 | BP127: 4.6 | BQ127: 4.6 | BR127: 4.6 | BS127: 4.6 | BT127: 4.6 | BU127: 4.6 | BV127: 4.6 | BW127: 4.6 | BX127: 4.6
B128: 2022 | C128: Internal | D128: Variable Operation and Maintenance Expenses ($/MWh) | E128: Hydrogen Fuel Cell with 40 hrs Storage | H128: 0 | I128: 0 | J128: 0 | K128: 0 | L128: 0 | M128: 0 | N128: 0 | O128: 0 | P128: 0 | Q128: 0 | R128: 0 | S128: 0 | T128: 0 | U128: 0 | V128: 0 | W128: 0 | X128: 0 | Y128: 0 | Z128: 0 | AA128: 0 | AB128: 0 | AC128: 0 | AD128: 0 | AE128: 0 | AF128: 0 | AG128: 0 | AH128: 0 | AI128: 0 | AJ128: 0 | AK128: 0 | AL128: 0 | AM128: 0 | AN128: 0 | AO128: 0 | AP128: 0 | AQ128: 0 | AR128: 0 | AS128: 0 | AT128: 0 | AU128: 0 | AV128: 0 | AW128: 0 | AX128: 0 | AY128: 0 | AZ128: 0 | BA128: 0 | BB128: 0 | BC128: 0 | BD128: 0 | BE128: 0 | BF128: 0 | BG128: 0 | BH128: 0 | BI128: 0 | BJ128: 0 | BK128: 0 | BL128: 0 | BM128: 0 | BN128: 0 | BO128: 0 | BP128: 0 | BQ128: 0 | BR128: 0 | BS128: 0 | BT128: 0 | BU128: 0 | BV128: 0 | BW128: 0 | BX128: 0
B129: 2022 | C129: Internal | D129: Variable Operation and Maintenance Expenses ($/MWh) | E129: 7F.04 CT Frame Greenfield + amonia + storage | H129: =H125 -> 3 | I129: =I125 -> 3 | J129: 3 | K129: 3 | L129: 3 | M129: 3 | N129: 3 | O129: 3 | P129: 3 | Q129: 3 | R129: 3 | S129: 3 | T129: 3 | U129: 3 | V129: 3 | W129: 3 | X129: 3 | Y129: 3 | Z129: 3 | AA129: 3 | AB129: 3 | AC129: 3 | AD129: 3 | AE129: 3 | AF129: 3 | AG129: 3 | AH129: 3 | AI129: 3 | AJ129: 3 | AK129: 3 | AL129: 3 | AM129: 3 | AN129: 3 | AO129: 3 | AP129: 3 | AQ129: 3 | AR129: 3 | AS129: 3 | AT129: 3 | AU129: 3 | AV129: 3 | AW129: 3 | AX129: 3 | AY129: 3 | AZ129: 3 | BA129: 3 | BB129: 3 | BC129: 3 | BD129: 3 | BE129: 3 | BF129: 3 | BG129: 3 | BH129: 3 | BI129: 3 | BJ129: 3 | BK129: 3 | BL129: 3 | BM129: 3 | BN129: 3 | BO129: 3 | BP129: 3 | BQ129: 3 | BR129: 3 | BS129: 3 | BT129: 3 | BU129: =BU125 -> 3 | BV129: 3 | BW129: 3 | BX129: 3
D131: Fuel Costs
B132: 2020 | C132: NREL Nuclear - Small Modular Reactor | D132: Fuel Costs ($/MMBtu) - Uranium | E132: Small Modular Reactor (share) | F132: 0.6844928367 | G132: 0.6844928367 | H132: 0.6854947469 | I132: 0.6874995224 | J132: 0.6885014327 | K132: 0.6905052531 | L132: 0.6915081184 | M132: 0.6935119389 | N132: 0.6945138491 | O132: 0.6965186246 | P132: 0.6985234002 | Q132: 0.6995253104 | R132: 0.701530086 | S132: 0.7035339064 | T132: 0.7045358166 | U132: 0.7065405922 | V132: 0.7085453677 | W132: 0.7095472779 | X132: 0.7115510984 | Y132: 0.7135558739 | Z132: 0.7155606495 | AA132: 0.7175644699 | AB132: 0.7195692455 | AC132: 0.7215730659 | AD132: 0.7235778415 | AE132: 0.725582617 | AF132: 0.7275864374 | AG132: 0.729591213 | AH132: 0.7315950334 | AI132: 0.733599809 | AJ132: 0.7356036294
C133: Natural Gas Price Forecast | D133: Fuel Costs ($/MMBtu) - Malin | E133: 7F.04 CT Frame Greenfield
C134: 2021 IRP | D134: Fuel Costs (%) Variable Charge | E134: 7F.04 CT Frame Greenfield | F134: 5e-05 | G134: 5e-05 | H134: 5e-05 | I134: 5e-05 | J134: 5e-05 | K134: 5e-05 | L134: 5e-05 | M134: 5e-05 | N134: 5e-05 | O134: 5e-05 | P134: 5e-05 | Q134: 5e-05 | R134: 5e-05 | S134: 5e-05 | T134: 5e-05 | U134: 5e-05 | V134: 5e-05 | W134: 5e-05 | X134: 5e-05 | Y134: 5e-05 | Z134: 5e-05 | AA134: 5e-05 | AB134: 5e-05 | AC134: 5e-05 | AD134: 5e-05 | AE134: 5e-05 | AF134: 5e-05 | AG134: 5e-05 | AH134: 5e-05 | AI134: 5e-05 | AJ134: 5e-05 | AK134: 5e-05 | AL134: 5e-05 | AM134: 5e-05 | AN134: 5e-05 | AO134: 5e-05 | AP134: 5e-05 | AQ134: 5e-05 | AR134: 5e-05 | AS134: 5e-05 | AT134: 5e-05 | AU134: 5e-05 | AV134: 5e-05 | AW134: 5e-05 | AX134: 5e-05 | AY134: 5e-05 | AZ134: 5e-05 | BA134: 5e-05 | BB134: 5e-05 | BC134: 5e-05 | BD134: 5e-05 | BE134: 5e-05 | BF134: 5e-05 | BG134: 5e-05 | BH134: 5e-05 | BI134: 5e-05 | BJ134: 5e-05 | BK134: 5e-05 | BL134: 5e-05 | BM134: 5e-05 | BN134: 5e-05 | BO134: 5e-05 | BP134: 5e-05 | BQ134: 5e-05 | BR134: 5e-05 | BS134: 5e-05 | BT134: 5e-05 | BU134: 5e-05 | BV134: 5e-05 | BW134: 5e-05 | BX134: 5e-05
C135: Natural Gas Price Forecast | D135: Fuel Costs ($/MMBtu) - Malin | E135: Reciprocating Engine (ICE) Machine
C136: 2021 IRP | D136: Fuel Costs (%) Variable Charge | E136: Reciprocating Engine (ICE) Machine | F136: 5e-05 | G136: 5e-05 | H136: 5e-05 | I136: 5e-05 | J136: 5e-05 | K136: 5e-05 | L136: 5e-05 | M136: 5e-05 | N136: 5e-05 | O136: 5e-05 | P136: 5e-05 | Q136: 5e-05 | R136: 5e-05 | S136: 5e-05 | T136: 5e-05 | U136: 5e-05 | V136: 5e-05 | W136: 5e-05 | X136: 5e-05 | Y136: 5e-05 | Z136: 5e-05 | AA136: 5e-05 | AB136: 5e-05 | AC136: 5e-05 | AD136: 5e-05 | AE136: 5e-05 | AF136: 5e-05 | AG136: 5e-05 | AH136: 5e-05 | AI136: 5e-05 | AJ136: 5e-05 | AK136: 5e-05 | AL136: 5e-05 | AM136: 5e-05 | AN136: 5e-05 | AO136: 5e-05 | AP136: 5e-05 | AQ136: 5e-05 | AR136: 5e-05 | AS136: 5e-05 | AT136: 5e-05 | AU136: 5e-05 | AV136: 5e-05 | AW136: 5e-05 | AX136: 5e-05 | AY136: 5e-05 | AZ136: 5e-05 | BA136: 5e-05 | BB136: 5e-05 | BC136: 5e-05 | BD136: 5e-05 | BE136: 5e-05 | BF136: 5e-05 | BG136: 5e-05 | BH136: 5e-05 | BI136: 5e-05 | BJ136: 5e-05 | BK136: 5e-05 | BL136: 5e-05 | BM136: 5e-05 | BN136: 5e-05 | BO136: 5e-05 | BP136: 5e-05 | BQ136: 5e-05 | BR136: 5e-05 | BS136: 5e-05 | BT136: 5e-05 | BU136: 5e-05 | BV136: 5e-05 | BW136: 5e-05 | BX136: 5e-05
C137: Natural Gas Price Forecast | D137: Fuel Costs ($/MMBtu) - Malin | E137: NG CCCT (1x1 w/DF)
C138: 2021 IRP | D138: Fuel Costs (%) Variable Charge | E138: NG CCCT (1x1 w/DF) | F138: 5e-05 | G138: 5e-05 | H138: 5e-05 | I138: 5e-05 | J138: 5e-05 | K138: 5e-05 | L138: 5e-05 | M138: 5e-05 | N138: 5e-05 | O138: 5e-05 | P138: 5e-05 | Q138: 5e-05 | R138: 5e-05 | S138: 5e-05 | T138: 5e-05 | U138: 5e-05 | V138: 5e-05 | W138: 5e-05 | X138: 5e-05 | Y138: 5e-05 | Z138: 5e-05 | AA138: 5e-05 | AB138: 5e-05 | AC138: 5e-05 | AD138: 5e-05 | AE138: 5e-05 | AF138: 5e-05 | AG138: 5e-05 | AH138: 5e-05 | AI138: 5e-05 | AJ138: 5e-05 | AK138: 5e-05 | AL138: 5e-05 | AM138: 5e-05 | AN138: 5e-05 | AO138: 5e-05 | AP138: 5e-05 | AQ138: 5e-05 | AR138: 5e-05 | AS138: 5e-05 | AT138: 5e-05 | AU138: 5e-05 | AV138: 5e-05 | AW138: 5e-05 | AX138: 5e-05 | AY138: 5e-05 | AZ138: 5e-05 | BA138: 5e-05 | BB138: 5e-05 | BC138: 5e-05 | BD138: 5e-05 | BE138: 5e-05 | BF138: 5e-05 | BG138: 5e-05 | BH138: 5e-05 | BI138: 5e-05 | BJ138: 5e-05 | BK138: 5e-05 | BL138: 5e-05 | BM138: 5e-05 | BN138: 5e-05 | BO138: 5e-05 | BP138: 5e-05 | BQ138: 5e-05 | BR138: 5e-05 | BS138: 5e-05 | BT138: 5e-05 | BU138: 5e-05 | BV138: 5e-05 | BW138: 5e-05 | BX138: 5e-05
C139: Hydrogen-Ammonia Pricing workbook | D139: Fuel Costs ($/MMBtu) - Renewable Hydrogen | E139: Hydrogen Fuel Cell with 40 hrs Storage
C140: James and Tom | D140: Fuel Costs ($/MMBtu) - Amonia | E140: 7F.04 CT Frame Greenfield + amonia + storage
C141: 2021 IRP | D141: Fuel Costs ($/MMBtu) - Incremental Hog Fuel | E141: Wood Biomass
C142: Natural Gas Price Forecast | D142: Fuel Costs ($/MMBtu) - Malin | E142: Rathdrum CT 2055 Uprates two unit operation
C143: Natural Gas Price Forecast | D143: Fuel Costs ($/MMBtu) - Malin | E143: Rathdrum CT 2055 Uprates two unit operation
C144: 2021 IRP | D144: Variable Charge | E144: Rathdrum CT 2055 Uprates two unit operation | F144: 5e-05 | G144: 5e-05 | H144: 5e-05 | I144: 5e-05 | J144: 5e-05 | K144: 5e-05 | L144: 5e-05 | M144: 5e-05 | N144: 5e-05 | O144: 5e-05 | P144: 5e-05 | Q144: 5e-05 | R144: 5e-05 | S144: 5e-05 | T144: 5e-05 | U144: 5e-05 | V144: 5e-05 | W144: 5e-05 | X144: 5e-05 | Y144: 5e-05 | Z144: 5e-05 | AA144: 5e-05 | AB144: 5e-05 | AC144: 5e-05 | AD144: 5e-05 | AE144: 5e-05 | AF144: 5e-05 | AG144: 5e-05 | AH144: 5e-05 | AI144: 5e-05 | AJ144: 5e-05 | AK144: 5e-05 | AL144: 5e-05 | AM144: 5e-05 | AN144: 5e-05 | AO144: 5e-05 | AP144: 5e-05 | AQ144: 5e-05 | AR144: 5e-05 | AS144: 5e-05 | AT144: 5e-05 | AU144: 5e-05 | AV144: 5e-05 | AW144: 5e-05 | AX144: 5e-05 | AY144: 5e-05 | AZ144: 5e-05 | BA144: 5e-05 | BB144: 5e-05 | BC144: 5e-05 | BD144: 5e-05 | BE144: 5e-05 | BF144: 5e-05 | BG144: 5e-05 | BH144: 5e-05 | BI144: 5e-05 | BJ144: 5e-05 | BK144: 5e-05 | BL144: 5e-05 | BM144: 5e-05 | BN144: 5e-05 | BO144: 5e-05 | BP144: 5e-05 | BQ144: 5e-05 | BR144: 5e-05 | BS144: 5e-05 | BT144: 5e-05 | BU144: 5e-05 | BV144: 5e-05 | BW144: 5e-05 | BX144: 5e-05
C145: Natural Gas Price Forecast | D145: Fuel Costs ($/MMBtu) - Malin | E145: Rathdrum CT: Inlet Evaporation 2 unit operation
C146: NA | D146: Fuel Costs ($/MMBtu) - Steam/Wood | E146: Kettle Falls Turbine Generator Upgrade
C147: NA | D147: Fuel Costs ($/MMBtu) - Steam/Wood | E147: Kettle Falls Turbine Generator Upgrade
D149: Mid-Columbia (off-peak)
D150: Mid-Columbia (off-peak) $/MWh | E150: Distribution Scale 4hr Lithium-Ion
D151: Mid-Columbia (off-peak) $/MWh | E151: Distribution Scale 8hr Lithium-Ion
D152: Mid-Columbia (off-peak) $/MWh | E152: 4hr Lithium-Ion
D153: Mid-Columbia (off-peak) $/MWh | E153: 8hr Lithium-Ion
D154: Mid-Columbia (off-peak) $/MWh | E154: 16hr Lithium-Ion
D155: Mid-Columbia (off-peak) $/MWh | E155: 4 hr Vanadium Flow Battery
D156: Mid-Columbia (off-peak) $/MWh | E156: 4 hr Zinc Bromide Flow Battery
D157: Mid-Columbia (off-peak) $/MWh | E157: 100hr Iron Oxide
D158: Mid-Columbia (off-peak) $/MWh | E158: Liquid Air
D159: Mid-Columbia (off-peak) $/MWh | E159: Pumped Hydro (8.5 hr/ 400 MW share)
D160: Mid-Columbia (off-peak) $/MWh | E160: Pumped Hydro (16 hr/ 100 MW)
D161: Mid-Columbia (off-peak) $/MWh | E161: Pumped Hyrdo (24 hr/ 100 MW)
D163: Fixed Operation and Maintenance Expenses ($/kW-yr)
B164: 2020 | C164: NREL Utility-Scale Battery Storage - 4Hr | D164: Fixed Operation and Maintenance Expenses ($/kW-yr) | E164: Distribution Scale 4hr Lithium-Ion | F164: =F41*0.025 -> 57.01369109 | G164: 48.70286129 | H164: 45.24875765 | I164: 41.44924365 | J164: 38.51325556 | K164: 36.44079337 | L164: 34.88644674 | M164: 33.50480528 | N164: 31.95045864 | O164: 30.74152237 | P164: 29.5325861 | Q164: 29.17810871 | R164: 28.80895139 | S164: 28.43979406 | T164: 28.07063673 | U164: 27.70147941 | V164: 27.33232208 | W164: 26.96316476 | X164: 26.59400743 | Y164: 26.2248501 | Z164: 25.85569278 | AA164: 25.48653545 | AB164: 25.11737812 | AC164: 24.7482208 | AD164: 24.37906347 | AE164: 24.00990615 | AF164: 23.64074882 | AG164: 23.27159149 | AH164: 22.90243417 | AI164: 22.53327684 | AJ164: 22.16411951 | AK164: 0 | AL164: =AL41*0.025 -> 0 | AM164: 0 | AN164: 0 | AO164: 0 | AP164: 0 | AQ164: 0 | AR164: 0 | AS164: 0 | AT164: 0 | AU164: 0 | AV164: 0 | AW164: 0 | AX164: 0 | AY164: 0 | AZ164: 0 | BA164: 0 | BB164: 0 | BC164: 0 | BD164: 0 | BE164: 0 | BF164: 0 | BG164: 0 | BH164: 0 | BI164: 0 | BJ164: 0 | BK164: 0 | BL164: 0 | BM164: 0 | BN164: 0 | BO164: 0 | BP164: 0 | BQ164: 0 | BR164: =BR41*0.025 -> 0 | BS164: 0 | BT164: 0 | BU164: 0 | BV164: 0 | BW164: 0 | BX164: 0
B165: 2020 | C165: NREL Utility-Scale Battery Storage - 8Hr | D165: Fixed Operation and Maintenance Expenses ($/kW-yr) | E165: Distribution Scale 8hr Lithium-Ion | F165: =F42*0.025 -> 105.7947273 | G165: 89.5417671 | H165: 82.49178497 | I165: 75.09639247 | J165: 68.82137434 | K165: 64.95097291 | L165: 61.59868702 | M165: 58.67595478 | N165: 55.58051736 | O165: 52.8304903 | P165: 50.3373117 | Q165: 49.72919646 | R165: 49.09998006 | S165: 48.47076367 | T165: 47.84154727 | U165: 47.21233088 | V165: 46.58311448 | W165: 45.95389808 | X165: 45.32468169 | Y165: 44.69546529 | Z165: 44.06624889 | AA165: 43.4370325 | AB165: 42.8078161 | AC165: 42.1785997 | AD165: 41.54938331 | AE165: 40.92016691 | AF165: 40.29095052 | AG165: 39.66173412 | AH165: 39.03251772 | AI165: 38.40330133 | AJ165: 37.76766372 | AK165: 0 | AL165: =AL42*0.025 -> 0 | AM165: 0 | AN165: 0 | AO165: 0 | AP165: 0 | AQ165: 0 | AR165: 0 | AS165: 0 | AT165: 0 | AU165: 0 | AV165: 0 | AW165: 0 | AX165: 0 | AY165: 0 | AZ165: 0 | BA165: 0 | BB165: 0 | BC165: 0 | BD165: 0 | BE165: 0 | BF165: 0 | BG165: 0 | BH165: 0 | BI165: 0 | BJ165: 0 | BK165: 0 | BL165: 0 | BM165: 0 | BN165: 0 | BO165: 0 | BP165: 0 | BQ165: 0 | BR165: =BR42*0.025 -> 0 | BS165: 0 | BT165: 0 | BU165: 0 | BV165: 0 | BW165: 0 | BX165: 0
B166: 2020 | C166: NREL Utility-Scale Battery Storage - 4Hr | D166: Fixed Operation and Maintenance Expenses ($/kW-yr) | E166: 4hr Lithium-Ion | F166: =F43*0.025 -> 43.18086112 | G166: 36.88642937 | H166: 34.27037055 | I166: 31.39270584 | J166: 29.16905585 | K166: 27.59942055 | L166: 26.42219409 | M166: 25.37577056 | N166: 24.19854409 | O166: 23.2829235 | P166: 22.36730291 | Q166: 22.09882988 | R166: 21.81923859 | S166: 21.5396473 | T166: 21.26005602 | U166: 20.98046473 | V166: 20.70087345 | W166: 20.42128216 | X166: 20.14169087 | Y166: 19.86209959 | Z166: 19.5825083 | AA166: 19.30291701 | AB166: 19.02332573 | AC166: 18.74373444 | AD166: 18.46414315 | AE166: 18.18455187 | AF166: 17.90496058 | AG166: 17.62536929 | AH166: 17.34577801 | AI166: 17.06618672 | AJ166: 16.78659544 | AK166: 0 | AL166: =AL43*0.025 -> 0 | AM166: 0 | AN166: 0 | AO166: 0 | AP166: 0 | AQ166: 0 | AR166: 0 | AS166: 0 | AT166: 0 | AU166: 0 | AV166: 0 | AW166: 0 | AX166: 0 | AY166: 0 | AZ166: 0 | BA166: 0 | BB166: 0 | BC166: 0 | BD166: 0 | BE166: 0 | BF166: 0 | BG166: 0 | BH166: 0 | BI166: 0 | BJ166: 0 | BK166: 0 | BL166: 0 | BM166: 0 | BN166: 0 | BO166: 0 | BP166: 0 | BQ166: 0 | BR166: =BR43*0.025 -> 0 | BS166: 0 | BT166: 0 | BU166: 0 | BV166: 0 | BW166: 0 | BX166: 0
B167: 2020 | C167: NREL Utility-Scale Battery Storage - 8Hr | D167: Fixed Operation and Maintenance Expenses ($/kW-yr) | E167: 8hr Lithium-Ion | F167: =F44*0.025 -> 80.12649835 | G167: 67.81687935 | H167: 62.47738468 | I167: 56.87628413 | J167: 52.12372942 | K167: 49.1923762 | L167: 46.65343181 | M167: 44.43982149 | N167: 42.09540823 | O167: 40.01260085 | P167: 38.1243246 | Q167: 37.66375207 | R167: 37.18719802 | S167: 36.71064396 | T167: 36.2340899 | U167: 35.75753584 | V167: 35.28098179 | W167: 34.80442773 | X167: 34.32787367 | Y167: 33.85131961 | Z167: 33.37476556 | AA167: 32.8982115 | AB167: 32.42165744 | AC167: 31.94510338 | AD167: 31.46854933 | AE167: 30.99199527 | AF167: 30.51544121 | AG167: 30.03888715 | AH167: 29.5623331 | AI167: 29.08577904 | AJ167: 28.6043617 | AK167: 0 | AL167: =AL44*0.025 -> 0 | AM167: 0 | AN167: 0 | AO167: 0 | AP167: 0 | AQ167: 0 | AR167: 0 | AS167: 0 | AT167: 0 | AU167: 0 | AV167: 0 | AW167: 0 | AX167: 0 | AY167: 0 | AZ167: 0 | BA167: 0 | BB167: 0 | BC167: 0 | BD167: 0 | BE167: 0 | BF167: 0 | BG167: 0 | BH167: 0 | BI167: 0 | BJ167: 0 | BK167: 0 | BL167: 0 | BM167: 0 | BN167: 0 | BO167: 0 | BP167: 0 | BQ167: 0 | BR167: =BR44*0.025 -> 0 | BS167: 0 | BT167: 0 | BU167: 0 | BV167: 0 | BW167: 0 | BX167: 0
B168: 2020 | C168: NREL Utility-Scale Battery Storage - 16Hr | D168: Fixed Operation and Maintenance Expenses ($/kW-yr) | E168: 16hr Lithium-Ion | F168: =F45*0.025 -> 154.0177728 | G168: 129.6777793 | H168: 118.8914129 | I168: 107.8434407 | J168: 98.03307656 | K168: 92.3782875 | L168: 87.11590726 | M168: 82.56792335 | N168: 77.88913651 | O168: 73.47195555 | P168: 69.63836798 | Q168: 68.79359646 | R168: 67.92311687 | S168: 67.05263727 | T168: 66.18215767 | U168: 65.31167807 | V168: 64.44119847 | W168: 63.57071887 | X168: 62.70023927 | Y168: 61.82975967 | Z168: 60.95928007 | AA168: 60.08880047 | AB168: 59.21832087 | AC168: 58.34784127 | AD168: 57.47736167 | AE168: 56.60688207 | AF168: 55.73640247 | AG168: 54.86592287 | AH168: 53.99544327 | AI168: 53.12496367 | AJ168: 52.23989423 | AK168: 0 | AL168: =AL45*0.025 -> 0 | AM168: 0 | AN168: 0 | AO168: 0 | AP168: 0 | AQ168: 0 | AR168: 0 | AS168: 0 | AT168: 0 | AU168: 0 | AV168: 0 | AW168: 0 | AX168: 0 | AY168: 0 | AZ168: 0 | BA168: 0 | BB168: 0 | BC168: 0 | BD168: 0 | BE168: 0 | BF168: 0 | BG168: 0 | BH168: 0 | BI168: 0 | BJ168: 0 | BK168: 0 | BL168: 0 | BM168: 0 | BN168: 0 | BO168: 0 | BP168: 0 | BQ168: 0 | BR168: =BR45*0.025 -> 0 | BS168: 0 | BT168: 0 | BU168: 0 | BV168: 0 | BW168: 0 | BX168: 0
B169: 2020 | C169: Internal | D169: Fixed Operation and Maintenance Expenses ($/kW-yr) | E169: 4 hr Vanadium Flow Battery | F169: 57.1508 | G169: 57.1508 | H169: 57.1508 | I169: 57.1508 | J169: 57.1508 | K169: 57.1508 | L169: 57.1508 | M169: 57.1508 | N169: 57.1508 | O169: 57.1508 | P169: 57.1508 | Q169: 57.1508 | R169: 57.1508 | S169: 57.1508 | T169: 57.1508 | U169: 57.1508 | V169: 57.1508 | W169: 57.1508 | X169: 57.1508 | Y169: 57.1508 | Z169: 57.1508 | AA169: 57.1508 | AB169: 57.1508 | AC169: 57.1508 | AD169: 57.1508 | AE169: 57.1508 | AF169: 57.1508 | AG169: 57.1508 | AH169: 57.1508 | AI169: 57.1508 | AJ169: 57.1508 | AK169: 57.1508 | AL169: 57.1508 | AM169: 57.1508 | AN169: 57.1508 | AO169: 57.1508 | AP169: 57.1508 | AQ169: 57.1508 | AR169: 57.1508 | AS169: 57.1508 | AT169: 57.1508 | AU169: 57.1508 | AV169: 57.1508 | AW169: 57.1508 | AX169: 57.1508 | AY169: 57.1508 | AZ169: 57.1508 | BA169: 57.1508 | BB169: 57.1508 | BC169: 57.1508 | BD169: 57.1508 | BE169: 57.1508 | BF169: 57.1508 | BG169: 57.1508 | BH169: 57.1508 | BI169: 57.1508 | BJ169: 57.1508 | BK169: 57.1508 | BL169: 57.1508 | BM169: 57.1508 | BN169: 57.1508 | BO169: 57.1508 | BP169: 57.1508 | BQ169: 57.1508 | BR169: 57.1508 | BS169: 57.1508 | BT169: 57.1508 | BU169: 57.1508 | BV169: 57.1508 | BW169: 57.1508 | BX169: 57.1508
B170: 2020 | C170: Internal | D170: Fixed Operation and Maintenance Expenses ($/kW-yr) | E170: 4 hr Zinc Bromide Flow Battery | F170: 64.295 | G170: 64.295 | H170: 64.295 | I170: 64.295 | J170: 64.295 | K170: 64.295 | L170: 64.295 | M170: 64.295 | N170: 64.295 | O170: 64.295 | P170: 64.295 | Q170: 64.295 | R170: 64.295 | S170: 64.295 | T170: 64.295 | U170: 64.295 | V170: 64.295 | W170: 64.295 | X170: 64.295 | Y170: 64.295 | Z170: 64.295 | AA170: 64.295 | AB170: 64.295 | AC170: 64.295 | AD170: 64.295 | AE170: 64.295 | AF170: 64.295 | AG170: 64.295 | AH170: 64.295 | AI170: 64.295 | AJ170: 64.295 | AK170: 64.295 | AL170: 64.295 | AM170: 64.295 | AN170: 64.295 | AO170: 64.295 | AP170: 64.295 | AQ170: 64.295 | AR170: 64.295 | AS170: 64.295 | AT170: 64.295 | AU170: 64.295 | AV170: 64.295 | AW170: 64.295 | AX170: 64.295 | AY170: 64.295 | AZ170: 64.295 | BA170: 64.295 | BB170: 64.295 | BC170: 64.295 | BD170: 64.295 | BE170: 64.295 | BF170: 64.295 | BG170: 64.295 | BH170: 64.295 | BI170: 64.295 | BJ170: 64.295 | BK170: 64.295 | BL170: 64.295 | BM170: 64.295 | BN170: 64.295 | BO170: 64.295 | BP170: 64.295 | BQ170: 64.295 | BR170: 64.295 | BS170: 64.295 | BT170: 64.295 | BU170: 64.295 | BV170: 64.295 | BW170: 64.295 | BX170: 64.295
B171: 2022 | C171: Internal | D171: Fixed Operation and Maintenance Expenses ($/kW-yr) | E171: 100hr Iron Oxide | H171: 30 | I171: 30 | J171: 30 | K171: 30 | L171: 30 | M171: 30 | N171: 30 | O171: 30 | P171: 30 | Q171: 30 | R171: 30 | S171: 30 | T171: 30 | U171: 30 | V171: 30 | W171: 30 | X171: 30 | Y171: 30 | Z171: 30 | AA171: 30 | AB171: 30 | AC171: 30 | AD171: 30 | AE171: 30 | AF171: 30 | AG171: 30 | AH171: 30 | AI171: 30 | AJ171: 30 | AK171: 30 | AL171: 30 | AM171: 30 | AN171: 30 | AO171: 30 | AP171: 30 | AQ171: 30 | AR171: 30 | AS171: 30 | AT171: 30 | AU171: 30 | AV171: 30 | AW171: 30 | AX171: 30 | AY171: 30 | AZ171: 30 | BA171: 30 | BB171: 30 | BC171: 30 | BD171: 30 | BE171: 30 | BF171: 30 | BG171: 30 | BH171: 30 | BI171: 30 | BJ171: 30 | BK171: 30 | BL171: 30 | BM171: 30 | BN171: 30 | BO171: 30 | BP171: 30 | BQ171: 30 | BR171: 30 | BS171: 30 | BT171: 30 | BU171: 30 | BV171: 30 | BW171: 30 | BX171: 30
B172: 2022 | C172: Internal | D172: Fixed Operation and Maintenance Expenses ($/kW-yr) | E172: Liquid Air | H172: 25 | I172: 25 | J172: 25 | K172: 25 | L172: 25 | M172: 25 | N172: 25 | O172: 25 | P172: 25 | Q172: 25 | R172: 25 | S172: 25 | T172: 25 | U172: 25 | V172: 25 | W172: 25 | X172: 25 | Y172: 25 | Z172: 25 | AA172: 25 | AB172: 25 | AC172: 25 | AD172: 25 | AE172: 25 | AF172: 25 | AG172: 25 | AH172: 25 | AI172: 25 | AJ172: 25 | AK172: 25 | AL172: 25 | AM172: 25 | AN172: 25 | AO172: 25 | AP172: 25 | AQ172: 25 | AR172: 25 | AS172: 25 | AT172: 25 | AU172: 25 | AV172: 25 | AW172: 25 | AX172: 25 | AY172: 25 | AZ172: 25 | BA172: 25 | BB172: 25 | BC172: 25 | BD172: 25 | BE172: 25 | BF172: 25 | BG172: 25 | BH172: 25 | BI172: 25 | BJ172: 25 | BK172: 25 | BL172: 25 | BM172: 25 | BN172: 25 | BO172: 25 | BP172: 25 | BQ172: 25 | BR172: 25 | BS172: 25 | BT172: 25 | BU172: 25 | BV172: 25 | BW172: 25 | BX172: 25
B173: 2020 | C173: NREL Pumped Storage Hydropower - National Class 10 | D173: Fixed Operation and Maintenance Expenses ($/kW-yr) | E173: Pumped Hydro (8.5 hr/ 400 MW share) | F173: 17.82 | G173: 17.82 | H173: 17.82 | I173: 17.82 | J173: 17.82 | K173: 17.82 | L173: 17.82 | M173: 17.82 | N173: 17.82 | O173: 17.82 | P173: 17.82 | Q173: 17.82 | R173: 17.82 | S173: 17.82 | T173: 17.82 | U173: 17.82 | V173: 17.82 | W173: 17.82 | X173: 17.82 | Y173: 17.82 | Z173: 17.82 | AA173: 17.82 | AB173: 17.82 | AC173: 17.82 | AD173: 17.82 | AE173: 17.82 | AF173: 17.82 | AG173: 17.82 | AH173: 17.82 | AI173: 17.82 | AJ173: 17.82 | AK173: 17.82 | AL173: 17.82 | AM173: 17.82 | AN173: 17.82 | AO173: 17.82 | AP173: 17.82 | AQ173: 17.82 | AR173: 17.82 | AS173: 17.82 | AT173: 17.82 | AU173: 17.82 | AV173: 17.82 | AW173: 17.82 | AX173: 17.82 | AY173: 17.82 | AZ173: 17.82 | BA173: 17.82 | BB173: 17.82 | BC173: 17.82 | BD173: 17.82 | BE173: 17.82 | BF173: 17.82 | BG173: 17.82 | BH173: 17.82 | BI173: 17.82 | BJ173: 17.82 | BK173: 17.82 | BL173: 17.82 | BM173: 17.82 | BN173: 17.82 | BO173: 17.82 | BP173: 17.82 | BQ173: 17.82 | BR173: 17.82 | BS173: 17.82 | BT173: 17.82 | BU173: 17.82 | BV173: 17.82 | BW173: 17.82 | BX173: 17.82
B174: 2020 | C174: NREL Pumped Storage Hydropower - National Class 7 | D174: Fixed Operation and Maintenance Expenses ($/kW-yr) | E174: Pumped Hydro (16 hr/ 100 MW) | F174: 17.82 | G174: 17.82 | H174: 17.82 | I174: 17.82 | J174: 17.82 | K174: 17.82 | L174: 17.82 | M174: 17.82 | N174: 17.82 | O174: 17.82 | P174: 17.82 | Q174: 17.82 | R174: 17.82 | S174: 17.82 | T174: 17.82 | U174: 17.82 | V174: 17.82 | W174: 17.82 | X174: 17.82 | Y174: 17.82 | Z174: 17.82 | AA174: 17.82 | AB174: 17.82 | AC174: 17.82 | AD174: 17.82 | AE174: 17.82 | AF174: 17.82 | AG174: 17.82 | AH174: 17.82 | AI174: 17.82 | AJ174: 17.82 | AK174: 17.82 | AL174: 17.82 | AM174: 17.82 | AN174: 17.82 | AO174: 17.82 | AP174: 17.82 | AQ174: 17.82 | AR174: 17.82 | AS174: 17.82 | AT174: 17.82 | AU174: 17.82 | AV174: 17.82 | AW174: 17.82 | AX174: 17.82 | AY174: 17.82 | AZ174: 17.82 | BA174: 17.82 | BB174: 17.82 | BC174: 17.82 | BD174: 17.82 | BE174: 17.82 | BF174: 17.82 | BG174: 17.82 | BH174: 17.82 | BI174: 17.82 | BJ174: 17.82 | BK174: 17.82 | BL174: 17.82 | BM174: 17.82 | BN174: 17.82 | BO174: 17.82 | BP174: 17.82 | BQ174: 17.82 | BR174: 17.82 | BS174: 17.82 | BT174: 17.82 | BU174: 17.82 | BV174: 17.82 | BW174: 17.82 | BX174: 17.82
B175: 2020 | C175: NREL Pumped Storage Hydropower - National Class 5 | D175: Fixed Operation and Maintenance Expenses ($/kW-yr) | E175: Pumped Hyrdo (24 hr/ 100 MW) | F175: 17.82 | G175: 17.82 | H175: 17.82 | I175: 17.82 | J175: 17.82 | K175: 17.82 | L175: 17.82 | M175: 17.82 | N175: 17.82 | O175: 17.82 | P175: 17.82 | Q175: 17.82 | R175: 17.82 | S175: 17.82 | T175: 17.82 | U175: 17.82 | V175: 17.82 | W175: 17.82 | X175: 17.82 | Y175: 17.82 | Z175: 17.82 | AA175: 17.82 | AB175: 17.82 | AC175: 17.82 | AD175: 17.82 | AE175: 17.82 | AF175: 17.82 | AG175: 17.82 | AH175: 17.82 | AI175: 17.82 | AJ175: 17.82 | AK175: 17.82 | AL175: 17.82 | AM175: 17.82 | AN175: 17.82 | AO175: 17.82 | AP175: 17.82 | AQ175: 17.82 | AR175: 17.82 | AS175: 17.82 | AT175: 17.82 | AU175: 17.82 | AV175: 17.82 | AW175: 17.82 | AX175: 17.82 | AY175: 17.82 | AZ175: 17.82 | BA175: 17.82 | BB175: 17.82 | BC175: 17.82 | BD175: 17.82 | BE175: 17.82 | BF175: 17.82 | BG175: 17.82 | BH175: 17.82 | BI175: 17.82 | BJ175: 17.82 | BK175: 17.82 | BL175: 17.82 | BM175: 17.82 | BN175: 17.82 | BO175: 17.82 | BP175: 17.82 | BQ175: 17.82 | BR175: 17.82 | BS175: 17.82 | BT175: 17.82 | BU175: 17.82 | BV175: 17.82 | BW175: 17.82 | BX175: 17.82
B176: 2022 | C176: Internal | D176: Fixed Operation and Maintenance Expenses ($/kW-yr) | E176: Wood Biomass | H176: 28.75 | I176: 28.75 | J176: 28.75 | K176: 28.75 | L176: 28.75 | M176: 28.75 | N176: 28.75 | O176: 28.75 | P176: 28.75 | Q176: 28.75 | R176: 28.75 | S176: 28.75 | T176: 28.75 | U176: 28.75 | V176: 28.75 | W176: 28.75 | X176: 28.75 | Y176: 28.75 | Z176: 28.75 | AA176: 28.75 | AB176: 28.75 | AC176: 28.75 | AD176: 28.75 | AE176: 28.75 | AF176: 28.75 | AG176: 28.75 | AH176: 28.75 | AI176: 28.75 | AJ176: 28.75 | AK176: 28.75 | AL176: 28.75 | AM176: 28.75 | AN176: 28.75 | AO176: 28.75 | AP176: 28.75 | AQ176: 28.75 | AR176: 28.75 | AS176: 28.75 | AT176: 28.75 | AU176: 28.75 | AV176: 28.75 | AW176: 28.75 | AX176: 28.75 | AY176: 28.75 | AZ176: 28.75 | BA176: 28.75 | BB176: 28.75 | BC176: 28.75 | BD176: 28.75 | BE176: 28.75 | BF176: 28.75 | BG176: 28.75 | BH176: 28.75 | BI176: 28.75 | BJ176: 28.75 | BK176: 28.75 | BL176: 28.75 | BM176: 28.75 | BN176: 28.75 | BO176: 28.75 | BP176: 28.75 | BQ176: 28.75 | BR176: 28.75 | BS176: 28.75 | BT176: 28.75 | BU176: 28.75 | BV176: 28.75 | BW176: 28.75 | BX176: 28.75
B177: 2022 | C177: Internal | D177: Fixed Operation and Maintenance Expenses ($/kW-yr) | E177: Rathdrum CT 2055 Uprates two unit operation | H177: 5.4855 | I177: 5.4855 | J177: 5.4855 | K177: 5.4855 | L177: 5.4855 | M177: 5.4855 | N177: 5.4855 | O177: 5.4855 | P177: 5.4855 | Q177: 5.4855 | R177: 5.4855 | S177: 5.4855 | T177: 5.4855 | U177: 5.4855 | V177: 5.4855 | W177: 5.4855 | X177: 5.4855 | Y177: 5.4855 | Z177: 5.4855 | AA177: 5.4855 | AB177: 5.4855 | AC177: 5.4855 | AD177: 5.4855 | AE177: 5.4855 | AF177: 5.4855 | AG177: 5.4855 | AH177: 5.4855 | AI177: 5.4855 | AJ177: 5.4855 | AK177: 5.4855 | AL177: 5.4855 | AM177: 5.4855 | AN177: 5.4855 | AO177: 5.4855 | AP177: 5.4855 | AQ177: 5.4855 | AR177: 5.4855 | AS177: 5.4855 | AT177: 5.4855 | AU177: 5.4855 | AV177: 5.4855 | AW177: 5.4855 | AX177: 5.4855 | AY177: 5.4855 | AZ177: 5.4855 | BA177: 5.4855 | BB177: 5.4855 | BC177: 5.4855 | BD177: 5.4855 | BE177: 5.4855 | BF177: 5.4855 | BG177: 5.4855 | BH177: 5.4855 | BI177: 5.4855 | BJ177: 5.4855 | BK177: 5.4855 | BL177: 5.4855 | BM177: 5.4855 | BN177: 5.4855 | BO177: 5.4855 | BP177: 5.4855 | BQ177: 5.4855 | BR177: 5.4855 | BS177: 5.4855 | BT177: 5.4855 | BU177: 5.4855 | BV177: 5.4855 | BW177: 5.4855 | BX177: 5.4855
B178: 2022 | C178: Internal | D178: Fixed Operation and Maintenance Expenses ($/kW-yr) | E178: Rathdrum CT: Inlet Evaporation 2 unit operation | H178: 5.4855 | I178: 5.4855 | J178: 5.4855 | K178: 5.4855 | L178: 5.4855 | M178: 5.4855 | N178: 5.4855 | O178: 5.4855 | P178: 5.4855 | Q178: 5.4855 | R178: 5.4855 | S178: 5.4855 | T178: 5.4855 | U178: 5.4855 | V178: 5.4855 | W178: 5.4855 | X178: 5.4855 | Y178: 5.4855 | Z178: 5.4855 | AA178: 5.4855 | AB178: 5.4855 | AC178: 5.4855 | AD178: 5.4855 | AE178: 5.4855 | AF178: 5.4855 | AG178: 5.4855 | AH178: 5.4855 | AI178: 5.4855 | AJ178: 5.4855 | AK178: 5.4855 | AL178: 5.4855 | AM178: 5.4855 | AN178: 5.4855 | AO178: 5.4855 | AP178: 5.4855 | AQ178: 5.4855 | AR178: 5.4855 | AS178: 5.4855 | AT178: 5.4855 | AU178: 5.4855 | AV178: 5.4855 | AW178: 5.4855 | AX178: 5.4855 | AY178: 5.4855 | AZ178: 5.4855 | BA178: 5.4855 | BB178: 5.4855 | BC178: 5.4855 | BD178: 5.4855 | BE178: 5.4855 | BF178: 5.4855 | BG178: 5.4855 | BH178: 5.4855 | BI178: 5.4855 | BJ178: 5.4855 | BK178: 5.4855 | BL178: 5.4855 | BM178: 5.4855 | BN178: 5.4855 | BO178: 5.4855 | BP178: 5.4855 | BQ178: 5.4855 | BR178: 5.4855 | BS178: 5.4855 | BT178: 5.4855 | BU178: 5.4855 | BV178: 5.4855 | BW178: 5.4855 | BX178: 5.4855
B179: 2022 | C179: Internal | D179: Fixed Operation and Maintenance Expenses ($/kW-yr) | E179: Kettle Falls Turbine Generator Upgrade
B180: 2020 | C180: NREL Residential PV - Class 8 | D180: Fixed Operation and Maintenance Expenses ($/kW-yr) | E180: New Residential Solar | F180: 29.295962 | G180: 28.97369585 | H180: 27.22783887 | I180: 25.48198188 | J180: 23.73612489 | K180: 21.9902679 | L180: 20.24441091 | M180: 18.49855393 | N180: 16.75269694 | O180: 15.00683995 | P180: 13.26098296 | Q180: 13.15260543 | R180: 13.04422789 | S180: 12.93585036 | T180: 12.82747282 | U180: 12.71909529 | V180: 12.61071775 | W180: 12.50234021 | X180: 12.39396268 | Y180: 12.28558514 | Z180: 12.17720761 | AA180: 12.06883007 | AB180: 11.96045254 | AC180: 11.852075 | AD180: 11.74369747 | AE180: 11.63531993 | AF180: 11.5269424 | AG180: 11.41856486 | AH180: 11.31018733 | AI180: 11.20180979 | AJ180: 11.09343226
B181: 2020 | C181: =C180 -> NREL Residential PV - Class 8 | D181: Fixed Operation and Maintenance Expenses ($/kW-yr) | E181: New Residential Solar + Storage (Solar Only) | F181: =F180 -> 29.295962 | G181: =G180 -> 28.97369585 | H181: 27.22783887 | I181: 25.48198188 | J181: 23.73612489 | K181: 21.9902679 | L181: 20.24441091 | M181: 18.49855393 | N181: 16.75269694 | O181: 15.00683995 | P181: 13.26098296 | Q181: 13.15260543 | R181: 13.04422789 | S181: 12.93585036 | T181: 12.82747282 | U181: 12.71909529 | V181: 12.61071775 | W181: 12.50234021 | X181: 12.39396268 | Y181: 12.28558514 | Z181: 12.17720761 | AA181: 12.06883007 | AB181: 11.96045254 | AC181: 11.852075 | AD181: 11.74369747 | AE181: 11.63531993 | AF181: 11.5269424 | AG181: 11.41856486 | AH181: 11.31018733 | AI181: 11.20180979 | AJ181: 11.09343226 | AK181: 0 | AL181: 0 | AM181: 0 | AN181: 0 | AO181: 0 | AP181: 0 | AQ181: 0 | AR181: 0 | AS181: 0 | AT181: 0 | AU181: 0 | AV181: 0 | AW181: 0 | AX181: 0 | AY181: 0 | AZ181: 0 | BA181: 0 | BB181: 0 | BC181: 0 | BD181: 0 | BE181: 0 | BF181: 0 | BG181: 0 | BH181: 0 | BI181: 0 | BJ181: 0 | BK181: 0 | BL181: 0 | BM181: 0 | BN181: 0 | BO181: 0 | BP181: 0 | BQ181: 0 | BR181: 0 | BS181: =BS180 -> 0 | BT181: 0 | BU181: 0 | BV181: 0 | BW181: 0 | BX181: 0
B182: 2020 | C182: NREL Residential Battery Storage - 5 kW - 12.5 kWh | D182: Fixed Operation and Maintenance Expenses ($/kW-yr) | E182: New Residential Solar + Storage (Battery Only) | F182: 93.66015283 | G182: 87.90951427 | H182: 81.66222685 | I182: 75.86904112 | J182: 70.43115857 | K182: 65.27106301 | L182: 62.63142336 | M182: 60.28874768 | N182: 58.27740243 | O182: 56.35289747 | P182: 54.61091962 | Q182: 53.9430411 | R182: 53.2604126 | S182: 52.57778411 | T182: 51.89515562 | U182: 51.21252713 | V182: 50.52989864 | W182: 49.84727015 | X182: 49.16464166 | Y182: 48.48201316 | Z182: 47.79938467 | AA182: 47.11675618 | AB182: 46.43412769 | AC182: 45.7514992 | AD182: 45.06887071 | AE182: 44.38624222 | AF182: 43.70361372 | AG182: 43.02098523 | AH182: 42.33835674 | AI182: 41.65572825 | AJ182: 40.95818972
B183: 2020 | C183: =C180 -> NREL Residential PV - Class 8 | D183: Fixed Operation and Maintenance Expenses ($/kW-yr) | E183: Existing Residential Solar | F183: =F180 -> 29.295962 | G183: =G180 -> 28.97369585 | H183: 27.22783887 | I183: 25.48198188 | J183: 23.73612489 | K183: 21.9902679 | L183: 20.24441091 | M183: 18.49855393 | N183: 16.75269694 | O183: 15.00683995 | P183: 13.26098296 | Q183: 13.15260543 | R183: 13.04422789 | S183: 12.93585036 | T183: 12.82747282 | U183: 12.71909529 | V183: 12.61071775 | W183: 12.50234021 | X183: 12.39396268 | Y183: 12.28558514 | Z183: 12.17720761 | AA183: 12.06883007 | AB183: 11.96045254 | AC183: 11.852075 | AD183: 11.74369747 | AE183: 11.63531993 | AF183: 11.5269424 | AG183: 11.41856486 | AH183: 11.31018733 | AI183: 11.20180979 | AJ183: 11.09343226 | AK183: 0 | AL183: 0 | AM183: 0 | AN183: 0 | AO183: 0 | AP183: 0 | AQ183: 0 | AR183: 0 | AS183: 0 | AT183: 0 | AU183: 0 | AV183: 0 | AW183: 0 | AX183: 0 | AY183: 0 | AZ183: 0 | BA183: 0 | BB183: 0 | BC183: 0 | BD183: 0 | BE183: 0 | BF183: 0 | BG183: 0 | BH183: 0 | BI183: 0 | BJ183: 0 | BK183: 0 | BL183: 0 | BM183: 0 | BN183: 0 | BO183: 0 | BP183: 0 | BQ183: 0 | BR183: 0 | BS183: =BS180 -> 0 | BT183: 0 | BU183: 0 | BV183: 0 | BW183: 0 | BX183: 0
B184: 2020 | C184: =C183 -> NREL Residential PV - Class 8 | D184: Fixed Operation and Maintenance Expenses ($/kW-yr) | E184: Existing Residential Solar + Storage (Solar Only) | F184: =F183 -> 29.295962 | G184: =G183 -> 28.97369585 | H184: 27.22783887 | I184: 25.48198188 | J184: 23.73612489 | K184: 21.9902679 | L184: 20.24441091 | M184: 18.49855393 | N184: 16.75269694 | O184: 15.00683995 | P184: 13.26098296 | Q184: 13.15260543 | R184: 13.04422789 | S184: 12.93585036 | T184: 12.82747282 | U184: 12.71909529 | V184: 12.61071775 | W184: 12.50234021 | X184: 12.39396268 | Y184: 12.28558514 | Z184: 12.17720761 | AA184: 12.06883007 | AB184: 11.96045254 | AC184: 11.852075 | AD184: 11.74369747 | AE184: 11.63531993 | AF184: 11.5269424 | AG184: 11.41856486 | AH184: 11.31018733 | AI184: 11.20180979 | AJ184: 11.09343226 | AK184: 0 | AL184: 0 | AM184: 0 | AN184: 0 | AO184: 0 | AP184: 0 | AQ184: 0 | AR184: 0 | AS184: 0 | AT184: 0 | AU184: 0 | AV184: 0 | AW184: 0 | AX184: 0 | AY184: 0 | AZ184: 0 | BA184: 0 | BB184: 0 | BC184: 0 | BD184: 0 | BE184: 0 | BF184: 0 | BG184: 0 | BH184: 0 | BI184: 0 | BJ184: 0 | BK184: 0 | BL184: 0 | BM184: 0 | BN184: 0 | BO184: 0 | BP184: 0 | BQ184: 0 | BR184: 0 | BS184: =BS183 -> 0 | BT184: 0 | BU184: 0 | BV184: 0 | BW184: 0 | BX184: 0
B185: 2020 | C185: =C182 -> NREL Residential Battery Storage - 5 kW - 12.5 kWh | D185: Fixed Operation and Maintenance Expenses ($/kW-yr) | E185: Existing Residential Solar + Storage (Battery Only) | F185: =F182 -> 93.66015283 | G185: =G182 -> 87.90951427 | H185: 81.66222685 | I185: 75.86904112 | J185: 70.43115857 | K185: 65.27106301 | L185: 62.63142336 | M185: 60.28874768 | N185: 58.27740243 | O185: 56.35289747 | P185: 54.61091962 | Q185: 53.9430411 | R185: 53.2604126 | S185: 52.57778411 | T185: 51.89515562 | U185: 51.21252713 | V185: 50.52989864 | W185: 49.84727015 | X185: 49.16464166 | Y185: 48.48201316 | Z185: 47.79938467 | AA185: 47.11675618 | AB185: 46.43412769 | AC185: 45.7514992 | AD185: 45.06887071 | AE185: 44.38624222 | AF185: 43.70361372 | AG185: 43.02098523 | AH185: 42.33835674 | AI185: 41.65572825 | AJ185: 40.95818972 | AK185: 0 | AL185: 0 | AM185: 0 | AN185: 0 | AO185: 0 | AP185: 0 | AQ185: 0 | AR185: 0 | AS185: 0 | AT185: 0 | AU185: 0 | AV185: 0 | AW185: 0 | AX185: 0 | AY185: 0 | AZ185: 0 | BA185: 0 | BB185: 0 | BC185: 0 | BD185: 0 | BE185: 0 | BF185: 0 | BG185: 0 | BH185: 0 | BI185: 0 | BJ185: 0 | BK185: 0 | BL185: 0 | BM185: 0 | BN185: 0 | BO185: 0 | BP185: 0 | BQ185: 0 | BR185: 0 | BS185: =BS182 -> 0 | BT185: 0 | BU185: 0 | BV185: 0 | BW185: 0 | BX185: 0
B186: 2020 | C186: NREL Commercial PV - Class 8 | D186: Fixed Operation and Maintenance Expenses ($/kW-yr) | E186: Commercial Solar | F186: 18.778165 | G186: 17.92000868 | H186: 17.21956095 | I186: 16.51911323 | J186: 15.8186655 | K186: 15.11821777 | L186: 14.41777005 | M186: 13.71732232 | N186: 13.01687459 | O186: 12.31642687 | P186: 11.61597914 | Q186: 11.51574427 | R186: 11.41550939 | S186: 11.31527452 | T186: 11.21503965 | U186: 11.11480477 | V186: 11.0145699 | W186: 10.91433502 | X186: 10.81410015 | Y186: 10.71386528 | Z186: 10.6136304 | AA186: 10.51339553 | AB186: 10.41316065 | AC186: 10.31292578 | AD186: 10.21269091 | AE186: 10.11245603 | AF186: 10.01222116 | AG186: 9.911986284 | AH186: 9.81175141 | AI186: 9.711516536 | AJ186: 9.611281661
B187: 2020 | C187: =C186 -> NREL Commercial PV - Class 8 | D187: Fixed Operation and Maintenance Expenses ($/kW-yr) | E187: Commercial Solar + Storage (Solar Only) | F187: =F186 -> 18.778165 | G187: =G186 -> 17.92000868 | H187: 17.21956095 | I187: 16.51911323 | J187: 15.8186655 | K187: 15.11821777 | L187: 14.41777005 | M187: 13.71732232 | N187: 13.01687459 | O187: 12.31642687 | P187: 11.61597914 | Q187: 11.51574427 | R187: 11.41550939 | S187: 11.31527452 | T187: 11.21503965 | U187: 11.11480477 | V187: 11.0145699 | W187: 10.91433502 | X187: 10.81410015 | Y187: 10.71386528 | Z187: 10.6136304 | AA187: 10.51339553 | AB187: 10.41316065 | AC187: 10.31292578 | AD187: 10.21269091 | AE187: 10.11245603 | AF187: 10.01222116 | AG187: 9.911986284 | AH187: 9.81175141 | AI187: 9.711516536 | AJ187: 9.611281661 | AK187: 0 | AL187: 0 | AM187: 0 | AN187: 0 | AO187: 0 | AP187: 0 | AQ187: 0 | AR187: 0 | AS187: 0 | AT187: 0 | AU187: 0 | AV187: 0 | AW187: 0 | AX187: 0 | AY187: 0 | AZ187: 0 | BA187: 0 | BB187: 0 | BC187: 0 | BD187: 0 | BE187: 0 | BF187: 0 | BG187: 0 | BH187: 0 | BI187: 0 | BJ187: 0 | BK187: 0 | BL187: 0 | BM187: 0 | BN187: 0 | BO187: 0 | BP187: 0 | BQ187: 0 | BR187: 0 | BS187: =BS186 -> 0 | BT187: 0 | BU187: 0 | BV187: 0 | BW187: 0 | BX187: 0
B188: 2020 | C188: NREL Commercial Battery Storage 4Hr | D188: Fixed Operation and Maintenance Expenses ($/kW-yr) | E188: Commercial Solar + Storage (Battery Only) | F188: 55.55621403 | G188: 47.22002582 | H188: 46.92952683 | I188: 44.80563135 | J188: 42.31668884 | K188: 39.76457487 | L188: 38.94992721 | M188: 38.27899303 | N188: 37.78353472 | O188: 37.32266821 | P188: 36.94816058 | Q188: 37.29139692 | R188: 37.62941527 | S188: 37.9642574 | T188: 38.29561994 | U188: 38.62318774 | V188: 38.94663343 | W188: 39.26561712 | X188: 39.57978591 | Y188: 39.88877357 | Z188: 40.19220008 | AA188: 40.48967118 | AB188: 40.78077799 | AC188: 41.0650965 | AD188: 41.34218712 | AE188: 41.61159423 | AF188: 41.87284563 | AG188: 42.12545208 | AH188: 42.36890675 | AI188: 42.60268472 | AJ188: 42.8224984
B189: 2020 | C189: NREL Utility PV - Class 4/LAZARD’S LEVELIZED COST OF ENERGY ANALYSIS—VERSION 15.0 | D189: Fixed Operation and Maintenance Expenses ($/kW-yr) | E189: Solar Photovoltaic Fixed Array (5 MW AC) | F189: =F192/((13+9.5)/2)*((12+16)/2) -> 28.15392563 | G189: =G192/((13+9.5)/2)*((12+16)/2) -> 25.58179556 | H189: 24.82882075 | I189: 24.08551272 | J189: 23.3445281 | K189: 22.60577126 | L189: 21.86915174 | M189: 21.13458393 | N189: 20.40198669 | O189: 19.67128316 | P189: 18.94240037 | Q189: 18.81708188 | R189: 18.69208585 | S189: 18.56740702 | T189: 18.44304019 | U189: 18.31898033 | V189: 18.19522247 | W189: 18.07176177 | X189: 17.94859349 | Y189: 17.82571298 | Z189: 17.70311571 | AA189: 17.58079722 | AB189: 17.45875316 | AC189: 17.33697926 | AD189: 17.21547135 | AE189: 17.09422533 | AF189: 16.97323719 | AG189: 16.85250301 | AH189: 16.73201894 | AI189: 16.61178121 | AJ189: 16.49178612 | AK189: 0 | AL189: 0 | AM189: 0 | AN189: 0 | AO189: 0 | AP189: 0 | AQ189: 0 | AR189: 0 | AS189: 0 | AT189: 0 | AU189: 0 | AV189: 0 | AW189: 0 | AX189: 0 | AY189: 0 | AZ189: 0 | BA189: 0 | BB189: 0 | BC189: 0 | BD189: 0 | BE189: 0 | BF189: 0 | BG189: 0 | BH189: 0 | BI189: 0 | BJ189: 0 | BK189: 0 | BL189: 0 | BM189: 0 | BN189: 0 | BO189: 0 | BP189: 0 | BQ189: 0 | BR189: 0 | BS189: =BS192/((13+9.5)/2)*((12+16)/2) -> 0 | BT189: 0 | BU189: 0 | BV189: 0 | BW189: 0 | BX189: 0
B190: 2020 | C190: =C189 -> NREL Utility PV - Class 4/LAZARD’S LEVELIZED COST OF ENERGY ANALYSIS—VERSION 15.0 | D190: Fixed Operation and Maintenance Expenses ($/kW-yr) | E190: Solar Photovoltaic Fixed Array (5 MW AC) + Storage (Solar Only) | F190: =F189 -> 28.15392563 | G190: =G189 -> 25.58179556 | H190: 24.82882075 | I190: 24.08551272 | J190: 23.3445281 | K190: 22.60577126 | L190: 21.86915174 | M190: 21.13458393 | N190: 20.40198669 | O190: 19.67128316 | P190: 18.94240037 | Q190: 18.81708188 | R190: 18.69208585 | S190: 18.56740702 | T190: 18.44304019 | U190: 18.31898033 | V190: 18.19522247 | W190: 18.07176177 | X190: 17.94859349 | Y190: 17.82571298 | Z190: 17.70311571 | AA190: 17.58079722 | AB190: 17.45875316 | AC190: 17.33697926 | AD190: 17.21547135 | AE190: 17.09422533 | AF190: 16.97323719 | AG190: 16.85250301 | AH190: 16.73201894 | AI190: 16.61178121 | AJ190: 16.49178612 | AK190: 0 | AL190: 0 | AM190: 0 | AN190: 0 | AO190: 0 | AP190: 0 | AQ190: 0 | AR190: 0 | AS190: 0 | AT190: 0 | AU190: 0 | AV190: 0 | AW190: 0 | AX190: 0 | AY190: 0 | AZ190: 0 | BA190: 0 | BB190: 0 | BC190: 0 | BD190: 0 | BE190: 0 | BF190: 0 | BG190: 0 | BH190: 0 | BI190: 0 | BJ190: 0 | BK190: 0 | BL190: 0 | BM190: 0 | BN190: 0 | BO190: 0 | BP190: 0 | BQ190: 0 | BR190: 0 | BS190: =BS189 -> 0 | BT190: 0 | BU190: 0 | BV190: 0 | BW190: 0 | BX190: 0
B191: 2020 | C191: NREL Utility-Scale Battery Storage - 4Hr/LAZARD’S LEVELIZED COST O F STORAGE ANALYSIS—VERSION 7 . 0 | D191: Fixed Operation and Maintenance Expenses ($/kW-yr) | E191: Solar Photovoltaic Fixed Array (5 MW AC) + Storage (Battery Only) | F191: =F195*1.3/2.5 -> 22.45404778 | G191: =G195*1.3/2.5 -> 19.18094327 | H191: 17.82059268 | I191: 16.32420704 | J191: 15.16790904 | K191: 14.35169869 | L191: 13.73954092 | M191: 13.19540069 | N191: 12.58324293 | O191: 12.10712022 | P191: 11.63099752 | Q191: 11.49139154 | R191: 11.34600407 | S191: 11.2006166 | T191: 11.05522913 | U191: 10.90984166 | V191: 10.76445419 | W191: 10.61906672 | X191: 10.47367925 | Y191: 10.32829178 | Z191: 10.18290432 | AA191: 10.03751685 | AB191: 9.892129378 | AC191: 9.746741909 | AD191: 9.60135444 | AE191: 9.455966971 | AF191: 9.310579502 | AG191: 9.165192033 | AH191: 9.019804564 | AI191: 8.874417095 | AJ191: 8.729029626 | AK191: 0 | AL191: 0 | AM191: 0 | AN191: 0 | AO191: 0 | AP191: 0 | AQ191: 0 | AR191: 0 | AS191: 0 | AT191: 0 | AU191: 0 | AV191: 0 | AW191: 0 | AX191: 0 | AY191: 0 | AZ191: 0 | BA191: 0 | BB191: 0 | BC191: 0 | BD191: 0 | BE191: 0 | BF191: 0 | BG191: 0 | BH191: 0 | BI191: 0 | BJ191: 0 | BK191: 0 | BL191: 0 | BM191: 0 | BN191: 0 | BO191: 0 | BP191: 0 | BQ191: 0 | BR191: 0 | BS191: =BS195*1.3/2.5 -> 0 | BT191: 0 | BU191: 0 | BV191: 0 | BW191: 0 | BX191: 0
B192: 2020 | C192: NREL Utility PV - Class 4 | D192: Fixed Operation and Maintenance Expenses ($/kW-yr) | E192: Solar Photovoltaic w/Single Axis Tracking (100 MW AC) | F192: 22.62369024 | G192: 20.5568 | H192: 19.95173096 | I192: 19.35442986 | J192: 18.75899579 | K192: 18.1653519 | L192: 17.57342551 | M192: 16.9831478 | N192: 16.39445359 | O192: 15.80728111 | P192: 15.22157173 | Q192: 15.12086937 | R192: 15.02042613 | S192: 14.92023778 | T192: 14.82030016 | U192: 14.72060919 | V192: 14.62116091 | W192: 14.52195142 | X192: 14.42297691 | Y192: 14.32423365 | Z192: 14.22571798 | AA192: 14.12742634 | AB192: 14.02935522 | AC192: 13.93150119 | AD192: 13.8338609 | AE192: 13.73643107 | AF192: 13.63920846 | AG192: 13.54218992 | AH192: 13.44537236 | AI192: 13.34875275 | AJ192: 13.25232813
B193: 2020 | C193: NREL Utility PV - Class 5 | D193: Fixed Operation and Maintenance Expenses ($/kW-yr) | E193: Southern NW Solar Photovoltaic w/ Single Axis Tracking (100 MW AC) | F193: 22.62369024 | G193: 20.5568 | H193: 19.95173096 | I193: 19.35442986 | J193: 18.75899579 | K193: 18.1653519 | L193: 17.57342551 | M193: 16.9831478 | N193: 16.39445359 | O193: 15.80728111 | P193: 15.22157173 | Q193: 15.12086937 | R193: 15.02042613 | S193: 14.92023778 | T193: 14.82030016 | U193: 14.72060919 | V193: 14.62116091 | W193: 14.52195142 | X193: 14.42297691 | Y193: 14.32423365 | Z193: 14.22571798 | AA193: 14.12742634 | AB193: 14.02935522 | AC193: 13.93150119 | AD193: 13.8338609 | AE193: 13.73643107 | AF193: 13.63920846 | AG193: 13.54218992 | AH193: 13.44537236 | AI193: 13.34875275 | AJ193: 13.25232813
B194: 2020 | C194: =C192 -> NREL Utility PV - Class 4 | D194: Fixed Operation and Maintenance Expenses ($/kW-yr) | E194: 100 MW/400 MWh Lithium-ion w/Solar (Solar Only) | F194: =F192 -> 22.62369024 | G194: =G192 -> 20.5568 | H194: 19.95173096 | I194: 19.35442986 | J194: 18.75899579 | K194: 18.1653519 | L194: 17.57342551 | M194: 16.9831478 | N194: 16.39445359 | O194: 15.80728111 | P194: 15.22157173 | Q194: 15.12086937 | R194: 15.02042613 | S194: 14.92023778 | T194: 14.82030016 | U194: 14.72060919 | V194: 14.62116091 | W194: 14.52195142 | X194: 14.42297691 | Y194: 14.32423365 | Z194: 14.22571798 | AA194: 14.12742634 | AB194: 14.02935522 | AC194: 13.93150119 | AD194: 13.8338609 | AE194: 13.73643107 | AF194: 13.63920846 | AG194: 13.54218992 | AH194: 13.44537236 | AI194: 13.34875275 | AJ194: 13.25232813 | AK194: 0 | AL194: 0 | AM194: 0 | AN194: 0 | AO194: 0 | AP194: 0 | AQ194: 0 | AR194: 0 | AS194: 0 | AT194: 0 | AU194: 0 | AV194: 0 | AW194: 0 | AX194: 0 | AY194: 0 | AZ194: 0 | BA194: 0 | BB194: 0 | BC194: 0 | BD194: 0 | BE194: 0 | BF194: 0 | BG194: 0 | BH194: 0 | BI194: 0 | BJ194: 0 | BK194: 0 | BL194: 0 | BM194: 0 | BN194: 0 | BO194: 0 | BP194: 0 | BQ194: 0 | BR194: 0 | BS194: =BS192 -> 0 | BT194: 0 | BU194: 0 | BV194: 0 | BW194: 0 | BX194: 0
B195: 2020 | C195: NREL Utility-Scale Battery Storage - 4Hr | D195: Fixed Operation and Maintenance Expenses ($/kW-yr) | E195: 100 MW/400 MWh Lithium-ion w/Solar (Battery Only) | F195: 43.18086112 | G195: 36.88642937 | H195: 34.27037055 | I195: 31.39270584 | J195: 29.16905585 | K195: 27.59942055 | L195: 26.42219409 | M195: 25.37577056 | N195: 24.19854409 | O195: 23.2829235 | P195: 22.36730291 | Q195: 22.09882988 | R195: 21.81923859 | S195: 21.5396473 | T195: 21.26005602 | U195: 20.98046473 | V195: 20.70087345 | W195: 20.42128216 | X195: 20.14169087 | Y195: 19.86209959 | Z195: 19.5825083 | AA195: 19.30291701 | AB195: 19.02332573 | AC195: 18.74373444 | AD195: 18.46414315 | AE195: 18.18455187 | AF195: 17.90496058 | AG195: 17.62536929 | AH195: 17.34577801 | AI195: 17.06618672 | AJ195: 16.78659544
B196: 2020 | C196: =C192 -> NREL Utility PV - Class 4 | D196: Fixed Operation and Maintenance Expenses ($/kW-yr) | E196: 100 MW/200 MWh Lithium-ion w/Solar (Solar Only) | F196: =F192 -> 22.62369024 | G196: =G192 -> 20.5568 | H196: 19.95173096 | I196: 19.35442986 | J196: 18.75899579 | K196: 18.1653519 | L196: 17.57342551 | M196: 16.9831478 | N196: 16.39445359 | O196: 15.80728111 | P196: 15.22157173 | Q196: 15.12086937 | R196: 15.02042613 | S196: 14.92023778 | T196: 14.82030016 | U196: 14.72060919 | V196: 14.62116091 | W196: 14.52195142 | X196: 14.42297691 | Y196: 14.32423365 | Z196: 14.22571798 | AA196: 14.12742634 | AB196: 14.02935522 | AC196: 13.93150119 | AD196: 13.8338609 | AE196: 13.73643107 | AF196: 13.63920846 | AG196: 13.54218992 | AH196: 13.44537236 | AI196: 13.34875275 | AJ196: 13.25232813 | AK196: 0 | AL196: 0 | AM196: 0 | AN196: 0 | AO196: 0 | AP196: 0 | AQ196: 0 | AR196: 0 | AS196: 0 | AT196: 0 | AU196: 0 | AV196: 0 | AW196: 0 | AX196: 0 | AY196: 0 | AZ196: 0 | BA196: 0 | BB196: 0 | BC196: 0 | BD196: 0 | BE196: 0 | BF196: 0 | BG196: 0 | BH196: 0 | BI196: 0 | BJ196: 0 | BK196: 0 | BL196: 0 | BM196: 0 | BN196: 0 | BO196: 0 | BP196: 0 | BQ196: 0 | BR196: 0 | BS196: =BS192 -> 0 | BT196: 0 | BU196: 0 | BV196: 0 | BW196: 0 | BX196: 0
B197: 2020 | C197: NREL Utility-Scale Battery Storage - 2Hr | D197: Fixed Operation and Maintenance Expenses ($/kW-yr) | E197: 100 MW/200 MWh Lithium-ion w/Solar (Battery Only) | F197: 24.7080425 | G197: 21.42120438 | H197: 20.16686348 | I197: 18.6509167 | J197: 17.69171906 | K197: 16.80294273 | L197: 16.30657522 | M197: 15.84374509 | N197: 15.25011202 | O197: 14.91808483 | P197: 14.48879207 | Q197: 14.31636878 | R197: 14.13525888 | S197: 13.95414898 | T197: 13.77303908 | U197: 13.59192918 | V197: 13.41081928 | W197: 13.22970937 | X197: 13.04859947 | Y197: 12.86748957 | Z197: 12.68637967 | AA197: 12.50526977 | AB197: 12.32415987 | AC197: 12.14304997 | AD197: 11.96194007 | AE197: 11.78083017 | AF197: 11.59972027 | AG197: 11.41861037 | AH197: 11.23750046 | AI197: 11.05639056 | AJ197: 10.8777123
B198: 2020 | C198: =C192 -> NREL Utility PV - Class 4 | D198: Fixed Operation and Maintenance Expenses ($/kW-yr) | E198: 50 MW/200 MWh Lithium-ion w/Solar (Solar Only) | F198: =F192 -> 22.62369024 | G198: =G192 -> 20.5568 | H198: 19.95173096 | I198: 19.35442986 | J198: 18.75899579 | K198: 18.1653519 | L198: 17.57342551 | M198: 16.9831478 | N198: 16.39445359 | O198: 15.80728111 | P198: 15.22157173 | Q198: 15.12086937 | R198: 15.02042613 | S198: 14.92023778 | T198: 14.82030016 | U198: 14.72060919 | V198: 14.62116091 | W198: 14.52195142 | X198: 14.42297691 | Y198: 14.32423365 | Z198: 14.22571798 | AA198: 14.12742634 | AB198: 14.02935522 | AC198: 13.93150119 | AD198: 13.8338609 | AE198: 13.73643107 | AF198: 13.63920846 | AG198: 13.54218992 | AH198: 13.44537236 | AI198: 13.34875275 | AJ198: 13.25232813 | AK198: 0 | AL198: 0 | AM198: 0 | AN198: 0 | AO198: 0 | AP198: 0 | AQ198: 0 | AR198: 0 | AS198: 0 | AT198: 0 | AU198: 0 | AV198: 0 | AW198: 0 | AX198: 0 | AY198: 0 | AZ198: 0 | BA198: 0 | BB198: 0 | BC198: 0 | BD198: 0 | BE198: 0 | BF198: 0 | BG198: 0 | BH198: 0 | BI198: 0 | BJ198: 0 | BK198: 0 | BL198: 0 | BM198: 0 | BN198: 0 | BO198: 0 | BP198: 0 | BQ198: 0 | BR198: 0 | BS198: =BS192 -> 0 | BT198: 0 | BU198: 0 | BV198: 0 | BW198: 0 | BX198: 0
B199: 2020 | C199: =C197 -> NREL Utility-Scale Battery Storage - 2Hr | D199: Fixed Operation and Maintenance Expenses ($/kW-yr) | E199: 50 MW/200 MWh Lithium-ion w/Solar (Battery Only) | F199: =F197 -> 24.7080425 | G199: =G197 -> 21.42120438 | H199: 20.16686348 | I199: 18.6509167 | J199: 17.69171906 | K199: 16.80294273 | L199: 16.30657522 | M199: 15.84374509 | N199: 15.25011202 | O199: 14.91808483 | P199: 14.48879207 | Q199: 14.31636878 | R199: 14.13525888 | S199: 13.95414898 | T199: 13.77303908 | U199: 13.59192918 | V199: 13.41081928 | W199: 13.22970937 | X199: 13.04859947 | Y199: 12.86748957 | Z199: 12.68637967 | AA199: 12.50526977 | AB199: 12.32415987 | AC199: 12.14304997 | AD199: 11.96194007 | AE199: 11.78083017 | AF199: 11.59972027 | AG199: 11.41861037 | AH199: 11.23750046 | AI199: 11.05639056 | AJ199: 10.8777123 | AK199: 0 | AL199: 0 | AM199: 0 | AN199: 0 | AO199: 0 | AP199: 0 | AQ199: 0 | AR199: 0 | AS199: 0 | AT199: 0 | AU199: 0 | AV199: 0 | AW199: 0 | AX199: 0 | AY199: 0 | AZ199: 0 | BA199: 0 | BB199: 0 | BC199: 0 | BD199: 0 | BE199: 0 | BF199: 0 | BG199: 0 | BH199: 0 | BI199: 0 | BJ199: 0 | BK199: 0 | BL199: 0 | BM199: 0 | BN199: 0 | BO199: 0 | BP199: 0 | BQ199: 0 | BR199: 0 | BS199: =BS197 -> 0 | BT199: 0 | BU199: 0 | BV199: 0 | BW199: 0 | BX199: 0
B200: 2020 | C200: NREL Land-Based Wind - Class 8 | D200: Fixed Operation and Maintenance Expenses ($/kW-yr) | E200: NW Wind On System (Share) | F200: 43 | G200: 42.595 | H200: 42.19 | I200: 41.785 | J200: 41.38 | K200: 40.975 | L200: 40.57 | M200: 40.165 | N200: 39.76 | O200: 39.355 | P200: 38.95 | Q200: 38.657875 | R200: 38.36575 | S200: 38.073625 | T200: 37.7815 | U200: 37.489375 | V200: 37.19725 | W200: 36.905125 | X200: 36.613 | Y200: 36.320875 | Z200: 36.02875 | AA200: 35.736625 | AB200: 35.4445 | AC200: 35.152375 | AD200: 34.86025 | AE200: 34.568125 | AF200: 34.276 | AG200: 33.983875 | AH200: 33.69175 | AI200: 33.399625 | AJ200: 33.1075
B201: 2020 | C201: =C200 -> NREL Land-Based Wind - Class 8 | D201: Fixed Operation and Maintenance Expenses ($/kW-yr) | E201: NW Wind Off System | F201: =F200/1.025 -> 41.95121951 | G201: =G200/1.025 -> 41.55609756 | H201: 41.16097561 | I201: 40.76585366 | J201: 40.37073171 | K201: 39.97560976 | L201: 39.5804878 | M201: 39.18536585 | N201: 38.7902439 | O201: 38.39512195 | P201: 38 | Q201: 37.715 | R201: 37.43 | S201: 37.145 | T201: 36.86 | U201: 36.575 | V201: 36.29 | W201: 36.005 | X201: 35.72 | Y201: 35.435 | Z201: 35.15 | AA201: 34.865 | AB201: 34.58 | AC201: 34.295 | AD201: 34.01 | AE201: 33.725 | AF201: 33.44 | AG201: 33.155 | AH201: 32.87 | AI201: 32.585 | AJ201: 32.3 | AK201: 0 | AL201: 0 | AM201: 0 | AN201: 0 | AO201: 0 | AP201: 0 | AQ201: 0 | AR201: 0 | AS201: 0 | AT201: 0 | AU201: 0 | AV201: 0 | AW201: 0 | AX201: 0 | AY201: 0 | AZ201: 0 | BA201: 0 | BB201: 0 | BC201: 0 | BD201: 0 | BE201: 0 | BF201: 0 | BG201: 0 | BH201: 0 | BI201: 0 | BJ201: 0 | BK201: 0 | BL201: 0 | BM201: 0 | BN201: 0 | BO201: 0 | BP201: 0 | BQ201: 0 | BR201: 0 | BS201: =BS200/1.025 -> 0 | BT201: 0 | BU201: 0 | BV201: 0 | BW201: 0 | BX201: 0
B202: 2020 | C202: NREL Land-Based Wind - Class 3 | D202: Fixed Operation and Maintenance Expenses ($/kW-yr) | E202: Wind Montana | F202: 43 | G202: 42.595 | H202: 42.19 | I202: 41.785 | J202: 41.38 | K202: 40.975 | L202: 40.57 | M202: 40.165 | N202: 39.76 | O202: 39.355 | P202: 38.95 | Q202: 38.657875 | R202: 38.36575 | S202: 38.073625 | T202: 37.7815 | U202: 37.489375 | V202: 37.19725 | W202: 36.905125 | X202: 36.613 | Y202: 36.320875 | Z202: 36.02875 | AA202: 35.736625 | AB202: 35.4445 | AC202: 35.152375 | AD202: 34.86025 | AE202: 34.568125 | AF202: 34.276 | AG202: 33.983875 | AH202: 33.69175 | AI202: 33.399625 | AJ202: 33.1075
B203: 2020 | C203: NREL Wind Speed Class 12 | D203: Fixed Operation and Maintenance Expenses ($/kW-yr) | E203: Off Shore Wind (Share) | F203: 95.26423161 | G203: 91.31115705 | H203: 88.2449142 | I203: 85.73961138 | J203: 83.62140802 | K203: 81.78653682 | L203: 80.16806571 | M203: 78.72029397 | N203: 77.41062513 | O203: 76.21499115 | P203: 75.11511451 | Q203: 74.0967878 | R203: 73.14874831 | S203: 72.26191659 | T203: 71.42886624 | U203: 70.64344549 | V203: 69.90050118 | W203: 69.19567375 | X203: 68.52524213 | Y203: 67.8860049 | Z203: 67.27518779 | AA203: 66.69037092 | AB203: 66.1294309 | AC203: 65.59049428 | AD203: 65.07189982 | AE203: 64.57216757 | AF203: 64.08997345 | AG203: 63.62412808 | AH203: 63.17355911 | AI203: 62.73729636 | AJ203: 62.31445924
B204: 2020 | C204: NREL Nuclear - Small Modular Reactor | D204: Fixed Operation and Maintenance Expenses ($/kW-yr) | E204: Small Modular Reactor (share) | F204: 114 | G204: 114 | H204: 114 | I204: 114 | J204: 114 | K204: 114 | L204: 114 | M204: 114 | N204: 114 | O204: 114 | P204: 114 | Q204: 114 | R204: 114 | S204: 114 | T204: 114 | U204: 114 | V204: 114 | W204: 114 | X204: 114 | Y204: 114 | Z204: 114 | AA204: 114 | AB204: 114 | AC204: 114 | AD204: 114 | AE204: 114 | AF204: 114 | AG204: 114 | AH204: 114 | AI204: 114 | AJ204: 114 | AK204: 114 | AL204: 114 | AM204: 114 | AN204: 114 | AO204: 114 | AP204: 114 | AQ204: 114 | AR204: 114 | AS204: 114 | AT204: 114 | AU204: 114 | AV204: 114 | AW204: 114 | AX204: 114 | AY204: 114 | AZ204: 114 | BA204: 114 | BB204: 114 | BC204: 114 | BD204: 114 | BE204: 114 | BF204: 114 | BG204: 114 | BH204: 114 | BI204: 114 | BJ204: 114 | BK204: 114 | BL204: 114 | BM204: 114 | BN204: 114 | BO204: 114 | BP204: 114 | BQ204: 114 | BR204: 114 | BS204: 114 | BT204: 114 | BU204: 114 | BV204: 114 | BW204: 114 | BX204: 114
B205: 2020 | C205: NREL Geothermal - Hydro / Flash | D205: Fixed Operation and Maintenance Expenses ($/kW-yr) | E205: Geothermal (Off System) | F205: 107.3893686 | G205: 106.5828543 | H205: 105.77634 | I205: 104.9698257 | J205: 104.1633115 | K205: 103.3567972 | L205: 102.5502829 | M205: 101.7437686 | N205: 100.9372543 | O205: 100.1307401 | P205: 99.32422578 | Q205: 99.32422578 | R205: 99.32422578 | S205: 99.32422578 | T205: 99.32422578 | U205: 99.32422578 | V205: 99.32422578 | W205: 99.32422578 | X205: 99.32422578 | Y205: 99.32422578 | Z205: 99.32422578 | AA205: 99.32422578 | AB205: 99.32422578 | AC205: 99.32422578 | AD205: 99.32422578 | AE205: 99.32422578 | AF205: 99.32422578 | AG205: 99.32422578 | AH205: 99.32422578 | AI205: 99.32422578 | AJ205: 99.32422578 | AK205: 99.32422578 | AL205: 99.32422578 | AM205: 99.32422578 | AN205: 99.32422578 | AO205: 99.32422578 | AP205: 99.32422578 | AQ205: 99.32422578 | AR205: 99.32422578 | AS205: 99.32422578 | AT205: 99.32422578 | AU205: 99.32422578 | AV205: 99.32422578 | AW205: 99.32422578 | AX205: 99.32422578 | AY205: 99.32422578 | AZ205: 99.32422578 | BA205: 99.32422578 | BB205: 99.32422578 | BC205: 99.32422578 | BD205: 99.32422578 | BE205: 99.32422578 | BF205: 99.32422578 | BG205: 99.32422578 | BH205: 99.32422578 | BI205: 99.32422578 | BJ205: 99.32422578 | BK205: 99.32422578 | BL205: 99.32422578 | BM205: 99.32422578 | BN205: 99.32422578 | BO205: 99.32422578 | BP205: 99.32422578 | BQ205: 99.32422578 | BR205: 99.32422578 | BS205: 99.32422578 | BT205: 99.32422578 | BU205: 99.32422578 | BV205: 99.32422578 | BW205: 99.32422578 | BX205: 99.32422578
B206: 2022 | C206: Internal | D206: Fixed Operation and Maintenance Expenses ($/kW-yr) | E206: 7F.04 CT Frame Greenfield | H206: 5.02665 | I206: 5.02665 | J206: 5.02665 | K206: 5.02665 | L206: 5.02665 | M206: 5.02665 | N206: 5.02665 | O206: 5.02665 | P206: 5.02665 | Q206: 5.02665 | R206: 5.02665 | S206: 5.02665 | T206: 5.02665 | U206: 5.02665 | V206: 5.02665 | W206: 5.02665 | X206: 5.02665 | Y206: 5.02665 | Z206: 5.02665 | AA206: 5.02665 | AB206: 5.02665 | AC206: 5.02665 | AD206: 5.02665 | AE206: 5.02665 | AF206: 5.02665 | AG206: 5.02665 | AH206: 5.02665 | AI206: 5.02665 | AJ206: 5.02665 | AK206: 5.02665 | AL206: 5.02665 | AM206: 5.02665 | AN206: 5.02665 | AO206: 5.02665 | AP206: 5.02665 | AQ206: 5.02665 | AR206: 5.02665 | AS206: 5.02665 | AT206: 5.02665 | AU206: 5.02665 | AV206: 5.02665 | AW206: 5.02665 | AX206: 5.02665 | AY206: 5.02665 | AZ206: 5.02665 | BA206: 5.02665 | BB206: 5.02665 | BC206: 5.02665 | BD206: 5.02665 | BE206: 5.02665 | BF206: 5.02665 | BG206: 5.02665 | BH206: 5.02665 | BI206: 5.02665 | BJ206: 5.02665 | BK206: 5.02665 | BL206: 5.02665 | BM206: 5.02665 | BN206: 5.02665 | BO206: 5.02665 | BP206: 5.02665 | BQ206: 5.02665 | BR206: 5.02665 | BS206: 5.02665 | BT206: 5.02665 | BU206: 5.02665 | BV206: 5.02665 | BW206: 5.02665 | BX206: 5.02665
B207: 2022 | C207: Internal | D207: Fixed Operation and Maintenance Expenses ($/kW-yr) | E207: Reciprocating Engine (ICE) Machine | H207: 4.991 | I207: 4.991 | J207: 4.991 | K207: 4.991 | L207: 4.991 | M207: 4.991 | N207: 4.991 | O207: 4.991 | P207: 4.991 | Q207: 4.991 | R207: 4.991 | S207: 4.991 | T207: 4.991 | U207: 4.991 | V207: 4.991 | W207: 4.991 | X207: 4.991 | Y207: 4.991 | Z207: 4.991 | AA207: 4.991 | AB207: 4.991 | AC207: 4.991 | AD207: 4.991 | AE207: 4.991 | AF207: 4.991 | AG207: 4.991 | AH207: 4.991 | AI207: 4.991 | AJ207: 4.991 | AK207: 4.991 | AL207: 4.991 | AM207: 4.991 | AN207: 4.991 | AO207: 4.991 | AP207: 4.991 | AQ207: 4.991 | AR207: 4.991 | AS207: 4.991 | AT207: 4.991 | AU207: 4.991 | AV207: 4.991 | AW207: 4.991 | AX207: 4.991 | AY207: 4.991 | AZ207: 4.991 | BA207: 4.991 | BB207: 4.991 | BC207: 4.991 | BD207: 4.991 | BE207: 4.991 | BF207: 4.991 | BG207: 4.991 | BH207: 4.991 | BI207: 4.991 | BJ207: 4.991 | BK207: 4.991 | BL207: 4.991 | BM207: 4.991 | BN207: 4.991 | BO207: 4.991 | BP207: 4.991 | BQ207: 4.991 | BR207: 4.991 | BS207: 4.991 | BT207: 4.991 | BU207: 4.991 | BV207: 4.991 | BW207: 4.991 | BX207: 4.991
... 136 more rows

Sheet DATA (Nominal)
B1: Adjustment | C1: Source | D1: Data Point | E1: Resource | F1: 2020 | G1: =F1+1 -> 2021 | H1: =G1+1 -> 2022 | I1: 2023 | J1: 2024 | K1: 2025 | L1: 2026 | M1: 2027 | N1: 2028 | O1: 2029 | P1: 2030 | Q1: 2031 | R1: 2032 | S1: 2033 | T1: 2034 | U1: 2035 | V1: 2036 | W1: 2037 | X1: 2038 | Y1: 2039 | Z1: 2040 | AA1: 2041 | AB1: 2042 | AC1: 2043 | AD1: 2044 | AE1: 2045 | AF1: 2046 | AG1: 2047 | AH1: 2048 | AI1: 2049 | AJ1: 2050 | AK1: 2051 | AL1: 2052 | AM1: 2053 | AN1: 2054 | AO1: 2055 | AP1: 2056 | AQ1: 2057 | AR1: 2058 | AS1: 2059 | AT1: 2060 | AU1: 2061 | AV1: 2062 | AW1: 2063 | AX1: 2064 | AY1: 2065 | AZ1: 2066 | BA1: 2067 | BB1: 2068 | BC1: 2069 | BD1: 2070 | BE1: 2071 | BF1: 2072 | BG1: 2073 | BH1: 2074 | BI1: 2075 | BJ1: 2076 | BK1: 2077 | BL1: 2078 | BM1: 2079 | BN1: 2080 | BO1: 2081 | BP1: 2082 | BQ1: 2083 | BR1: 2084 | BS1: 2085 | BT1: =BS1+1 -> 2086 | BU1: 2087 | BV1: 2088 | BW1: 2089 | BX1: 2090
E2: CPI: | G2: 0.025 | H2: 0.07191120219 | I2: 0.03172 | J2: 0.02352291667 | K2: 0.02233333333 | L2: 0.02233333333 | M2: 0.02233333333 | N2: 0.022 | O2: 0.022 | P2: 0.022 | Q2: 0.022 | R2: 0.022 | S2: 0.022 | T2: 0.022 | U2: 0.022 | V2: 0.022 | W2: 0.022 | X2: 0.022 | Y2: 0.022 | Z2: 0.022 | AA2: 0.022 | AB2: 0.022 | AC2: 0.022 | AD2: 0.022 | AE2: 0.022 | AF2: 0.022 | AG2: 0.022 | AH2: 0.022 | AI2: 0.022 | AJ2: 0.022 | AK2: 0.022 | AL2: 0.022 | AM2: 0.022 | AN2: 0.022 | AO2: 0.022 | AP2: 0.022 | AQ2: 0.022 | AR2: 0.022 | AS2: 0.022 | AT2: 0.022 | AU2: 0.022 | AV2: 0.022 | AW2: 0.022 | AX2: 0.022 | AY2: 0.022 | AZ2: 0.022 | BA2: 0.022 | BB2: 0.022 | BC2: 0.022 | BD2: 0.022 | BE2: 0.022 | BF2: 0.022 | BG2: 0.022 | BH2: 0.022 | BI2: 0.022 | BJ2: 0.022 | BK2: 0.022 | BL2: 0.022 | BM2: 0.022 | BN2: 0.022 | BO2: 0.022 | BP2: 0.022 | BQ2: 0.022 | BR2: 0.022 | BS2: 0.022 | BT2: 0.022 | BU2: 0.022 | BV2: 0.022 | BW2: 0.022 | BX2: 0.022
E3: PPI:
E4: CPI Factor: | F4: 100 | G4: =F4*(1+G2) -> 102.5 | H4: 109.8708982 | I4: 113.3560031 | J4: 116.0224669 | K4: 118.6136354 | L4: 121.2626732 | M4: 123.9708729 | N4: 126.6982321 | O4: 129.4855932 | P4: 132.3342763 | Q4: 135.2456304 | R4: 138.2210342 | S4: 141.261897 | T4: 144.3696587 | U4: 147.5457912 | V4: 150.7917986 | W4: 154.1092182 | X4: 157.499621 | Y4: 160.9646126 | Z4: 164.5058341 | AA4: 168.1249625 | AB4: 171.8237116 | AC4: 175.6038333 | AD4: 179.4671176 | AE4: 183.4153942 | AF4: 187.4505329 | AG4: 191.5744446 | AH4: 195.7890824 | AI4: 200.0964422 | AJ4: 204.4985639 | AK4: 208.9975323 | AL4: 213.5954781 | AM4: =AL4*(1+AM2) -> 218.2945786 | AN4: 223.0970593 | AO4: 228.0051946 | AP4: 233.0213089 | AQ4: 238.1477777 | AR4: 243.3870288 | AS4: 248.7415434 | AT4: 254.2138574 | AU4: 259.8065622 | AV4: 265.5223066 | AW4: 271.3637974 | AX4: 277.3338009 | AY4: 283.4351445 | AZ4: 289.6707177 | BA4: 296.0434735 | BB4: 302.5564299 | BC4: 309.2126714 | BD4: 316.0153501 | BE4: 322.9676878 | BF4: 330.072977 | BG4: 337.3345825 | BH4: 344.7559433 | BI4: 352.340574 | BJ4: 360.0920667 | BK4: 368.0140921 | BL4: 376.1104022 | BM4: 384.384831 | BN4: 392.8412973 | BO4: 401.4838058 | BP4: 410.3164496 | BQ4: 419.3434114 | BR4: 428.5689665 | BS4: =BR4*(1+BS2) -> 437.9974838 | BT4: 447.6334284 | BU4: 457.4813638 | BV4: 467.5459538 | BW4: 477.8319648 | BX4: 488.344268
E5: PPI Factor:
D7: ='DATA (Real)'!D3 -> Net Capacity Factor (%)
C8: ='DATA (Real)'!C4 -> Internal | D8: ='DATA (Real)'!D4 -> Net Capacity Factor (%) | E8: ='DATA (Real)'!E4 -> Wood Biomass | F8: ='DATA (Real)'!F4 -> 0.5 | G8: ='DATA (Real)'!G4 -> 0.5 | H8: ='DATA (Real)'!H4 -> 0.5 | I8: ='DATA (Real)'!I4 -> 0.5 | J8: ='DATA (Real)'!J4 -> 0.5 | K8: ='DATA (Real)'!K4 -> 0.5 | L8: ='DATA (Real)'!L4 -> 0.5 | M8: ='DATA (Real)'!M4 -> 0.5 | N8: ='DATA (Real)'!N4 -> 0.5 | O8: ='DATA (Real)'!O4 -> 0.5 | P8: ='DATA (Real)'!P4 -> 0.5 | Q8: ='DATA (Real)'!Q4 -> 0.5 | R8: ='DATA (Real)'!R4 -> 0.5 | S8: ='DATA (Real)'!S4 -> 0.5 | T8: ='DATA (Real)'!T4 -> 0.5 | U8: ='DATA (Real)'!U4 -> 0.5 | V8: ='DATA (Real)'!V4 -> 0.5 | W8: ='DATA (Real)'!W4 -> 0.5 | X8: ='DATA (Real)'!X4 -> 0.5 | Y8: ='DATA (Real)'!Y4 -> 0.5 | Z8: ='DATA (Real)'!Z4 -> 0.5 | AA8: ='DATA (Real)'!AA4 -> 0.5 | AB8: ='DATA (Real)'!AB4 -> 0.5 | AC8: ='DATA (Real)'!AC4 -> 0.5 | AD8: ='DATA (Real)'!AD4 -> 0.5 | AE8: ='DATA (Real)'!AE4 -> 0.5 | AF8: ='DATA (Real)'!AF4 -> 0.5 | AG8: ='DATA (Real)'!AG4 -> 0.5 | AH8: ='DATA (Real)'!AH4 -> 0.5 | AI8: ='DATA (Real)'!AI4 -> 0.5 | AJ8: ='DATA (Real)'!AJ4 -> 0.5 | AK8: ='DATA (Real)'!AK4 -> 0.5 | AL8: ='DATA (Real)'!AL4 -> 0.5 | AM8: ='DATA (Real)'!AM4 -> 0.5 | AN8: ='DATA (Real)'!AN4 -> 0.5 | AO8: ='DATA (Real)'!AO4 -> 0.5 | AP8: ='DATA (Real)'!AP4 -> 0.5 | AQ8: ='DATA (Real)'!AQ4 -> 0.5 | AR8: ='DATA (Real)'!AR4 -> 0.5 | AS8: ='DATA (Real)'!AS4 -> 0.5 | AT8: ='DATA (Real)'!AT4 -> 0.5 | AU8: ='DATA (Real)'!AU4 -> 0.5 | AV8: ='DATA (Real)'!AV4 -> 0.5 | AW8: ='DATA (Real)'!AW4 -> 0.5 | AX8: ='DATA (Real)'!AX4 -> 0.5 | AY8: ='DATA (Real)'!AY4 -> 0.5 | AZ8: ='DATA (Real)'!AZ4 -> 0.5 | BA8: ='DATA (Real)'!BA4 -> 0.5 | BB8: ='DATA (Real)'!BB4 -> 0.5 | BC8: ='DATA (Real)'!BC4 -> 0.5 | BD8: ='DATA (Real)'!BD4 -> 0.5 | BE8: ='DATA (Real)'!BE4 -> 0.5 | BF8: ='DATA (Real)'!BF4 -> 0.5 | BG8: ='DATA (Real)'!BG4 -> 0.5 | BH8: ='DATA (Real)'!BH4 -> 0.5 | BI8: ='DATA (Real)'!BI4 -> 0.5 | BJ8: ='DATA (Real)'!BJ4 -> 0.5 | BK8: ='DATA (Real)'!BK4 -> 0.5 | BL8: ='DATA (Real)'!BL4 -> 0.5 | BM8: ='DATA (Real)'!BM4 -> 0.5 | BN8: ='DATA (Real)'!BN4 -> 0.5 | BO8: ='DATA (Real)'!BO4 -> 0.5 | BP8: ='DATA (Real)'!BP4 -> 0.5 | BQ8: ='DATA (Real)'!BQ4 -> 0.5 | BR8: ='DATA (Real)'!BR4 -> 0.5 | BS8: ='DATA (Real)'!BS4 -> 0.5 | BT8: ='DATA (Real)'!BT4 -> 0.5 | BU8: ='DATA (Real)'!BU4 -> 0.5 | BV8: ='DATA (Real)'!BV4 -> 0.5 | BW8: ='DATA (Real)'!BW4 -> 0.5 | BX8: ='DATA (Real)'!BX4 -> 0.5
C9: ='DATA (Real)'!C5 -> Internal | D9: ='DATA (Real)'!D5 -> Net Capacity Factor (%) | E9: ='DATA (Real)'!E5 -> Rathdrum CT 2055 Uprates two unit operation | F9: ='DATA (Real)'!F5 -> 0.9132420091 | G9: ='DATA (Real)'!G5 -> 0.9132420091 | H9: ='DATA (Real)'!H5 -> 0.9132420091 | I9: ='DATA (Real)'!I5 -> 0.9132420091 | J9: ='DATA (Real)'!J5 -> 0.9132420091 | K9: ='DATA (Real)'!K5 -> 0.9132420091 | L9: ='DATA (Real)'!L5 -> 0.9132420091 | M9: ='DATA (Real)'!M5 -> 0.9132420091 | N9: ='DATA (Real)'!N5 -> 0.9132420091 | O9: ='DATA (Real)'!O5 -> 0.9132420091 | P9: ='DATA (Real)'!P5 -> 0.9132420091 | Q9: ='DATA (Real)'!Q5 -> 0.9132420091 | R9: ='DATA (Real)'!R5 -> 0.9132420091 | S9: ='DATA (Real)'!S5 -> 0.9132420091 | T9: ='DATA (Real)'!T5 -> 0.9132420091 | U9: ='DATA (Real)'!U5 -> 0.9132420091 | V9: ='DATA (Real)'!V5 -> 0.9132420091 | W9: ='DATA (Real)'!W5 -> 0.9132420091 | X9: ='DATA (Real)'!X5 -> 0.9132420091 | Y9: ='DATA (Real)'!Y5 -> 0.9132420091 | Z9: ='DATA (Real)'!Z5 -> 0.9132420091 | AA9: ='DATA (Real)'!AA5 -> 0.9132420091 | AB9: ='DATA (Real)'!AB5 -> 0.9132420091 | AC9: ='DATA (Real)'!AC5 -> 0.9132420091 | AD9: ='DATA (Real)'!AD5 -> 0.9132420091 | AE9: ='DATA (Real)'!AE5 -> 0.9132420091 | AF9: ='DATA (Real)'!AF5 -> 0.9132420091 | AG9: ='DATA (Real)'!AG5 -> 0.9132420091 | AH9: ='DATA (Real)'!AH5 -> 0.9132420091 | AI9: ='DATA (Real)'!AI5 -> 0.9132420091 | AJ9: ='DATA (Real)'!AJ5 -> 0.9132420091 | AK9: ='DATA (Real)'!AK5 -> 0.9132420091 | AL9: ='DATA (Real)'!AL5 -> 0.9132420091 | AM9: ='DATA (Real)'!AM5 -> 0.9132420091 | AN9: ='DATA (Real)'!AN5 -> 0.9132420091 | AO9: ='DATA (Real)'!AO5 -> 0.9132420091 | AP9: ='DATA (Real)'!AP5 -> 0.9132420091 | AQ9: ='DATA (Real)'!AQ5 -> 0.9132420091 | AR9: ='DATA (Real)'!AR5 -> 0.9132420091 | AS9: ='DATA (Real)'!AS5 -> 0.9132420091 | AT9: ='DATA (Real)'!AT5 -> 0.9132420091 | AU9: ='DATA (Real)'!AU5 -> 0.9132420091 | AV9: ='DATA (Real)'!AV5 -> 0.9132420091 | AW9: ='DATA (Real)'!AW5 -> 0.9132420091 | AX9: ='DATA (Real)'!AX5 -> 0.9132420091 | AY9: ='DATA (Real)'!AY5 -> 0.9132420091 | AZ9: ='DATA (Real)'!AZ5 -> 0.9132420091 | BA9: ='DATA (Real)'!BA5 -> 0.9132420091 | BB9: ='DATA (Real)'!BB5 -> 0.9132420091 | BC9: ='DATA (Real)'!BC5 -> 0.9132420091 | BD9: ='DATA (Real)'!BD5 -> 0.9132420091 | BE9: ='DATA (Real)'!BE5 -> 0.9132420091 | BF9: ='DATA (Real)'!BF5 -> 0.9132420091 | BG9: ='DATA (Real)'!BG5 -> 0.9132420091 | BH9: ='DATA (Real)'!BH5 -> 0.9132420091 | BI9: ='DATA (Real)'!BI5 -> 0.9132420091 | BJ9: ='DATA (Real)'!BJ5 -> 0.9132420091 | BK9: ='DATA (Real)'!BK5 -> 0.9132420091 | BL9: ='DATA (Real)'!BL5 -> 0.9132420091 | BM9: ='DATA (Real)'!BM5 -> 0.9132420091 | BN9: ='DATA (Real)'!BN5 -> 0.9132420091 | BO9: ='DATA (Real)'!BO5 -> 0.9132420091 | BP9: ='DATA (Real)'!BP5 -> 0.9132420091 | BQ9: ='DATA (Real)'!BQ5 -> 0.9132420091 | BR9: ='DATA (Real)'!BR5 -> 0.9132420091 | BS9: ='DATA (Real)'!BS5 -> 0.9132420091 | BT9: ='DATA (Real)'!BT5 -> 0.9132420091 | BU9: ='DATA (Real)'!BU5 -> 0.9132420091 | BV9: ='DATA (Real)'!BV5 -> 0.9132420091 | BW9: ='DATA (Real)'!BW5 -> 0.9132420091 | BX9: ='DATA (Real)'!BX5 -> 0.9132420091
C10: ='DATA (Real)'!C6 -> Internal | D10: ='DATA (Real)'!D6 -> Net Capacity Factor (%) | E10: ='DATA (Real)'!E6 -> Rathdrum CT: Inlet Evaporation 2 unit operation | F10: ='DATA (Real)'!F6 -> 0.9132420091 | G10: ='DATA (Real)'!G6 -> 0.9132420091 | H10: ='DATA (Real)'!H6 -> 0.9132420091 | I10: ='DATA (Real)'!I6 -> 0.9132420091 | J10: ='DATA (Real)'!J6 -> 0.9132420091 | K10: ='DATA (Real)'!K6 -> 0.9132420091 | L10: ='DATA (Real)'!L6 -> 0.9132420091 | M10: ='DATA (Real)'!M6 -> 0.9132420091 | N10: ='DATA (Real)'!N6 -> 0.9132420091 | O10: ='DATA (Real)'!O6 -> 0.9132420091 | P10: ='DATA (Real)'!P6 -> 0.9132420091 | Q10: ='DATA (Real)'!Q6 -> 0.9132420091 | R10: ='DATA (Real)'!R6 -> 0.9132420091 | S10: ='DATA (Real)'!S6 -> 0.9132420091 | T10: ='DATA (Real)'!T6 -> 0.9132420091 | U10: ='DATA (Real)'!U6 -> 0.9132420091 | V10: ='DATA (Real)'!V6 -> 0.9132420091 | W10: ='DATA (Real)'!W6 -> 0.9132420091 | X10: ='DATA (Real)'!X6 -> 0.9132420091 | Y10: ='DATA (Real)'!Y6 -> 0.9132420091 | Z10: ='DATA (Real)'!Z6 -> 0.9132420091 | AA10: ='DATA (Real)'!AA6 -> 0.9132420091 | AB10: ='DATA (Real)'!AB6 -> 0.9132420091 | AC10: ='DATA (Real)'!AC6 -> 0.9132420091 | AD10: ='DATA (Real)'!AD6 -> 0.9132420091 | AE10: ='DATA (Real)'!AE6 -> 0.9132420091 | AF10: ='DATA (Real)'!AF6 -> 0.9132420091 | AG10: ='DATA (Real)'!AG6 -> 0.9132420091 | AH10: ='DATA (Real)'!AH6 -> 0.9132420091 | AI10: ='DATA (Real)'!AI6 -> 0.9132420091 | AJ10: ='DATA (Real)'!AJ6 -> 0.9132420091 | AK10: ='DATA (Real)'!AK6 -> 0.9132420091 | AL10: ='DATA (Real)'!AL6 -> 0.9132420091 | AM10: ='DATA (Real)'!AM6 -> 0.9132420091 | AN10: ='DATA (Real)'!AN6 -> 0.9132420091 | AO10: ='DATA (Real)'!AO6 -> 0.9132420091 | AP10: ='DATA (Real)'!AP6 -> 0.9132420091 | AQ10: ='DATA (Real)'!AQ6 -> 0.9132420091 | AR10: ='DATA (Real)'!AR6 -> 0.9132420091 | AS10: ='DATA (Real)'!AS6 -> 0.9132420091 | AT10: ='DATA (Real)'!AT6 -> 0.9132420091 | AU10: ='DATA (Real)'!AU6 -> 0.9132420091 | AV10: ='DATA (Real)'!AV6 -> 0.9132420091 | AW10: ='DATA (Real)'!AW6 -> 0.9132420091 | AX10: ='DATA (Real)'!AX6 -> 0.9132420091 | AY10: ='DATA (Real)'!AY6 -> 0.9132420091 | AZ10: ='DATA (Real)'!AZ6 -> 0.9132420091 | BA10: ='DATA (Real)'!BA6 -> 0.9132420091 | BB10: ='DATA (Real)'!BB6 -> 0.9132420091 | BC10: ='DATA (Real)'!BC6 -> 0.9132420091 | BD10: ='DATA (Real)'!BD6 -> 0.9132420091 | BE10: ='DATA (Real)'!BE6 -> 0.9132420091 | BF10: ='DATA (Real)'!BF6 -> 0.9132420091 | BG10: ='DATA (Real)'!BG6 -> 0.9132420091 | BH10: ='DATA (Real)'!BH6 -> 0.9132420091 | BI10: ='DATA (Real)'!BI6 -> 0.9132420091 | BJ10: ='DATA (Real)'!BJ6 -> 0.9132420091 | BK10: ='DATA (Real)'!BK6 -> 0.9132420091 | BL10: ='DATA (Real)'!BL6 -> 0.9132420091 | BM10: ='DATA (Real)'!BM6 -> 0.9132420091 | BN10: ='DATA (Real)'!BN6 -> 0.9132420091 | BO10: ='DATA (Real)'!BO6 -> 0.9132420091 | BP10: ='DATA (Real)'!BP6 -> 0.9132420091 | BQ10: ='DATA (Real)'!BQ6 -> 0.9132420091 | BR10: ='DATA (Real)'!BR6 -> 0.9132420091 | BS10: ='DATA (Real)'!BS6 -> 0.9132420091 | BT10: ='DATA (Real)'!BT6 -> 0.9132420091 | BU10: ='DATA (Real)'!BU6 -> 0.9132420091 | BV10: ='DATA (Real)'!BV6 -> 0.9132420091 | BW10: ='DATA (Real)'!BW6 -> 0.9132420091 | BX10: ='DATA (Real)'!BX6 -> 0.9132420091
C11: ='DATA (Real)'!C7 -> Internal | D11: ='DATA (Real)'!D7 -> Net Capacity Factor (%) | E11: ='DATA (Real)'!E7 -> Kettle Falls Turbine Generator Upgrade | F11: ='DATA (Real)'!F7 -> 0 | G11: ='DATA (Real)'!G7 -> 0 | H11: ='DATA (Real)'!H7 -> 0 | I11: ='DATA (Real)'!I7 -> 0 | J11: ='DATA (Real)'!J7 -> 0 | K11: ='DATA (Real)'!K7 -> 0 | L11: ='DATA (Real)'!L7 -> 0 | M11: ='DATA (Real)'!M7 -> 0 | N11: ='DATA (Real)'!N7 -> 0 | O11: ='DATA (Real)'!O7 -> 0 | P11: ='DATA (Real)'!P7 -> 0 | Q11: ='DATA (Real)'!Q7 -> 0 | R11: ='DATA (Real)'!R7 -> 0 | S11: ='DATA (Real)'!S7 -> 0 | T11: ='DATA (Real)'!T7 -> 0 | U11: ='DATA (Real)'!U7 -> 0 | V11: ='DATA (Real)'!V7 -> 0 | W11: ='DATA (Real)'!W7 -> 0 | X11: ='DATA (Real)'!X7 -> 0 | Y11: ='DATA (Real)'!Y7 -> 0 | Z11: ='DATA (Real)'!Z7 -> 0 | AA11: ='DATA (Real)'!AA7 -> 0 | AB11: ='DATA (Real)'!AB7 -> 0 | AC11: ='DATA (Real)'!AC7 -> 0 | AD11: ='DATA (Real)'!AD7 -> 0 | AE11: ='DATA (Real)'!AE7 -> 0 | AF11: ='DATA (Real)'!AF7 -> 0 | AG11: ='DATA (Real)'!AG7 -> 0 | AH11: ='DATA (Real)'!AH7 -> 0 | AI11: ='DATA (Real)'!AI7 -> 0 | AJ11: ='DATA (Real)'!AJ7 -> 0 | AK11: ='DATA (Real)'!AK7 -> 0 | AL11: ='DATA (Real)'!AL7 -> 0 | AM11: ='DATA (Real)'!AM7 -> 0 | AN11: ='DATA (Real)'!AN7 -> 0 | AO11: ='DATA (Real)'!AO7 -> 0 | AP11: ='DATA (Real)'!AP7 -> 0 | AQ11: ='DATA (Real)'!AQ7 -> 0 | AR11: ='DATA (Real)'!AR7 -> 0 | AS11: ='DATA (Real)'!AS7 -> 0 | AT11: ='DATA (Real)'!AT7 -> 0 | AU11: ='DATA (Real)'!AU7 -> 0 | AV11: ='DATA (Real)'!AV7 -> 0 | AW11: ='DATA (Real)'!AW7 -> 0 | AX11: ='DATA (Real)'!AX7 -> 0 | AY11: ='DATA (Real)'!AY7 -> 0 | AZ11: ='DATA (Real)'!AZ7 -> 0 | BA11: ='DATA (Real)'!BA7 -> 0 | BB11: ='DATA (Real)'!BB7 -> 0 | BC11: ='DATA (Real)'!BC7 -> 0 | BD11: ='DATA (Real)'!BD7 -> 0 | BE11: ='DATA (Real)'!BE7 -> 0 | BF11: ='DATA (Real)'!BF7 -> 0 | BG11: ='DATA (Real)'!BG7 -> 0 | BH11: ='DATA (Real)'!BH7 -> 0 | BI11: ='DATA (Real)'!BI7 -> 0 | BJ11: ='DATA (Real)'!BJ7 -> 0 | BK11: ='DATA (Real)'!BK7 -> 0 | BL11: ='DATA (Real)'!BL7 -> 0 | BM11: ='DATA (Real)'!BM7 -> 0 | BN11: ='DATA (Real)'!BN7 -> 0 | BO11: ='DATA (Real)'!BO7 -> 0 | BP11: ='DATA (Real)'!BP7 -> 0 | BQ11: ='DATA (Real)'!BQ7 -> 0 | BR11: ='DATA (Real)'!BR7 -> 0 | BS11: ='DATA (Real)'!BS7 -> 0 | BT11: ='DATA (Real)'!BT7 -> 0 | BU11: ='DATA (Real)'!BU7 -> 0 | BV11: ='DATA (Real)'!BV7 -> 0 | BW11: ='DATA (Real)'!BW7 -> 0 | BX11: ='DATA (Real)'!BX7 -> 0
C12: ='DATA (Real)'!C8 -> Internal/NREL Residential PV - Class 8 | D12: ='DATA (Real)'!D8 -> Net Capacity Factor (%) | E12: ='DATA (Real)'!E8 -> New Residential Solar | F12: ='DATA (Real)'!F8/0.85 -> 0.1608397604 | G12: ='DATA (Real)'!G8/0.85 -> 0.1610882227 | H12: ='DATA (Real)'!H8/0.85 -> 0.1613366849 | I12: ='DATA (Real)'!I8/0.85 -> 0.1615851471 | J12: ='DATA (Real)'!J8/0.85 -> 0.1618336093 | K12: ='DATA (Real)'!K8/0.85 -> 0.1620820715 | L12: ='DATA (Real)'!L8/0.85 -> 0.1623305338 | M12: ='DATA (Real)'!M8/0.85 -> 0.162578996 | N12: ='DATA (Real)'!N8/0.85 -> 0.1628274582 | O12: ='DATA (Real)'!O8/0.85 -> 0.1630759204 | P12: ='DATA (Real)'!P8/0.85 -> 0.1633243827 | Q12: ='DATA (Real)'!Q8/0.85 -> 0.1635352672 | R12: ='DATA (Real)'!R8/0.85 -> 0.1637461518 | S12: ='DATA (Real)'!S8/0.85 -> 0.1639570364 | T12: ='DATA (Real)'!T8/0.85 -> 0.164167921 | U12: ='DATA (Real)'!U8/0.85 -> 0.1643788056 | V12: ='DATA (Real)'!V8/0.85 -> 0.1645896902 | W12: ='DATA (Real)'!W8/0.85 -> 0.1648005748 | X12: ='DATA (Real)'!X8/0.85 -> 0.1650114594 | Y12: ='DATA (Real)'!Y8/0.85 -> 0.165222344 | Z12: ='DATA (Real)'!Z8/0.85 -> 0.1654332286 | AA12: ='DATA (Real)'!AA8/0.85 -> 0.1656441131 | AB12: ='DATA (Real)'!AB8/0.85 -> 0.1658549977 | AC12: ='DATA (Real)'!AC8/0.85 -> 0.1660658823 | AD12: ='DATA (Real)'!AD8/0.85 -> 0.1662767669 | AE12: ='DATA (Real)'!AE8/0.85 -> 0.1664876515 | AF12: ='DATA (Real)'!AF8/0.85 -> 0.1666985361 | AG12: ='DATA (Real)'!AG8/0.85 -> 0.1669094207 | AH12: ='DATA (Real)'!AH8/0.85 -> 0.1671203053 | AI12: ='DATA (Real)'!AI8/0.85 -> 0.1673311899 | AJ12: ='DATA (Real)'!AJ8/0.85 -> 0.1675420745 | AK12: ='DATA (Real)'!AK8/0.85 -> 0.1678771586 | AL12: ='DATA (Real)'!AL8/0.85 -> 0.1682129129 | AM12: ='DATA (Real)'!AM8/0.85 -> 0.1685493387 | AN12: ='DATA (Real)'!AN8/0.85 -> 0.1688864374 | AO12: ='DATA (Real)'!AO8/0.85 -> 0.1692242103 | AP12: ='DATA (Real)'!AP8/0.85 -> 0.1695626587 | AQ12: ='DATA (Real)'!AQ8/0.85 -> 0.169901784 | AR12: ='DATA (Real)'!AR8/0.85 -> 0.1702415876 | AS12: ='DATA (Real)'!AS8/0.85 -> 0.1705820708 | AT12: ='DATA (Real)'!AT8/0.85 -> 0.1709232349 | AU12: ='DATA (Real)'!AU8/0.85 -> 0.1712650814 | AV12: ='DATA (Real)'!AV8/0.85 -> 0.1716076116 | AW12: ='DATA (Real)'!AW8/0.85 -> 0.1719508268 | AX12: ='DATA (Real)'!AX8/0.85 -> 0.1722947284 | AY12: ='DATA (Real)'!AY8/0.85 -> 0.1726393179 | AZ12: ='DATA (Real)'!AZ8/0.85 -> 0.1729845965 | BA12: ='DATA (Real)'!BA8/0.85 -> 0.1733305657 | BB12: ='DATA (Real)'!BB8/0.85 -> 0.1736772268 | BC12: ='DATA (Real)'!BC8/0.85 -> 0.1740245813 | BD12: ='DATA (Real)'!BD8/0.85 -> 0.1743726305 | BE12: ='DATA (Real)'!BE8/0.85 -> 0.1747213757 | BF12: ='DATA (Real)'!BF8/0.85 -> 0.1750708185 | BG12: ='DATA (Real)'!BG8/0.85 -> 0.1754209601 | BH12: ='DATA (Real)'!BH8/0.85 -> 0.175771802 | BI12: ='DATA (Real)'!BI8/0.85 -> 0.1761233456 | BJ12: ='DATA (Real)'!BJ8/0.85 -> 0.1764755923 | BK12: ='DATA (Real)'!BK8/0.85 -> 0.1768285435 | BL12: ='DATA (Real)'!BL8/0.85 -> 0.1771822006 | BM12: ='DATA (Real)'!BM8/0.85 -> 0.177536565 | BN12: ='DATA (Real)'!BN8/0.85 -> 0.1778916381 | BO12: ='DATA (Real)'!BO8/0.85 -> 0.1782474214 | BP12: ='DATA (Real)'!BP8/0.85 -> 0.1786039162 | BQ12: ='DATA (Real)'!BQ8/0.85 -> 0.1789611241 | BR12: ='DATA (Real)'!BR8/0.85 -> 0.1793190463 | BS12: ='DATA (Real)'!BS8/0.85 -> 0.1796776844 | BT12: ='DATA (Real)'!BT8/0.85 -> 0.1800370398 | BU12: ='DATA (Real)'!BU8/0.85 -> 0.1803971139 | BV12: ='DATA (Real)'!BV8/0.85 -> 0.1807579081 | BW12: ='DATA (Real)'!BW8/0.85 -> 0.1811194239 | BX12: ='DATA (Real)'!BX8/0.85 -> 0.1814816628
C13: ='DATA (Real)'!C9 -> Internal/NREL Residential PV - Class 8 | D13: ='DATA (Real)'!D9 -> Net Capacity Factor (%) | E13: ='DATA (Real)'!E9 -> New Residential Solar + Storage (Solar Only) | F13: =F12 -> 0.1608397604 | G13: =G12 -> 0.1610882227 | H13: 0.1613366849 | I13: 0.1615851471 | J13: 0.1618336093 | K13: 0.1620820715 | L13: 0.1623305338 | M13: 0.162578996 | N13: 0.1628274582 | O13: 0.1630759204 | P13: 0.1633243827 | Q13: 0.1635352672 | R13: 0.1637461518 | S13: 0.1639570364 | T13: 0.164167921 | U13: 0.1643788056 | V13: 0.1645896902 | W13: 0.1648005748 | X13: 0.1650114594 | Y13: 0.165222344 | Z13: 0.1654332286 | AA13: 0.1656441131 | AB13: 0.1658549977 | AC13: 0.1660658823 | AD13: 0.1662767669 | AE13: 0.1664876515 | AF13: 0.1666985361 | AG13: 0.1669094207 | AH13: 0.1671203053 | AI13: 0.1673311899 | AJ13: 0.1675420745 | AK13: 0.1678771586 | AL13: 0.1682129129 | AM13: 0.1685493387 | AN13: 0.1688864374 | AO13: 0.1692242103 | AP13: 0.1695626587 | AQ13: 0.169901784 | AR13: 0.1702415876 | AS13: 0.1705820708 | AT13: 0.1709232349 | AU13: 0.1712650814 | AV13: 0.1716076116 | AW13: 0.1719508268 | AX13: 0.1722947284 | AY13: 0.1726393179 | AZ13: 0.1729845965 | BA13: 0.1733305657 | BB13: 0.1736772268 | BC13: 0.1740245813 | BD13: 0.1743726305 | BE13: 0.1747213757 | BF13: 0.1750708185 | BG13: 0.1754209601 | BH13: 0.175771802 | BI13: 0.1761233456 | BJ13: 0.1764755923 | BK13: 0.1768285435 | BL13: 0.1771822006 | BM13: 0.177536565 | BN13: 0.1778916381 | BO13: 0.1782474214 | BP13: 0.1786039162 | BQ13: 0.1789611241 | BR13: 0.1793190463 | BS13: =BS12 -> 0.1796776844 | BT13: 0.1800370398 | BU13: 0.1803971139 | BV13: 0.1807579081 | BW13: 0.1811194239 | BX13: 0.1814816628
C14: ='DATA (Real)'!C10 -> Internal/NREL Residential PV - Class 8 | D14: ='DATA (Real)'!D10 -> Net Capacity Factor (%) | E14: ='DATA (Real)'!E10 -> Existing Residential Solar | F14: =F12 -> 0.1608397604 | G14: =G12 -> 0.1610882227 | H14: 0.1613366849 | I14: 0.1615851471 | J14: 0.1618336093 | K14: 0.1620820715 | L14: 0.1623305338 | M14: 0.162578996 | N14: 0.1628274582 | O14: 0.1630759204 | P14: 0.1633243827 | Q14: 0.1635352672 | R14: 0.1637461518 | S14: 0.1639570364 | T14: 0.164167921 | U14: 0.1643788056 | V14: 0.1645896902 | W14: 0.1648005748 | X14: 0.1650114594 | Y14: 0.165222344 | Z14: 0.1654332286 | AA14: 0.1656441131 | AB14: 0.1658549977 | AC14: 0.1660658823 | AD14: 0.1662767669 | AE14: 0.1664876515 | AF14: 0.1666985361 | AG14: 0.1669094207 | AH14: 0.1671203053 | AI14: 0.1673311899 | AJ14: 0.1675420745 | AK14: 0.1678771586 | AL14: 0.1682129129 | AM14: 0.1685493387 | AN14: 0.1688864374 | AO14: 0.1692242103 | AP14: 0.1695626587 | AQ14: 0.169901784 | AR14: 0.1702415876 | AS14: 0.1705820708 | AT14: 0.1709232349 | AU14: 0.1712650814 | AV14: 0.1716076116 | AW14: 0.1719508268 | AX14: 0.1722947284 | AY14: 0.1726393179 | AZ14: 0.1729845965 | BA14: 0.1733305657 | BB14: 0.1736772268 | BC14: 0.1740245813 | BD14: 0.1743726305 | BE14: 0.1747213757 | BF14: 0.1750708185 | BG14: 0.1754209601 | BH14: 0.175771802 | BI14: 0.1761233456 | BJ14: 0.1764755923 | BK14: 0.1768285435 | BL14: 0.1771822006 | BM14: 0.177536565 | BN14: 0.1778916381 | BO14: 0.1782474214 | BP14: 0.1786039162 | BQ14: 0.1789611241 | BR14: 0.1793190463 | BS14: =BS12 -> 0.1796776844 | BT14: 0.1800370398 | BU14: 0.1803971139 | BV14: 0.1807579081 | BW14: 0.1811194239 | BX14: 0.1814816628
C15: ='DATA (Real)'!C11 -> Internal/NREL Residential PV - Class 8 | D15: ='DATA (Real)'!D11 -> Net Capacity Factor (%) | E15: ='DATA (Real)'!E11 -> Existing Residential Solar + Storage (Solar Only) | F15: =F14 -> 0.1608397604 | G15: =G14 -> 0.1610882227 | H15: 0.1613366849 | I15: 0.1615851471 | J15: 0.1618336093 | K15: 0.1620820715 | L15: 0.1623305338 | M15: 0.162578996 | N15: 0.1628274582 | O15: 0.1630759204 | P15: 0.1633243827 | Q15: 0.1635352672 | R15: 0.1637461518 | S15: 0.1639570364 | T15: 0.164167921 | U15: 0.1643788056 | V15: 0.1645896902 | W15: 0.1648005748 | X15: 0.1650114594 | Y15: 0.165222344 | Z15: 0.1654332286 | AA15: 0.1656441131 | AB15: 0.1658549977 | AC15: 0.1660658823 | AD15: 0.1662767669 | AE15: 0.1664876515 | AF15: 0.1666985361 | AG15: 0.1669094207 | AH15: 0.1671203053 | AI15: 0.1673311899 | AJ15: 0.1675420745 | AK15: 0.1678771586 | AL15: 0.1682129129 | AM15: 0.1685493387 | AN15: 0.1688864374 | AO15: 0.1692242103 | AP15: 0.1695626587 | AQ15: 0.169901784 | AR15: 0.1702415876 | AS15: 0.1705820708 | AT15: 0.1709232349 | AU15: 0.1712650814 | AV15: 0.1716076116 | AW15: 0.1719508268 | AX15: 0.1722947284 | AY15: 0.1726393179 | AZ15: 0.1729845965 | BA15: 0.1733305657 | BB15: 0.1736772268 | BC15: 0.1740245813 | BD15: 0.1743726305 | BE15: 0.1747213757 | BF15: 0.1750708185 | BG15: 0.1754209601 | BH15: 0.175771802 | BI15: 0.1761233456 | BJ15: 0.1764755923 | BK15: 0.1768285435 | BL15: 0.1771822006 | BM15: 0.177536565 | BN15: 0.1778916381 | BO15: 0.1782474214 | BP15: 0.1786039162 | BQ15: 0.1789611241 | BR15: 0.1793190463 | BS15: =BS14 -> 0.1796776844 | BT15: 0.1800370398 | BU15: 0.1803971139 | BV15: 0.1807579081 | BW15: 0.1811194239 | BX15: 0.1814816628
C16: ='DATA (Real)'!C12 -> Internal/NREL Commercial PV - Class 8 | D16: ='DATA (Real)'!D12 -> Net Capacity Factor (%) | E16: ='DATA (Real)'!E12 -> Commercial Solar | F16: ='DATA (Real)'!F12/0.85 -> 0.1630815747 | G16: ='DATA (Real)'!G12/0.85 -> 0.1648228875 | H16: ='DATA (Real)'!H12/0.85 -> 0.1665642002 | I16: ='DATA (Real)'!I12/0.85 -> 0.168305513 | J16: ='DATA (Real)'!J12/0.85 -> 0.1700468257 | K16: ='DATA (Real)'!K12/0.85 -> 0.1717881385 | L16: ='DATA (Real)'!L12/0.85 -> 0.1735294512 | M16: ='DATA (Real)'!M12/0.85 -> 0.175270764 | N16: ='DATA (Real)'!N12/0.85 -> 0.1770120768 | O16: ='DATA (Real)'!O12/0.85 -> 0.1787533895 | P16: ='DATA (Real)'!P12/0.85 -> 0.1804947023 | Q16: ='DATA (Real)'!Q12/0.85 -> 0.1811485658 | R16: ='DATA (Real)'!R12/0.85 -> 0.1818024294 | S16: ='DATA (Real)'!S12/0.85 -> 0.1824562929 | T16: ='DATA (Real)'!T12/0.85 -> 0.1831101565 | U16: ='DATA (Real)'!U12/0.85 -> 0.1837640201 | V16: ='DATA (Real)'!V12/0.85 -> 0.1844178836 | W16: ='DATA (Real)'!W12/0.85 -> 0.1850717472 | X16: ='DATA (Real)'!X12/0.85 -> 0.1857256107 | Y16: ='DATA (Real)'!Y12/0.85 -> 0.1863794743 | Z16: ='DATA (Real)'!Z12/0.85 -> 0.1870333379 | AA16: ='DATA (Real)'!AA12/0.85 -> 0.1876872014 | AB16: ='DATA (Real)'!AB12/0.85 -> 0.188341065 | AC16: ='DATA (Real)'!AC12/0.85 -> 0.1889949285 | AD16: ='DATA (Real)'!AD12/0.85 -> 0.1896487921 | AE16: ='DATA (Real)'!AE12/0.85 -> 0.1903026556 | AF16: ='DATA (Real)'!AF12/0.85 -> 0.1909565192 | AG16: ='DATA (Real)'!AG12/0.85 -> 0.1916103828 | AH16: ='DATA (Real)'!AH12/0.85 -> 0.1922642463 | AI16: ='DATA (Real)'!AI12/0.85 -> 0.1929181099 | AJ16: ='DATA (Real)'!AJ12/0.85 -> 0.1935719734 | AK16: ='DATA (Real)'!AK12/0.85 -> 0.1939591174 | AL16: ='DATA (Real)'!AL12/0.85 -> 0.1943470356 | AM16: ='DATA (Real)'!AM12/0.85 -> 0.1947357297 | AN16: ='DATA (Real)'!AN12/0.85 -> 0.1951252012 | AO16: ='DATA (Real)'!AO12/0.85 -> 0.1955154516 | AP16: ='DATA (Real)'!AP12/0.85 -> 0.1959064825 | AQ16: ='DATA (Real)'!AQ12/0.85 -> 0.1962982954 | AR16: ='DATA (Real)'!AR12/0.85 -> 0.196690892 | AS16: ='DATA (Real)'!AS12/0.85 -> 0.1970842738 | AT16: ='DATA (Real)'!AT12/0.85 -> 0.1974784424 | AU16: ='DATA (Real)'!AU12/0.85 -> 0.1978733992 | AV16: ='DATA (Real)'!AV12/0.85 -> 0.198269146 | AW16: ='DATA (Real)'!AW12/0.85 -> 0.1986656843 | AX16: ='DATA (Real)'!AX12/0.85 -> 0.1990630157 | AY16: ='DATA (Real)'!AY12/0.85 -> 0.1994611417 | AZ16: ='DATA (Real)'!AZ12/0.85 -> 0.199860064 | BA16: ='DATA (Real)'!BA12/0.85 -> 0.2002597841 | BB16: ='DATA (Real)'!BB12/0.85 -> 0.2006603037 | BC16: ='DATA (Real)'!BC12/0.85 -> 0.2010616243 | BD16: ='DATA (Real)'!BD12/0.85 -> 0.2014637476 | BE16: ='DATA (Real)'!BE12/0.85 -> 0.2018666751 | BF16: ='DATA (Real)'!BF12/0.85 -> 0.2022704084 | BG16: ='DATA (Real)'!BG12/0.85 -> 0.2026749492 | BH16: ='DATA (Real)'!BH12/0.85 -> 0.2030802991 | BI16: ='DATA (Real)'!BI12/0.85 -> 0.2034864597 | BJ16: ='DATA (Real)'!BJ12/0.85 -> 0.2038934326 | BK16: ='DATA (Real)'!BK12/0.85 -> 0.2043012195 | BL16: ='DATA (Real)'!BL12/0.85 -> 0.2047098219 | BM16: ='DATA (Real)'!BM12/0.85 -> 0.2051192416 | BN16: ='DATA (Real)'!BN12/0.85 -> 0.2055294801 | BO16: ='DATA (Real)'!BO12/0.85 -> 0.205940539 | BP16: ='DATA (Real)'!BP12/0.85 -> 0.2063524201 | BQ16: ='DATA (Real)'!BQ12/0.85 -> 0.206765125 | BR16: ='DATA (Real)'!BR12/0.85 -> 0.2071786552 | BS16: ='DATA (Real)'!BS12/0.85 -> 0.2075930125 | BT16: ='DATA (Real)'!BT12/0.85 -> 0.2080081985 | BU16: ='DATA (Real)'!BU12/0.85 -> 0.2084242149 | BV16: ='DATA (Real)'!BV12/0.85 -> 0.2088410634 | BW16: ='DATA (Real)'!BW12/0.85 -> 0.2092587455 | BX16: ='DATA (Real)'!BX12/0.85 -> 0.209677263
C17: ='DATA (Real)'!C13 -> Internal/NREL Commercial PV - Class 8 | D17: ='DATA (Real)'!D13 -> Net Capacity Factor (%) | E17: ='DATA (Real)'!E13 -> Commercial Solar + Storage | F17: =F16 -> 0.1630815747 | G17: =G16 -> 0.1648228875 | H17: 0.1665642002 | I17: 0.168305513 | J17: 0.1700468257 | K17: 0.1717881385 | L17: 0.1735294512 | M17: 0.175270764 | N17: 0.1770120768 | O17: 0.1787533895 | P17: 0.1804947023 | Q17: 0.1811485658 | R17: 0.1818024294 | S17: 0.1824562929 | T17: 0.1831101565 | U17: 0.1837640201 | V17: 0.1844178836 | W17: 0.1850717472 | X17: 0.1857256107 | Y17: 0.1863794743 | Z17: 0.1870333379 | AA17: 0.1876872014 | AB17: 0.188341065 | AC17: 0.1889949285 | AD17: 0.1896487921 | AE17: 0.1903026556 | AF17: 0.1909565192 | AG17: 0.1916103828 | AH17: 0.1922642463 | AI17: 0.1929181099 | AJ17: 0.1935719734 | AK17: 0.1939591174 | AL17: 0.1943470356 | AM17: 0.1947357297 | AN17: 0.1951252012 | AO17: 0.1955154516 | AP17: 0.1959064825 | AQ17: 0.1962982954 | AR17: 0.196690892 | AS17: 0.1970842738 | AT17: 0.1974784424 | AU17: 0.1978733992 | AV17: 0.198269146 | AW17: 0.1986656843 | AX17: 0.1990630157 | AY17: 0.1994611417 | AZ17: 0.199860064 | BA17: 0.2002597841 | BB17: 0.2006603037 | BC17: 0.2010616243 | BD17: 0.2014637476 | BE17: 0.2018666751 | BF17: 0.2022704084 | BG17: 0.2026749492 | BH17: 0.2030802991 | BI17: 0.2034864597 | BJ17: 0.2038934326 | BK17: 0.2043012195 | BL17: 0.2047098219 | BM17: 0.2051192416 | BN17: 0.2055294801 | BO17: 0.205940539 | BP17: 0.2063524201 | BQ17: 0.206765125 | BR17: 0.2071786552 | BS17: =BS16 -> 0.2075930125 | BT17: 0.2080081985 | BU17: 0.2084242149 | BV17: 0.2088410634 | BW17: 0.2092587455 | BX17: 0.209677263
C18: ='DATA (Real)'!C14 -> Internal/NREL Utility PV - Class 4 | D18: ='DATA (Real)'!D14 -> Net Capacity Factor (%) | E18: ='DATA (Real)'!E14 -> Solar Photovoltaic Fixed Array (5 MW AC) | F18: ='DATA (Real)'!F14 -> 0.2608403997 | G18: ='DATA (Real)'!G14 -> 0.2636255378 | H18: ='DATA (Real)'!H14 -> 0.266410676 | I18: ='DATA (Real)'!I14 -> 0.2691958141 | J18: ='DATA (Real)'!J14 -> 0.2719809522 | K18: ='DATA (Real)'!K14 -> 0.2747660904 | L18: ='DATA (Real)'!L14 -> 0.2775512285 | M18: ='DATA (Real)'!M14 -> 0.2803363667 | N18: ='DATA (Real)'!N14 -> 0.2831215048 | O18: ='DATA (Real)'!O14 -> 0.285906643 | P18: ='DATA (Real)'!P14 -> 0.2886917811 | Q18: ='DATA (Real)'!Q14 -> 0.2897376015 | R18: ='DATA (Real)'!R14 -> 0.2907834218 | S18: ='DATA (Real)'!S14 -> 0.2918292422 | T18: ='DATA (Real)'!T14 -> 0.2928750626 | U18: ='DATA (Real)'!U14 -> 0.2939208829 | V18: ='DATA (Real)'!V14 -> 0.2949667033 | W18: ='DATA (Real)'!W14 -> 0.2960125237 | X18: ='DATA (Real)'!X14 -> 0.297058344 | Y18: ='DATA (Real)'!Y14 -> 0.2981041644 | Z18: ='DATA (Real)'!Z14 -> 0.2991499848 | AA18: ='DATA (Real)'!AA14 -> 0.3001958051 | AB18: ='DATA (Real)'!AB14 -> 0.3012416255 | AC18: ='DATA (Real)'!AC14 -> 0.3022874459 | AD18: ='DATA (Real)'!AD14 -> 0.3033332662 | AE18: ='DATA (Real)'!AE14 -> 0.3043790866 | AF18: ='DATA (Real)'!AF14 -> 0.305424907 | AG18: ='DATA (Real)'!AG14 -> 0.3064707273 | AH18: ='DATA (Real)'!AH14 -> 0.3075165477 | AI18: ='DATA (Real)'!AI14 -> 0.3085623681 | AJ18: ='DATA (Real)'!AJ14 -> 0.3096081884 | AK18: ='DATA (Real)'!AK14 -> 0.3089042843 | AL18: ='DATA (Real)'!AL14 -> 0.3095220928 | AM18: ='DATA (Real)'!AM14 -> 0.310141137 | AN18: ='DATA (Real)'!AN14 -> 0.3107614193 | AO18: ='DATA (Real)'!AO14 -> 0.3113829421 | AP18: ='DATA (Real)'!AP14 -> 0.312005708 | AQ18: ='DATA (Real)'!AQ14 -> 0.3126297194 | AR18: ='DATA (Real)'!AR14 -> 0.3132549789 | AS18: ='DATA (Real)'!AS14 -> 0.3138814888 | AT18: ='DATA (Real)'!AT14 -> 0.3145092518 | AU18: ='DATA (Real)'!AU14 -> 0.3151382703 | AV18: ='DATA (Real)'!AV14 -> 0.3157685468 | AW18: ='DATA (Real)'!AW14 -> 0.3164000839 | AX18: ='DATA (Real)'!AX14 -> 0.3170328841 | AY18: ='DATA (Real)'!AY14 -> 0.3176669499 | AZ18: ='DATA (Real)'!AZ14 -> 0.3183022838 | BA18: ='DATA (Real)'!BA14 -> 0.3189388883 | BB18: ='DATA (Real)'!BB14 -> 0.3195767661 | BC18: ='DATA (Real)'!BC14 -> 0.3202159197 | BD18: ='DATA (Real)'!BD14 -> 0.3208563515 | BE18: ='DATA (Real)'!BE14 -> 0.3214980642 | BF18: ='DATA (Real)'!BF14 -> 0.3221410603 | BG18: ='DATA (Real)'!BG14 -> 0.3227853424 | BH18: ='DATA (Real)'!BH14 -> 0.3234309131 | BI18: ='DATA (Real)'!BI14 -> 0.324077775 | BJ18: ='DATA (Real)'!BJ14 -> 0.3247259305 | BK18: ='DATA (Real)'!BK14 -> 0.3253753824 | BL18: ='DATA (Real)'!BL14 -> 0.3260261331 | BM18: ='DATA (Real)'!BM14 -> 0.3266781854 | BN18: ='DATA (Real)'!BN14 -> 0.3273315418 | BO18: ='DATA (Real)'!BO14 -> 0.3279862048 | BP18: ='DATA (Real)'!BP14 -> 0.3286421773 | BQ18: ='DATA (Real)'!BQ14 -> 0.3292994616 | BR18: ='DATA (Real)'!BR14 -> 0.3299580605 | BS18: ='DATA (Real)'!BS14 -> 0.3306179767 | BT18: ='DATA (Real)'!BT14 -> 0.3312792126 | BU18: ='DATA (Real)'!BU14 -> 0.331941771 | BV18: ='DATA (Real)'!BV14 -> 0.3326056546 | BW18: ='DATA (Real)'!BW14 -> 0.3332708659 | BX18: ='DATA (Real)'!BX14 -> 0.3339374076
C19: ='DATA (Real)'!C15 -> Internal/NREL Utility PV - Class 4 | D19: ='DATA (Real)'!D15 -> Net Capacity Factor (%) | E19: ='DATA (Real)'!E15 -> Solar Photovoltaic Fixed Array (5 MW AC) + Storage (Solar Only) | F19: ='DATA (Real)'!F15 -> 0.2608403997 | G19: ='DATA (Real)'!G15 -> 0.2636255378 | H19: ='DATA (Real)'!H15 -> 0.266410676 | I19: ='DATA (Real)'!I15 -> 0.2691958141 | J19: ='DATA (Real)'!J15 -> 0.2719809522 | K19: ='DATA (Real)'!K15 -> 0.2747660904 | L19: ='DATA (Real)'!L15 -> 0.2775512285 | M19: ='DATA (Real)'!M15 -> 0.2803363667 | N19: ='DATA (Real)'!N15 -> 0.2831215048 | O19: ='DATA (Real)'!O15 -> 0.285906643 | P19: ='DATA (Real)'!P15 -> 0.2886917811 | Q19: ='DATA (Real)'!Q15 -> 0.2897376015 | R19: ='DATA (Real)'!R15 -> 0.2907834218 | S19: ='DATA (Real)'!S15 -> 0.2918292422 | T19: ='DATA (Real)'!T15 -> 0.2928750626 | U19: ='DATA (Real)'!U15 -> 0.2939208829 | V19: ='DATA (Real)'!V15 -> 0.2949667033 | W19: ='DATA (Real)'!W15 -> 0.2960125237 | X19: ='DATA (Real)'!X15 -> 0.297058344 | Y19: ='DATA (Real)'!Y15 -> 0.2981041644 | Z19: ='DATA (Real)'!Z15 -> 0.2991499848 | AA19: ='DATA (Real)'!AA15 -> 0.3001958051 | AB19: ='DATA (Real)'!AB15 -> 0.3012416255 | AC19: ='DATA (Real)'!AC15 -> 0.3022874459 | AD19: ='DATA (Real)'!AD15 -> 0.3033332662 | AE19: ='DATA (Real)'!AE15 -> 0.3043790866 | AF19: ='DATA (Real)'!AF15 -> 0.305424907 | AG19: ='DATA (Real)'!AG15 -> 0.3064707273 | AH19: ='DATA (Real)'!AH15 -> 0.3075165477 | AI19: ='DATA (Real)'!AI15 -> 0.3085623681 | AJ19: ='DATA (Real)'!AJ15 -> 0.3096081884 | AK19: ='DATA (Real)'!AK15 -> 0.3089042843 | AL19: ='DATA (Real)'!AL15 -> 0.3095220928 | AM19: ='DATA (Real)'!AM15 -> 0.310141137 | AN19: ='DATA (Real)'!AN15 -> 0.3107614193 | AO19: ='DATA (Real)'!AO15 -> 0.3113829421 | AP19: ='DATA (Real)'!AP15 -> 0.312005708 | AQ19: ='DATA (Real)'!AQ15 -> 0.3126297194 | AR19: ='DATA (Real)'!AR15 -> 0.3132549789 | AS19: ='DATA (Real)'!AS15 -> 0.3138814888 | AT19: ='DATA (Real)'!AT15 -> 0.3145092518 | AU19: ='DATA (Real)'!AU15 -> 0.3151382703 | AV19: ='DATA (Real)'!AV15 -> 0.3157685468 | AW19: ='DATA (Real)'!AW15 -> 0.3164000839 | AX19: ='DATA (Real)'!AX15 -> 0.3170328841 | AY19: ='DATA (Real)'!AY15 -> 0.3176669499 | AZ19: ='DATA (Real)'!AZ15 -> 0.3183022838 | BA19: ='DATA (Real)'!BA15 -> 0.3189388883 | BB19: ='DATA (Real)'!BB15 -> 0.3195767661 | BC19: ='DATA (Real)'!BC15 -> 0.3202159197 | BD19: ='DATA (Real)'!BD15 -> 0.3208563515 | BE19: ='DATA (Real)'!BE15 -> 0.3214980642 | BF19: ='DATA (Real)'!BF15 -> 0.3221410603 | BG19: ='DATA (Real)'!BG15 -> 0.3227853424 | BH19: ='DATA (Real)'!BH15 -> 0.3234309131 | BI19: ='DATA (Real)'!BI15 -> 0.324077775 | BJ19: ='DATA (Real)'!BJ15 -> 0.3247259305 | BK19: ='DATA (Real)'!BK15 -> 0.3253753824 | BL19: ='DATA (Real)'!BL15 -> 0.3260261331 | BM19: ='DATA (Real)'!BM15 -> 0.3266781854 | BN19: ='DATA (Real)'!BN15 -> 0.3273315418 | BO19: ='DATA (Real)'!BO15 -> 0.3279862048 | BP19: ='DATA (Real)'!BP15 -> 0.3286421773 | BQ19: ='DATA (Real)'!BQ15 -> 0.3292994616 | BR19: ='DATA (Real)'!BR15 -> 0.3299580605 | BS19: ='DATA (Real)'!BS15 -> 0.3306179767 | BT19: ='DATA (Real)'!BT15 -> 0.3312792126 | BU19: ='DATA (Real)'!BU15 -> 0.331941771 | BV19: ='DATA (Real)'!BV15 -> 0.3326056546 | BW19: ='DATA (Real)'!BW15 -> 0.3332708659 | BX19: ='DATA (Real)'!BX15 -> 0.3339374076
C20: ='DATA (Real)'!C16 -> Internal/NREL Utility PV - Class 4 | D20: ='DATA (Real)'!D16 -> Net Capacity Factor (%) | E20: ='DATA (Real)'!E16 -> Solar Photovoltaic w/Single Axis Tracking (100 MW AC) | F20: ='DATA (Real)'!F16 -> 0.2608403997 | G20: ='DATA (Real)'!G16 -> 0.2636255378 | H20: ='DATA (Real)'!H16 -> 0.266410676 | I20: ='DATA (Real)'!I16 -> 0.2691958141 | J20: ='DATA (Real)'!J16 -> 0.2719809522 | K20: ='DATA (Real)'!K16 -> 0.2747660904 | L20: ='DATA (Real)'!L16 -> 0.2775512285 | M20: ='DATA (Real)'!M16 -> 0.2821030687 | N20: ='DATA (Real)'!N16 -> 0.286729559 | O20: ='DATA (Real)'!O16 -> 0.2914319238 | P20: ='DATA (Real)'!P16 -> 0.2962114073 | Q20: ='DATA (Real)'!Q16 -> 0.2968038301 | R20: ='DATA (Real)'!R16 -> 0.2973974378 | S20: ='DATA (Real)'!S16 -> 0.2979922327 | T20: ='DATA (Real)'!T16 -> 0.2985882171 | U20: ='DATA (Real)'!U16 -> 0.2991853936 | V20: ='DATA (Real)'!V16 -> 0.2997837644 | W20: ='DATA (Real)'!W16 -> 0.3003833319 | X20: ='DATA (Real)'!X16 -> 0.3009840986 | Y20: ='DATA (Real)'!Y16 -> 0.3015860667 | Z20: ='DATA (Real)'!Z16 -> 0.3021892389 | AA20: ='DATA (Real)'!AA16 -> 0.3027936174 | AB20: ='DATA (Real)'!AB16 -> 0.3033992046 | AC20: ='DATA (Real)'!AC16 -> 0.304006003 | AD20: ='DATA (Real)'!AD16 -> 0.304614015 | AE20: ='DATA (Real)'!AE16 -> 0.305223243 | AF20: ='DATA (Real)'!AF16 -> 0.3058336895 | AG20: ='DATA (Real)'!AG16 -> 0.3064453569 | AH20: ='DATA (Real)'!AH16 -> 0.3070582476 | AI20: ='DATA (Real)'!AI16 -> 0.3076723641 | AJ20: ='DATA (Real)'!AJ16 -> 0.3082877088 | AK20: ='DATA (Real)'!AK16 -> 0.3089042843 | AL20: ='DATA (Real)'!AL16 -> 0.3095220928 | AM20: ='DATA (Real)'!AM16 -> 0.310141137 | AN20: ='DATA (Real)'!AN16 -> 0.3107614193 | AO20: ='DATA (Real)'!AO16 -> 0.3113829421 | AP20: ='DATA (Real)'!AP16 -> 0.312005708 | AQ20: ='DATA (Real)'!AQ16 -> 0.3126297194 | AR20: ='DATA (Real)'!AR16 -> 0.3132549789 | AS20: ='DATA (Real)'!AS16 -> 0.3138814888 | AT20: ='DATA (Real)'!AT16 -> 0.3145092518 | AU20: ='DATA (Real)'!AU16 -> 0.3151382703 | AV20: ='DATA (Real)'!AV16 -> 0.3157685468 | AW20: ='DATA (Real)'!AW16 -> 0.3164000839 | AX20: ='DATA (Real)'!AX16 -> 0.3170328841 | AY20: ='DATA (Real)'!AY16 -> 0.3176669499 | AZ20: ='DATA (Real)'!AZ16 -> 0.3183022838 | BA20: ='DATA (Real)'!BA16 -> 0.3189388883 | BB20: ='DATA (Real)'!BB16 -> 0.3195767661 | BC20: ='DATA (Real)'!BC16 -> 0.3202159197 | BD20: ='DATA (Real)'!BD16 -> 0.3208563515 | BE20: ='DATA (Real)'!BE16 -> 0.3214980642 | BF20: ='DATA (Real)'!BF16 -> 0.3221410603 | BG20: ='DATA (Real)'!BG16 -> 0.3227853424 | BH20: ='DATA (Real)'!BH16 -> 0.3234309131 | BI20: ='DATA (Real)'!BI16 -> 0.324077775 | BJ20: ='DATA (Real)'!BJ16 -> 0.3247259305 | BK20: ='DATA (Real)'!BK16 -> 0.3253753824 | BL20: ='DATA (Real)'!BL16 -> 0.3260261331 | BM20: ='DATA (Real)'!BM16 -> 0.3266781854 | BN20: ='DATA (Real)'!BN16 -> 0.3273315418 | BO20: ='DATA (Real)'!BO16 -> 0.3279862048 | BP20: ='DATA (Real)'!BP16 -> 0.3286421773 | BQ20: ='DATA (Real)'!BQ16 -> 0.3292994616 | BR20: ='DATA (Real)'!BR16 -> 0.3299580605 | BS20: ='DATA (Real)'!BS16 -> 0.3306179767 | BT20: ='DATA (Real)'!BT16 -> 0.3312792126 | BU20: ='DATA (Real)'!BU16 -> 0.331941771 | BV20: ='DATA (Real)'!BV16 -> 0.3326056546 | BW20: ='DATA (Real)'!BW16 -> 0.3332708659 | BX20: ='DATA (Real)'!BX16 -> 0.3339374076
C21: ='DATA (Real)'!C17 -> Internal/NREL Utility PV - Class 5 | D21: ='DATA (Real)'!D17 -> Net Capacity Factor (%) | E21: ='DATA (Real)'!E17 -> Southern NW Solar Photovoltaic w/ Single Axis Tracking (100 MW AC) | F21: ='DATA (Real)'!F17 -> 0.2436854049 | G21: ='DATA (Real)'!G17 -> 0.2462873696 | H21: ='DATA (Real)'!H17 -> 0.2488893343 | I21: ='DATA (Real)'!I17 -> 0.251491299 | J21: ='DATA (Real)'!J17 -> 0.2540932637 | K21: ='DATA (Real)'!K17 -> 0.2566952284 | L21: ='DATA (Real)'!L17 -> 0.2592971932 | M21: ='DATA (Real)'!M17 -> 0.2635496671 | N21: ='DATA (Real)'!N17 -> 0.2678718817 | O21: ='DATA (Real)'!O17 -> 0.2722649805 | P21: ='DATA (Real)'!P17 -> 0.2767301262 | Q21: ='DATA (Real)'!Q17 -> 0.2772835865 | R21: ='DATA (Real)'!R17 -> 0.2778381536 | S21: ='DATA (Real)'!S17 -> 0.2783938299 | T21: ='DATA (Real)'!T17 -> 0.2789506176 | U21: ='DATA (Real)'!U17 -> 0.2795085188 | V21: ='DATA (Real)'!V17 -> 0.2800675359 | W21: ='DATA (Real)'!W17 -> 0.2806276709 | X21: ='DATA (Real)'!X17 -> 0.2811889263 | Y21: ='DATA (Real)'!Y17 -> 0.2817513041 | Z21: ='DATA (Real)'!Z17 -> 0.2823148068 | AA21: ='DATA (Real)'!AA17 -> 0.2828794364 | AB21: ='DATA (Real)'!AB17 -> 0.2834451952 | AC21: ='DATA (Real)'!AC17 -> 0.2840120856 | AD21: ='DATA (Real)'!AD17 -> 0.2845801098 | AE21: ='DATA (Real)'!AE17 -> 0.28514927 | AF21: ='DATA (Real)'!AF17 -> 0.2857195686 | AG21: ='DATA (Real)'!AG17 -> 0.2862910077 | AH21: ='DATA (Real)'!AH17 -> 0.2868635897 | AI21: ='DATA (Real)'!AI17 -> 0.2874373169 | AJ21: ='DATA (Real)'!AJ17 -> 0.2880121915 | AK21: ='DATA (Real)'!AK17 -> 0.2885882159 | AL21: ='DATA (Real)'!AL17 -> 0.2891653923 | AM21: ='DATA (Real)'!AM17 -> 0.2897437231 | AN21: ='DATA (Real)'!AN17 -> 0.2903232106 | AO21: ='DATA (Real)'!AO17 -> 0.290903857 | AP21: ='DATA (Real)'!AP17 -> 0.2914856647 | AQ21: ='DATA (Real)'!AQ17 -> 0.292068636 | AR21: ='DATA (Real)'!AR17 -> 0.2926527733 | AS21: ='DATA (Real)'!AS17 -> 0.2932380789 | AT21: ='DATA (Real)'!AT17 -> 0.293824555 | AU21: ='DATA (Real)'!AU17 -> 0.2944122041 | AV21: ='DATA (Real)'!AV17 -> 0.2950010285 | AW21: ='DATA (Real)'!AW17 -> 0.2955910306 | AX21: ='DATA (Real)'!AX17 -> 0.2961822126 | AY21: ='DATA (Real)'!AY17 -> 0.2967745771 | AZ21: ='DATA (Real)'!AZ17 -> 0.2973681262 | BA21: ='DATA (Real)'!BA17 -> 0.2979628625 | BB21: ='DATA (Real)'!BB17 -> 0.2985587882 | BC21: ='DATA (Real)'!BC17 -> 0.2991559058 | BD21: ='DATA (Real)'!BD17 -> 0.2997542176 | BE21: ='DATA (Real)'!BE17 -> 0.300353726 | BF21: ='DATA (Real)'!BF17 -> 0.3009544335 | BG21: ='DATA (Real)'!BG17 -> 0.3015563423 | BH21: ='DATA (Real)'!BH17 -> 0.302159455 | BI21: ='DATA (Real)'!BI17 -> 0.3027637739 | BJ21: ='DATA (Real)'!BJ17 -> 0.3033693015 | BK21: ='DATA (Real)'!BK17 -> 0.3039760401 | BL21: ='DATA (Real)'!BL17 -> 0.3045839922 | BM21: ='DATA (Real)'!BM17 -> 0.3051931602 | BN21: ='DATA (Real)'!BN17 -> 0.3058035465 | BO21: ='DATA (Real)'!BO17 -> 0.3064151536 | BP21: ='DATA (Real)'!BP17 -> 0.3070279839 | BQ21: ='DATA (Real)'!BQ17 -> 0.3076420398 | BR21: ='DATA (Real)'!BR17 -> 0.3082573239 | BS21: ='DATA (Real)'!BS17 -> 0.3088738386 | BT21: ='DATA (Real)'!BT17 -> 0.3094915863 | BU21: ='DATA (Real)'!BU17 -> 0.3101105694 | BV21: ='DATA (Real)'!BV17 -> 0.3107307906 | BW21: ='DATA (Real)'!BW17 -> 0.3113522521 | BX21: ='DATA (Real)'!BX17 -> 0.3119749566
C22: ='DATA (Real)'!C18 -> Internal/NREL Utility PV - Class 4 | D22: ='DATA (Real)'!D18 -> Net Capacity Factor (%) | E22: ='DATA (Real)'!E18 -> 100 MW/400 MWh Lithium-ion w/Solar (Solar Only) | F22: ='DATA (Real)'!F18 -> 0.2608403997 | G22: ='DATA (Real)'!G18 -> 0.2636255378 | H22: ='DATA (Real)'!H18 -> 0.266410676 | I22: ='DATA (Real)'!I18 -> 0.2691958141 | J22: ='DATA (Real)'!J18 -> 0.2719809522 | K22: ='DATA (Real)'!K18 -> 0.2747660904 | L22: ='DATA (Real)'!L18 -> 0.2775512285 | M22: ='DATA (Real)'!M18 -> 0.2821030687 | N22: ='DATA (Real)'!N18 -> 0.286729559 | O22: ='DATA (Real)'!O18 -> 0.2914319238 | P22: ='DATA (Real)'!P18 -> 0.2962114073 | Q22: ='DATA (Real)'!Q18 -> 0.2968038301 | R22: ='DATA (Real)'!R18 -> 0.2973974378 | S22: ='DATA (Real)'!S18 -> 0.2979922327 | T22: ='DATA (Real)'!T18 -> 0.2985882171 | U22: ='DATA (Real)'!U18 -> 0.2991853936 | V22: ='DATA (Real)'!V18 -> 0.2997837644 | W22: ='DATA (Real)'!W18 -> 0.3003833319 | X22: ='DATA (Real)'!X18 -> 0.3009840986 | Y22: ='DATA (Real)'!Y18 -> 0.3015860667 | Z22: ='DATA (Real)'!Z18 -> 0.3021892389 | AA22: ='DATA (Real)'!AA18 -> 0.3027936174 | AB22: ='DATA (Real)'!AB18 -> 0.3033992046 | AC22: ='DATA (Real)'!AC18 -> 0.304006003 | AD22: ='DATA (Real)'!AD18 -> 0.304614015 | AE22: ='DATA (Real)'!AE18 -> 0.305223243 | AF22: ='DATA (Real)'!AF18 -> 0.3058336895 | AG22: ='DATA (Real)'!AG18 -> 0.3064453569 | AH22: ='DATA (Real)'!AH18 -> 0.3070582476 | AI22: ='DATA (Real)'!AI18 -> 0.3076723641 | AJ22: ='DATA (Real)'!AJ18 -> 0.3082877088 | AK22: ='DATA (Real)'!AK18 -> 0.3089042843 | AL22: ='DATA (Real)'!AL18 -> 0.3095220928 | AM22: ='DATA (Real)'!AM18 -> 0.310141137 | AN22: ='DATA (Real)'!AN18 -> 0.3107614193 | AO22: ='DATA (Real)'!AO18 -> 0.3113829421 | AP22: ='DATA (Real)'!AP18 -> 0.312005708 | AQ22: ='DATA (Real)'!AQ18 -> 0.3126297194 | AR22: ='DATA (Real)'!AR18 -> 0.3132549789 | AS22: ='DATA (Real)'!AS18 -> 0.3138814888 | AT22: ='DATA (Real)'!AT18 -> 0.3145092518 | AU22: ='DATA (Real)'!AU18 -> 0.3151382703 | AV22: ='DATA (Real)'!AV18 -> 0.3157685468 | AW22: ='DATA (Real)'!AW18 -> 0.3164000839 | AX22: ='DATA (Real)'!AX18 -> 0.3170328841 | AY22: ='DATA (Real)'!AY18 -> 0.3176669499 | AZ22: ='DATA (Real)'!AZ18 -> 0.3183022838 | BA22: ='DATA (Real)'!BA18 -> 0.3189388883 | BB22: ='DATA (Real)'!BB18 -> 0.3195767661 | BC22: ='DATA (Real)'!BC18 -> 0.3202159197 | BD22: ='DATA (Real)'!BD18 -> 0.3208563515 | BE22: ='DATA (Real)'!BE18 -> 0.3214980642 | BF22: ='DATA (Real)'!BF18 -> 0.3221410603 | BG22: ='DATA (Real)'!BG18 -> 0.3227853424 | BH22: ='DATA (Real)'!BH18 -> 0.3234309131 | BI22: ='DATA (Real)'!BI18 -> 0.324077775 | BJ22: ='DATA (Real)'!BJ18 -> 0.3247259305 | BK22: ='DATA (Real)'!BK18 -> 0.3253753824 | BL22: ='DATA (Real)'!BL18 -> 0.3260261331 | BM22: ='DATA (Real)'!BM18 -> 0.3266781854 | BN22: ='DATA (Real)'!BN18 -> 0.3273315418 | BO22: ='DATA (Real)'!BO18 -> 0.3279862048 | BP22: ='DATA (Real)'!BP18 -> 0.3286421773 | BQ22: ='DATA (Real)'!BQ18 -> 0.3292994616 | BR22: ='DATA (Real)'!BR18 -> 0.3299580605 | BS22: ='DATA (Real)'!BS18 -> 0.3306179767 | BT22: ='DATA (Real)'!BT18 -> 0.3312792126 | BU22: ='DATA (Real)'!BU18 -> 0.331941771 | BV22: ='DATA (Real)'!BV18 -> 0.3326056546 | BW22: ='DATA (Real)'!BW18 -> 0.3332708659 | BX22: ='DATA (Real)'!BX18 -> 0.3339374076
C23: ='DATA (Real)'!C19 -> Internal/NREL Utility PV - Class 4 | D23: ='DATA (Real)'!D19 -> Net Capacity Factor (%) | E23: ='DATA (Real)'!E19 -> 100 MW/200 MWh Lithium-ion w/Solar (Solar Only) | F23: ='DATA (Real)'!F19 -> 0.2608403997 | G23: ='DATA (Real)'!G19 -> 0.2636255378 | H23: ='DATA (Real)'!H19 -> 0.266410676 | I23: ='DATA (Real)'!I19 -> 0.2691958141 | J23: ='DATA (Real)'!J19 -> 0.2719809522 | K23: ='DATA (Real)'!K19 -> 0.2747660904 | L23: ='DATA (Real)'!L19 -> 0.2775512285 | M23: ='DATA (Real)'!M19 -> 0.2821030687 | N23: ='DATA (Real)'!N19 -> 0.286729559 | O23: ='DATA (Real)'!O19 -> 0.2914319238 | P23: ='DATA (Real)'!P19 -> 0.2962114073 | Q23: ='DATA (Real)'!Q19 -> 0.2968038301 | R23: ='DATA (Real)'!R19 -> 0.2973974378 | S23: ='DATA (Real)'!S19 -> 0.2979922327 | T23: ='DATA (Real)'!T19 -> 0.2985882171 | U23: ='DATA (Real)'!U19 -> 0.2991853936 | V23: ='DATA (Real)'!V19 -> 0.2997837644 | W23: ='DATA (Real)'!W19 -> 0.3003833319 | X23: ='DATA (Real)'!X19 -> 0.3009840986 | Y23: ='DATA (Real)'!Y19 -> 0.3015860667 | Z23: ='DATA (Real)'!Z19 -> 0.3021892389 | AA23: ='DATA (Real)'!AA19 -> 0.3027936174 | AB23: ='DATA (Real)'!AB19 -> 0.3033992046 | AC23: ='DATA (Real)'!AC19 -> 0.304006003 | AD23: ='DATA (Real)'!AD19 -> 0.304614015 | AE23: ='DATA (Real)'!AE19 -> 0.305223243 | AF23: ='DATA (Real)'!AF19 -> 0.3058336895 | AG23: ='DATA (Real)'!AG19 -> 0.3064453569 | AH23: ='DATA (Real)'!AH19 -> 0.3070582476 | AI23: ='DATA (Real)'!AI19 -> 0.3076723641 | AJ23: ='DATA (Real)'!AJ19 -> 0.3082877088 | AK23: ='DATA (Real)'!AK19 -> 0.3089042843 | AL23: ='DATA (Real)'!AL19 -> 0.3095220928 | AM23: ='DATA (Real)'!AM19 -> 0.310141137 | AN23: ='DATA (Real)'!AN19 -> 0.3107614193 | AO23: ='DATA (Real)'!AO19 -> 0.3113829421 | AP23: ='DATA (Real)'!AP19 -> 0.312005708 | AQ23: ='DATA (Real)'!AQ19 -> 0.3126297194 | AR23: ='DATA (Real)'!AR19 -> 0.3132549789 | AS23: ='DATA (Real)'!AS19 -> 0.3138814888 | AT23: ='DATA (Real)'!AT19 -> 0.3145092518 | AU23: ='DATA (Real)'!AU19 -> 0.3151382703 | AV23: ='DATA (Real)'!AV19 -> 0.3157685468 | AW23: ='DATA (Real)'!AW19 -> 0.3164000839 | AX23: ='DATA (Real)'!AX19 -> 0.3170328841 | AY23: ='DATA (Real)'!AY19 -> 0.3176669499 | AZ23: ='DATA (Real)'!AZ19 -> 0.3183022838 | BA23: ='DATA (Real)'!BA19 -> 0.3189388883 | BB23: ='DATA (Real)'!BB19 -> 0.3195767661 | BC23: ='DATA (Real)'!BC19 -> 0.3202159197 | BD23: ='DATA (Real)'!BD19 -> 0.3208563515 | BE23: ='DATA (Real)'!BE19 -> 0.3214980642 | BF23: ='DATA (Real)'!BF19 -> 0.3221410603 | BG23: ='DATA (Real)'!BG19 -> 0.3227853424 | BH23: ='DATA (Real)'!BH19 -> 0.3234309131 | BI23: ='DATA (Real)'!BI19 -> 0.324077775 | BJ23: ='DATA (Real)'!BJ19 -> 0.3247259305 | BK23: ='DATA (Real)'!BK19 -> 0.3253753824 | BL23: ='DATA (Real)'!BL19 -> 0.3260261331 | BM23: ='DATA (Real)'!BM19 -> 0.3266781854 | BN23: ='DATA (Real)'!BN19 -> 0.3273315418 | BO23: ='DATA (Real)'!BO19 -> 0.3279862048 | BP23: ='DATA (Real)'!BP19 -> 0.3286421773 | BQ23: ='DATA (Real)'!BQ19 -> 0.3292994616 | BR23: ='DATA (Real)'!BR19 -> 0.3299580605 | BS23: ='DATA (Real)'!BS19 -> 0.3306179767 | BT23: ='DATA (Real)'!BT19 -> 0.3312792126 | BU23: ='DATA (Real)'!BU19 -> 0.331941771 | BV23: ='DATA (Real)'!BV19 -> 0.3326056546 | BW23: ='DATA (Real)'!BW19 -> 0.3332708659 | BX23: ='DATA (Real)'!BX19 -> 0.3339374076
C24: ='DATA (Real)'!C20 -> Internal/NREL Utility PV - Class 4 | D24: ='DATA (Real)'!D20 -> Net Capacity Factor (%) | E24: ='DATA (Real)'!E20 -> 50 MW/200 MWh Lithium-ion w/Solar (Solar Only) | F24: ='DATA (Real)'!F20 -> 0.2608403997 | G24: ='DATA (Real)'!G20 -> 0.2636255378 | H24: ='DATA (Real)'!H20 -> 0.266410676 | I24: ='DATA (Real)'!I20 -> 0.2691958141 | J24: ='DATA (Real)'!J20 -> 0.2719809522 | K24: ='DATA (Real)'!K20 -> 0.2747660904 | L24: ='DATA (Real)'!L20 -> 0.2775512285 | M24: ='DATA (Real)'!M20 -> 0.2821030687 | N24: ='DATA (Real)'!N20 -> 0.286729559 | O24: ='DATA (Real)'!O20 -> 0.2914319238 | P24: ='DATA (Real)'!P20 -> 0.2962114073 | Q24: ='DATA (Real)'!Q20 -> 0.2968038301 | R24: ='DATA (Real)'!R20 -> 0.2973974378 | S24: ='DATA (Real)'!S20 -> 0.2979922327 | T24: ='DATA (Real)'!T20 -> 0.2985882171 | U24: ='DATA (Real)'!U20 -> 0.2991853936 | V24: ='DATA (Real)'!V20 -> 0.2997837644 | W24: ='DATA (Real)'!W20 -> 0.3003833319 | X24: ='DATA (Real)'!X20 -> 0.3009840986 | Y24: ='DATA (Real)'!Y20 -> 0.3015860667 | Z24: ='DATA (Real)'!Z20 -> 0.3021892389 | AA24: ='DATA (Real)'!AA20 -> 0.3027936174 | AB24: ='DATA (Real)'!AB20 -> 0.3033992046 | AC24: ='DATA (Real)'!AC20 -> 0.304006003 | AD24: ='DATA (Real)'!AD20 -> 0.304614015 | AE24: ='DATA (Real)'!AE20 -> 0.305223243 | AF24: ='DATA (Real)'!AF20 -> 0.3058336895 | AG24: ='DATA (Real)'!AG20 -> 0.3064453569 | AH24: ='DATA (Real)'!AH20 -> 0.3070582476 | AI24: ='DATA (Real)'!AI20 -> 0.3076723641 | AJ24: ='DATA (Real)'!AJ20 -> 0.3082877088 | AK24: ='DATA (Real)'!AK20 -> 0.3089042843 | AL24: ='DATA (Real)'!AL20 -> 0.3095220928 | AM24: ='DATA (Real)'!AM20 -> 0.310141137 | AN24: ='DATA (Real)'!AN20 -> 0.3107614193 | AO24: ='DATA (Real)'!AO20 -> 0.3113829421 | AP24: ='DATA (Real)'!AP20 -> 0.312005708 | AQ24: ='DATA (Real)'!AQ20 -> 0.3126297194 | AR24: ='DATA (Real)'!AR20 -> 0.3132549789 | AS24: ='DATA (Real)'!AS20 -> 0.3138814888 | AT24: ='DATA (Real)'!AT20 -> 0.3145092518 | AU24: ='DATA (Real)'!AU20 -> 0.3151382703 | AV24: ='DATA (Real)'!AV20 -> 0.3157685468 | AW24: ='DATA (Real)'!AW20 -> 0.3164000839 | AX24: ='DATA (Real)'!AX20 -> 0.3170328841 | AY24: ='DATA (Real)'!AY20 -> 0.3176669499 | AZ24: ='DATA (Real)'!AZ20 -> 0.3183022838 | BA24: ='DATA (Real)'!BA20 -> 0.3189388883 | BB24: ='DATA (Real)'!BB20 -> 0.3195767661 | BC24: ='DATA (Real)'!BC20 -> 0.3202159197 | BD24: ='DATA (Real)'!BD20 -> 0.3208563515 | BE24: ='DATA (Real)'!BE20 -> 0.3214980642 | BF24: ='DATA (Real)'!BF20 -> 0.3221410603 | BG24: ='DATA (Real)'!BG20 -> 0.3227853424 | BH24: ='DATA (Real)'!BH20 -> 0.3234309131 | BI24: ='DATA (Real)'!BI20 -> 0.324077775 | BJ24: ='DATA (Real)'!BJ20 -> 0.3247259305 | BK24: ='DATA (Real)'!BK20 -> 0.3253753824 | BL24: ='DATA (Real)'!BL20 -> 0.3260261331 | BM24: ='DATA (Real)'!BM20 -> 0.3266781854 | BN24: ='DATA (Real)'!BN20 -> 0.3273315418 | BO24: ='DATA (Real)'!BO20 -> 0.3279862048 | BP24: ='DATA (Real)'!BP20 -> 0.3286421773 | BQ24: ='DATA (Real)'!BQ20 -> 0.3292994616 | BR24: ='DATA (Real)'!BR20 -> 0.3299580605 | BS24: ='DATA (Real)'!BS20 -> 0.3306179767 | BT24: ='DATA (Real)'!BT20 -> 0.3312792126 | BU24: ='DATA (Real)'!BU20 -> 0.331941771 | BV24: ='DATA (Real)'!BV20 -> 0.3326056546 | BW24: ='DATA (Real)'!BW20 -> 0.3332708659 | BX24: ='DATA (Real)'!BX20 -> 0.3339374076
C25: ='DATA (Real)'!C21 -> Internal/NREL Land-Based Wind - Class 8 | D25: ='DATA (Real)'!D21 -> Net Capacity Factor (%) | E25: ='DATA (Real)'!E21 -> NW Wind On System (Share) | F25: ='DATA (Real)'!F21 -> 0.322 | G25: ='DATA (Real)'!G21 -> 0.322 | H25: ='DATA (Real)'!H21 -> 0.322 | I25: ='DATA (Real)'!I21 -> 0.322 | J25: ='DATA (Real)'!J21 -> 0.322 | K25: ='DATA (Real)'!K21 -> 0.322 | L25: ='DATA (Real)'!L21 -> 0.322 | M25: ='DATA (Real)'!M21 -> 0.3272808 | N25: ='DATA (Real)'!N21 -> 0.3326482051 | O25: ='DATA (Real)'!O21 -> 0.3381036357 | P25: ='DATA (Real)'!P21 -> 0.3436485353 | Q25: ='DATA (Real)'!Q21 -> 0.3439921838 | R25: ='DATA (Real)'!R21 -> 0.344336176 | S25: ='DATA (Real)'!S21 -> 0.3446805122 | T25: ='DATA (Real)'!T21 -> 0.3450251927 | U25: ='DATA (Real)'!U21 -> 0.3453702179 | V25: ='DATA (Real)'!V21 -> 0.3457155881 | W25: ='DATA (Real)'!W21 -> 0.3460613037 | X25: ='DATA (Real)'!X21 -> 0.346407365 | Y25: ='DATA (Real)'!Y21 -> 0.3467537724 | Z25: ='DATA (Real)'!Z21 -> 0.3471005262 | AA25: ='DATA (Real)'!AA21 -> 0.3474476267 | AB25: ='DATA (Real)'!AB21 -> 0.3477950743 | AC25: ='DATA (Real)'!AC21 -> 0.3481428694 | AD25: ='DATA (Real)'!AD21 -> 0.3484910123 | AE25: ='DATA (Real)'!AE21 -> 0.3488395033 | AF25: ='DATA (Real)'!AF21 -> 0.3491883428 | AG25: ='DATA (Real)'!AG21 -> 0.3495375311 | AH25: ='DATA (Real)'!AH21 -> 0.3498870686 | AI25: ='DATA (Real)'!AI21 -> 0.3502369557 | AJ25: ='DATA (Real)'!AJ21 -> 0.3505871927 | AK25: ='DATA (Real)'!AK21 -> 0.3509377799 | AL25: ='DATA (Real)'!AL21 -> 0.3512887176 | AM25: ='DATA (Real)'!AM21 -> 0.3516400064 | AN25: ='DATA (Real)'!AN21 -> 0.3519916464 | AO25: ='DATA (Real)'!AO21 -> 0.352343638 | AP25: ='DATA (Real)'!AP21 -> 0.3526959816 | AQ25: ='DATA (Real)'!AQ21 -> 0.3530486776 | AR25: ='DATA (Real)'!AR21 -> 0.3534017263 | AS25: ='DATA (Real)'!AS21 -> 0.353755128 | AT25: ='DATA (Real)'!AT21 -> 0.3541088832 | AU25: ='DATA (Real)'!AU21 -> 0.354462992 | AV25: ='DATA (Real)'!AV21 -> 0.354817455 | AW25: ='DATA (Real)'!AW21 -> 0.3551722725 | AX25: ='DATA (Real)'!AX21 -> 0.3555274448 | AY25: ='DATA (Real)'!AY21 -> 0.3558829722 | AZ25: ='DATA (Real)'!AZ21 -> 0.3562388552 | BA25: ='DATA (Real)'!BA21 -> 0.356595094 | BB25: ='DATA (Real)'!BB21 -> 0.3569516891 | BC25: ='DATA (Real)'!BC21 -> 0.3573086408 | BD25: ='DATA (Real)'!BD21 -> 0.3576659495 | BE25: ='DATA (Real)'!BE21 -> 0.3580236154 | BF25: ='DATA (Real)'!BF21 -> 0.358381639 | BG25: ='DATA (Real)'!BG21 -> 0.3587400207 | BH25: ='DATA (Real)'!BH21 -> 0.3590987607 | BI25: ='DATA (Real)'!BI21 -> 0.3594578594 | BJ25: ='DATA (Real)'!BJ21 -> 0.3598173173 | BK25: ='DATA (Real)'!BK21 -> 0.3601771346 | BL25: ='DATA (Real)'!BL21 -> 0.3605373118 | BM25: ='DATA (Real)'!BM21 -> 0.3608978491 | BN25: ='DATA (Real)'!BN21 -> 0.3612587469 | BO25: ='DATA (Real)'!BO21 -> 0.3616200057 | BP25: ='DATA (Real)'!BP21 -> 0.3619816257 | BQ25: ='DATA (Real)'!BQ21 -> 0.3623436073 | BR25: ='DATA (Real)'!BR21 -> 0.3627059509 | BS25: ='DATA (Real)'!BS21 -> 0.3630686569 | BT25: ='DATA (Real)'!BT21 -> 0.3634317255 | BU25: ='DATA (Real)'!BU21 -> 0.3637951572 | BV25: ='DATA (Real)'!BV21 -> 0.3641589524 | BW25: ='DATA (Real)'!BW21 -> 0.3645231113 | BX25: ='DATA (Real)'!BX21 -> 0.3648876345
C26: ='DATA (Real)'!C22 -> Internal/NREL Land-Based Wind - Class 8 | D26: ='DATA (Real)'!D22 -> Net Capacity Factor (%) | E26: ='DATA (Real)'!E22 -> NW Wind Off System | F26: ='DATA (Real)'!F22 -> 0.322 | G26: ='DATA (Real)'!G22 -> 0.322 | H26: ='DATA (Real)'!H22 -> 0.322 | I26: ='DATA (Real)'!I22 -> 0.322 | J26: ='DATA (Real)'!J22 -> 0.322 | K26: ='DATA (Real)'!K22 -> 0.322 | L26: ='DATA (Real)'!L22 -> 0.322 | M26: ='DATA (Real)'!M22 -> 0.3272808 | N26: ='DATA (Real)'!N22 -> 0.3326482051 | O26: ='DATA (Real)'!O22 -> 0.3381036357 | P26: ='DATA (Real)'!P22 -> 0.3436485353 | Q26: ='DATA (Real)'!Q22 -> 0.3439921838 | R26: ='DATA (Real)'!R22 -> 0.344336176 | S26: ='DATA (Real)'!S22 -> 0.3446805122 | T26: ='DATA (Real)'!T22 -> 0.3450251927 | U26: ='DATA (Real)'!U22 -> 0.3453702179 | V26: ='DATA (Real)'!V22 -> 0.3457155881 | W26: ='DATA (Real)'!W22 -> 0.3460613037 | X26: ='DATA (Real)'!X22 -> 0.346407365 | Y26: ='DATA (Real)'!Y22 -> 0.3467537724 | Z26: ='DATA (Real)'!Z22 -> 0.3471005262 | AA26: ='DATA (Real)'!AA22 -> 0.3474476267 | AB26: ='DATA (Real)'!AB22 -> 0.3477950743 | AC26: ='DATA (Real)'!AC22 -> 0.3481428694 | AD26: ='DATA (Real)'!AD22 -> 0.3484910123 | AE26: ='DATA (Real)'!AE22 -> 0.3488395033 | AF26: ='DATA (Real)'!AF22 -> 0.3491883428 | AG26: ='DATA (Real)'!AG22 -> 0.3495375311 | AH26: ='DATA (Real)'!AH22 -> 0.3498870686 | AI26: ='DATA (Real)'!AI22 -> 0.3502369557 | AJ26: ='DATA (Real)'!AJ22 -> 0.3505871927 | AK26: ='DATA (Real)'!AK22 -> 0.3509377799 | AL26: ='DATA (Real)'!AL22 -> 0.3512887176 | AM26: ='DATA (Real)'!AM22 -> 0.3516400064 | AN26: ='DATA (Real)'!AN22 -> 0.3519916464 | AO26: ='DATA (Real)'!AO22 -> 0.352343638 | AP26: ='DATA (Real)'!AP22 -> 0.3526959816 | AQ26: ='DATA (Real)'!AQ22 -> 0.3530486776 | AR26: ='DATA (Real)'!AR22 -> 0.3534017263 | AS26: ='DATA (Real)'!AS22 -> 0.353755128 | AT26: ='DATA (Real)'!AT22 -> 0.3541088832 | AU26: ='DATA (Real)'!AU22 -> 0.354462992 | AV26: ='DATA (Real)'!AV22 -> 0.354817455 | AW26: ='DATA (Real)'!AW22 -> 0.3551722725 | AX26: ='DATA (Real)'!AX22 -> 0.3555274448 | AY26: ='DATA (Real)'!AY22 -> 0.3558829722 | AZ26: ='DATA (Real)'!AZ22 -> 0.3562388552 | BA26: ='DATA (Real)'!BA22 -> 0.356595094 | BB26: ='DATA (Real)'!BB22 -> 0.3569516891 | BC26: ='DATA (Real)'!BC22 -> 0.3573086408 | BD26: ='DATA (Real)'!BD22 -> 0.3576659495 | BE26: ='DATA (Real)'!BE22 -> 0.3580236154 | BF26: ='DATA (Real)'!BF22 -> 0.358381639 | BG26: ='DATA (Real)'!BG22 -> 0.3587400207 | BH26: ='DATA (Real)'!BH22 -> 0.3590987607 | BI26: ='DATA (Real)'!BI22 -> 0.3594578594 | BJ26: ='DATA (Real)'!BJ22 -> 0.3598173173 | BK26: ='DATA (Real)'!BK22 -> 0.3601771346 | BL26: ='DATA (Real)'!BL22 -> 0.3605373118 | BM26: ='DATA (Real)'!BM22 -> 0.3608978491 | BN26: ='DATA (Real)'!BN22 -> 0.3612587469 | BO26: ='DATA (Real)'!BO22 -> 0.3616200057 | BP26: ='DATA (Real)'!BP22 -> 0.3619816257 | BQ26: ='DATA (Real)'!BQ22 -> 0.3623436073 | BR26: ='DATA (Real)'!BR22 -> 0.3627059509 | BS26: ='DATA (Real)'!BS22 -> 0.3630686569 | BT26: ='DATA (Real)'!BT22 -> 0.3634317255 | BU26: ='DATA (Real)'!BU22 -> 0.3637951572 | BV26: ='DATA (Real)'!BV22 -> 0.3641589524 | BW26: ='DATA (Real)'!BW22 -> 0.3645231113 | BX26: ='DATA (Real)'!BX22 -> 0.3648876345
C27: ='DATA (Real)'!C23 -> Internal | D27: ='DATA (Real)'!D23 -> Net Capacity Factor (%) | E27: ='DATA (Real)'!E23 -> Wind Montana | F27: ='DATA (Real)'!F23 -> 0.41 | G27: ='DATA (Real)'!G23 -> 0.41 | H27: ='DATA (Real)'!H23 -> 0.41 | I27: ='DATA (Real)'!I23 -> 0.41 | J27: ='DATA (Real)'!J23 -> 0.41 | K27: ='DATA (Real)'!K23 -> 0.41 | L27: ='DATA (Real)'!L23 -> 0.41 | M27: ='DATA (Real)'!M23 -> 0.416724 | N27: ='DATA (Real)'!N23 -> 0.4235582736 | O27: ='DATA (Real)'!O23 -> 0.4305046293 | P27: ='DATA (Real)'!P23 -> 0.4375649052 | Q27: ='DATA (Real)'!Q23 -> 0.4380024701 | R27: ='DATA (Real)'!R23 -> 0.4384404726 | S27: ='DATA (Real)'!S23 -> 0.4388789131 | T27: ='DATA (Real)'!T23 -> 0.439317792 | U27: ='DATA (Real)'!U23 -> 0.4397571098 | V27: ='DATA (Real)'!V23 -> 0.4401968669 | W27: ='DATA (Real)'!W23 -> 0.4406370637 | X27: ='DATA (Real)'!X23 -> 0.4410777008 | Y27: ='DATA (Real)'!Y23 -> 0.4415187785 | Z27: ='DATA (Real)'!Z23 -> 0.4419602973 | AA27: ='DATA (Real)'!AA23 -> 0.4424022576 | AB27: ='DATA (Real)'!AB23 -> 0.4428446598 | AC27: ='DATA (Real)'!AC23 -> 0.4432875045 | AD27: ='DATA (Real)'!AD23 -> 0.443730792 | AE27: ='DATA (Real)'!AE23 -> 0.4441745228 | AF27: ='DATA (Real)'!AF23 -> 0.4446186973 | AG27: ='DATA (Real)'!AG23 -> 0.445063316 | AH27: ='DATA (Real)'!AH23 -> 0.4455083793 | AI27: ='DATA (Real)'!AI23 -> 0.4459538877 | AJ27: ='DATA (Real)'!AJ23 -> 0.4463998416 | AK27: ='DATA (Real)'!AK23 -> 0.4468462414 | AL27: ='DATA (Real)'!AL23 -> 0.4472930877 | AM27: ='DATA (Real)'!AM23 -> 0.4477403808 | AN27: ='DATA (Real)'!AN23 -> 0.4481881211 | AO27: ='DATA (Real)'!AO23 -> 0.4486363093 | AP27: ='DATA (Real)'!AP23 -> 0.4490849456 | AQ27: ='DATA (Real)'!AQ23 -> 0.4495340305 | AR27: ='DATA (Real)'!AR23 -> 0.4499835646 | AS27: ='DATA (Real)'!AS23 -> 0.4504335481 | AT27: ='DATA (Real)'!AT23 -> 0.4508839817 | AU27: ='DATA (Real)'!AU23 -> 0.4513348656 | AV27: ='DATA (Real)'!AV23 -> 0.4517862005 | AW27: ='DATA (Real)'!AW23 -> 0.4522379867 | AX27: ='DATA (Real)'!AX23 -> 0.4526902247 | AY27: ='DATA (Real)'!AY23 -> 0.4531429149 | AZ27: ='DATA (Real)'!AZ23 -> 0.4535960578 | BA27: ='DATA (Real)'!BA23 -> 0.4540496539 | BB27: ='DATA (Real)'!BB23 -> 0.4545037036 | BC27: ='DATA (Real)'!BC23 -> 0.4549582073 | BD27: ='DATA (Real)'!BD23 -> 0.4554131655 | BE27: ='DATA (Real)'!BE23 -> 0.4558685786 | BF27: ='DATA (Real)'!BF23 -> 0.4563244472 | BG27: ='DATA (Real)'!BG23 -> 0.4567807717 | BH27: ='DATA (Real)'!BH23 -> 0.4572375524 | BI27: ='DATA (Real)'!BI23 -> 0.45769479 | BJ27: ='DATA (Real)'!BJ23 -> 0.4581524848 | BK27: ='DATA (Real)'!BK23 -> 0.4586106373 | BL27: ='DATA (Real)'!BL23 -> 0.4590692479 | BM27: ='DATA (Real)'!BM23 -> 0.4595283171 | BN27: ='DATA (Real)'!BN23 -> 0.4599878455 | BO27: ='DATA (Real)'!BO23 -> 0.4604478333 | BP27: ='DATA (Real)'!BP23 -> 0.4609082811 | BQ27: ='DATA (Real)'!BQ23 -> 0.4613691894 | BR27: ='DATA (Real)'!BR23 -> 0.4618305586 | BS27: ='DATA (Real)'!BS23 -> 0.4622923892 | BT27: ='DATA (Real)'!BT23 -> 0.4627546816 | BU27: ='DATA (Real)'!BU23 -> 0.4632174362 | BV27: ='DATA (Real)'!BV23 -> 0.4636806537 | BW27: ='DATA (Real)'!BW23 -> 0.4641443343 | BX27: ='DATA (Real)'!BX23 -> 0.4646084787
C28: ='DATA (Real)'!C24 -> NREL Wind Speed Class 12 | D28: ='DATA (Real)'!D24 -> Net Capacity Factor (%) | E28: ='DATA (Real)'!E24 -> Off Shore Wind (Share) | F28: ='DATA (Real)'!F24 -> 0.4618726114 | G28: ='DATA (Real)'!G24 -> 0.4668178941 | H28: ='DATA (Real)'!H24 -> 0.4713267726 | I28: ='DATA (Real)'!I24 -> 0.4755596161 | J28: ='DATA (Real)'!J24 -> 0.4796019705 | K28: ='DATA (Real)'!K24 -> 0.4835048988 | L28: ='DATA (Real)'!L24 -> 0.4873013381 | M28: ='DATA (Real)'!M24 -> 0.4910137773 | N28: ='DATA (Real)'!N24 -> 0.494658257 | O28: ='DATA (Real)'!O24 -> 0.4982466208 | P28: ='DATA (Real)'!P24 -> 0.5017878631 | Q28: ='DATA (Real)'!Q24 -> 0.5032889752 | R28: ='DATA (Real)'!R24 -> 0.5047554993 | S28: ='DATA (Real)'!S24 -> 0.5061919036 | T28: ='DATA (Real)'!T24 -> 0.5076018423 | U28: ='DATA (Real)'!U24 -> 0.5089883428 | V28: ='DATA (Real)'!V24 -> 0.510353941 | W28: ='DATA (Real)'!W24 -> 0.5117007821 | X28: ='DATA (Real)'!X24 -> 0.5130306972 | Y28: ='DATA (Real)'!Y24 -> 0.5143452617 | Z28: ='DATA (Real)'!Z24 -> 0.5156458409 | AA28: ='DATA (Real)'!AA24 -> 0.5169336256 | AB28: ='DATA (Real)'!AB24 -> 0.5182096605 | AC28: ='DATA (Real)'!AC24 -> 0.5194748678 | AD28: ='DATA (Real)'!AD24 -> 0.5207300648 | AE28: ='DATA (Real)'!AE24 -> 0.5219759799 | AF28: ='DATA (Real)'!AF24 -> 0.5232132645 | AG28: ='DATA (Real)'!AG24 -> 0.524442504 | AH28: ='DATA (Real)'!AH24 -> 0.5256642262 | AI28: ='DATA (Real)'!AI24 -> 0.5268789083 | AJ28: ='DATA (Real)'!AJ24 -> 0.5280869837 | AK28: ='DATA (Real)'!AK24 -> 0 | AL28: ='DATA (Real)'!AL24 -> 0 | AM28: ='DATA (Real)'!AM24 -> 0 | AN28: ='DATA (Real)'!AN24 -> 0 | AO28: ='DATA (Real)'!AO24 -> 0 | AP28: ='DATA (Real)'!AP24 -> 0 | AQ28: ='DATA (Real)'!AQ24 -> 0 | AR28: ='DATA (Real)'!AR24 -> 0 | AS28: ='DATA (Real)'!AS24 -> 0 | AT28: ='DATA (Real)'!AT24 -> 0 | AU28: ='DATA (Real)'!AU24 -> 0 | AV28: ='DATA (Real)'!AV24 -> 0 | AW28: ='DATA (Real)'!AW24 -> 0 | AX28: ='DATA (Real)'!AX24 -> 0 | AY28: ='DATA (Real)'!AY24 -> 0 | AZ28: ='DATA (Real)'!AZ24 -> 0 | BA28: ='DATA (Real)'!BA24 -> 0 | BB28: ='DATA (Real)'!BB24 -> 0 | BC28: ='DATA (Real)'!BC24 -> 0 | BD28: ='DATA (Real)'!BD24 -> 0 | BE28: ='DATA (Real)'!BE24 -> 0 | BF28: ='DATA (Real)'!BF24 -> 0 | BG28: ='DATA (Real)'!BG24 -> 0 | BH28: ='DATA (Real)'!BH24 -> 0 | BI28: ='DATA (Real)'!BI24 -> 0 | BJ28: ='DATA (Real)'!BJ24 -> 0 | BK28: ='DATA (Real)'!BK24 -> 0 | BL28: ='DATA (Real)'!BL24 -> 0 | BM28: ='DATA (Real)'!BM24 -> 0 | BN28: ='DATA (Real)'!BN24 -> 0 | BO28: ='DATA (Real)'!BO24 -> 0 | BP28: ='DATA (Real)'!BP24 -> 0 | BQ28: ='DATA (Real)'!BQ24 -> 0 | BR28: ='DATA (Real)'!BR24 -> 0 | BS28: ='DATA (Real)'!BS24 -> 0 | BT28: ='DATA (Real)'!BT24 -> 0 | BU28: ='DATA (Real)'!BU24 -> 0 | BV28: ='DATA (Real)'!BV24 -> 0 | BW28: ='DATA (Real)'!BW24 -> 0 | BX28: ='DATA (Real)'!BX24 -> 0
C29: ='DATA (Real)'!C25 -> NREL Nuclear - Small Modular Reactor | D29: ='DATA (Real)'!D25 -> Net Capacity Factor (%) | E29: ='DATA (Real)'!E25 -> Small Modular Reactor (share) | F29: ='DATA (Real)'!F25 -> 0.937 | G29: ='DATA (Real)'!G25 -> 0.937 | H29: ='DATA (Real)'!H25 -> 0.937 | I29: ='DATA (Real)'!I25 -> 0.937 | J29: ='DATA (Real)'!J25 -> 0.937 | K29: ='DATA (Real)'!K25 -> 0.937 | L29: ='DATA (Real)'!L25 -> 0.937 | M29: ='DATA (Real)'!M25 -> 0.937 | N29: ='DATA (Real)'!N25 -> 0.937 | O29: ='DATA (Real)'!O25 -> 0.937 | P29: ='DATA (Real)'!P25 -> 0.937 | Q29: ='DATA (Real)'!Q25 -> 0.937 | R29: ='DATA (Real)'!R25 -> 0.937 | S29: ='DATA (Real)'!S25 -> 0.937 | T29: ='DATA (Real)'!T25 -> 0.937 | U29: ='DATA (Real)'!U25 -> 0.937 | V29: ='DATA (Real)'!V25 -> 0.937 | W29: ='DATA (Real)'!W25 -> 0.937 | X29: ='DATA (Real)'!X25 -> 0.937 | Y29: ='DATA (Real)'!Y25 -> 0.937 | Z29: ='DATA (Real)'!Z25 -> 0.937 | AA29: ='DATA (Real)'!AA25 -> 0.937 | AB29: ='DATA (Real)'!AB25 -> 0.937 | AC29: ='DATA (Real)'!AC25 -> 0.937 | AD29: ='DATA (Real)'!AD25 -> 0.937 | AE29: ='DATA (Real)'!AE25 -> 0.937 | AF29: ='DATA (Real)'!AF25 -> 0.937 | AG29: ='DATA (Real)'!AG25 -> 0.937 | AH29: ='DATA (Real)'!AH25 -> 0.937 | AI29: ='DATA (Real)'!AI25 -> 0.937 | AJ29: ='DATA (Real)'!AJ25 -> 0.937 | AK29: ='DATA (Real)'!AK25 -> 0.937 | AL29: ='DATA (Real)'!AL25 -> 0.937 | AM29: ='DATA (Real)'!AM25 -> 0.937 | AN29: ='DATA (Real)'!AN25 -> 0.937 | AO29: ='DATA (Real)'!AO25 -> 0.937 | AP29: ='DATA (Real)'!AP25 -> 0.937 | AQ29: ='DATA (Real)'!AQ25 -> 0.937 | AR29: ='DATA (Real)'!AR25 -> 0.937 | AS29: ='DATA (Real)'!AS25 -> 0.937 | AT29: ='DATA (Real)'!AT25 -> 0.937 | AU29: ='DATA (Real)'!AU25 -> 0.937 | AV29: ='DATA (Real)'!AV25 -> 0.937 | AW29: ='DATA (Real)'!AW25 -> 0.937 | AX29: ='DATA (Real)'!AX25 -> 0.937 | AY29: ='DATA (Real)'!AY25 -> 0.937 | AZ29: ='DATA (Real)'!AZ25 -> 0.937 | BA29: ='DATA (Real)'!BA25 -> 0.937 | BB29: ='DATA (Real)'!BB25 -> 0.937 | BC29: ='DATA (Real)'!BC25 -> 0.937 | BD29: ='DATA (Real)'!BD25 -> 0.937 | BE29: ='DATA (Real)'!BE25 -> 0.937 | BF29: ='DATA (Real)'!BF25 -> 0.937 | BG29: ='DATA (Real)'!BG25 -> 0.937 | BH29: ='DATA (Real)'!BH25 -> 0.937 | BI29: ='DATA (Real)'!BI25 -> 0.937 | BJ29: ='DATA (Real)'!BJ25 -> 0.937 | BK29: ='DATA (Real)'!BK25 -> 0.937 | BL29: ='DATA (Real)'!BL25 -> 0.937 | BM29: ='DATA (Real)'!BM25 -> 0.937 | BN29: ='DATA (Real)'!BN25 -> 0.937 | BO29: ='DATA (Real)'!BO25 -> 0.937 | BP29: ='DATA (Real)'!BP25 -> 0.937 | BQ29: ='DATA (Real)'!BQ25 -> 0.937 | BR29: ='DATA (Real)'!BR25 -> 0.937 | BS29: ='DATA (Real)'!BS25 -> 0.937 | BT29: ='DATA (Real)'!BT25 -> 0.937 | BU29: ='DATA (Real)'!BU25 -> 0.937 | BV29: ='DATA (Real)'!BV25 -> 0.937 | BW29: ='DATA (Real)'!BW25 -> 0.937 | BX29: ='DATA (Real)'!BX25 -> 0.937
C30: ='DATA (Real)'!C26 -> NREL Geothermal - Hydro / Flash | D30: ='DATA (Real)'!D26 -> Net Capacity Factor (%) | E30: ='DATA (Real)'!E26 -> Geothermal (Off System) | F30: ='DATA (Real)'!F26 -> 0.9 | G30: ='DATA (Real)'!G26 -> 0.9 | H30: ='DATA (Real)'!H26 -> 0.9 | I30: ='DATA (Real)'!I26 -> 0.9 | J30: ='DATA (Real)'!J26 -> 0.9 | K30: ='DATA (Real)'!K26 -> 0.9 | L30: ='DATA (Real)'!L26 -> 0.9 | M30: ='DATA (Real)'!M26 -> 0.9 | N30: ='DATA (Real)'!N26 -> 0.9 | O30: ='DATA (Real)'!O26 -> 0.9 | P30: ='DATA (Real)'!P26 -> 0.9 | Q30: ='DATA (Real)'!Q26 -> 0.9 | R30: ='DATA (Real)'!R26 -> 0.9 | S30: ='DATA (Real)'!S26 -> 0.9 | T30: ='DATA (Real)'!T26 -> 0.9 | U30: ='DATA (Real)'!U26 -> 0.9 | V30: ='DATA (Real)'!V26 -> 0.9 | W30: ='DATA (Real)'!W26 -> 0.9 | X30: ='DATA (Real)'!X26 -> 0.9 | Y30: ='DATA (Real)'!Y26 -> 0.9 | Z30: ='DATA (Real)'!Z26 -> 0.9 | AA30: ='DATA (Real)'!AA26 -> 0.9 | AB30: ='DATA (Real)'!AB26 -> 0.9 | AC30: ='DATA (Real)'!AC26 -> 0.9 | AD30: ='DATA (Real)'!AD26 -> 0.9 | AE30: ='DATA (Real)'!AE26 -> 0.9 | AF30: ='DATA (Real)'!AF26 -> 0.9 | AG30: ='DATA (Real)'!AG26 -> 0.9 | AH30: ='DATA (Real)'!AH26 -> 0.9 | AI30: ='DATA (Real)'!AI26 -> 0.9 | AJ30: ='DATA (Real)'!AJ26 -> 0.9 | AK30: ='DATA (Real)'!AK26 -> 0.9 | AL30: ='DATA (Real)'!AL26 -> 0.9 | AM30: ='DATA (Real)'!AM26 -> 0.9 | AN30: ='DATA (Real)'!AN26 -> 0.9 | AO30: ='DATA (Real)'!AO26 -> 0.9 | AP30: ='DATA (Real)'!AP26 -> 0.9 | AQ30: ='DATA (Real)'!AQ26 -> 0.9 | AR30: ='DATA (Real)'!AR26 -> 0.9 | AS30: ='DATA (Real)'!AS26 -> 0.9 | AT30: ='DATA (Real)'!AT26 -> 0.9 | AU30: ='DATA (Real)'!AU26 -> 0.9 | AV30: ='DATA (Real)'!AV26 -> 0.9 | AW30: ='DATA (Real)'!AW26 -> 0.9 | AX30: ='DATA (Real)'!AX26 -> 0.9 | AY30: ='DATA (Real)'!AY26 -> 0.9 | AZ30: ='DATA (Real)'!AZ26 -> 0.9 | BA30: ='DATA (Real)'!BA26 -> 0.9 | BB30: ='DATA (Real)'!BB26 -> 0.9 | BC30: ='DATA (Real)'!BC26 -> 0.9 | BD30: ='DATA (Real)'!BD26 -> 0.9 | BE30: ='DATA (Real)'!BE26 -> 0.9 | BF30: ='DATA (Real)'!BF26 -> 0.9 | BG30: ='DATA (Real)'!BG26 -> 0.9 | BH30: ='DATA (Real)'!BH26 -> 0.9 | BI30: ='DATA (Real)'!BI26 -> 0.9 | BJ30: ='DATA (Real)'!BJ26 -> 0.9 | BK30: ='DATA (Real)'!BK26 -> 0.9 | BL30: ='DATA (Real)'!BL26 -> 0.9 | BM30: ='DATA (Real)'!BM26 -> 0.9 | BN30: ='DATA (Real)'!BN26 -> 0.9 | BO30: ='DATA (Real)'!BO26 -> 0.9 | BP30: ='DATA (Real)'!BP26 -> 0.9 | BQ30: ='DATA (Real)'!BQ26 -> 0.9 | BR30: ='DATA (Real)'!BR26 -> 0.9 | BS30: ='DATA (Real)'!BS26 -> 0.9 | BT30: ='DATA (Real)'!BT26 -> 0.9 | BU30: ='DATA (Real)'!BU26 -> 0.9 | BV30: ='DATA (Real)'!BV26 -> 0.9 | BW30: ='DATA (Real)'!BW26 -> 0.9 | BX30: ='DATA (Real)'!BX26 -> 0.9
D32: ='DATA (Real)'!D28 -> Heat Rate (MMBtu/MWh)
C33: ='DATA (Real)'!C29 -> NREL Nuclear - Small Modular Reactor | D33: ='DATA (Real)'!D29 -> Heat Rate (MMBtu/MWh) | E33: ='DATA (Real)'!E29 -> Small Modular Reactor (share) | F33: ='DATA (Real)'!F29 -> 10.443 | G33: ='DATA (Real)'!G29 -> 10.443 | H33: ='DATA (Real)'!H29 -> 10.443 | I33: ='DATA (Real)'!I29 -> 10.443 | J33: ='DATA (Real)'!J29 -> 10.443 | K33: ='DATA (Real)'!K29 -> 10.443 | L33: ='DATA (Real)'!L29 -> 10.443 | M33: ='DATA (Real)'!M29 -> 10.443 | N33: ='DATA (Real)'!N29 -> 10.443 | O33: ='DATA (Real)'!O29 -> 10.443 | P33: ='DATA (Real)'!P29 -> 10.443 | Q33: ='DATA (Real)'!Q29 -> 10.443 | R33: ='DATA (Real)'!R29 -> 10.443 | S33: ='DATA (Real)'!S29 -> 10.443 | T33: ='DATA (Real)'!T29 -> 10.443 | U33: ='DATA (Real)'!U29 -> 10.443 | V33: ='DATA (Real)'!V29 -> 10.443 | W33: ='DATA (Real)'!W29 -> 10.443 | X33: ='DATA (Real)'!X29 -> 10.443 | Y33: ='DATA (Real)'!Y29 -> 10.443 | Z33: ='DATA (Real)'!Z29 -> 10.443 | AA33: ='DATA (Real)'!AA29 -> 10.443 | AB33: ='DATA (Real)'!AB29 -> 10.443 | AC33: ='DATA (Real)'!AC29 -> 10.443 | AD33: ='DATA (Real)'!AD29 -> 10.443 | AE33: ='DATA (Real)'!AE29 -> 10.443 | AF33: ='DATA (Real)'!AF29 -> 10.443 | AG33: ='DATA (Real)'!AG29 -> 10.443 | AH33: ='DATA (Real)'!AH29 -> 10.443 | AI33: ='DATA (Real)'!AI29 -> 10.443 | AJ33: ='DATA (Real)'!AJ29 -> 10.443 | AK33: ='DATA (Real)'!AK29 -> 10.443 | AL33: ='DATA (Real)'!AL29 -> 10.443 | AM33: ='DATA (Real)'!AM29 -> 10.443 | AN33: ='DATA (Real)'!AN29 -> 10.443 | AO33: ='DATA (Real)'!AO29 -> 10.443 | AP33: ='DATA (Real)'!AP29 -> 10.443 | AQ33: ='DATA (Real)'!AQ29 -> 10.443 | AR33: ='DATA (Real)'!AR29 -> 10.443 | AS33: ='DATA (Real)'!AS29 -> 10.443 | AT33: ='DATA (Real)'!AT29 -> 10.443 | AU33: ='DATA (Real)'!AU29 -> 10.443 | AV33: ='DATA (Real)'!AV29 -> 10.443 | AW33: ='DATA (Real)'!AW29 -> 10.443 | AX33: ='DATA (Real)'!AX29 -> 10.443 | AY33: ='DATA (Real)'!AY29 -> 10.443 | AZ33: ='DATA (Real)'!AZ29 -> 10.443 | BA33: ='DATA (Real)'!BA29 -> 10.443 | BB33: ='DATA (Real)'!BB29 -> 10.443 | BC33: ='DATA (Real)'!BC29 -> 10.443 | BD33: ='DATA (Real)'!BD29 -> 10.443 | BE33: ='DATA (Real)'!BE29 -> 10.443 | BF33: ='DATA (Real)'!BF29 -> 10.443 | BG33: ='DATA (Real)'!BG29 -> 10.443 | BH33: ='DATA (Real)'!BH29 -> 10.443 | BI33: ='DATA (Real)'!BI29 -> 10.443 | BJ33: ='DATA (Real)'!BJ29 -> 10.443 | BK33: ='DATA (Real)'!BK29 -> 10.443 | BL33: ='DATA (Real)'!BL29 -> 10.443 | BM33: ='DATA (Real)'!BM29 -> 10.443 | BN33: ='DATA (Real)'!BN29 -> 10.443 | BO33: ='DATA (Real)'!BO29 -> 10.443 | BP33: ='DATA (Real)'!BP29 -> 10.443 | BQ33: ='DATA (Real)'!BQ29 -> 10.443 | BR33: ='DATA (Real)'!BR29 -> 10.443 | BS33: ='DATA (Real)'!BS29 -> 10.443 | BT33: ='DATA (Real)'!BT29 -> 10.443 | BU33: ='DATA (Real)'!BU29 -> 10.443 | BV33: ='DATA (Real)'!BV29 -> 10.443 | BW33: ='DATA (Real)'!BW29 -> 10.443 | BX33: ='DATA (Real)'!BX29 -> 10.443
C34: ='DATA (Real)'!C30 -> Internal | D34: ='DATA (Real)'!D30 -> Heat Rate (MMBtu/MWh) | E34: ='DATA (Real)'!E30 -> Wood Biomass | F34: ='DATA (Real)'!F30 -> 13.524 | G34: ='DATA (Real)'!G30 -> 13.524 | H34: ='DATA (Real)'!H30 -> 13.524 | I34: ='DATA (Real)'!I30 -> 13.524 | J34: ='DATA (Real)'!J30 -> 13.524 | K34: ='DATA (Real)'!K30 -> 13.524 | L34: ='DATA (Real)'!L30 -> 13.524 | M34: ='DATA (Real)'!M30 -> 13.524 | N34: ='DATA (Real)'!N30 -> 13.524 | O34: ='DATA (Real)'!O30 -> 13.524 | P34: ='DATA (Real)'!P30 -> 13.524 | Q34: ='DATA (Real)'!Q30 -> 13.524 | R34: ='DATA (Real)'!R30 -> 13.524 | S34: ='DATA (Real)'!S30 -> 13.524 | T34: ='DATA (Real)'!T30 -> 13.524 | U34: ='DATA (Real)'!U30 -> 13.524 | V34: ='DATA (Real)'!V30 -> 13.524 | W34: ='DATA (Real)'!W30 -> 13.524 | X34: ='DATA (Real)'!X30 -> 13.524 | Y34: ='DATA (Real)'!Y30 -> 13.524 | Z34: ='DATA (Real)'!Z30 -> 13.524 | AA34: ='DATA (Real)'!AA30 -> 13.524 | AB34: ='DATA (Real)'!AB30 -> 13.524 | AC34: ='DATA (Real)'!AC30 -> 13.524 | AD34: ='DATA (Real)'!AD30 -> 13.524 | AE34: ='DATA (Real)'!AE30 -> 13.524 | AF34: ='DATA (Real)'!AF30 -> 13.524 | AG34: ='DATA (Real)'!AG30 -> 13.524 | AH34: ='DATA (Real)'!AH30 -> 13.524 | AI34: ='DATA (Real)'!AI30 -> 13.524 | AJ34: ='DATA (Real)'!AJ30 -> 13.524 | AK34: ='DATA (Real)'!AK30 -> 13.524 | AL34: ='DATA (Real)'!AL30 -> 13.524 | AM34: ='DATA (Real)'!AM30 -> 13.524 | AN34: ='DATA (Real)'!AN30 -> 13.524 | AO34: ='DATA (Real)'!AO30 -> 13.524 | AP34: ='DATA (Real)'!AP30 -> 13.524 | AQ34: ='DATA (Real)'!AQ30 -> 13.524 | AR34: ='DATA (Real)'!AR30 -> 13.524 | AS34: ='DATA (Real)'!AS30 -> 13.524 | AT34: ='DATA (Real)'!AT30 -> 13.524 | AU34: ='DATA (Real)'!AU30 -> 13.524 | AV34: ='DATA (Real)'!AV30 -> 13.524 | AW34: ='DATA (Real)'!AW30 -> 13.524 | AX34: ='DATA (Real)'!AX30 -> 13.524 | AY34: ='DATA (Real)'!AY30 -> 13.524 | AZ34: ='DATA (Real)'!AZ30 -> 13.524 | BA34: ='DATA (Real)'!BA30 -> 13.524 | BB34: ='DATA (Real)'!BB30 -> 13.524 | BC34: ='DATA (Real)'!BC30 -> 13.524 | BD34: ='DATA (Real)'!BD30 -> 13.524 | BE34: ='DATA (Real)'!BE30 -> 13.524 | BF34: ='DATA (Real)'!BF30 -> 13.524 | BG34: ='DATA (Real)'!BG30 -> 13.524 | BH34: ='DATA (Real)'!BH30 -> 13.524 | BI34: ='DATA (Real)'!BI30 -> 13.524 | BJ34: ='DATA (Real)'!BJ30 -> 13.524 | BK34: ='DATA (Real)'!BK30 -> 13.524 | BL34: ='DATA (Real)'!BL30 -> 13.524 | BM34: ='DATA (Real)'!BM30 -> 13.524 | BN34: ='DATA (Real)'!BN30 -> 13.524 | BO34: ='DATA (Real)'!BO30 -> 13.524 | BP34: ='DATA (Real)'!BP30 -> 13.524 | BQ34: ='DATA (Real)'!BQ30 -> 13.524 | BR34: ='DATA (Real)'!BR30 -> 13.524 | BS34: ='DATA (Real)'!BS30 -> 13.524 | BT34: ='DATA (Real)'!BT30 -> 13.524 | BU34: ='DATA (Real)'!BU30 -> 13.524 | BV34: ='DATA (Real)'!BV30 -> 13.524 | BW34: ='DATA (Real)'!BW30 -> 13.524 | BX34: ='DATA (Real)'!BX30 -> 13.524
C35: ='DATA (Real)'!C31 -> Internal | D35: ='DATA (Real)'!D31 -> Heat Rate (MMBtu/MWh) | E35: ='DATA (Real)'!E31 -> Rathdrum CT 2055 Uprates two unit operation | F35: ='DATA (Real)'!F31 -> 11.2 | G35: ='DATA (Real)'!G31 -> 11.2 | H35: ='DATA (Real)'!H31 -> 11.2 | I35: ='DATA (Real)'!I31 -> 11.2 | J35: ='DATA (Real)'!J31 -> 11.2 | K35: ='DATA (Real)'!K31 -> 11.2 | L35: ='DATA (Real)'!L31 -> 11.2 | M35: ='DATA (Real)'!M31 -> 11.2 | N35: ='DATA (Real)'!N31 -> 11.2 | O35: ='DATA (Real)'!O31 -> 11.2 | P35: ='DATA (Real)'!P31 -> 11.2 | Q35: ='DATA (Real)'!Q31 -> 11.2 | R35: ='DATA (Real)'!R31 -> 11.2 | S35: ='DATA (Real)'!S31 -> 11.2 | T35: ='DATA (Real)'!T31 -> 11.2 | U35: ='DATA (Real)'!U31 -> 11.2 | V35: ='DATA (Real)'!V31 -> 11.2 | W35: ='DATA (Real)'!W31 -> 11.2 | X35: ='DATA (Real)'!X31 -> 11.2 | Y35: ='DATA (Real)'!Y31 -> 11.2 | Z35: ='DATA (Real)'!Z31 -> 11.2 | AA35: ='DATA (Real)'!AA31 -> 11.2 | AB35: ='DATA (Real)'!AB31 -> 11.2 | AC35: ='DATA (Real)'!AC31 -> 11.2 | AD35: ='DATA (Real)'!AD31 -> 11.2 | AE35: ='DATA (Real)'!AE31 -> 11.2 | AF35: ='DATA (Real)'!AF31 -> 11.2 | AG35: ='DATA (Real)'!AG31 -> 11.2 | AH35: ='DATA (Real)'!AH31 -> 11.2 | AI35: ='DATA (Real)'!AI31 -> 11.2 | AJ35: ='DATA (Real)'!AJ31 -> 11.2 | AK35: ='DATA (Real)'!AK31 -> 11.2 | AL35: ='DATA (Real)'!AL31 -> 11.2 | AM35: ='DATA (Real)'!AM31 -> 11.2 | AN35: ='DATA (Real)'!AN31 -> 11.2 | AO35: ='DATA (Real)'!AO31 -> 11.2 | AP35: ='DATA (Real)'!AP31 -> 11.2 | AQ35: ='DATA (Real)'!AQ31 -> 11.2 | AR35: ='DATA (Real)'!AR31 -> 11.2 | AS35: ='DATA (Real)'!AS31 -> 11.2 | AT35: ='DATA (Real)'!AT31 -> 11.2 | AU35: ='DATA (Real)'!AU31 -> 11.2 | AV35: ='DATA (Real)'!AV31 -> 11.2 | AW35: ='DATA (Real)'!AW31 -> 11.2 | AX35: ='DATA (Real)'!AX31 -> 11.2 | AY35: ='DATA (Real)'!AY31 -> 11.2 | AZ35: ='DATA (Real)'!AZ31 -> 11.2 | BA35: ='DATA (Real)'!BA31 -> 11.2 | BB35: ='DATA (Real)'!BB31 -> 11.2 | BC35: ='DATA (Real)'!BC31 -> 11.2 | BD35: ='DATA (Real)'!BD31 -> 11.2 | BE35: ='DATA (Real)'!BE31 -> 11.2 | BF35: ='DATA (Real)'!BF31 -> 11.2 | BG35: ='DATA (Real)'!BG31 -> 11.2 | BH35: ='DATA (Real)'!BH31 -> 11.2 | BI35: ='DATA (Real)'!BI31 -> 11.2 | BJ35: ='DATA (Real)'!BJ31 -> 11.2 | BK35: ='DATA (Real)'!BK31 -> 11.2 | BL35: ='DATA (Real)'!BL31 -> 11.2 | BM35: ='DATA (Real)'!BM31 -> 11.2 | BN35: ='DATA (Real)'!BN31 -> 11.2 | BO35: ='DATA (Real)'!BO31 -> 11.2 | BP35: ='DATA (Real)'!BP31 -> 11.2 | BQ35: ='DATA (Real)'!BQ31 -> 11.2 | BR35: ='DATA (Real)'!BR31 -> 11.2 | BS35: ='DATA (Real)'!BS31 -> 11.2 | BT35: ='DATA (Real)'!BT31 -> 11.2 | BU35: ='DATA (Real)'!BU31 -> 11.2 | BV35: ='DATA (Real)'!BV31 -> 11.2 | BW35: ='DATA (Real)'!BW31 -> 11.2 | BX35: ='DATA (Real)'!BX31 -> 11.2
C36: ='DATA (Real)'!C32 -> Internal | D36: ='DATA (Real)'!D32 -> Heat Rate (MMBtu/MWh) | E36: ='DATA (Real)'!E32 -> Rathdrum CT: Inlet Evaporation 2 unit operation | F36: ='DATA (Real)'!F32 -> 11.32 | G36: ='DATA (Real)'!G32 -> 11.32 | H36: ='DATA (Real)'!H32 -> 11.32 | I36: ='DATA (Real)'!I32 -> 11.32 | J36: ='DATA (Real)'!J32 -> 11.32 | K36: ='DATA (Real)'!K32 -> 11.32 | L36: ='DATA (Real)'!L32 -> 11.32 | M36: ='DATA (Real)'!M32 -> 11.32 | N36: ='DATA (Real)'!N32 -> 11.32 | O36: ='DATA (Real)'!O32 -> 11.32 | P36: ='DATA (Real)'!P32 -> 11.32 | Q36: ='DATA (Real)'!Q32 -> 11.32 | R36: ='DATA (Real)'!R32 -> 11.32 | S36: ='DATA (Real)'!S32 -> 11.32 | T36: ='DATA (Real)'!T32 -> 11.32 | U36: ='DATA (Real)'!U32 -> 11.32 | V36: ='DATA (Real)'!V32 -> 11.32 | W36: ='DATA (Real)'!W32 -> 11.32 | X36: ='DATA (Real)'!X32 -> 11.32 | Y36: ='DATA (Real)'!Y32 -> 11.32 | Z36: ='DATA (Real)'!Z32 -> 11.32 | AA36: ='DATA (Real)'!AA32 -> 11.32 | AB36: ='DATA (Real)'!AB32 -> 11.32 | AC36: ='DATA (Real)'!AC32 -> 11.32 | AD36: ='DATA (Real)'!AD32 -> 11.32 | AE36: ='DATA (Real)'!AE32 -> 11.32 | AF36: ='DATA (Real)'!AF32 -> 11.32 | AG36: ='DATA (Real)'!AG32 -> 11.32 | AH36: ='DATA (Real)'!AH32 -> 11.32 | AI36: ='DATA (Real)'!AI32 -> 11.32 | AJ36: ='DATA (Real)'!AJ32 -> 11.32 | AK36: ='DATA (Real)'!AK32 -> 11.32 | AL36: ='DATA (Real)'!AL32 -> 11.32 | AM36: ='DATA (Real)'!AM32 -> 11.32 | AN36: ='DATA (Real)'!AN32 -> 11.32 | AO36: ='DATA (Real)'!AO32 -> 11.32 | AP36: ='DATA (Real)'!AP32 -> 11.32 | AQ36: ='DATA (Real)'!AQ32 -> 11.32 | AR36: ='DATA (Real)'!AR32 -> 11.32 | AS36: ='DATA (Real)'!AS32 -> 11.32 | AT36: ='DATA (Real)'!AT32 -> 11.32 | AU36: ='DATA (Real)'!AU32 -> 11.32 | AV36: ='DATA (Real)'!AV32 -> 11.32 | AW36: ='DATA (Real)'!AW32 -> 11.32 | AX36: ='DATA (Real)'!AX32 -> 11.32 | AY36: ='DATA (Real)'!AY32 -> 11.32 | AZ36: ='DATA (Real)'!AZ32 -> 11.32 | BA36: ='DATA (Real)'!BA32 -> 11.32 | BB36: ='DATA (Real)'!BB32 -> 11.32 | BC36: ='DATA (Real)'!BC32 -> 11.32 | BD36: ='DATA (Real)'!BD32 -> 11.32 | BE36: ='DATA (Real)'!BE32 -> 11.32 | BF36: ='DATA (Real)'!BF32 -> 11.32 | BG36: ='DATA (Real)'!BG32 -> 11.32 | BH36: ='DATA (Real)'!BH32 -> 11.32 | BI36: ='DATA (Real)'!BI32 -> 11.32 | BJ36: ='DATA (Real)'!BJ32 -> 11.32 | BK36: ='DATA (Real)'!BK32 -> 11.32 | BL36: ='DATA (Real)'!BL32 -> 11.32 | BM36: ='DATA (Real)'!BM32 -> 11.32 | BN36: ='DATA (Real)'!BN32 -> 11.32 | BO36: ='DATA (Real)'!BO32 -> 11.32 | BP36: ='DATA (Real)'!BP32 -> 11.32 | BQ36: ='DATA (Real)'!BQ32 -> 11.32 | BR36: ='DATA (Real)'!BR32 -> 11.32 | BS36: ='DATA (Real)'!BS32 -> 11.32 | BT36: ='DATA (Real)'!BT32 -> 11.32 | BU36: ='DATA (Real)'!BU32 -> 11.32 | BV36: ='DATA (Real)'!BV32 -> 11.32 | BW36: ='DATA (Real)'!BW32 -> 11.32 | BX36: ='DATA (Real)'!BX32 -> 11.32
C37: ='DATA (Real)'!C33 -> Internal | D37: ='DATA (Real)'!D33 -> Heat Rate (MMBtu/MWh) | E37: ='DATA (Real)'!E33 -> Kettle Falls Turbine Generator Upgrade | F37: ='DATA (Real)'!F33 -> 0 | G37: ='DATA (Real)'!G33 -> 0 | H37: ='DATA (Real)'!H33 -> 0 | I37: ='DATA (Real)'!I33 -> 0 | J37: ='DATA (Real)'!J33 -> 0 | K37: ='DATA (Real)'!K33 -> 0 | L37: ='DATA (Real)'!L33 -> 0 | M37: ='DATA (Real)'!M33 -> 0 | N37: ='DATA (Real)'!N33 -> 0 | O37: ='DATA (Real)'!O33 -> 0 | P37: ='DATA (Real)'!P33 -> 0 | Q37: ='DATA (Real)'!Q33 -> 0 | R37: ='DATA (Real)'!R33 -> 0 | S37: ='DATA (Real)'!S33 -> 0 | T37: ='DATA (Real)'!T33 -> 0 | U37: ='DATA (Real)'!U33 -> 0 | V37: ='DATA (Real)'!V33 -> 0 | W37: ='DATA (Real)'!W33 -> 0 | X37: ='DATA (Real)'!X33 -> 0 | Y37: ='DATA (Real)'!Y33 -> 0 | Z37: ='DATA (Real)'!Z33 -> 0 | AA37: ='DATA (Real)'!AA33 -> 0 | AB37: ='DATA (Real)'!AB33 -> 0 | AC37: ='DATA (Real)'!AC33 -> 0 | AD37: ='DATA (Real)'!AD33 -> 0 | AE37: ='DATA (Real)'!AE33 -> 0 | AF37: ='DATA (Real)'!AF33 -> 0 | AG37: ='DATA (Real)'!AG33 -> 0 | AH37: ='DATA (Real)'!AH33 -> 0 | AI37: ='DATA (Real)'!AI33 -> 0 | AJ37: ='DATA (Real)'!AJ33 -> 0 | AK37: ='DATA (Real)'!AK33 -> 0 | AL37: ='DATA (Real)'!AL33 -> 0 | AM37: ='DATA (Real)'!AM33 -> 0 | AN37: ='DATA (Real)'!AN33 -> 0 | AO37: ='DATA (Real)'!AO33 -> 0 | AP37: ='DATA (Real)'!AP33 -> 0 | AQ37: ='DATA (Real)'!AQ33 -> 0 | AR37: ='DATA (Real)'!AR33 -> 0 | AS37: ='DATA (Real)'!AS33 -> 0 | AT37: ='DATA (Real)'!AT33 -> 0 | AU37: ='DATA (Real)'!AU33 -> 0 | AV37: ='DATA (Real)'!AV33 -> 0 | AW37: ='DATA (Real)'!AW33 -> 0 | AX37: ='DATA (Real)'!AX33 -> 0 | AY37: ='DATA (Real)'!AY33 -> 0 | AZ37: ='DATA (Real)'!AZ33 -> 0 | BA37: ='DATA (Real)'!BA33 -> 0 | BB37: ='DATA (Real)'!BB33 -> 0 | BC37: ='DATA (Real)'!BC33 -> 0 | BD37: ='DATA (Real)'!BD33 -> 0 | BE37: ='DATA (Real)'!BE33 -> 0 | BF37: ='DATA (Real)'!BF33 -> 0 | BG37: ='DATA (Real)'!BG33 -> 0 | BH37: ='DATA (Real)'!BH33 -> 0 | BI37: ='DATA (Real)'!BI33 -> 0 | BJ37: ='DATA (Real)'!BJ33 -> 0 | BK37: ='DATA (Real)'!BK33 -> 0 | BL37: ='DATA (Real)'!BL33 -> 0 | BM37: ='DATA (Real)'!BM33 -> 0 | BN37: ='DATA (Real)'!BN33 -> 0 | BO37: ='DATA (Real)'!BO33 -> 0 | BP37: ='DATA (Real)'!BP33 -> 0 | BQ37: ='DATA (Real)'!BQ33 -> 0 | BR37: ='DATA (Real)'!BR33 -> 0 | BS37: ='DATA (Real)'!BS33 -> 0 | BT37: ='DATA (Real)'!BT33 -> 0 | BU37: ='DATA (Real)'!BU33 -> 0 | BV37: ='DATA (Real)'!BV33 -> 0 | BW37: ='DATA (Real)'!BW33 -> 0 | BX37: ='DATA (Real)'!BX33 -> 0
C38: ='DATA (Real)'!C34 -> Internal | D38: ='DATA (Real)'!D34 -> Heat Rate (MMBtu/MWh) | E38: ='DATA (Real)'!E34 -> 7F.04 CT Frame Greenfield | F38: ='DATA (Real)'!F34 -> 10.04 | G38: ='DATA (Real)'!G34 -> 10.04 | H38: ='DATA (Real)'!H34 -> 10.04 | I38: ='DATA (Real)'!I34 -> 10.04 | J38: ='DATA (Real)'!J34 -> 10.04 | K38: ='DATA (Real)'!K34 -> 10.04 | L38: ='DATA (Real)'!L34 -> 10.04 | M38: ='DATA (Real)'!M34 -> 10.04 | N38: ='DATA (Real)'!N34 -> 10.04 | O38: ='DATA (Real)'!O34 -> 10.04 | P38: ='DATA (Real)'!P34 -> 10.04 | Q38: ='DATA (Real)'!Q34 -> 10.04 | R38: ='DATA (Real)'!R34 -> 10.04 | S38: ='DATA (Real)'!S34 -> 10.04 | T38: ='DATA (Real)'!T34 -> 10.04 | U38: ='DATA (Real)'!U34 -> 10.04 | V38: ='DATA (Real)'!V34 -> 10.04 | W38: ='DATA (Real)'!W34 -> 10.04 | X38: ='DATA (Real)'!X34 -> 10.04 | Y38: ='DATA (Real)'!Y34 -> 10.04 | Z38: ='DATA (Real)'!Z34 -> 10.04 | AA38: ='DATA (Real)'!AA34 -> 10.04 | AB38: ='DATA (Real)'!AB34 -> 10.04 | AC38: ='DATA (Real)'!AC34 -> 10.04 | AD38: ='DATA (Real)'!AD34 -> 10.04 | AE38: ='DATA (Real)'!AE34 -> 10.04 | AF38: ='DATA (Real)'!AF34 -> 10.04 | AG38: ='DATA (Real)'!AG34 -> 10.04 | AH38: ='DATA (Real)'!AH34 -> 10.04 | AI38: ='DATA (Real)'!AI34 -> 10.04 | AJ38: ='DATA (Real)'!AJ34 -> 10.04 | AK38: ='DATA (Real)'!AK34 -> 10.04 | AL38: ='DATA (Real)'!AL34 -> 10.04 | AM38: ='DATA (Real)'!AM34 -> 10.04 | AN38: ='DATA (Real)'!AN34 -> 10.04 | AO38: ='DATA (Real)'!AO34 -> 10.04 | AP38: ='DATA (Real)'!AP34 -> 10.04 | AQ38: ='DATA (Real)'!AQ34 -> 10.04 | AR38: ='DATA (Real)'!AR34 -> 10.04 | AS38: ='DATA (Real)'!AS34 -> 10.04 | AT38: ='DATA (Real)'!AT34 -> 10.04 | AU38: ='DATA (Real)'!AU34 -> 10.04 | AV38: ='DATA (Real)'!AV34 -> 10.04 | AW38: ='DATA (Real)'!AW34 -> 10.04 | AX38: ='DATA (Real)'!AX34 -> 10.04 | AY38: ='DATA (Real)'!AY34 -> 10.04 | AZ38: ='DATA (Real)'!AZ34 -> 10.04 | BA38: ='DATA (Real)'!BA34 -> 10.04 | BB38: ='DATA (Real)'!BB34 -> 10.04 | BC38: ='DATA (Real)'!BC34 -> 10.04 | BD38: ='DATA (Real)'!BD34 -> 10.04 | BE38: ='DATA (Real)'!BE34 -> 10.04 | BF38: ='DATA (Real)'!BF34 -> 10.04 | BG38: ='DATA (Real)'!BG34 -> 10.04 | BH38: ='DATA (Real)'!BH34 -> 10.04 | BI38: ='DATA (Real)'!BI34 -> 10.04 | BJ38: ='DATA (Real)'!BJ34 -> 10.04 | BK38: ='DATA (Real)'!BK34 -> 10.04 | BL38: ='DATA (Real)'!BL34 -> 10.04 | BM38: ='DATA (Real)'!BM34 -> 10.04 | BN38: ='DATA (Real)'!BN34 -> 10.04 | BO38: ='DATA (Real)'!BO34 -> 10.04 | BP38: ='DATA (Real)'!BP34 -> 10.04 | BQ38: ='DATA (Real)'!BQ34 -> 10.04 | BR38: ='DATA (Real)'!BR34 -> 10.04 | BS38: ='DATA (Real)'!BS34 -> 10.04 | BT38: ='DATA (Real)'!BT34 -> 10.04 | BU38: ='DATA (Real)'!BU34 -> 10.04 | BV38: ='DATA (Real)'!BV34 -> 10.04 | BW38: ='DATA (Real)'!BW34 -> 10.04 | BX38: ='DATA (Real)'!BX34 -> 10.04
C39: ='DATA (Real)'!C35 -> Internal | D39: ='DATA (Real)'!D35 -> Heat Rate (MMBtu/MWh) | E39: ='DATA (Real)'!E35 -> Reciprocating Engine (ICE) Machine | F39: ='DATA (Real)'!F35 -> 8.19 | G39: ='DATA (Real)'!G35 -> 8.19 | H39: ='DATA (Real)'!H35 -> 8.19 | I39: ='DATA (Real)'!I35 -> 8.19 | J39: ='DATA (Real)'!J35 -> 8.19 | K39: ='DATA (Real)'!K35 -> 8.19 | L39: ='DATA (Real)'!L35 -> 8.19 | M39: ='DATA (Real)'!M35 -> 8.19 | N39: ='DATA (Real)'!N35 -> 8.19 | O39: ='DATA (Real)'!O35 -> 8.19 | P39: ='DATA (Real)'!P35 -> 8.19 | Q39: ='DATA (Real)'!Q35 -> 8.19 | R39: ='DATA (Real)'!R35 -> 8.19 | S39: ='DATA (Real)'!S35 -> 8.19 | T39: ='DATA (Real)'!T35 -> 8.19 | U39: ='DATA (Real)'!U35 -> 8.19 | V39: ='DATA (Real)'!V35 -> 8.19 | W39: ='DATA (Real)'!W35 -> 8.19 | X39: ='DATA (Real)'!X35 -> 8.19 | Y39: ='DATA (Real)'!Y35 -> 8.19 | Z39: ='DATA (Real)'!Z35 -> 8.19 | AA39: ='DATA (Real)'!AA35 -> 8.19 | AB39: ='DATA (Real)'!AB35 -> 8.19 | AC39: ='DATA (Real)'!AC35 -> 8.19 | AD39: ='DATA (Real)'!AD35 -> 8.19 | AE39: ='DATA (Real)'!AE35 -> 8.19 | AF39: ='DATA (Real)'!AF35 -> 8.19 | AG39: ='DATA (Real)'!AG35 -> 8.19 | AH39: ='DATA (Real)'!AH35 -> 8.19 | AI39: ='DATA (Real)'!AI35 -> 8.19 | AJ39: ='DATA (Real)'!AJ35 -> 8.19 | AK39: ='DATA (Real)'!AK35 -> 8.19 | AL39: ='DATA (Real)'!AL35 -> 8.19 | AM39: ='DATA (Real)'!AM35 -> 8.19 | AN39: ='DATA (Real)'!AN35 -> 8.19 | AO39: ='DATA (Real)'!AO35 -> 8.19 | AP39: ='DATA (Real)'!AP35 -> 8.19 | AQ39: ='DATA (Real)'!AQ35 -> 8.19 | AR39: ='DATA (Real)'!AR35 -> 8.19 | AS39: ='DATA (Real)'!AS35 -> 8.19 | AT39: ='DATA (Real)'!AT35 -> 8.19 | AU39: ='DATA (Real)'!AU35 -> 8.19 | AV39: ='DATA (Real)'!AV35 -> 8.19 | AW39: ='DATA (Real)'!AW35 -> 8.19 | AX39: ='DATA (Real)'!AX35 -> 8.19 | AY39: ='DATA (Real)'!AY35 -> 8.19 | AZ39: ='DATA (Real)'!AZ35 -> 8.19 | BA39: ='DATA (Real)'!BA35 -> 8.19 | BB39: ='DATA (Real)'!BB35 -> 8.19 | BC39: ='DATA (Real)'!BC35 -> 8.19 | BD39: ='DATA (Real)'!BD35 -> 8.19 | BE39: ='DATA (Real)'!BE35 -> 8.19 | BF39: ='DATA (Real)'!BF35 -> 8.19 | BG39: ='DATA (Real)'!BG35 -> 8.19 | BH39: ='DATA (Real)'!BH35 -> 8.19 | BI39: ='DATA (Real)'!BI35 -> 8.19 | BJ39: ='DATA (Real)'!BJ35 -> 8.19 | BK39: ='DATA (Real)'!BK35 -> 8.19 | BL39: ='DATA (Real)'!BL35 -> 8.19 | BM39: ='DATA (Real)'!BM35 -> 8.19 | BN39: ='DATA (Real)'!BN35 -> 8.19 | BO39: ='DATA (Real)'!BO35 -> 8.19 | BP39: ='DATA (Real)'!BP35 -> 8.19 | BQ39: ='DATA (Real)'!BQ35 -> 8.19 | BR39: ='DATA (Real)'!BR35 -> 8.19 | BS39: ='DATA (Real)'!BS35 -> 8.19 | BT39: ='DATA (Real)'!BT35 -> 8.19 | BU39: ='DATA (Real)'!BU35 -> 8.19 | BV39: ='DATA (Real)'!BV35 -> 8.19 | BW39: ='DATA (Real)'!BW35 -> 8.19 | BX39: ='DATA (Real)'!BX35 -> 8.19
C40: ='DATA (Real)'!C36 -> Internal | D40: ='DATA (Real)'!D36 -> Heat Rate (MMBtu/MWh) | E40: ='DATA (Real)'!E36 -> NG CCCT (1x1 w/DF) | F40: ='DATA (Real)'!F36 -> 6.82 | G40: ='DATA (Real)'!G36 -> 6.82 | H40: ='DATA (Real)'!H36 -> 6.82 | I40: ='DATA (Real)'!I36 -> 6.82 | J40: ='DATA (Real)'!J36 -> 6.82 | K40: ='DATA (Real)'!K36 -> 6.82 | L40: ='DATA (Real)'!L36 -> 6.82 | M40: ='DATA (Real)'!M36 -> 6.82 | N40: ='DATA (Real)'!N36 -> 6.82 | O40: ='DATA (Real)'!O36 -> 6.82 | P40: ='DATA (Real)'!P36 -> 6.82 | Q40: ='DATA (Real)'!Q36 -> 6.82 | R40: ='DATA (Real)'!R36 -> 6.82 | S40: ='DATA (Real)'!S36 -> 6.82 | T40: ='DATA (Real)'!T36 -> 6.82 | U40: ='DATA (Real)'!U36 -> 6.82 | V40: ='DATA (Real)'!V36 -> 6.82 | W40: ='DATA (Real)'!W36 -> 6.82 | X40: ='DATA (Real)'!X36 -> 6.82 | Y40: ='DATA (Real)'!Y36 -> 6.82 | Z40: ='DATA (Real)'!Z36 -> 6.82 | AA40: ='DATA (Real)'!AA36 -> 6.82 | AB40: ='DATA (Real)'!AB36 -> 6.82 | AC40: ='DATA (Real)'!AC36 -> 6.82 | AD40: ='DATA (Real)'!AD36 -> 6.82 | AE40: ='DATA (Real)'!AE36 -> 6.82 | AF40: ='DATA (Real)'!AF36 -> 6.82 | AG40: ='DATA (Real)'!AG36 -> 6.82 | AH40: ='DATA (Real)'!AH36 -> 6.82 | AI40: ='DATA (Real)'!AI36 -> 6.82 | AJ40: ='DATA (Real)'!AJ36 -> 6.82 | AK40: ='DATA (Real)'!AK36 -> 6.82 | AL40: ='DATA (Real)'!AL36 -> 6.82 | AM40: ='DATA (Real)'!AM36 -> 6.82 | AN40: ='DATA (Real)'!AN36 -> 6.82 | AO40: ='DATA (Real)'!AO36 -> 6.82 | AP40: ='DATA (Real)'!AP36 -> 6.82 | AQ40: ='DATA (Real)'!AQ36 -> 6.82 | AR40: ='DATA (Real)'!AR36 -> 6.82 | AS40: ='DATA (Real)'!AS36 -> 6.82 | AT40: ='DATA (Real)'!AT36 -> 6.82 | AU40: ='DATA (Real)'!AU36 -> 6.82 | AV40: ='DATA (Real)'!AV36 -> 6.82 | AW40: ='DATA (Real)'!AW36 -> 6.82 | AX40: ='DATA (Real)'!AX36 -> 6.82 | AY40: ='DATA (Real)'!AY36 -> 6.82 | AZ40: ='DATA (Real)'!AZ36 -> 6.82 | BA40: ='DATA (Real)'!BA36 -> 6.82 | BB40: ='DATA (Real)'!BB36 -> 6.82 | BC40: ='DATA (Real)'!BC36 -> 6.82 | BD40: ='DATA (Real)'!BD36 -> 6.82 | BE40: ='DATA (Real)'!BE36 -> 6.82 | BF40: ='DATA (Real)'!BF36 -> 6.82 | BG40: ='DATA (Real)'!BG36 -> 6.82 | BH40: ='DATA (Real)'!BH36 -> 6.82 | BI40: ='DATA (Real)'!BI36 -> 6.82 | BJ40: ='DATA (Real)'!BJ36 -> 6.82 | BK40: ='DATA (Real)'!BK36 -> 6.82 | BL40: ='DATA (Real)'!BL36 -> 6.82 | BM40: ='DATA (Real)'!BM36 -> 6.82 | BN40: ='DATA (Real)'!BN36 -> 6.82 | BO40: ='DATA (Real)'!BO36 -> 6.82 | BP40: ='DATA (Real)'!BP36 -> 6.82 | BQ40: ='DATA (Real)'!BQ36 -> 6.82 | BR40: ='DATA (Real)'!BR36 -> 6.82 | BS40: ='DATA (Real)'!BS36 -> 6.82 | BT40: ='DATA (Real)'!BT36 -> 6.82 | BU40: ='DATA (Real)'!BU36 -> 6.82 | BV40: ='DATA (Real)'!BV36 -> 6.82 | BW40: ='DATA (Real)'!BW36 -> 6.82 | BX40: ='DATA (Real)'!BX36 -> 6.82
C41: ='DATA (Real)'!C37 -> Internal | D41: ='DATA (Real)'!D37 -> Heat Rate (MMBtu/MWh) | E41: ='DATA (Real)'!E37 -> Hydrogen Fuel Cell with 40 hrs Storage | F41: ='DATA (Real)'!F37 -> 5.687 | G41: ='DATA (Real)'!G37 -> 5.687 | H41: ='DATA (Real)'!H37 -> 5.687 | I41: ='DATA (Real)'!I37 -> 5.687 | J41: ='DATA (Real)'!J37 -> 5.687 | K41: ='DATA (Real)'!K37 -> 5.687 | L41: ='DATA (Real)'!L37 -> 5.687 | M41: ='DATA (Real)'!M37 -> 5.687 | N41: ='DATA (Real)'!N37 -> 5.687 | O41: ='DATA (Real)'!O37 -> 5.687 | P41: ='DATA (Real)'!P37 -> 5.687 | Q41: ='DATA (Real)'!Q37 -> 5.687 | R41: ='DATA (Real)'!R37 -> 5.687 | S41: ='DATA (Real)'!S37 -> 5.687 | T41: ='DATA (Real)'!T37 -> 5.687 | U41: ='DATA (Real)'!U37 -> 5.687 | V41: ='DATA (Real)'!V37 -> 5.687 | W41: ='DATA (Real)'!W37 -> 5.687 | X41: ='DATA (Real)'!X37 -> 5.687 | Y41: ='DATA (Real)'!Y37 -> 5.687 | Z41: ='DATA (Real)'!Z37 -> 5.687 | AA41: ='DATA (Real)'!AA37 -> 5.687 | AB41: ='DATA (Real)'!AB37 -> 5.687 | AC41: ='DATA (Real)'!AC37 -> 5.687 | AD41: ='DATA (Real)'!AD37 -> 5.687 | AE41: ='DATA (Real)'!AE37 -> 5.687 | AF41: ='DATA (Real)'!AF37 -> 5.687 | AG41: ='DATA (Real)'!AG37 -> 5.687 | AH41: ='DATA (Real)'!AH37 -> 5.687 | AI41: ='DATA (Real)'!AI37 -> 5.687 | AJ41: ='DATA (Real)'!AJ37 -> 5.687 | AK41: ='DATA (Real)'!AK37 -> 5.687 | AL41: ='DATA (Real)'!AL37 -> 5.687 | AM41: ='DATA (Real)'!AM37 -> 5.687 | AN41: ='DATA (Real)'!AN37 -> 5.687 | AO41: ='DATA (Real)'!AO37 -> 5.687 | AP41: ='DATA (Real)'!AP37 -> 5.687 | AQ41: ='DATA (Real)'!AQ37 -> 5.687 | AR41: ='DATA (Real)'!AR37 -> 5.687 | AS41: ='DATA (Real)'!AS37 -> 5.687 | AT41: ='DATA (Real)'!AT37 -> 5.687 | AU41: ='DATA (Real)'!AU37 -> 5.687 | AV41: ='DATA (Real)'!AV37 -> 5.687 | AW41: ='DATA (Real)'!AW37 -> 5.687 | AX41: ='DATA (Real)'!AX37 -> 5.687 | AY41: ='DATA (Real)'!AY37 -> 5.687 | AZ41: ='DATA (Real)'!AZ37 -> 5.687 | BA41: ='DATA (Real)'!BA37 -> 5.687 | BB41: ='DATA (Real)'!BB37 -> 5.687 | BC41: ='DATA (Real)'!BC37 -> 5.687 | BD41: ='DATA (Real)'!BD37 -> 5.687 | BE41: ='DATA (Real)'!BE37 -> 5.687 | BF41: ='DATA (Real)'!BF37 -> 5.687 | BG41: ='DATA (Real)'!BG37 -> 5.687 | BH41: ='DATA (Real)'!BH37 -> 5.687 | BI41: ='DATA (Real)'!BI37 -> 5.687 | BJ41: ='DATA (Real)'!BJ37 -> 5.687 | BK41: ='DATA (Real)'!BK37 -> 5.687 | BL41: ='DATA (Real)'!BL37 -> 5.687 | BM41: ='DATA (Real)'!BM37 -> 5.687 | BN41: ='DATA (Real)'!BN37 -> 5.687 | BO41: ='DATA (Real)'!BO37 -> 5.687 | BP41: ='DATA (Real)'!BP37 -> 5.687 | BQ41: ='DATA (Real)'!BQ37 -> 5.687 | BR41: ='DATA (Real)'!BR37 -> 5.687 | BS41: ='DATA (Real)'!BS37 -> 5.687 | BT41: ='DATA (Real)'!BT37 -> 5.687 | BU41: ='DATA (Real)'!BU37 -> 5.687 | BV41: ='DATA (Real)'!BV37 -> 5.687 | BW41: ='DATA (Real)'!BW37 -> 5.687 | BX41: ='DATA (Real)'!BX37 -> 5.687
C42: ='DATA (Real)'!C38 -> Internal | D42: ='DATA (Real)'!D38 -> Heat Rate (MMBtu/MWh) | E42: ='DATA (Real)'!E38 -> 7F.04 CT Frame Greenfield + amonia + storage | F42: ='DATA (Real)'!F38 -> 10.04 | G42: ='DATA (Real)'!G38 -> 10.04 | H42: ='DATA (Real)'!H38 -> 10.04 | I42: ='DATA (Real)'!I38 -> 10.04 | J42: ='DATA (Real)'!J38 -> 10.04 | K42: ='DATA (Real)'!K38 -> 10.04 | L42: ='DATA (Real)'!L38 -> 10.04 | M42: ='DATA (Real)'!M38 -> 10.04 | N42: ='DATA (Real)'!N38 -> 10.04 | O42: ='DATA (Real)'!O38 -> 10.04 | P42: ='DATA (Real)'!P38 -> 10.04 | Q42: ='DATA (Real)'!Q38 -> 10.04 | R42: ='DATA (Real)'!R38 -> 10.04 | S42: ='DATA (Real)'!S38 -> 10.04 | T42: ='DATA (Real)'!T38 -> 10.04 | U42: ='DATA (Real)'!U38 -> 10.04 | V42: ='DATA (Real)'!V38 -> 10.04 | W42: ='DATA (Real)'!W38 -> 10.04 | X42: ='DATA (Real)'!X38 -> 10.04 | Y42: ='DATA (Real)'!Y38 -> 10.04 | Z42: ='DATA (Real)'!Z38 -> 10.04 | AA42: ='DATA (Real)'!AA38 -> 10.04 | AB42: ='DATA (Real)'!AB38 -> 10.04 | AC42: ='DATA (Real)'!AC38 -> 10.04 | AD42: ='DATA (Real)'!AD38 -> 10.04 | AE42: ='DATA (Real)'!AE38 -> 10.04 | AF42: ='DATA (Real)'!AF38 -> 10.04 | AG42: ='DATA (Real)'!AG38 -> 10.04 | AH42: ='DATA (Real)'!AH38 -> 10.04 | AI42: ='DATA (Real)'!AI38 -> 10.04 | AJ42: ='DATA (Real)'!AJ38 -> 10.04 | AK42: ='DATA (Real)'!AK38 -> 10.04 | AL42: ='DATA (Real)'!AL38 -> 10.04 | AM42: ='DATA (Real)'!AM38 -> 10.04 | AN42: ='DATA (Real)'!AN38 -> 10.04 | AO42: ='DATA (Real)'!AO38 -> 10.04 | AP42: ='DATA (Real)'!AP38 -> 10.04 | AQ42: ='DATA (Real)'!AQ38 -> 10.04 | AR42: ='DATA (Real)'!AR38 -> 10.04 | AS42: ='DATA (Real)'!AS38 -> 10.04 | AT42: ='DATA (Real)'!AT38 -> 10.04 | AU42: ='DATA (Real)'!AU38 -> 10.04 | AV42: ='DATA (Real)'!AV38 -> 10.04 | AW42: ='DATA (Real)'!AW38 -> 10.04 | AX42: ='DATA (Real)'!AX38 -> 10.04 | AY42: ='DATA (Real)'!AY38 -> 10.04 | AZ42: ='DATA (Real)'!AZ38 -> 10.04 | BA42: ='DATA (Real)'!BA38 -> 10.04 | BB42: ='DATA (Real)'!BB38 -> 10.04 | BC42: ='DATA (Real)'!BC38 -> 10.04 | BD42: ='DATA (Real)'!BD38 -> 10.04 | BE42: ='DATA (Real)'!BE38 -> 10.04 | BF42: ='DATA (Real)'!BF38 -> 10.04 | BG42: ='DATA (Real)'!BG38 -> 10.04 | BH42: ='DATA (Real)'!BH38 -> 10.04 | BI42: ='DATA (Real)'!BI38 -> 10.04 | BJ42: ='DATA (Real)'!BJ38 -> 10.04 | BK42: ='DATA (Real)'!BK38 -> 10.04 | BL42: ='DATA (Real)'!BL38 -> 10.04 | BM42: ='DATA (Real)'!BM38 -> 10.04 | BN42: ='DATA (Real)'!BN38 -> 10.04 | BO42: ='DATA (Real)'!BO38 -> 10.04 | BP42: ='DATA (Real)'!BP38 -> 10.04 | BQ42: ='DATA (Real)'!BQ38 -> 10.04 | BR42: ='DATA (Real)'!BR38 -> 10.04 | BS42: ='DATA (Real)'!BS38 -> 10.04 | BT42: ='DATA (Real)'!BT38 -> 10.04 | BU42: ='DATA (Real)'!BU38 -> 10.04 | BV42: ='DATA (Real)'!BV38 -> 10.04 | BW42: ='DATA (Real)'!BW38 -> 10.04 | BX42: ='DATA (Real)'!BX38 -> 10.04
D44: ='DATA (Real)'!D40 -> CAPEX ($/kW)
B45: CPI Inflator | C45: ='DATA (Real)'!C41 -> NREL Utility-Scale Battery Storage - 4Hr/LAZARD’S LEVELIZED COST O F STORAGE ANALYSIS—VERSION 7 . 0 | D45: ='DATA (Real)'!D41 -> CAPEX ($/kW) | E45: ='DATA (Real)'!E41 -> Distribution Scale 4hr Lithium-Ion | F45: ='DATA (Real)'!F41 -> 2280.547644 | G45: ='DATA (Real)'!G41*G$4/100 -> 1996.817313 | H45: ='DATA (Real)'!H41*H$4/100 -> 1988.608659 | I45: ='DATA (Real)'!I41*I$4/100 -> 1879.408237 | J45: ='DATA (Real)'!J41*J$4/100 -> 1787.361168 | K45: ='DATA (Real)'!K41*K$4/100 -> 1728.949991 | L45: ='DATA (Real)'!L41*L$4/100 -> 1692.169516 | M45: ='DATA (Real)'!M41*M$4/100 -> 1661.447983 | N45: ='DATA (Real)'!N41*N$4/100 -> 1619.22665 | O45: ='DATA (Real)'!O41*O$4/100 -> 1592.233704 | P45: ='DATA (Real)'!P41*P$4/100 -> 1563.269363 | Q45: ='DATA (Real)'!Q41*Q$4/100 -> 1578.484682 | R45: ='DATA (Real)'!R41*R$4/100 -> 1592.801222 | S45: ='DATA (Real)'!S41*S$4/100 -> 1606.983703 | T45: ='DATA (Real)'!T41*T$4/100 -> 1621.019298 | U45: ='DATA (Real)'!U41*U$4/100 -> 1634.894679 | V45: ='DATA (Real)'!V41*V$4/100 -> 1648.596003 | W45: ='DATA (Real)'!W41*W$4/100 -> 1662.108896 | X45: ='DATA (Real)'!X41*X$4/100 -> 1675.418436 | Y45: ='DATA (Real)'!Y41*Y$4/100 -> 1688.509135 | Z45: ='DATA (Real)'!Z41*Z$4/100 -> 1701.364923 | AA45: ='DATA (Real)'!AA41*AA$4/100 -> 1713.969126 | AB45: ='DATA (Real)'!AB41*AB$4/100 -> 1726.304454 | AC45: ='DATA (Real)'!AC41*AC$4/100 -> 1738.352976 | AD45: ='DATA (Real)'!AD41*AD$4/100 -> 1750.096101 | AE45: ='DATA (Real)'!AE41*AE$4/100 -> 1761.51456 | AF45: ='DATA (Real)'!AF41*AF$4/100 -> 1772.588386 | AG45: ='DATA (Real)'!AG41*AG$4/100 -> 1783.296886 | AH45: ='DATA (Real)'!AH41*AH$4/100 -> 1793.618628 | AI45: ='DATA (Real)'!AI41*AI$4/100 -> 1803.531411 | AJ45: ='DATA (Real)'!AJ41*AJ$4/100 -> 1813.012245
B46: CPI Inflator | C46: ='DATA (Real)'!C42 -> NREL Utility-Scale Battery Storage - 8Hr/LAZARD’S LEVELIZED COST O F STORAGE ANALYSIS—VERSION 7 . 0 | D46: ='DATA (Real)'!D42 -> CAPEX ($/kW) | E46: ='DATA (Real)'!E42 -> Distribution Scale 8hr Lithium-Ion | F46: ='DATA (Real)'!F42 -> 4231.78909 | G46: ='DATA (Real)'!G42*G$4/100 -> 3671.212451 | H46: ='DATA (Real)'!H42*H$4/100 -> 3625.378604 | I46: ='DATA (Real)'!I42*I$4/100 -> 3405.050759 | J46: ='DATA (Real)'!J42*J$4/100 -> 3193.930251 | K46: ='DATA (Real)'!K42*K$4/100 -> 3081.628407 | L46: ='DATA (Real)'!L42*L$4/100 -> 2987.848582 | M46: ='DATA (Real)'!M42*M$4/100 -> 2909.643733 | N46: ='DATA (Real)'!N42*N$4/100 -> 2816.781316 | O46: ='DATA (Real)'!O42*O$4/100 -> 2736.314951 | P46: ='DATA (Real)'!P42*P$4/100 -> 2664.540686 | Q46: ='DATA (Real)'!Q42*Q$4/100 -> 2690.262609 | R46: ='DATA (Real)'!R42*R$4/100 -> 2714.66001 | S46: ='DATA (Real)'!S42*S$4/100 -> 2738.828809 | T46: ='DATA (Real)'!T42*T$4/100 -> 2762.747141 | U46: ='DATA (Real)'!U42*U$4/100 -> 2786.392285 | V46: ='DATA (Real)'!V42*V$4/100 -> 2809.740647 | W46: ='DATA (Real)'!W42*W$4/100 -> 2832.767722 | X46: ='DATA (Real)'!X42*X$4/100 -> 2855.448075 | Y46: ='DATA (Real)'!Y42*Y$4/100 -> 2877.755303 | Z46: ='DATA (Real)'!Z42*Z$4/100 -> 2899.662012 | AA46: ='DATA (Real)'!AA42*AA$4/100 -> 2921.139783 | AB46: ='DATA (Real)'!AB42*AB$4/100 -> 2942.15914 | AC46: ='DATA (Real)'!AC42*AC$4/100 -> 2962.689517 | AD46: ='DATA (Real)'!AD42*AD$4/100 -> 2982.699225 | AE46: ='DATA (Real)'!AE42*AE$4/100 -> 3002.155418 | AF46: ='DATA (Real)'!AF42*AF$4/100 -> 3021.024058 | AG46: ='DATA (Real)'!AG42*AG$4/100 -> 3039.269875 | AH46: ='DATA (Real)'!AH42*AH$4/100 -> 3056.856331 | AI46: ='DATA (Real)'!AI42*AI$4/100 -> 3073.745586 | AJ46: ='DATA (Real)'!AJ42*AJ$4/100 -> 3089.373198
B47: CPI Inflator | C47: ='DATA (Real)'!C43 -> NREL Utility-Scale Battery Storage - 4Hr | D47: ='DATA (Real)'!D43 -> CAPEX ($/kW) | E47: ='DATA (Real)'!E43 -> 4hr Lithium-Ion | F47: ='DATA (Real)'!F43 -> 1727.234445 | G47: ='DATA (Real)'!G43*G$4/100 -> 1512.343604 | H47: ='DATA (Real)'!H43*H$4/100 -> 1506.126558 | I47: ='DATA (Real)'!I43*I$4/100 -> 1423.420665 | J47: ='DATA (Real)'!J43*J$4/100 -> 1353.706327 | K47: ='DATA (Real)'!K43*K$4/100 -> 1309.467042 | L47: ='DATA (Real)'!L43*L$4/100 -> 1281.610355 | M47: ='DATA (Real)'!M43*M$4/100 -> 1258.342571 | N47: ='DATA (Real)'!N43*N$4/100 -> 1226.365102 | O47: ='DATA (Real)'!O43*O$4/100 -> 1205.921265 | P47: ='DATA (Real)'!P43*P$4/100 -> 1183.984337 | Q47: ='DATA (Real)'!Q43*Q$4/100 -> 1195.508071 | R47: ='DATA (Real)'!R43*R$4/100 -> 1206.35109 | S47: ='DATA (Real)'!S43*S$4/100 -> 1217.092575 | T47: ='DATA (Real)'!T43*T$4/100 -> 1227.722813 | U47: ='DATA (Real)'!U43*U$4/100 -> 1238.231707 | V47: ='DATA (Real)'!V43*V$4/100 -> 1248.608776 | W47: ='DATA (Real)'!W43*W$4/100 -> 1258.843131 | X47: ='DATA (Real)'!X43*X$4/100 -> 1268.923471 | Y47: ='DATA (Real)'!Y43*Y$4/100 -> 1278.838066 | Z47: ='DATA (Real)'!Z43*Z$4/100 -> 1288.574745 | AA47: ='DATA (Real)'!AA43*AA$4/100 -> 1298.120879 | AB47: ='DATA (Real)'!AB43*AB$4/100 -> 1307.463374 | AC47: ='DATA (Real)'!AC43*AC$4/100 -> 1316.588647 | AD47: ='DATA (Real)'!AD43*AD$4/100 -> 1325.482621 | AE47: ='DATA (Real)'!AE43*AE$4/100 -> 1334.1307 | AF47: ='DATA (Real)'!AF43*AF$4/100 -> 1342.517761 | AG47: ='DATA (Real)'!AG43*AG$4/100 -> 1350.628134 | AH47: ='DATA (Real)'!AH43*AH$4/100 -> 1358.445584 | AI47: ='DATA (Real)'!AI43*AI$4/100 -> 1365.953298 | AJ47: ='DATA (Real)'!AJ43*AJ$4/100 -> 1373.133864
B48: CPI Inflator | C48: ='DATA (Real)'!C44 -> NREL Utility-Scale Battery Storage - 8Hr | D48: ='DATA (Real)'!D44 -> CAPEX ($/kW) | E48: ='DATA (Real)'!E44 -> 8hr Lithium-Ion | F48: ='DATA (Real)'!F44 -> 3205.059934 | G48: ='DATA (Real)'!G44*G$4/100 -> 2780.492053 | H48: ='DATA (Real)'!H44*H$4/100 -> 2745.778549 | I48: ='DATA (Real)'!I44*I$4/100 -> 2578.907296 | J48: ='DATA (Real)'!J44*J$4/100 -> 2419.009469 | K48: ='DATA (Real)'!K44*K$4/100 -> 2333.954629 | L48: ='DATA (Real)'!L44*L$4/100 -> 2262.927942 | M48: ='DATA (Real)'!M44*M$4/100 -> 2203.697385 | N48: ='DATA (Real)'!N44*N$4/100 -> 2133.365521 | O48: ='DATA (Real)'!O44*O$4/100 -> 2072.422143 | P48: ='DATA (Real)'!P44*P$4/100 -> 2018.061962 | Q48: ='DATA (Real)'!Q44*Q$4/100 -> 2037.543156 | R48: ='DATA (Real)'!R44*R$4/100 -> 2056.021188 | S48: ='DATA (Real)'!S44*S$4/100 -> 2074.326082 | T48: ='DATA (Real)'!T44*T$4/100 -> 2092.441277 | U48: ='DATA (Real)'!U44*U$4/100 -> 2110.349567 | V48: ='DATA (Real)'!V44*V$4/100 -> 2128.03308 | W48: ='DATA (Real)'!W44*W$4/100 -> 2145.473259 | X48: ='DATA (Real)'!X44*X$4/100 -> 2162.650837 | Y48: ='DATA (Real)'!Y44*Y$4/100 -> 2179.54582 | Z48: ='DATA (Real)'!Z44*Z$4/100 -> 2196.137458 | AA48: ='DATA (Real)'!AA44*AA$4/100 -> 2212.404229 | AB48: ='DATA (Real)'!AB44*AB$4/100 -> 2228.323808 | AC48: ='DATA (Real)'!AC44*AC$4/100 -> 2243.873044 | AD48: ='DATA (Real)'!AD44*AD$4/100 -> 2259.027937 | AE48: ='DATA (Real)'!AE44*AE$4/100 -> 2273.763612 | AF48: ='DATA (Real)'!AF44*AF$4/100 -> 2288.054287 | AG48: ='DATA (Real)'!AG44*AG$4/100 -> 2301.873249 | AH48: ='DATA (Real)'!AH44*AH$4/100 -> 2315.192828 | AI48: ='DATA (Real)'!AI44*AI$4/100 -> 2327.984362 | AJ48: ='DATA (Real)'!AJ44*AJ$4/100 -> 2339.820356
B49: CPI Inflator | C49: ='DATA (Real)'!C45 -> NREL Utility-Scale Battery Storage - 16Hr | D49: ='DATA (Real)'!D45 -> CAPEX ($/kW) | E49: ='DATA (Real)'!E45 -> 16hr Lithium-Ion | F49: ='DATA (Real)'!F45 -> 6160.710913 | G49: ='DATA (Real)'!G45*G$4/100 -> 5316.788952 | H49: ='DATA (Real)'!H45*H$4/100 -> 5225.082533 | I49: ='DATA (Real)'!I45*I$4/100 -> 4889.88056 | J49: ='DATA (Real)'!J45*J$4/100 -> 4549.615753 | K49: ='DATA (Real)'!K45*K$4/100 -> 4382.929803 | L49: ='DATA (Real)'!L45*L$4/100 -> 4225.563117 | M49: ='DATA (Real)'!M45*M$4/100 -> 4094.407013 | N49: ='DATA (Real)'!N45*N$4/100 -> 3947.366359 | O49: ='DATA (Real)'!O45*O$4/100 -> 3805.4239 | P49: ='DATA (Real)'!P45*P$4/100 -> 3686.217211 | Q49: ='DATA (Real)'!Q45*Q$4/100 -> 3721.613327 | R49: ='DATA (Real)'!R45*R$4/100 -> 3755.361384 | S49: ='DATA (Real)'!S45*S$4/100 -> 3788.793095 | T49: ='DATA (Real)'!T45*T$4/100 -> 3821.878206 | U49: ='DATA (Real)'!U45*U$4/100 -> 3854.585286 | V49: ='DATA (Real)'!V45*V$4/100 -> 3886.881688 | W49: ='DATA (Real)'!W45*W$4/100 -> 3918.733513 | X49: ='DATA (Real)'!X45*X$4/100 -> 3950.105568 | Y49: ='DATA (Real)'!Y45*Y$4/100 -> 3980.961326 | Z49: ='DATA (Real)'!Z45*Z$4/100 -> 4011.262886 | AA49: ='DATA (Real)'!AA45*AA$4/100 -> 4040.970929 | AB49: ='DATA (Real)'!AB45*AB$4/100 -> 4070.044676 | AC49: ='DATA (Real)'!AC45*AC$4/100 -> 4098.441837 | AD49: ='DATA (Real)'!AD45*AD$4/100 -> 4126.118571 | AE49: ='DATA (Real)'!AE45*AE$4/100 -> 4153.029436 | AF49: ='DATA (Real)'!AF45*AF$4/100 -> 4179.127338 | AG49: ='DATA (Real)'!AG45*AG$4/100 -> 4204.363481 | AH49: ='DATA (Real)'!AH45*AH$4/100 -> 4228.687317 | AI49: ='DATA (Real)'!AI45*AI$4/100 -> 4252.046489 | AJ49: ='DATA (Real)'!AJ45*AJ$4/100 -> 4273.193341
B50: CPI Inflator | C50: ='DATA (Real)'!C46 -> Internal | D50: ='DATA (Real)'!D46 -> CAPEX ($/kW) | E50: ='DATA (Real)'!E46 -> 4 hr Vanadium Flow Battery | F50: ='DATA (Real)'!F46 -> 1632.88 | G50: ='DATA (Real)'!G46*G$4/100 -> 1489.59478 | H50: ='DATA (Real)'!H46*H$4/100 -> 1421.074865 | I50: ='DATA (Real)'!I46*I$4/100 -> 1378.118834 | J50: ='DATA (Real)'!J46*J$4/100 -> 1326.71274 | K50: ='DATA (Real)'!K46*K$4/100 -> 1300.557014 | L50: ='DATA (Real)'!L46*L$4/100 -> 1275.973063 | M50: ='DATA (Real)'!M46*M$4/100 -> 1256.520162 | N50: ='DATA (Real)'!N46*N$4/100 -> 1238.251267 | O50: ='DATA (Real)'!O46*O$4/100 -> 1222.839888 | P50: ='DATA (Real)'!P46*P$4/100 -> 1205.806428 | Q50: ='DATA (Real)'!Q46*Q$4/100 -> 1189.638707 | R50: ='DATA (Real)'!R46*R$4/100 -> 1174.721416 | S50: ='DATA (Real)'!S46*S$4/100 -> 1161.916838 | T50: ='DATA (Real)'!T46*T$4/100 -> 1151.726057 | U50: ='DATA (Real)'!U46*U$4/100 -> 1145.360587 | V50: ='DATA (Real)'!V46*V$4/100 -> 1141.392269 | W50: ='DATA (Real)'!W46*W$4/100 -> 1139.526457 | X50: ='DATA (Real)'!X46*X$4/100 -> 1140.2974 | Y50: ='DATA (Real)'!Y46*Y$4/100 -> 1140.61217 | Z50: ='DATA (Real)'!Z46*Z$4/100 -> 1140.470206 | AA50: ='DATA (Real)'!AA46*AA$4/100 -> 1139.871494 | AB50: ='DATA (Real)'!AB46*AB$4/100 -> 1138.816571 | AC50: ='DATA (Real)'!AC46*AC$4/100 -> 1137.306523 | AD50: ='DATA (Real)'!AD46*AD$4/100 -> 1135.342979 | AE50: ='DATA (Real)'!AE46*AE$4/100 -> 1132.928114 | AF50: ='DATA (Real)'!AF46*AF$4/100 -> 1130.064641 | AG50: ='DATA (Real)'!AG46*AG$4/100 -> 1126.755809 | AH50: ='DATA (Real)'!AH46*AH$4/100 -> 1123.005393 | AI50: ='DATA (Real)'!AI46*AI$4/100 -> 1118.81769 | AJ50: ='DATA (Real)'!AJ46*AJ$4/100 -> 1115.541788
B51: CPI Inflator | C51: ='DATA (Real)'!C47 -> Internal | D51: ='DATA (Real)'!D47 -> CAPEX ($/kW) | E51: ='DATA (Real)'!E47 -> 4 hr Zinc Bromide Flow Battery | F51: ='DATA (Real)'!F47 -> 1837 | G51: ='DATA (Real)'!G47*G$4/100 -> 1619.3155 | H51: ='DATA (Real)'!H47*H$4/100 -> 1492.755685 | I51: ='DATA (Real)'!I47*I$4/100 -> 1447.632897 | J51: ='DATA (Real)'!J47*J$4/100 -> 1393.633814 | K51: ='DATA (Real)'!K47*K$4/100 -> 1366.158761 | L51: ='DATA (Real)'!L47*L$4/100 -> 1340.334764 | M51: ='DATA (Real)'!M47*M$4/100 -> 1319.900634 | N51: ='DATA (Real)'!N47*N$4/100 -> 1300.710233 | O51: ='DATA (Real)'!O47*O$4/100 -> 1284.521484 | P51: ='DATA (Real)'!P47*P$4/100 -> 1266.628835 | Q51: ='DATA (Real)'!Q47*Q$4/100 -> 1249.645594 | R51: ='DATA (Real)'!R47*R$4/100 -> 1233.975855 | S51: ='DATA (Real)'!S47*S$4/100 -> 1220.525398 | T51: ='DATA (Real)'!T47*T$4/100 -> 1209.820582 | U51: ='DATA (Real)'!U47*U$4/100 -> 1203.134028 | V51: ='DATA (Real)'!V47*V$4/100 -> 1198.965543 | W51: ='DATA (Real)'!W47*W$4/100 -> 1197.005618 | X51: ='DATA (Real)'!X47*X$4/100 -> 1197.815449 | Y51: ='DATA (Real)'!Y47*Y$4/100 -> 1198.146096 | Z51: ='DATA (Real)'!Z47*Z$4/100 -> 1197.99697 | AA51: ='DATA (Real)'!AA47*AA$4/100 -> 1197.368059 | AB51: ='DATA (Real)'!AB47*AB$4/100 -> 1196.259925 | AC51: ='DATA (Real)'!AC47*AC$4/100 -> 1194.673707 | AD51: ='DATA (Real)'!AD47*AD$4/100 -> 1192.61112 | AE51: ='DATA (Real)'!AE47*AE$4/100 -> 1190.074446 | AF51: ='DATA (Real)'!AF47*AF$4/100 -> 1187.066536 | AG51: ='DATA (Real)'!AG47*AG$4/100 -> 1183.590802 | AH51: ='DATA (Real)'!AH47*AH$4/100 -> 1179.65121 | AI51: ='DATA (Real)'!AI47*AI$4/100 -> 1175.252274 | AJ51: ='DATA (Real)'!AJ47*AJ$4/100 -> 1171.811132
B52: CPI Inflator | C52: ='DATA (Real)'!C48 -> Form Energy | D52: ='DATA (Real)'!D48 -> CAPEX ($/kW) | E52: ='DATA (Real)'!E48 -> 100hr Iron Oxide | H52: ='DATA (Real)'!H48 -> 2500 | I52: ='DATA (Real)'!I48*I$4/$H$4 -> 2579.3 | J52: ='DATA (Real)'!J48*J$4/$H$4 -> 2639.972659 | K52: ='DATA (Real)'!K48*K$4/$H$4 -> 2698.932048 | L52: ='DATA (Real)'!L48*L$4/$H$4 -> 2759.208197 | M52: ='DATA (Real)'!M48*M$4/$H$4 -> 2820.830514 | N52: ='DATA (Real)'!N48*N$4/$H$4 -> 2882.888785 | O52: ='DATA (Real)'!O48*O$4/$H$4 -> 2946.312338 | P52: ='DATA (Real)'!P48*P$4/$H$4 -> 3011.13121 | Q52: ='DATA (Real)'!Q48*Q$4/$H$4 -> 3077.376096 | R52: ='DATA (Real)'!R48*R$4/$H$4 -> 3145.078371 | S52: ='DATA (Real)'!S48*S$4/$H$4 -> 3214.270095 | T52: ='DATA (Real)'!T48*T$4/$H$4 -> 3284.984037 | U52: ='DATA (Real)'!U48*U$4/$H$4 -> 3357.253686 | V52: ='DATA (Real)'!V48*V$4/$H$4 -> 3431.113267 | W52: ='DATA (Real)'!W48*W$4/$H$4 -> 3506.597759 | X52: ='DATA (Real)'!X48*X$4/$H$4 -> 3583.742909 | Y52: ='DATA (Real)'!Y48*Y$4/$H$4 -> 3662.585253 | Z52: ='DATA (Real)'!Z48*Z$4/$H$4 -> 3743.162129 | AA52: ='DATA (Real)'!AA48*AA$4/$H$4 -> 3825.511696 | AB52: ='DATA (Real)'!AB48*AB$4/$H$4 -> 3909.672953 | AC52: ='DATA (Real)'!AC48*AC$4/$H$4 -> 3995.685758 | AD52: ='DATA (Real)'!AD48*AD$4/$H$4 -> 4083.590845 | AE52: ='DATA (Real)'!AE48*AE$4/$H$4 -> 4173.429843 | AF52: ='DATA (Real)'!AF48*AF$4/$H$4 -> 4265.2453 | AG52: ='DATA (Real)'!AG48*AG$4/$H$4 -> 4359.080696 | AH52: ='DATA (Real)'!AH48*AH$4/$H$4 -> 4454.980472 | AI52: ='DATA (Real)'!AI48*AI$4/$H$4 -> 4552.990042 | AJ52: ='DATA (Real)'!AJ48*AJ$4/$H$4 -> 4653.155823
B53: CPI Inflator | C53: ='DATA (Real)'!C49 -> Internal | D53: ='DATA (Real)'!D49 -> CAPEX ($/kW) | E53: ='DATA (Real)'!E49 -> Liquid Air | H53: ='DATA (Real)'!H49 -> 1610 | I53: ='DATA (Real)'!I49*I$4/$H$4 -> 1661.0692 | J53: ='DATA (Real)'!J49*J$4/$H$4 -> 1700.142392 | K53: ='DATA (Real)'!K49*K$4/$H$4 -> 1738.112239 | L53: ='DATA (Real)'!L49*L$4/$H$4 -> 1776.930079 | M53: ='DATA (Real)'!M49*M$4/$H$4 -> 1816.614851 | N53: ='DATA (Real)'!N49*N$4/$H$4 -> 1856.580378 | O53: ='DATA (Real)'!O49*O$4/$H$4 -> 1897.425146 | P53: ='DATA (Real)'!P49*P$4/$H$4 -> 1939.168499 | Q53: ='DATA (Real)'!Q49*Q$4/$H$4 -> 1981.830206 | R53: ='DATA (Real)'!R49*R$4/$H$4 -> 2025.430471 | S53: ='DATA (Real)'!S49*S$4/$H$4 -> 2069.989941 | T53: ='DATA (Real)'!T49*T$4/$H$4 -> 2115.52972 | U53: ='DATA (Real)'!U49*U$4/$H$4 -> 2162.071374 | V53: ='DATA (Real)'!V49*V$4/$H$4 -> 2209.636944 | W53: ='DATA (Real)'!W49*W$4/$H$4 -> 2258.248957 | X53: ='DATA (Real)'!X49*X$4/$H$4 -> 2307.930434 | Y53: ='DATA (Real)'!Y49*Y$4/$H$4 -> 2358.704903 | Z53: ='DATA (Real)'!Z49*Z$4/$H$4 -> 2410.596411 | AA53: ='DATA (Real)'!AA49*AA$4/$H$4 -> 2463.629532 | AB53: ='DATA (Real)'!AB49*AB$4/$H$4 -> 2517.829382 | AC53: ='DATA (Real)'!AC49*AC$4/$H$4 -> 2573.221628 | AD53: ='DATA (Real)'!AD49*AD$4/$H$4 -> 2629.832504 | AE53: ='DATA (Real)'!AE49*AE$4/$H$4 -> 2687.688819 | AF53: ='DATA (Real)'!AF49*AF$4/$H$4 -> 2746.817973 | AG53: ='DATA (Real)'!AG49*AG$4/$H$4 -> 2807.247968 | AH53: ='DATA (Real)'!AH49*AH$4/$H$4 -> 2869.007424 | AI53: ='DATA (Real)'!AI49*AI$4/$H$4 -> 2932.125587 | AJ53: ='DATA (Real)'!AJ49*AJ$4/$H$4 -> 2996.63235
B54: CPI Inflator | C54: ='DATA (Real)'!C50 -> NREL Pumped Storage Hydropower - National Class 10 | D54: ='DATA (Real)'!D50 -> CAPEX ($/kW) | E54: ='DATA (Real)'!E50 -> Pumped Hydro (8.5 hr/ 400 MW share) | F54: ='DATA (Real)'!F50 -> 3754.52 | G54: ='DATA (Real)'!G50*G$4/100 -> 3848.383 | H54: ='DATA (Real)'!H50*H$4/100 -> 4125.124848 | I54: ='DATA (Real)'!I50*I$4/100 -> 4255.973808 | J54: ='DATA (Real)'!J50*J$4/100 -> 4356.086725 | K54: ='DATA (Real)'!K50*K$4/100 -> 4453.372662 | L54: ='DATA (Real)'!L50*L$4/100 -> 4552.831318 | M54: ='DATA (Real)'!M50*M$4/100 -> 4654.511218 | N54: ='DATA (Real)'!N50*N$4/100 -> 4756.910465 | O54: ='DATA (Real)'!O50*O$4/100 -> 4861.562495 | P54: ='DATA (Real)'!P50*P$4/100 -> 4968.51687 | Q54: ='DATA (Real)'!Q50*Q$4/100 -> 5077.824241 | R54: ='DATA (Real)'!R50*R$4/100 -> 5189.536374 | S54: ='DATA (Real)'!S50*S$4/100 -> 5303.706174 | T54: ='DATA (Real)'!T50*T$4/100 -> 5420.38771 | U54: ='DATA (Real)'!U50*U$4/100 -> 5539.63624 | V54: ='DATA (Real)'!V50*V$4/100 -> 5661.508237 | W54: ='DATA (Real)'!W50*W$4/100 -> 5786.061418 | X54: ='DATA (Real)'!X50*X$4/100 -> 5913.35477 | Y54: ='DATA (Real)'!Y50*Y$4/100 -> 6043.448574 | Z54: ='DATA (Real)'!Z50*Z$4/100 -> 6176.404443 | AA54: ='DATA (Real)'!AA50*AA$4/100 -> 6312.285341 | AB54: ='DATA (Real)'!AB50*AB$4/100 -> 6451.155618 | AC54: ='DATA (Real)'!AC50*AC$4/100 -> 6593.081042 | AD54: ='DATA (Real)'!AD50*AD$4/100 -> 6738.128825 | AE54: ='DATA (Real)'!AE50*AE$4/100 -> 6886.367659 | AF54: ='DATA (Real)'!AF50*AF$4/100 -> 7037.867748 | AG54: ='DATA (Real)'!AG50*AG$4/100 -> 7192.700838 | AH54: ='DATA (Real)'!AH50*AH$4/100 -> 7350.940256 | AI54: ='DATA (Real)'!AI50*AI$4/100 -> 7512.660942 | AJ54: ='DATA (Real)'!AJ50*AJ$4/100 -> 7677.939483
B55: CPI Inflator | C55: ='DATA (Real)'!C51 -> NREL Pumped Storage Hydropower - National Class 7 | D55: ='DATA (Real)'!D51 -> CAPEX ($/kW) | E55: ='DATA (Real)'!E51 -> Pumped Hydro (16 hr/ 100 MW) | F55: ='DATA (Real)'!F51 -> 3256.39 | G55: ='DATA (Real)'!G51*G$4/100 -> 3337.79975 | H55: ='DATA (Real)'!H51*H$4/100 -> 3577.824943 | I55: ='DATA (Real)'!I51*I$4/100 -> 3691.31355 | J55: ='DATA (Real)'!J51*J$4/100 -> 3778.144011 | K55: ='DATA (Real)'!K51*K$4/100 -> 3862.52256 | L55: ='DATA (Real)'!L51*L$4/100 -> 3948.785564 | M55: ='DATA (Real)'!M51*M$4/100 -> 4036.975109 | N55: ='DATA (Real)'!N51*N$4/100 -> 4125.788561 | O55: ='DATA (Real)'!O51*O$4/100 -> 4216.555909 | P55: ='DATA (Real)'!P51*P$4/100 -> 4309.320139 | Q55: ='DATA (Real)'!Q51*Q$4/100 -> 4404.125182 | R55: ='DATA (Real)'!R51*R$4/100 -> 4501.015936 | S55: ='DATA (Real)'!S51*S$4/100 -> 4600.038287 | T55: ='DATA (Real)'!T51*T$4/100 -> 4701.239129 | U55: ='DATA (Real)'!U51*U$4/100 -> 4804.66639 | V55: ='DATA (Real)'!V51*V$4/100 -> 4910.369051 | W55: ='DATA (Real)'!W51*W$4/100 -> 5018.39717 | X55: ='DATA (Real)'!X51*X$4/100 -> 5128.801908 | Y55: ='DATA (Real)'!Y51*Y$4/100 -> 5241.63555 | Z55: ='DATA (Real)'!Z51*Z$4/100 -> 5356.951532 | AA55: ='DATA (Real)'!AA51*AA$4/100 -> 5474.804465 | AB55: ='DATA (Real)'!AB51*AB$4/100 -> 5595.250164 | AC55: ='DATA (Real)'!AC51*AC$4/100 -> 5718.345667 | AD55: ='DATA (Real)'!AD51*AD$4/100 -> 5844.149272 | AE55: ='DATA (Real)'!AE51*AE$4/100 -> 5972.720556 | AF55: ='DATA (Real)'!AF51*AF$4/100 -> 6104.120408 | AG55: ='DATA (Real)'!AG51*AG$4/100 -> 6238.411057 | AH55: ='DATA (Real)'!AH51*AH$4/100 -> 6375.6561 | AI55: ='DATA (Real)'!AI51*AI$4/100 -> 6515.920535 | AJ55: ='DATA (Real)'!AJ51*AJ$4/100 -> 6659.270786
B56: CPI Inflator | C56: ='DATA (Real)'!C52 -> NREL Pumped Storage Hydropower - National Class 5 | D56: ='DATA (Real)'!D52 -> CAPEX ($/kW) | E56: ='DATA (Real)'!E52 -> Pumped Hyrdo (24 hr/ 100 MW) | F56: ='DATA (Real)'!F52 -> 2923.32 | G56: ='DATA (Real)'!G52*G$4/100 -> 2996.403 | H56: ='DATA (Real)'!H52*H$4/100 -> 3211.877942 | I56: ='DATA (Real)'!I52*I$4/100 -> 3313.75871 | J56: ='DATA (Real)'!J52*J$4/100 -> 3391.70798 | K56: ='DATA (Real)'!K52*K$4/100 -> 3467.456125 | L56: ='DATA (Real)'!L52*L$4/100 -> 3544.895979 | M56: ='DATA (Real)'!M52*M$4/100 -> 3624.065322 | N56: ='DATA (Real)'!N52*N$4/100 -> 3703.794759 | O56: ='DATA (Real)'!O52*O$4/100 -> 3785.278244 | P56: ='DATA (Real)'!P52*P$4/100 -> 3868.554365 | Q56: ='DATA (Real)'!Q52*Q$4/100 -> 3953.662561 | R56: ='DATA (Real)'!R52*R$4/100 -> 4040.643138 | S56: ='DATA (Real)'!S52*S$4/100 -> 4129.537287 | T56: ='DATA (Real)'!T52*T$4/100 -> 4220.387107 | U56: ='DATA (Real)'!U52*U$4/100 -> 4313.235623 | V56: ='DATA (Real)'!V52*V$4/100 -> 4408.126807 | W56: ='DATA (Real)'!W52*W$4/100 -> 4505.105597 | X56: ='DATA (Real)'!X52*X$4/100 -> 4604.21792 | Y56: ='DATA (Real)'!Y52*Y$4/100 -> 4705.510714 | Z56: ='DATA (Real)'!Z52*Z$4/100 -> 4809.03195 | AA56: ='DATA (Real)'!AA52*AA$4/100 -> 4914.830653 | AB56: ='DATA (Real)'!AB52*AB$4/100 -> 5022.956927 | AC56: ='DATA (Real)'!AC52*AC$4/100 -> 5133.46198 | AD56: ='DATA (Real)'!AD52*AD$4/100 -> 5246.398143 | AE56: ='DATA (Real)'!AE52*AE$4/100 -> 5361.818902 | AF56: ='DATA (Real)'!AF52*AF$4/100 -> 5479.778918 | AG56: ='DATA (Real)'!AG52*AG$4/100 -> 5600.334054 | AH56: ='DATA (Real)'!AH52*AH$4/100 -> 5723.541404 | AI56: ='DATA (Real)'!AI52*AI$4/100 -> 5849.459314 | AJ56: ='DATA (Real)'!AJ52*AJ$4/100 -> 5978.147419
B57: CPI Inflator | C57: ='DATA (Real)'!C53 -> Internal | D57: ='DATA (Real)'!D53 -> CAPEX ($/kW) | E57: ='DATA (Real)'!E53 -> Wood Biomass | H57: ='DATA (Real)'!H53 -> 4756.059028 | I57: ='DATA (Real)'!I53*I$4/$H$4 -> 4906.92122 | J57: ='DATA (Real)'!J53*J$4/$H$4 -> 5022.346319 | K57: ='DATA (Real)'!K53*K$4/$H$4 -> 5134.512054 | L57: ='DATA (Real)'!L53*L$4/$H$4 -> 5249.182823 | M57: ='DATA (Real)'!M53*M$4/$H$4 -> 5366.414572 | N57: ='DATA (Real)'!N53*N$4/$H$4 -> 5484.475693 | O57: ='DATA (Real)'!O53*O$4/$H$4 -> 5605.134158 | P57: ='DATA (Real)'!P53*P$4/$H$4 -> 5728.44711 | Q57: ='DATA (Real)'!Q53*Q$4/$H$4 -> 5854.472946 | R57: ='DATA (Real)'!R53*R$4/$H$4 -> 5983.271351 | S57: ='DATA (Real)'!S53*S$4/$H$4 -> 6114.903321 | T57: ='DATA (Real)'!T53*T$4/$H$4 -> 6249.431194 | U57: ='DATA (Real)'!U53*U$4/$H$4 -> 6386.91868 | V57: ='DATA (Real)'!V53*V$4/$H$4 -> 6527.430891 | W57: ='DATA (Real)'!W53*W$4/$H$4 -> 6671.034371 | X57: ='DATA (Real)'!X53*X$4/$H$4 -> 6817.797127 | Y57: ='DATA (Real)'!Y53*Y$4/$H$4 -> 6967.788664 | Z57: ='DATA (Real)'!Z53*Z$4/$H$4 -> 7121.080014 | AA57: ='DATA (Real)'!AA53*AA$4/$H$4 -> 7277.743774 | AB57: ='DATA (Real)'!AB53*AB$4/$H$4 -> 7437.854138 | AC57: ='DATA (Real)'!AC53*AC$4/$H$4 -> 7601.486929 | AD57: ='DATA (Real)'!AD53*AD$4/$H$4 -> 7768.719641 | AE57: ='DATA (Real)'!AE53*AE$4/$H$4 -> 7939.631473 | AF57: ='DATA (Real)'!AF53*AF$4/$H$4 -> 8114.303365 | AG57: ='DATA (Real)'!AG53*AG$4/$H$4 -> 8292.81804 | AH57: ='DATA (Real)'!AH53*AH$4/$H$4 -> 8475.260036 | AI57: ='DATA (Real)'!AI53*AI$4/$H$4 -> 8661.715757 | AJ57: ='DATA (Real)'!AJ53*AJ$4/$H$4 -> 8852.273504
B58: CPI Inflator | C58: ='DATA (Real)'!C54 -> Internal | D58: ='DATA (Real)'!D54 -> CAPEX ($/kW) | E58: ='DATA (Real)'!E54 -> Rathdrum CT 2055 Uprates two unit operation | H58: ='DATA (Real)'!H54 -> 829.15 | I58: ='DATA (Real)'!I54*I$4/$H$4 -> 855.450638 | J58: ='DATA (Real)'!J54*J$4/$H$4 -> 875.5733321 | K58: ='DATA (Real)'!K54*K$4/$H$4 -> 895.1278032 | L58: ='DATA (Real)'!L54*L$4/$H$4 -> 915.1189908 | M58: ='DATA (Real)'!M54*M$4/$H$4 -> 935.5566482 | N58: ='DATA (Real)'!N54*N$4/$H$4 -> 956.1388945 | O58: ='DATA (Real)'!O54*O$4/$H$4 -> 977.1739502 | P58: ='DATA (Real)'!P54*P$4/$H$4 -> 998.6717771 | Q58: ='DATA (Real)'!Q54*Q$4/$H$4 -> 1020.642556 | R58: ='DATA (Real)'!R54*R$4/$H$4 -> 1043.096692 | S58: ='DATA (Real)'!S54*S$4/$H$4 -> 1066.04482 | T58: ='DATA (Real)'!T54*T$4/$H$4 -> 1089.497806 | U58: ='DATA (Real)'!U54*U$4/$H$4 -> 1113.466757 | V58: ='DATA (Real)'!V54*V$4/$H$4 -> 1137.963026 | W58: ='DATA (Real)'!W54*W$4/$H$4 -> 1162.998213 | X58: ='DATA (Real)'!X54*X$4/$H$4 -> 1188.584173 | Y58: ='DATA (Real)'!Y54*Y$4/$H$4 -> 1214.733025 | Z58: ='DATA (Real)'!Z54*Z$4/$H$4 -> 1241.457152 | AA58: ='DATA (Real)'!AA54*AA$4/$H$4 -> 1268.769209 | AB58: ='DATA (Real)'!AB54*AB$4/$H$4 -> 1296.682132 | AC58: ='DATA (Real)'!AC54*AC$4/$H$4 -> 1325.209138 | AD58: ='DATA (Real)'!AD54*AD$4/$H$4 -> 1354.36374 | AE58: ='DATA (Real)'!AE54*AE$4/$H$4 -> 1384.159742 | AF58: ='DATA (Real)'!AF54*AF$4/$H$4 -> 1414.611256 | AG58: ='DATA (Real)'!AG54*AG$4/$H$4 -> 1445.732704 | AH58: ='DATA (Real)'!AH54*AH$4/$H$4 -> 1477.538823 | AI58: ='DATA (Real)'!AI54*AI$4/$H$4 -> 1510.044677 | AJ58: ='DATA (Real)'!AJ54*AJ$4/$H$4 -> 1543.26566
B59: CPI Inflator | C59: ='DATA (Real)'!C55 -> Internal | D59: ='DATA (Real)'!D55 -> CAPEX ($/kW) | E59: ='DATA (Real)'!E55 -> Rathdrum CT: Inlet Evaporation 2 unit operation | H59: ='DATA (Real)'!H55 -> 150 | I59: ='DATA (Real)'!I55*I$4/$H$4 -> 154.758 | J59: ='DATA (Real)'!J55*J$4/$H$4 -> 158.3983595 | K59: ='DATA (Real)'!K55*K$4/$H$4 -> 161.9359229 | L59: ='DATA (Real)'!L55*L$4/$H$4 -> 165.5524918 | M59: ='DATA (Real)'!M55*M$4/$H$4 -> 169.2498308 | N59: ='DATA (Real)'!N55*N$4/$H$4 -> 172.9733271 | O59: ='DATA (Real)'!O55*O$4/$H$4 -> 176.7787403 | P59: ='DATA (Real)'!P55*P$4/$H$4 -> 180.6678726 | Q59: ='DATA (Real)'!Q55*Q$4/$H$4 -> 184.6425658 | R59: ='DATA (Real)'!R55*R$4/$H$4 -> 188.7047022 | S59: ='DATA (Real)'!S55*S$4/$H$4 -> 192.8562057 | T59: ='DATA (Real)'!T55*T$4/$H$4 -> 197.0990422 | U59: ='DATA (Real)'!U55*U$4/$H$4 -> 201.4352211 | V59: ='DATA (Real)'!V55*V$4/$H$4 -> 205.866796 | W59: ='DATA (Real)'!W55*W$4/$H$4 -> 210.3958655 | X59: ='DATA (Real)'!X55*X$4/$H$4 -> 215.0245746 | Y59: ='DATA (Real)'!Y55*Y$4/$H$4 -> 219.7551152 | Z59: ='DATA (Real)'!Z55*Z$4/$H$4 -> 224.5897277 | AA59: ='DATA (Real)'!AA55*AA$4/$H$4 -> 229.5307017 | AB59: ='DATA (Real)'!AB55*AB$4/$H$4 -> 234.5803772 | AC59: ='DATA (Real)'!AC55*AC$4/$H$4 -> 239.7411455 | AD59: ='DATA (Real)'!AD55*AD$4/$H$4 -> 245.0154507 | AE59: ='DATA (Real)'!AE55*AE$4/$H$4 -> 250.4057906 | AF59: ='DATA (Real)'!AF55*AF$4/$H$4 -> 255.914718 | AG59: ='DATA (Real)'!AG55*AG$4/$H$4 -> 261.5448418 | AH59: ='DATA (Real)'!AH55*AH$4/$H$4 -> 267.2988283 | AI59: ='DATA (Real)'!AI55*AI$4/$H$4 -> 273.1794025 | AJ59: ='DATA (Real)'!AJ55*AJ$4/$H$4 -> 279.1893494
B60: CPI Inflator | C60: ='DATA (Real)'!C56 -> Internal | D60: ='DATA (Real)'!D56 -> CAPEX ($/kW) | E60: ='DATA (Real)'!E56 -> Kettle Falls Turbine Generator Upgrade
B61: CPI Inflator | C61: ='DATA (Real)'!C57 -> Internal | D61: ='DATA (Real)'!D57 -> CAPEX ($/kW) | E61: ='DATA (Real)'!E57 -> New Residential Solar | H61: ='DATA (Real)'!H57 -> 3588 | I61: ='DATA (Real)'!I57*I$4/$H$4 -> 3701.81136 | J61: ='DATA (Real)'!J57*J$4/$H$4 -> 3788.88876 | K61: ='DATA (Real)'!K57*K$4/$H$4 -> 3873.507276 | L61: ='DATA (Real)'!L57*L$4/$H$4 -> 3960.015605 | M61: ='DATA (Real)'!M57*M$4/$H$4 -> 4048.455953 | N61: ='DATA (Real)'!N57*N$4/$H$4 -> 4137.521984 | O61: ='DATA (Real)'!O57*O$4/$H$4 -> 4228.547468 | P61: ='DATA (Real)'!P57*P$4/$H$4 -> 4321.575512 | Q61: ='DATA (Real)'!Q57*Q$4/$H$4 -> 4416.650174 | R61: ='DATA (Real)'!R57*R$4/$H$4 -> 4513.816477 | S61: ='DATA (Real)'!S57*S$4/$H$4 -> 4613.12044 | T61: ='DATA (Real)'!T57*T$4/$H$4 -> 4714.60909 | U61: ='DATA (Real)'!U57*U$4/$H$4 -> 4818.33049 | V61: ='DATA (Real)'!V57*V$4/$H$4 -> 4924.33376 | W61: ='DATA (Real)'!W57*W$4/$H$4 -> 5032.669103 | X61: ='DATA (Real)'!X57*X$4/$H$4 -> 5143.387823 | Y61: ='DATA (Real)'!Y57*Y$4/$H$4 -> 5256.542356 | Z61: ='DATA (Real)'!Z57*Z$4/$H$4 -> 5372.186287 | AA61: ='DATA (Real)'!AA57*AA$4/$H$4 -> 5490.374386 | AB61: ='DATA (Real)'!AB57*AB$4/$H$4 -> 5611.162622 | AC61: ='DATA (Real)'!AC57*AC$4/$H$4 -> 5734.6082 | AD61: ='DATA (Real)'!AD57*AD$4/$H$4 -> 5860.76958 | AE61: ='DATA (Real)'!AE57*AE$4/$H$4 -> 5989.706511 | AF61: ='DATA (Real)'!AF57*AF$4/$H$4 -> 6121.480054 | AG61: ='DATA (Real)'!AG57*AG$4/$H$4 -> 6256.152615 | AH61: ='DATA (Real)'!AH57*AH$4/$H$4 -> 6393.787973 | AI61: ='DATA (Real)'!AI57*AI$4/$H$4 -> 6534.451308 | AJ61: ='DATA (Real)'!AJ57*AJ$4/$H$4 -> 6678.209237
B62: CPI Inflator | C62: ='DATA (Real)'!C58 -> Internal | D62: ='DATA (Real)'!D58 -> CAPEX ($/kW) | E62: ='DATA (Real)'!E58 -> New Residential Solar + Storage (Solar Only) | H62: ='DATA (Real)'!H58 -> 3588 | I62: ='DATA (Real)'!I58*I$4/$H$4 -> 3701.81136 | J62: ='DATA (Real)'!J58*J$4/$H$4 -> 3788.88876 | K62: ='DATA (Real)'!K58*K$4/$H$4 -> 3873.507276 | L62: ='DATA (Real)'!L58*L$4/$H$4 -> 3960.015605 | M62: ='DATA (Real)'!M58*M$4/$H$4 -> 4048.455953 | N62: ='DATA (Real)'!N58*N$4/$H$4 -> 4137.521984 | O62: ='DATA (Real)'!O58*O$4/$H$4 -> 4228.547468 | P62: ='DATA (Real)'!P58*P$4/$H$4 -> 4321.575512 | Q62: ='DATA (Real)'!Q58*Q$4/$H$4 -> 4416.650174 | R62: ='DATA (Real)'!R58*R$4/$H$4 -> 4513.816477 | S62: ='DATA (Real)'!S58*S$4/$H$4 -> 4613.12044 | T62: ='DATA (Real)'!T58*T$4/$H$4 -> 4714.60909 | U62: ='DATA (Real)'!U58*U$4/$H$4 -> 4818.33049 | V62: ='DATA (Real)'!V58*V$4/$H$4 -> 4924.33376 | W62: ='DATA (Real)'!W58*W$4/$H$4 -> 5032.669103 | X62: ='DATA (Real)'!X58*X$4/$H$4 -> 5143.387823 | Y62: ='DATA (Real)'!Y58*Y$4/$H$4 -> 5256.542356 | Z62: ='DATA (Real)'!Z58*Z$4/$H$4 -> 5372.186287 | AA62: ='DATA (Real)'!AA58*AA$4/$H$4 -> 5490.374386 | AB62: ='DATA (Real)'!AB58*AB$4/$H$4 -> 5611.162622 | AC62: ='DATA (Real)'!AC58*AC$4/$H$4 -> 5734.6082 | AD62: ='DATA (Real)'!AD58*AD$4/$H$4 -> 5860.76958 | AE62: ='DATA (Real)'!AE58*AE$4/$H$4 -> 5989.706511 | AF62: ='DATA (Real)'!AF58*AF$4/$H$4 -> 6121.480054 | AG62: ='DATA (Real)'!AG58*AG$4/$H$4 -> 6256.152615 | AH62: ='DATA (Real)'!AH58*AH$4/$H$4 -> 6393.787973 | AI62: ='DATA (Real)'!AI58*AI$4/$H$4 -> 6534.451308 | AJ62: ='DATA (Real)'!AJ58*AJ$4/$H$4 -> 6678.209237
B63: CPI Inflator | C63: ='DATA (Real)'!C59 -> Internal | D63: ='DATA (Real)'!D59 -> CAPEX ($/kW) | E63: ='DATA (Real)'!E59 -> New Residential Solar + Storage (Battery Only) | H63: ='DATA (Real)'!H59 -> 2990 | I63: ='DATA (Real)'!I59*I$4/$H$4 -> 3084.8428 | J63: ='DATA (Real)'!J59*J$4/$H$4 -> 3157.4073 | K63: ='DATA (Real)'!K59*K$4/$H$4 -> 3227.92273 | L63: ='DATA (Real)'!L59*L$4/$H$4 -> 3300.013004 | M63: ='DATA (Real)'!M59*M$4/$H$4 -> 3373.713295 | N63: ='DATA (Real)'!N59*N$4/$H$4 -> 3447.934987 | O63: ='DATA (Real)'!O59*O$4/$H$4 -> 3523.789557 | P63: ='DATA (Real)'!P59*P$4/$H$4 -> 3601.312927 | Q63: ='DATA (Real)'!Q59*Q$4/$H$4 -> 3680.541811 | R63: ='DATA (Real)'!R59*R$4/$H$4 -> 3761.513731 | S63: ='DATA (Real)'!S59*S$4/$H$4 -> 3844.267033 | T63: ='DATA (Real)'!T59*T$4/$H$4 -> 3928.840908 | U63: ='DATA (Real)'!U59*U$4/$H$4 -> 4015.275408 | V63: ='DATA (Real)'!V59*V$4/$H$4 -> 4103.611467 | W63: ='DATA (Real)'!W59*W$4/$H$4 -> 4193.890919 | X63: ='DATA (Real)'!X59*X$4/$H$4 -> 4286.156519 | Y63: ='DATA (Real)'!Y59*Y$4/$H$4 -> 4380.451963 | Z63: ='DATA (Real)'!Z59*Z$4/$H$4 -> 4476.821906 | AA63: ='DATA (Real)'!AA59*AA$4/$H$4 -> 4575.311988 | AB63: ='DATA (Real)'!AB59*AB$4/$H$4 -> 4675.968852 | AC63: ='DATA (Real)'!AC59*AC$4/$H$4 -> 4778.840167 | AD63: ='DATA (Real)'!AD59*AD$4/$H$4 -> 4883.97465 | AE63: ='DATA (Real)'!AE59*AE$4/$H$4 -> 4991.422092 | AF63: ='DATA (Real)'!AF59*AF$4/$H$4 -> 5101.233379 | AG63: ='DATA (Real)'!AG59*AG$4/$H$4 -> 5213.460513 | AH63: ='DATA (Real)'!AH59*AH$4/$H$4 -> 5328.156644 | AI63: ='DATA (Real)'!AI59*AI$4/$H$4 -> 5445.37609 | AJ63: ='DATA (Real)'!AJ59*AJ$4/$H$4 -> 5565.174364
B64: CPI Inflator | C64: ='DATA (Real)'!C60 -> Internal | D64: ='DATA (Real)'!D60 -> CAPEX ($/kW) | E64: ='DATA (Real)'!E60 -> Existing Residential Solar | H64: ='DATA (Real)'!H60 -> 3910 | I64: ='DATA (Real)'!I60*I$4/$H$4 -> 4034.0252 | J64: ='DATA (Real)'!J60*J$4/$H$4 -> 4128.917239 | K64: ='DATA (Real)'!K60*K$4/$H$4 -> 4221.129724 | L64: ='DATA (Real)'!L60*L$4/$H$4 -> 4315.401621 | M64: ='DATA (Real)'!M60*M$4/$H$4 -> 4411.778924 | N64: ='DATA (Real)'!N60*N$4/$H$4 -> 4508.83806 | O64: ='DATA (Real)'!O60*O$4/$H$4 -> 4608.032497 | P64: ='DATA (Real)'!P60*P$4/$H$4 -> 4709.409212 | Q64: ='DATA (Real)'!Q60*Q$4/$H$4 -> 4813.016215 | R64: ='DATA (Real)'!R60*R$4/$H$4 -> 4918.902572 | S64: ='DATA (Real)'!S60*S$4/$H$4 -> 5027.118428 | T64: ='DATA (Real)'!T60*T$4/$H$4 -> 5137.715034 | U64: ='DATA (Real)'!U60*U$4/$H$4 -> 5250.744764 | V64: ='DATA (Real)'!V60*V$4/$H$4 -> 5366.261149 | W64: ='DATA (Real)'!W60*W$4/$H$4 -> 5484.318894 | X64: ='DATA (Real)'!X60*X$4/$H$4 -> 5604.97391 | Y64: ='DATA (Real)'!Y60*Y$4/$H$4 -> 5728.283336 | Z64: ='DATA (Real)'!Z60*Z$4/$H$4 -> 5854.30557 | AA64: ='DATA (Real)'!AA60*AA$4/$H$4 -> 5983.100292 | AB64: ='DATA (Real)'!AB60*AB$4/$H$4 -> 6114.728498 | AC64: ='DATA (Real)'!AC60*AC$4/$H$4 -> 6249.252525 | AD64: ='DATA (Real)'!AD60*AD$4/$H$4 -> 6386.736081 | AE64: ='DATA (Real)'!AE60*AE$4/$H$4 -> 6527.244275 | AF64: ='DATA (Real)'!AF60*AF$4/$H$4 -> 6670.843649 | AG64: ='DATA (Real)'!AG60*AG$4/$H$4 -> 6817.602209 | AH64: ='DATA (Real)'!AH60*AH$4/$H$4 -> 6967.589458 | AI64: ='DATA (Real)'!AI60*AI$4/$H$4 -> 7120.876426 | AJ64: ='DATA (Real)'!AJ60*AJ$4/$H$4 -> 7277.535707
B65: CPI Inflator | C65: ='DATA (Real)'!C61 -> Internal | D65: ='DATA (Real)'!D61 -> CAPEX ($/kW) | E65: ='DATA (Real)'!E61 -> Existing Residential Solar + Storage (Solar Only) | H65: ='DATA (Real)'!H61 -> 3910 | I65: ='DATA (Real)'!I61*I$4/$H$4 -> 4034.0252 | J65: ='DATA (Real)'!J61*J$4/$H$4 -> 4128.917239 | K65: ='DATA (Real)'!K61*K$4/$H$4 -> 4221.129724 | L65: ='DATA (Real)'!L61*L$4/$H$4 -> 4315.401621 | M65: ='DATA (Real)'!M61*M$4/$H$4 -> 4411.778924 | N65: ='DATA (Real)'!N61*N$4/$H$4 -> 4508.83806 | O65: ='DATA (Real)'!O61*O$4/$H$4 -> 4608.032497 | P65: ='DATA (Real)'!P61*P$4/$H$4 -> 4709.409212 | Q65: ='DATA (Real)'!Q61*Q$4/$H$4 -> 4813.016215 | R65: ='DATA (Real)'!R61*R$4/$H$4 -> 4918.902572 | S65: ='DATA (Real)'!S61*S$4/$H$4 -> 5027.118428 | T65: ='DATA (Real)'!T61*T$4/$H$4 -> 5137.715034 | U65: ='DATA (Real)'!U61*U$4/$H$4 -> 5250.744764 | V65: ='DATA (Real)'!V61*V$4/$H$4 -> 5366.261149 | W65: ='DATA (Real)'!W61*W$4/$H$4 -> 5484.318894 | X65: ='DATA (Real)'!X61*X$4/$H$4 -> 5604.97391 | Y65: ='DATA (Real)'!Y61*Y$4/$H$4 -> 5728.283336 | Z65: ='DATA (Real)'!Z61*Z$4/$H$4 -> 5854.30557 | AA65: ='DATA (Real)'!AA61*AA$4/$H$4 -> 5983.100292 | AB65: ='DATA (Real)'!AB61*AB$4/$H$4 -> 6114.728498 | AC65: ='DATA (Real)'!AC61*AC$4/$H$4 -> 6249.252525 | AD65: ='DATA (Real)'!AD61*AD$4/$H$4 -> 6386.736081 | AE65: ='DATA (Real)'!AE61*AE$4/$H$4 -> 6527.244275 | AF65: ='DATA (Real)'!AF61*AF$4/$H$4 -> 6670.843649 | AG65: ='DATA (Real)'!AG61*AG$4/$H$4 -> 6817.602209 | AH65: ='DATA (Real)'!AH61*AH$4/$H$4 -> 6967.589458 | AI65: ='DATA (Real)'!AI61*AI$4/$H$4 -> 7120.876426 | AJ65: ='DATA (Real)'!AJ61*AJ$4/$H$4 -> 7277.535707
